Workbook

Sheet General
B1: Módulo de Ingreso de Información
B5: Código | C5: 3
B6: Nombre | C6: Prueba 1 | E6: Permisos Ambiental obtenida | F6: NO
B7: Fecha Radicación | C7: 2022-02-08
B8: Hora Radicación | C8: 12:35:00
B9: Capacidad (MW) | C9: 50
B10: Tecnología | C10: Solar FV | E10: Costo Activos de Uso ($COP) | F10: 0
B11: Barra 1 | C11: Chinú | E11: Delta pérdidas (GWh) | F11: 100
B12: Código Asociado | E12: Reducción Marginal VPN ($COP) | F12: 1000000
B13: FPO | C13: 2025-12-31
B14: FPO 2 | C14: 2026-12-31
B15: Obligaciones | C15: NO
B16: Requiere Expansión | C16: NO
B17: Área Eléctrica | C17: Antioquia

Sheet Tablas
B1: Tecnologia | C1: Factor de planta | D1: Iflex | E1: IE-RP | F1: Factor ENFICC | G1: Factor emisiones | H1: Oferta promedio | I1: Comentarios | J1: Area Eléctrica | N1: FPO | P1: Fecha Radicacion | Q1: Hora Radicacion | S1: Gestion Ambiental | U1: Consulta Previa | W1: Permiso Arquelogico
B2: Solar FV | C2: 0.26 | D2: 0 | E2: 0.3190502279 | F2: 0.15 | G2: 0 | H2: 83577.2 | I2: Los parámetros fueron calculados conforme a la metodología presentada en la Circular UPME 057 de 2022. | J2: Altántico | L2: SI | N2: 2023-01-01 | P2: 2022-01-01 | Q2: 00:00:00 | S2: No hay avances | U2: No hay avances | W2: No hay avances
B3: Eólico Onshore | C3: 0.57 | D3: 0 | E3: 0.3190502279 | F3: 0.06 | G3: 0 | H3: 83577.2 | I3: Los parámetros fueron calculados conforme a la metodología presentada en la Circular UPME 057 de 2022. | J3: Bolívar | L3: NO | N3: 2037-12-31 | P3: 2022-03-31 | Q3: 23:59:59 | S3: EIA | U3: Resolución. No Procede | W3: Aprobado
B4: Eólico Offshore | C4: 0.57 | D4: 0 | E4: 0.3190502279 | F4: 0.06 | G4: 0 | H4: 83577.2 | I4: Los parámetros fueron calculados conforme a la metodología presentada en la Circular UPME 057 de 2022. | J4: Córdoba - Sucre, Chinú | S4: LA | U4: Resolución. Si Procede | W4: No Aplica
B5: Biomasa y Residuos | C5: 0.7 | D5: 0.25 | E5: 0.3190502279 | F5: 0.83 | G5: 0.37 | H5: 83577.2 | I5: Los parámetros fueron calculados conforme a la metodología presentada en la Circular UPME 057 de 2022. | J5: Córdoba - Sucre, Cerromatoso | S5: PA | U5: Finalizada
B6: Geotérmica | C6: 0.8 | D6: 0.25 | E6: 0.3190502279 | F6: 0.7 | G6: 0 | H6: 83577.2 | I6: Los parámetros fueron calculados conforme a la metodología presentada en la Circular UPME 057 de 2022. | J6: Guajira - Cesar - Madgalena | S6: No Aplica
B7: PCH | C7: 0.54 | D7: 0.61 | E7: 0.1550930337 | F7: 0.15 | G7: 0 | H7: 158280.5 | I7: Los parámetros fueron calculados conforme a la metodología presentada en la Circular UPME 057 de 2022. | J7: Santander
B8: Termica - Ciclo abierto | C8: 0.85 | D8: 0.4 | E8: -0.5761741581 | F8: 0.83 | G8: 0.95 | H8: 267152.5 | I8: Los parámetros fueron calculados conforme a la metodología presentada en la Circular UPME 057 de 2022. | J8: Norte de Santander
B9: Termica - Ciclo combinado | C9: 0.85 | D9: 0.27 | E9: -0.5761741581 | F9: 0.83 | G9: 0.95 | H9: 267152.5 | I9: Los parámetros fueron calculados conforme a la metodología presentada en la Circular UPME 057 de 2022. | J9: Boyacá - Casanare
B10: Termica a vapor | C10: 0.85 | D10: 0.25 | E10: -0.5761741581 | F10: 0.83 | G10: 0.37 | H10: 267152.5 | I10: Los parámetros fueron calculados conforme a la metodología presentada en la Circular UPME 057 de 2022. | J10: Arauca
B11: Termica - diesel | C11: 0.85 | D11: 0.6 | E11: -4.282826571 | F11: 0.83 | G11: 0.77 | H11: 709472.9 | I11: Los parámetros fueron calculados conforme a la metodología presentada en la Circular UPME 057 de 2022. | J11: Antioquia
B12: Hidraulica | C12: 0.6 | D12: 0.61 | E12: 0.1550930337 | F12: 0.31 | G12: 0 | H12: 158280.5 | I12: Los parámetros fueron calculados conforme a la metodología presentada en la Circular UPME 057 de 2022. | J12: Chocó
B13: Cogeneracion | C13: 0.85 | D13: 0.1 | E13: 0.3190502279 | F13: 0.83 | G13: 0.37 | H13: 83577.2 | I13: Los parámetros fueron calculados conforme a la metodología presentada en la Circular UPME 057 de 2022. | J13: Bogotá
J14: Meta - Guaviare
J15: Caldas - Quidio - Risaralda
J16: Valle
J17: Cauca - Nariño
J18: Tolima - Huila Caquetá
J19: Putumayo

Sheet InfoPro
A1: Código | B1: Nombre | C1: Fecha Radicación | D1: Hora Radicación | E1: Capacidad | F1: Tipo | G1: Barra 1 | H1: Código Asociado | I1: FPO | J1: FPO 2 | K1: Obligaciones | L1: Requiere Expansión | M1: Area Eléctrica | N1: Permisos Ambiental obtenida | O1: Costo Activos de Uso | P1: Pérdidas reportadas
A2: SC_410_A1 | B2: PARQUE SOLAR EL ACEITE 9.9 MW | C2: 2022-04-21 | D2: 44672 | E2: 9.9 | F2: Solar FV | G2: Palermo 34.5 | H2: SC_410 | I2: 2025-07-31 | J2: 2025-07-31 | K2: NO | L2: NO | M2: Tolima - Huila Caquetá | N2: NO | O2: 0 | P2: -6.65358 | Q2: =CONCATENATE(C2,D2) -> 4467244672 | R2: 1
A3: SC_458_A1 | B3: Helios Guamo 19.9MW | C3: 2022-05-13 | D3: 44694 | E3: 19.9 | F3: Solar FV | G3: Espinal 34.5 | H3: SC_458 | I3: 2024-12-31 | J3: 2024-12-31 | K3: NO | L3: NO | M3: Tolima - Huila Caquetá | N3: NO | O3: 0 | P3: -2.393536 | Q3: 4469444694 | R3: 2
A4: SC_458_A2 | B4: Helios Guamo 19.9MW | C4: 2022-05-13 | D4: 44694 | E4: 19.9 | F4: Solar FV | G4: Nva Espinal 34.5 | H4: SC_458 | I4: 2024-12-31 | J4: 2024-12-31 | K4: NO | L4: NO | M4: Tolima - Huila Caquetá | N4: NO | O4: 0 | P4: -2.746206 | Q4: 4469444694 | R4: 3
A5: SC_478_A2 | B5: Helios Tuluni 19.9 MW | C5: 2022-05-20 | D5: 44701 | E5: 19.9 | F5: Solar FV | G5: Natagaima 34.5 | H5: SC_478 | I5: 2024-12-31 | J5: 2024-12-31 | K5: NO | L5: NO | M5: Tolima - Huila Caquetá | N5: NO | O5: 0 | P5: -4.084269 | Q5: 4470144701 | R5: 4
A6: SC_478_A1 | B6: Helios Tuluni 19.9 MW | C6: 2022-05-20 | D6: 44701 | E6: 19.9 | F6: Solar FV | G6: Tuluni 34.5 | H6: SC_478 | I6: 2024-12-31 | J6: 2024-12-31 | K6: NO | L6: NO | M6: Tolima - Huila Caquetá | N6: NO | O6: 0 | P6: -0.587572 | Q6: 4470144701 | R6: 5
A7: SC_491_A1 | B7: Florida - 9.9 MW | C7: 2022-05-24 | D7: 44705 | E7: 9.9 | F7: Solar FV | G7: Cruce Juncal 34.5 | H7: SC_491 | I7: 2025-07-31 | J7: 2025-07-31 | K7: NO | L7: NO | M7: Tolima - Huila Caquetá | N7: NO | O7: 0 | P7: -6.411015 | Q7: 4470544705 | R7: 6
A8: SC_519_A1 | B8: PARQUE SOLAR EL ACEITE 9.9 MW | C8: 2022-05-31 | D8: 44712 | E8: 9.9 | F8: Solar FV | G8: Campoalegre 34.5 | H8: SC_519 | I8: 2025-07-31 | J8: 2025-07-31 | K8: NO | L8: NO | M8: Tolima - Huila Caquetá | N8: NO | O8: 0 | P8: -7.03419 | Q8: 4471244712 | R8: 7
A9: SC_492_A1 | B9: Ricaurte 9.9 MW | C9: 2022-06-06 | D9: 44718 | E9: 9.9 | F9: Solar FV | G9: Baraya 34.5 | H9: SC_492 | I9: 2025-07-31 | J9: 2025-07-31 | K9: NO | L9: NO | M9: Tolima - Huila Caquetá | N9: NO | O9: 0 | P9: -5.25982 | Q9: 4471844718 | R9: 8
A10: SC_492_A2 | B10: Ricaurte 9.9 MW | C10: 2022-06-06 | D10: 44718 | E10: 9.9 | F10: Solar FV | G10: seccionamiento de la línea Fortalecillas A - Baraya 34.5kV | H10: SC_492 | I10: 2025-07-31 | J10: 2025-07-31 | K10: NO | L10: SI | M10: Tolima - Huila Caquetá | N10: NO | O10: 0 | P10: -4.90922 | Q10: 4471844718 | R10: 9
A11: SC_826_A1 | B11: PARQUE SOLAR HELIOS LANCEROS 19.9 MW | C11: 2022-06-20T16:28:00 | D11: 44732.68611 | E11: 19.9 | F11: Solar FV | G11: Lanceros 34.5 | H11: SC_826 | I11: 2024-12-31 | J11: 2024-12-31 | K11: NO | L11: NO | M11: Tolima - Huila Caquetá | N11: NO | O11: 0 | P11: -1.29369062 | Q11: 44732,686111111144732,6861111111 | R11: 12
A12: SC_827_A1 | B12: PARQUE SOLAR FOTOVOLTAICO HELIOS NATAGAIMA (19,9MW) | C12: 2022-07-01T16:36:00 | D12: 44743.69167 | E12: 19.9 | F12: Solar FV | G12: Natagaima 115 | H12: SC_827 | I12: 2024-12-31 | J12: 2024-12-31 | K12: NO | L12: NO | M12: Tolima - Huila Caquetá | N12: NO | O12: 0 | P12: -0.910538 | Q12: 44743,691666666744743,6916666667 | R12: 13
A13: SC_827_A2 | B13: PARQUE SOLAR FOTOVOLTAICO HELIOS NATAGAIMA (19,9MW) | C13: 2022-07-01T16:36:00 | D13: 44743.69167 | E13: 19.9 | F13: Solar FV | G13: Tuluni 115 | H13: SC_827 | I13: 2024-12-31 | J13: 2024-12-31 | K13: NO | L13: NO | M13: Tolima - Huila Caquetá | N13: NO | O13: 0 | P13: 0.831333 | Q13: 44743,691666666744743,6916666667 | R13: 14
A14: SC_722_A1 | B14: Sevilla de 9,9 MW | C14: 2022-07-01 | D14: 44743 | E14: 9.9 | F14: Solar FV | G14: Perales 34.5 | H14: SC_722 | I14: 2025-12-31 | J14: 2025-12-31 | K14: NO | L14: SI | M14: Tolima - Huila Caquetá | N14: NO | O14: 318984566 | P14: -1.34 | Q14: 4474344743 | R14: 15
A15: SC_722_A2 | B15: Sevilla de 9,9 MW | C15: 2022-07-01 | D15: 44743 | E15: 9.9 | F15: Solar FV | G15: Perales 115 | H15: SC_722 | I15: 2025-12-31 | J15: 2025-12-31 | K15: NO | L15: SI | M15: Tolima - Huila Caquetá | N15: NO | O15: 318984566 | P15: -1.35 | Q15: 4474344743 | R15: 16
A16: SC_958_A1 | B16: DSE NEIVA SUR_9.9MW | C16: 2022-07-12 | D16: 44754 | E16: 9.9 | F16: Solar FV | G16: Sur 34.5 | H16: SC_958 | I16: 2026-12-31 | J16: 2026-12-31 | K16: NO | L16: NO | M16: Tolima - Huila Caquetá | N16: NO | O16: 0 | P16: -0.21 | Q16: 4475444754 | R16: 17
A17: SC_1004_A1 | B17: EXCEDENTES AUTOGENERACIÓN VAO HUILA | C17: 2022-07-13 | D17: 44755 | E17: 7.5 | F17: Solar FV | G17: Tenay 115 | H17: SC_1004 | I17: 2023-12-31 | J17: 2023-12-31 | K17: NO | L17: NO | M17: Tolima - Huila Caquetá | N17: NO | O17: 0 | P17: 1.011 | Q17: 4475544755 | R17: 18
A18: SC_1104_A1 | B18: CAMPOALEGRE SOLAR 9.9 MW | C18: 2022-07-14 | D18: 44756 | E18: 9.9 | F18: Solar FV | G18: Hobo 34.5 | H18: SC_1104 | I18: 2024-12-31 | J18: 2024-12-31 | K18: NO | L18: NO | M18: Tolima - Huila Caquetá | N18: NO | O18: 0 | P18: -1.59 | Q18: 4475644756 | R18: 19
A19: SC_1104_A2 | B19: CAMPOALEGRE SOLAR 9.9 MW | C19: 2022-07-14 | D19: 44756 | E19: 9.9 | F19: Solar FV | G19: Rivera 34.5 | H19: SC_1104 | I19: 2024-12-31 | J19: 2024-12-31 | K19: NO | L19: NO | M19: Tolima - Huila Caquetá | N19: NO | O19: 0 | P19: -1.479 | Q19: 4475644756 | R19: 20
A20: SC_1331_A1 | B20: Sol de Colombia Tuluní | C20: 2022-07-15 | D20: 44757 | E20: 200 | F20: Solar FV | G20: Tuluni 220 | H20: SC_1331 | I20: 2026-11-30 | J20: 2026-11-30 | K20: NO | L20: SI | M20: Tolima - Huila Caquetá | N20: NO | O20: 209586221000 | P20: -34.54 | Q20: 4475744757 | R20: 21
A21: SC_806_A1 | B21: Wartsila | C21: 2022-07-15 | D21: 44757 | E21: 26.25 | F21: Termica - Ciclo combinado | G21: Diamante 115 | H21: SC_806 | I21: 2023-12-31 | J21: 2023-12-31 | K21: NO | L21: NO | M21: Tolima - Huila Caquetá | N21: NO | O21: 0 | P21: -6.881 | Q21: 4475744757 | R21: 22
A22: SC_764_A1 | B22: PARQUE FOTOVOLTAICO LAS CEIBAS | C22: 2022-07-15 | D22: 44757 | E22: 80 | F22: Solar FV | G22: El Bote 115 | H22: SC_764 | I22: 2026-12-31 | J22: 2026-12-31 | K22: NO | L22: NO | M22: Tolima - Huila Caquetá | N22: NO | O22: 0 | P22: -53.91966 | Q22: 4475744757 | R22: 23
A23: SC_1231_A2 | B23: Palermo 1 | C23: 2022-07-15 | D23: 44757 | E23: 50 | F23: Solar FV | G23: El Bote 115 | H23: SC_1231 | I23: 2024-12-31 | J23: 2024-12-31 | K23: NO | L23: NO | M23: Tolima - Huila Caquetá | N23: NO | O23: 0 | P23: -8.27 | Q23: 4475744757 | R23: 24
A24: SC_1246_A2 | B24: Palermo 2 | C24: 2022-07-15 | D24: 44757 | E24: 9.9 | F24: Solar FV | G24: El Bote 34.5 | H24: SC_1246 | I24: 2024-12-31 | J24: 2024-12-31 | K24: NO | L24: NO | M24: Tolima - Huila Caquetá | N24: NO | O24: 0 | P24: -1.42 | Q24: 4475744757 | R24: 25
A25: SC_1214_A2 | B25: Sol de Espinal 9,9 MW | C25: 2022-07-15 | D25: 44757 | E25: 9.9 | F25: Solar FV | G25: Espinal 34.5 | H25: SC_1214 | I25: 2028-12-31 | J25: 2028-12-31 | K25: NO | L25: NO | M25: Tolima - Huila Caquetá | N25: NO | O25: 0 | P25: -2.16885 | Q25: 4475744757 | R25: 26
A26: SC_1334_A2 | B26: Flandes Solar | C26: 2022-07-15 | D26: 44757 | E26: 9.9 | F26: Solar FV | G26: Flandes 13.2 | H26: SC_1334 | I26: 2026-12-31 | J26: 2026-12-31 | K26: NO | L26: NO | M26: Tolima - Huila Caquetá | N26: NO | O26: 0 | P26: -1.027 | Q26: 4475744757 | R26: 27
A27: SC_1334_A1 | B27: Flandes Solar | C27: 2022-07-15 | D27: 44757 | E27: 9.9 | F27: Solar FV | G27: Flandes 34.5 | H27: SC_1334 | I27: 2026-12-31 | J27: 2026-12-31 | K27: NO | L27: NO | M27: Tolima - Huila Caquetá | N27: NO | O27: 0 | P27: -1.01 | Q27: 4475744757 | R27: 28
A28: SC_1273_A1 | B28: Santa Clara DE 9,9 MW | C28: 2022-07-15 | D28: 44757 | E28: 9.9 | F28: Solar FV | G28: Fortalecillas 34.5 | H28: SC_1273 | I28: 2024-12-31 | J28: 2024-12-31 | K28: NO | L28: NO | M28: Tolima - Huila Caquetá | N28: NO | O28: 0 | P28: -0.829 | Q28: 4475744757 | R28: 29
A29: SC_806_A2 | B29: Wartsila | C29: 2022-07-15 | D29: 44757 | E29: 26.25 | F29: Termica - Ciclo combinado | G29: Gualanday 115 | H29: SC_806 | I29: 2023-12-31 | J29: 2023-12-31 | K29: NO | L29: NO | M29: Tolima - Huila Caquetá | N29: NO | O29: 0 | P29: -6.756 | Q29: 4475744757 | R29: 30
A30: SC_1248_A2 | B30: El Piojo IV | C30: 2022-07-15 | D30: 44757 | E30: 9.9 | F30: Solar FV | G30: Gualanday 115 | H30: SC_1248 | I30: 2024-12-31 | J30: 2024-12-31 | K30: NO | L30: NO | M30: Tolima - Huila Caquetá | N30: NO | O30: 0 | P30: -0.69921 | Q30: 4475744757 | R30: 31
A31: SC_1248_A1 | B31: El Piojo IV | C31: 2022-07-15 | D31: 44757 | E31: 9.9 | F31: Solar FV | G31: Gualanday 34.5 | H31: SC_1248 | I31: 2024-12-31 | J31: 2024-12-31 | K31: NO | L31: NO | M31: Tolima - Huila Caquetá | N31: NO | O31: 0 | P31: -0.86879 | Q31: 4475744757 | R31: 32
A32: SC_871_A1 | B32: PARQUE SOLAR SANTA LUCIA | C32: 2022-07-15 | D32: 44757 | E32: 9.9 | F32: Solar FV | G32: Hobo 34.5 | H32: SC_871 | I32: 2024-12-31 | J32: 2024-12-31 | K32: NO | L32: NO | M32: Tolima - Huila Caquetá | N32: NO | O32: 0 | P32: 0.041172 | Q32: 4475744757 | R32: 33
A33: SC_1214_A1 | B33: Sol de Espinal 9,9 MW | C33: 2022-07-15 | D33: 44757 | E33: 9.9 | F33: Solar FV | G33: Nva Espinal 34.5 | H33: SC_1214 | I33: 2028-12-31 | J33: 2028-12-31 | K33: NO | L33: NO | M33: Tolima - Huila Caquetá | N33: NO | O33: 0 | P33: -2.59967 | Q33: 4475744757 | R33: 34
A34: SC_1126_A1 | B34: Solar Escobal 9 | C34: 2022-07-15 | D34: 44757 | E34: 19.9 | F34: Solar FV | G34: Picaleña 115 | H34: SC_1126 | I34: 2030-12-31 | J34: 2030-12-31 | K34: NO | L34: NO | M34: Tolima - Huila Caquetá | N34: NO | O34: 0 | P34: -2.175 | Q34: =CONCATENATE(C34,D34) -> 4475744757 | R34: 35
A35: SC_764_A2 | B35: PARQUE FOTOVOLTAICO LAS CEIBAS | C35: 2022-07-15 | D35: 44757 | E35: 80 | F35: Solar FV | G35: Sur 115 | H35: SC_764 | I35: 2026-12-31 | J35: 2026-12-31 | K35: NO | L35: NO | M35: Tolima - Huila Caquetá | N35: NO | O35: 0 | P35: -54.23573 | Q35: 4475744757 | R35: 36
A36: SC_661_A1 | B36: TR Solar 11 | C36: 2022-07-15 | D36: 44757 | E36: 45 | F36: Solar FV | G36: Tuluni 115 | H36: SC_661 | I36: 2025-12-26 | J36: 2025-12-26 | K36: NO | L36: NO | M36: Tolima - Huila Caquetá | N36: NO | O36: 0 | P36: -8.62 | Q36: 4475744757 | R36: 37
A37: SC_661_A2 | B37: TR Solar 11 | C37: 2022-07-15 | D37: 44757 | E37: 45 | F37: Solar FV | G37: Tuluni 220 | H37: SC_661 | I37: 2025-12-26 | J37: 2025-12-26 | K37: NO | L37: NO | M37: Tolima - Huila Caquetá | N37: NO | O37: 0 | P37: -7.9 | Q37: 4475744757 | R37: 38
A38: SC_1337_A1 | B38: Los Venados_15MW | C38: 2022-07-15 | D38: 44757 | E38: 15 | F38: Solar FV | G38: Venadillo 34.5 | H38: SC_1337 | I38: 2024-12-31 | J38: 2024-12-31 | K38: NO | L38: NO | M38: Tolima - Huila Caquetá | N38: NO | O38: 0 | P38: 1.164 | Q38: 4475744757 | R38: 39
A39: SC_1337_A2 | B39: Los Venados_15MW | C39: 2022-07-15 | D39: 44757 | E39: 15 | F39: Solar FV | G39: Venadillo 34.5 | H39: SC_1337 | I39: 2024-12-31 | J39: 2024-12-31 | K39: NO | L39: NO | M39: Tolima - Huila Caquetá | N39: NO | O39: 0 | P39: 1.164 | Q39: 4475744757 | R39: 40
A40: SC_1482_A1 | B40: Proyecto de Autogeneración Con InyecciónCero CEMEX_0MW (AUTOGENERACIÓN) | C40: 2022-07-16 | D40: 44758 | E40: 0 | F40: Solar FV | G40: Diamante 115 | H40: SC_1482 | I40: 2024-12-31 | J40: 2024-12-31 | K40: NO | L40: NO | M40: Tolima - Huila Caquetá | N40: NO | O40: 0 | P40: 32 | Q40: 4475844758 | R40: 41
A41: SC_1043_A2 | B41: PARQUE SOLAR PALERMO SAS | C41: 2022-07-16 | D41: 44758 | E41: 9.9 | F41: Solar FV | G41: El Bote 115 | H41: SC_1043 | I41: 2024-12-31 | J41: 2024-12-31 | K41: NO | L41: NO | M41: Tolima - Huila Caquetá | N41: NO | O41: 0 | P41: -1.73 | Q41: 4475844758 | R41: 42
A42: SC_1043_A1 | B42: PARQUE SOLAR PALERMO SAS | C42: 2022-07-16 | D42: 44758 | E42: 9.9 | F42: Solar FV | G42: El Bote 34.5 | H42: SC_1043 | I42: 2024-12-31 | J42: 2024-12-31 | K42: NO | L42: NO | M42: Tolima - Huila Caquetá | N42: NO | O42: 0 | P42: -1.63 | Q42: 4475844758 | R42: 43
A43: SC_1410_A2 | B43: Coyaima | C43: 2022-07-16 | D43: 44758 | E43: 60 | F43: Solar FV | G43: Picaleña 115 | H43: SC_1410 | I43: 2026-12-31 | J43: 2026-12-31 | K43: NO | L43: NO | M43: Tolima - Huila Caquetá | N43: NO | O43: 0 | P43: -19.124 | Q43: 4475844758 | R43: 44
A44: SC_1410_A1 | B44: Coyaima | C44: 2022-07-16 | D44: 44758 | E44: 60 | F44: Solar FV | G44: Salado 115 | H44: SC_1410 | I44: 2026-12-31 | J44: 2026-12-31 | K44: NO | L44: NO | M44: Tolima - Huila Caquetá | N44: NO | O44: 0 | P44: -20.493 | Q44: 4475844758 | R44: 45
A45: SC_857_A1 | B45: Andaki Wind Farm | C45: 2022-07-17 | D45: 44759 | E45: 125 | F45: Eólico Onshore | G45: Altamira 220 | H45: SC_857 | I45: 2026-12-31 | J45: 2026-12-31 | K45: NO | L45: NO | M45: Tolima - Huila Caquetá | N45: NO | O45: 0 | P45: -2 | Q45: 4475944759 | R45: 46
A46: SC_880_A2 | B46: PARQUE FOTOVOLTAICO LA ACHIRA | C46: 2022-07-17 | D46: 44759 | E46: 60 | F46: Solar FV | G46: Betania 115 | H46: SC_880 | I46: 2026-12-31 | J46: 2026-12-31 | K46: NO | L46: NO | M46: Tolima - Huila Caquetá | N46: NO | O46: 0 | P46: -42.77039 | Q46: 4475944759 | R46: 47
A47: SC_880_A1 | B47: PARQUE FOTOVOLTAICO LA ACHIRA | C47: 2022-07-17 | D47: 44759 | E47: 60 | F47: Solar FV | G47: Hobo 115 | H47: SC_880 | I47: 2026-12-31 | J47: 2026-12-31 | K47: NO | L47: NO | M47: Tolima - Huila Caquetá | N47: NO | O47: 0 | P47: -43.9751 | Q47: 4475944759 | R47: 48
A48: SC_1235_A1 | B48: PROYECTO FOTOVOLTAICO AIPE | C48: 2022-07-17 | D48: 44759 | E48: 9.9 | F48: Solar FV | G48: Pata 34.5 | H48: SC_1235 | I48: 2026-12-31 | J48: 2026-12-31 | K48: NO | L48: NO | M48: Tolima - Huila Caquetá | N48: NO | O48: 0 | P48: -2.93178 | Q48: 4475944759 | R48: 49
A49: SC_857_A2 | B49: Andaki Wind Farm | C49: 2022-07-17 | D49: 44759 | E49: 125 | F49: Eólico Onshore | G49: Nueva S/E Eólico Onshore 220 kV | H49: SC_857 | I49: 2026-12-31 | J49: 2026-12-31 | K49: NO | L49: SI | M49: Tolima - Huila Caquetá | N49: NO | O49: 23947000000 | P49: -2 | Q49: 4475944759 | R49: 50
A50: SC_1694_A2 | B50: Parque Solar Fotovoltaico El Patá | C50: 2022-07-18T18:07:00 | D50: 44760.75486 | E50: 9.9 | F50: Solar FV | G50: Aipe 34.5 | H50: SC_1694 | I50: 2026-12-31 | J50: 2026-12-31 | K50: NO | L50: NO | M50: Tolima - Huila Caquetá | N50: NO | O50: 0 | P50: -0.64425 | Q50: 44760,754861111144760,7548611111 | R50: 51
A51: SC_1694_A1 | B51: Parque Solar Fotovoltaico El Patá | C51: 2022-07-18T18:07:00 | D51: 44760.75486 | E51: 9.9 | F51: Solar FV | G51: Pata 34.5 | H51: SC_1694 | I51: 2026-12-31 | J51: 2026-12-31 | K51: NO | L51: NO | M51: Tolima - Huila Caquetá | N51: NO | O51: 0 | P51: -2.08138 | Q51: 44760,754861111144760,7548611111 | R51: 52
A52: SC_1666_A1 | B52: PROYECTO SOLAR FOTOVOLTAICO IGUAIMA DE 9,9 | C52: 2022-07-18 | D52: 16:19:00 | E52: 9.9 | F52: Solar FV | G52: Natagaima 115 | H52: SC_1666 | I52: 2026-12-31 | J52: 2026-12-31 | K52: NO | L52: NO | M52: Tolima - Huila Caquetá | N52: NO | O52: 0 | P52: -0.774 | Q52: 447600,679861111111111 | R52: 53
A53: SC_1666_A2 | B53: PROYECTO SOLAR FOTOVOLTAICO IGUAIMA DE 9,9 | C53: 2022-07-18 | D53: 16:19:00 | E53: 9.9 | F53: Solar FV | G53: Natagaima 34.5 | H53: SC_1666 | I53: 2026-12-31 | J53: 2026-12-31 | K53: NO | L53: NO | M53: Tolima - Huila Caquetá | N53: NO | O53: 0 | P53: -0.777 | Q53: 447600,679861111111111 | R53: 54
A54: SC_1668_A1 | B54: PARQUE SOLAR FOTOVOLTAICO DINDAL DE 9,9 MW | C54: 2022-07-18 | D54: 16:25:00 | E54: 9.9 | F54: Solar FV | G54: Natagaima 115 | H54: SC_1668 | I54: 2026-12-31 | J54: 2026-12-31 | K54: NO | L54: NO | M54: Tolima - Huila Caquetá | N54: NO | O54: 0 | P54: -0.774 | Q54: 447600,684027777777778 | R54: 55
A55: SC_1668_A2 | B55: PARQUE SOLAR FOTOVOLTAICO DINDAL DE 9,9 MW | C55: 2022-07-18 | D55: 16:25:00 | E55: 9.9 | F55: Solar FV | G55: Natagaima 34.5 | H55: SC_1668 | I55: 2026-12-31 | J55: 2026-12-31 | K55: NO | L55: NO | M55: Tolima - Huila Caquetá | N55: NO | O55: 0 | P55: -0.777 | Q55: 447600,684027777777778 | R55: 56
A56: SC_1577_A2 | B56: PARQUE SOLAR FOTOVOLTAICO SAN ALEJO I DE 19,9MW | C56: 2022-07-18 | D56: 44760 | E56: 19.9 | F56: Solar FV | G56: Flandes 115 | H56: SC_1577 | I56: 2026-12-31 | J56: 2026-12-31 | K56: NO | L56: NO | M56: Tolima - Huila Caquetá | N56: NO | O56: 0 | P56: -1.46 | Q56: 4476044760 | R56: 57
A57: SC_1578_A2 | B57: PROYECTO FOTOVOLTAICO SAN ALEJO II DE 19,9MW | C57: 2022-07-18 | D57: 44760 | E57: 19.9 | F57: Solar FV | G57: Flandes 115 | H57: SC_1578 | I57: 2026-12-31 | J57: 2026-12-31 | K57: NO | L57: NO | M57: Tolima - Huila Caquetá | N57: NO | O57: 0 | P57: -1.46 | Q57: 4476044760 | R57: 58
A58: SC_1583_A2 | B58: PARQUE FOTOVOLTAICO SAN ALEJO III DE 19,9MW, | C58: 2022-07-18 | D58: 44760 | E58: 19.9 | F58: Solar FV | G58: Flandes 115 | H58: SC_1583 | I58: 2026-12-31 | J58: 2026-12-31 | K58: NO | L58: NO | M58: Tolima - Huila Caquetá | N58: NO | O58: 0 | P58: -1.46 | Q58: 4476044760 | R58: 59
A59: SC_1577_A1 | B59: PARQUE SOLAR FOTOVOLTAICO SAN ALEJO I DE 19,9MW | C59: 2022-07-18 | D59: 44760 | E59: 19.9 | F59: Solar FV | G59: Lanceros 115 | H59: SC_1577 | I59: 2026-12-31 | J59: 2026-12-31 | K59: NO | L59: NO | M59: Tolima - Huila Caquetá | N59: NO | O59: 0 | P59: -1.438 | Q59: 4476044760 | R59: 60
A60: SC_1578_A1 | B60: PROYECTO FOTOVOLTAICO SAN ALEJO II DE 19,9MW | C60: 2022-07-18 | D60: 44760 | E60: 19.9 | F60: Solar FV | G60: Lanceros 115 | H60: SC_1578 | I60: 2026-12-31 | J60: 2026-12-31 | K60: NO | L60: NO | M60: Tolima - Huila Caquetá | N60: NO | O60: 0 | P60: -1.438 | Q60: 4476044760 | R60: 61
A61: SC_1583_A1 | B61: PARQUE FOTOVOLTAICO SAN ALEJO III DE 19,9MW, | C61: 2022-07-18 | D61: 44760 | E61: 19.9 | F61: Solar FV | G61: Lanceros 115 | H61: SC_1583 | I61: 2026-12-31 | J61: 2026-12-31 | K61: NO | L61: NO | M61: Tolima - Huila Caquetá | N61: NO | O61: 0 | P61: -1.438 | Q61: 4476044760 | R61: 62
A62: SC_1706_A1 | B62: DSE NEIVA | C62: 2022-07-21T18:45:00 | D62: 44763.78125 | E62: 19.9 | F62: Solar FV | G62: Sur 34.5 | H62: SC_1706 | I62: 2025-12-31 | J62: 2025-12-31 | K62: NO | L62: NO | M62: Tolima - Huila Caquetá | N62: NO | O62: 0 | P62: 1.06 | Q62: 44763,7812544763,78125 | R62: 63
A63: SC_573_A2 | B63: Pétalo del Huila Baraya | C63: 2022-07-26T16:03:00 | D63: 44768.66875 | E63: 9.9 | F63: Solar FV | G63: Baraya 13.8 | H63: SC_573 | I63: 2026-01-31 | J63: 2026-01-31 | K63: NO | L63: NO | M63: Tolima - Huila Caquetá | N63: NO | O63: 0 | P63: -0.056183556 | Q63: 44768,6687544768,66875 | R63: 64
A64: SC_573_A1 | B64: Pétalo del Huila Baraya | C64: 2022-07-26T16:03:00 | D64: 44768.66875 | E64: 9.9 | F64: Solar FV | G64: Baraya 34.5 | H64: SC_573 | I64: 2026-01-31 | J64: 2026-01-31 | K64: NO | L64: NO | M64: Tolima - Huila Caquetá | N64: NO | O64: 0 | P64: -1.607727925 | Q64: 44768,6687544768,66875 | R64: 65
A65: SC_1858_A1 | B65: Yat solar 60 MW | C65: 2022-07-28T19:17:00 | D65: 44770.80347 | E65: 60 | F65: Solar FV | G65: Picaleña 115 | H65: SC_1858 | I65: 2027-12-31 | J65: 2027-12-31 | K65: NO | L65: NO | M65: Tolima - Huila Caquetá | N65: NO | O65: 0 | P65: -6.68106 | Q65: 44770,803472222244770,8034722222 | R65: 66
A66: SC_1858_A2 | B66: Yat solar 60 MW | C66: 2022-07-28T19:17:00 | D66: 44770.80347 | E66: 60 | F66: Solar FV | G66: Perales 115 | H66: SC_1858 | I66: 2027-12-31 | J66: 2027-12-31 | K66: NO | L66: SI | M66: Tolima - Huila Caquetá | N66: NO | O66: 910550000 | P66: -6.83007 | Q66: =CONCATENATE(C66,D66) -> 44770,803472222244770,8034722222 | R66: 67
A67: SC_1305_A1 | B67: Helios Espinal II 19,9MW | C67: 2022-07-29T15:41:00 | D67: 44771.65347 | E67: 19.9 | F67: Solar FV | G67: Nva Espinal 34.5 | H67: SC_1305 | I67: 2024-12-31 | J67: 2024-12-31 | K67: NO | L67: NO | M67: Tolima - Huila Caquetá | N67: NO | O67: 0 | P67: -1.239991 | Q67: 44771,653472222244771,6534722222 | R67: 68
A68: SC_1305_A2 | B68: Helios Espinal II 19,9MW | C68: 2022-07-29T15:41:00 | D68: 44771.65347 | E68: 19.9 | F68: Solar FV | G68: Nva Espinal 34.5 | H68: SC_1305 | I68: 2024-12-31 | J68: 2024-12-31 | K68: NO | L68: NO | M68: Tolima - Huila Caquetá | N68: NO | O68: 0 | P68: -0.819481 | Q68: 44771,653472222244771,6534722222 | R68: 69
A69: SC_1330_A1 | B69: Helios Espinal I - 100MW | C69: 2022-07-30T16:05:00 | D69: 44772.67014 | E69: 100 | F69: Solar FV | G69: Espinal 115 | H69: SC_1330 | I69: 2025-12-31 | J69: 2025-12-31 | K69: NO | L69: NO | M69: Tolima - Huila Caquetá | N69: NO | O69: 0 | P69: -3.179482 | Q69: 44772,670138888944772,6701388889 | R69: 70
A70: SC_1330_A2 | B70: Helios Espinal I - 100MW | C70: 2022-07-30T16:05:00 | D70: 44772.67014 | E70: 100 | F70: Solar FV | G70: Flandes 115 | H70: SC_1330 | I70: 2025-12-31 | J70: 2025-12-31 | K70: NO | L70: NO | M70: Tolima - Huila Caquetá | N70: NO | O70: 0 | P70: -0.323148 | Q70: 44772,670138888944772,6701388889 | R70: 71
A71: SC_1872_A2 | B71: PARQUE SOLAR LA CANDILEJA | C71: 2022-08-01T10:25:00 | D71: 44774.43403 | E71: 9.9 | F71: Solar FV | G71: El Bote 115 | H71: SC_1872 | I71: 2024-12-31 | J71: 2024-12-31 | K71: NO | L71: NO | M71: Tolima - Huila Caquetá | N71: NO | O71: 0 | P71: -1.73 | Q71: 44774,434027777844774,4340277778 | R71: 72
A72: SC_1872_A1 | B72: PARQUE SOLAR LA CANDILEJA | C72: 2022-08-01T10:25:00 | D72: 44774.43403 | E72: 9.9 | F72: Solar FV | G72: El Bote 34.5 | H72: SC_1872 | I72: 2024-12-31 | J72: 2024-12-31 | K72: NO | L72: NO | M72: Tolima - Huila Caquetá | N72: NO | O72: 0 | P72: -1.63 | Q72: 44774,434027777844774,4340277778 | R72: 73
A73: SC_1852_A1 | B73: Helios Natagaima II - 50MW | C73: 2022-08-01T14:05:00 | D73: 44774.58681 | E73: 50 | F73: Solar FV | G73: Natagaima 115 | H73: SC_1852 | I73: 2025-12-31 | J73: 2025-12-31 | K73: NO | L73: NO | M73: Tolima - Huila Caquetá | N73: NO | O73: 0 | P73: 6.734592 | Q73: 44774,586805555644774,5868055556 | R73: 74
A74: SC_1852_A2 | B74: Helios Natagaima II - 50MW | C74: 2022-08-01T14:05:00 | D74: 44774.58681 | E74: 50 | F74: Solar FV | G74: Tuluni 115 | H74: SC_1852 | I74: 2025-12-31 | J74: 2025-12-31 | K74: NO | L74: NO | M74: Tolima - Huila Caquetá | N74: NO | O74: 0 | P74: 7.063412 | Q74: 44774,586805555644774,5868055556 | R74: 75
A75: SC_1778_A1 | B75: Paraiso Solar _ 9.9MW | C75: 2022-08-02T14:18:00 | D75: 44775.59583 | E75: 9.9 | F75: Solar FV | G75: Cruce Juncal 34.5 | H75: SC_1778 | I75: 2024-12-31 | J75: 2024-12-31 | K75: NO | L75: NO | M75: Tolima - Huila Caquetá | N75: NO | O75: 0 | P75: -1.274 | Q75: 44775,595833333344775,5958333333 | R75: 76
A76: SC_1828_A1 | B76: Parque Fotovoltaico Santa Rita | C76: 2022-08-02T14:53:00 | D76: 44775.62014 | E76: 9.9 | F76: Solar FV | G76: Oriente 34.5 | H76: SC_1828 | I76: 2024-12-31 | J76: 2024-12-31 | K76: NO | L76: NO | M76: Tolima - Huila Caquetá | N76: NO | O76: 0 | P76: 0 | Q76: 44775,620138888944775,6201388889 | R76: 77
A77: SC_1828_A2 | B77: Parque Fotovoltaico Santa Rita | C77: 2022-08-02T14:53:00 | D77: 44775.62014 | E77: 9.9 | F77: Solar FV | G77: doble circuito de aproximadamente 3.5 km que va desde la apertura del circuito Oriente - TBalsillas 34,5 kV (a 5,977 km desde la SE Oriente), hasta una nueva subestación de uso | H77: SC_1828 | I77: 2024-12-31 | J77: 2024-12-31 | K77: NO | L77: SI | M77: Tolima - Huila Caquetá | N77: NO | O77: 3139860000 | P77: 0 | Q77: 44775,620138888944775,6201388889 | R77: 78
A78: SC_1767_A1 | B78: Los Rosales 9,9 MW | C78: 2022-08-02T18:51:00 | D78: 44775.78542 | E78: 9.9 | F78: Solar FV | G78: Hobo 34.5 | H78: SC_1767 | I78: 2024-12-31 | J78: 2024-12-31 | K78: NO | L78: NO | M78: Tolima - Huila Caquetá | N78: NO | O78: 0 | P78: -1.467 | Q78: 44775,785416666744775,7854166667 | R78: 79
A79: SC_2006_A1 | B79: JUNCAL 1 | C79: 2022-08-04T14:08:00 | D79: 44777.58889 | E79: 4.9 | F79: Solar FV | G79: Cruce Juncal 34.5 | H79: SC_2006 | I79: 2024-12-31 | J79: 2024-12-31 | K79: NO | L79: NO | M79: Tolima - Huila Caquetá | N79: NO | O79: 0 | P79: -0.24 | Q79: 44777,588888888944777,5888888889 | R79: 80
A80: SC_2038_A2 | B80: TRAPICHITO SOLAR - 40 MW | C80: 2022-08-04T17:56:00 | D80: 44777.74722 | E80: 40 | F80: Solar FV | G80: El Bote 115 | H80: SC_2038 | I80: 2026-12-31 | J80: 2026-12-31 | K80: NO | L80: NO | M80: Tolima - Huila Caquetá | N80: NO | O80: 0 | P80: -2.13999 | Q80: 44777,747222222244777,7472222222 | R80: 81
A81: SC_2038_A1 | B81: TRAPICHITO SOLAR - 40 MW | C81: 2022-08-04T17:56:00 | D81: 44777.74722 | E81: 40 | F81: Solar FV | G81: Sur 115 | H81: SC_2038 | I81: 2026-12-31 | J81: 2026-12-31 | K81: NO | L81: NO | M81: Tolima - Huila Caquetá | N81: NO | O81: 0 | P81: -2.17321 | Q81: 44777,747222222244777,7472222222 | R81: 82
A82: SC_1777_A1 | B82: Sol Bochica | C82: 2022-08-05T14:17:00 | D82: 44778.59514 | E82: 19.9 | F82: Solar FV | G82: Natagaima 115 | H82: SC_1777 | I82: 2024-12-31 | J82: 2024-12-31 | K82: NO | L82: SI | M82: Tolima - Huila Caquetá | N82: NO | O82: 20920411000 | P82: -3255.127 | Q82: 44778,595138888944778,5951388889 | R82: 83
A83: SC_1777_A2 | B83: Sol Bochica | C83: 2022-08-05T14:17:00 | D83: 44778.59514 | E83: 19.9 | F83: Solar FV | G83: Prado 115 | H83: SC_1777 | I83: 2024-12-31 | J83: 2024-12-31 | K83: NO | L83: SI | M83: Tolima - Huila Caquetá | N83: NO | O83: 15492722000 | P83: -3264.878 | Q83: 44778,595138888944778,5951388889 | R83: 84
A84: SC_1930_A1 | B84: PV José Maria Cordova | C84: 2022-08-05T18:01:00 | D84: 44778.75069 | E84: 9.9 | F84: Solar FV | G84: Flandes 34.5 | H84: SC_1930 | I84: 2025-12-31 | J84: 2025-12-31 | K84: NO | L84: NO | M84: Tolima - Huila Caquetá | N84: NO | O84: 0 | P84: 0.732 | Q84: 44778,750694444444778,7506944444 | R84: 85
A85: SC_2004_A1 | B85: Arreboles l | C85: 2022-08-09T14:01:00 | D85: 44782.58403 | E85: 19.9 | F85: Solar FV | G85: Arreboles 34.5 | H85: SC_2004 | I85: 2025-12-31 | J85: 2025-12-31 | K85: NO | L85: NO | M85: Tolima - Huila Caquetá | N85: NO | O85: 0 | P85: 2.21 | Q85: 44782,584027777844782,5840277778 | R85: 86
A86: SC_2004_A2 | B86: Arreboles l | C86: 2022-08-09T14:01:00 | D86: 44782.58403 | E86: 19.9 | F86: Solar FV | G86: Salado 34.5 | H86: SC_2004 | I86: 2025-12-31 | J86: 2025-12-31 | K86: NO | L86: NO | M86: Tolima - Huila Caquetá | N86: NO | O86: 0 | P86: 1.842 | Q86: 44782,584027777844782,5840277778 | R86: 87
A87: SC_2151_A1 | B87: El Jaspe | C87: 2022-08-09T19:41:00 | D87: 44782.82014 | E87: 19.9 | F87: Solar FV | G87: Prado 115 | H87: SC_2151 | I87: 2024-12-31 | J87: 2024-12-31 | K87: NO | L87: SI | M87: Tolima - Huila Caquetá | N87: NO | O87: 20920411000 | P87: -4.377 | Q87: 44782,820138888944782,8201388889 | R87: 88
A88: SC_2114_A1 | B88: Arcadia | C88: 2022-08-10T16:09:00 | D88: 44783.67292 | E88: 8 | F88: Solar FV | G88: El Bote 115 | H88: SC_2114 | I88: 2024-06-30 | J88: 2024-06-30 | K88: NO | L88: NO | M88: Tolima - Huila Caquetá | N88: NO | O88: 0 | P88: 0 | Q88: 44783,672916666744783,6729166667 | R88: 89
A89: SC_2114_A2 | B89: Arcadia | C89: 2022-08-10T16:09:00 | D89: 44783.67292 | E89: 8 | F89: Solar FV | G89: El Bote 34.5 | H89: SC_2114 | I89: 2024-06-30 | J89: 2024-06-30 | K89: NO | L89: NO | M89: Tolima - Huila Caquetá | N89: NO | O89: 0 | P89: -0.146 | Q89: 44783,672916666744783,6729166667 | R89: 90
A90: SC_2105_A1 | B90: Misak | C90: 2022-08-11T15:28:00 | D90: 44784.64444 | E90: 80 | F90: Solar FV | G90: Altamira 220 | H90: SC_2105 | I90: 2026-12-31 | J90: 2026-12-31 | K90: NO | L90: NO | M90: Tolima - Huila Caquetá | N90: NO | O90: 0 | P90: -11.25 | Q90: 44784,644444444444784,6444444444 | R90: 91
A91: SC_2105_A2 | B91: Misak | C91: 2022-08-11T15:28:00 | D91: 44784.64444 | E91: 80 | F91: Solar FV | G91: Tesalia 220 | H91: SC_2105 | I91: 2026-12-31 | J91: 2026-12-31 | K91: NO | L91: NO | M91: Tolima - Huila Caquetá | N91: NO | O91: 0 | P91: -12.348 | Q91: 44784,644444444444784,6444444444 | R91: 92
A92: SC_1787_A1 | B92: Proyecto Xanadu | C92: 2022-08-12T15:44:00 | D92: 44785.65556 | E92: 15 | F92: Solar FV | G92: Ibague 220 | H92: SC_1787 | I92: 2027-01-31 | J92: 2027-01-31 | K92: NO | L92: NO | M92: Tolima - Huila Caquetá | N92: NO | O92: 0 | P92: -6.09 | Q92: 44785,655555555644785,6555555556 | R92: 93
A93: SC_1787_A2 | B93: Proyecto Xanadu | C93: 2022-08-12T15:44:00 | D93: 44785.65556 | E93: 15 | F93: Solar FV | G93: Mirolindo 115 | H93: SC_1787 | I93: 2027-01-31 | J93: 2027-01-31 | K93: NO | L93: NO | M93: Tolima - Huila Caquetá | N93: NO | O93: 0 | P93: -6.97 | Q93: 44785,655555555644785,6555555556 | R93: 94
A94: SC_2191_A1 | B94: Yama Wind Farm | C94: 2022-08-16T06:54:00 | D94: 44789.2875 | E94: 125 | F94: Eólico Onshore | G94: Altamira 220 | H94: SC_2191 | I94: 2026-12-31 | J94: 2026-12-31 | K94: NO | L94: NO | M94: Tolima - Huila Caquetá | N94: NO | O94: 0 | P94: -2 | Q94: 44789,287544789,2875 | R94: 95
A95: SC_2191_A2 | B95: Yama Wind Farm | C95: 2022-08-16T06:54:00 | D95: 44789.2875 | E95: 125 | F95: Eólico Onshore | G95: Nueva S/E Eólico Onshore 220 kV | H95: SC_2191 | I95: 2026-12-31 | J95: 2026-12-31 | K95: NO | L95: SI | M95: Tolima - Huila Caquetá | N95: NO | O95: 23947000000 | P95: -2 | Q95: 44789,287544789,2875 | R95: 96
A96: SC_1990_A1 | B96: Solar Escobal 8 19.9 MW | C96: 2022-08-16T10:29:00 | D96: 44789.43681 | E96: 19.9 | F96: Solar FV | G96: Picaleña 115 | H96: SC_1990 | I96: 2030-12-31 | J96: 2030-12-31 | K96: NO | L96: NO | M96: Tolima - Huila Caquetá | N96: NO | O96: 0 | P96: -2.175 | Q96: 44789,436805555644789,4368055556 | R96: 97
A97: SC_1936_A1 | B97: Solar Escobal 7 19.9 MW | C97: 2022-08-16T18:18:00 | D97: 44789.7625 | E97: 19.9 | F97: Solar FV | G97: Picaleña 115 | H97: SC_1936 | I97: 2030-12-31 | J97: 2030-12-31 | K97: NO | L97: NO | M97: Tolima - Huila Caquetá | N97: NO | O97: 0 | P97: -2.175 | Q97: 44789,762544789,7625 | R97: 98
A98: SC_2138_A2 | B98: Parque Solar Libra | C98: 2022-08-18T18:21:00 | D98: 44791.76458 | E98: 100 | F98: Solar FV | G98: Ibague 220 | H98: SC_2138 | I98: 2027-11-25 | J98: 2027-11-25 | K98: NO | L98: NO | M98: Tolima - Huila Caquetá | N98: NO | O98: 0 | P98: -8.56 | Q98: =CONCATENATE(C98,D98) -> 44791,764583333344791,7645833333 | R98: 99
A99: SC_2138_A1 | B99: Parque Solar Libra | C99: 2022-08-18T18:21:00 | D99: 44791.76458 | E99: 100 | F99: Solar FV | G99: Mirolindo 115 | H99: SC_2138 | I99: 2027-11-25 | J99: 2027-11-25 | K99: NO | L99: NO | M99: Tolima - Huila Caquetá | N99: NO | O99: 0 | P99: -9.84 | Q99: 44791,764583333344791,7645833333 | R99: 100
A100: SC_2202_A1 | B100: Parque Fotovoltaico Fortalecillas 9.9 MW | C100: 2022-08-20T08:31:00 | D100: 44793.35486 | E100: 9.9 | F100: Solar FV | G100: Fortalecillas 34.5 | H100: SC_2202 | I100: 2024-12-31 | J100: 2024-12-31 | K100: NO | L100: NO | M100: Tolima - Huila Caquetá | N100: NO | O100: 0 | P100: -1.879 | Q100: 44793,354861111144793,3548611111 | R100: 101
A101: SC_2207_A1 | B101: Proyecto Fotovoltaico Pi Épsilon Coyaima II | C101: 2022-08-20T08:52:00 | D101: 44793.36944 | E101: 9.9 | F101: Solar FV | G101: Castilla 34.5 | H101: SC_2207 | I101: 2024-12-31 | J101: 2024-12-31 | K101: NO | L101: NO | M101: Tolima - Huila Caquetá | N101: NO | O101: 0 | P101: -3.53058 | Q101: 44793,369444444444793,3694444444 | R101: 102
A102: SC_2207_A2 | B102: Proyecto Fotovoltaico Pi Épsilon Coyaima II | C102: 2022-08-20T08:52:00 | D102: 44793.36944 | E102: 9.9 | F102: Solar FV | G102: Natagaima 34.5 | H102: SC_2207 | I102: 2024-12-31 | J102: 2024-12-31 | K102: NO | L102: NO | M102: Tolima - Huila Caquetá | N102: NO | O102: 0 | P102: -3.97179 | Q102: 44793,369444444444793,3694444444 | R102: 103
A103: SC_2147_A1 | B103: Parque Fotovoltaico Bateas 9.9 MW | C103: 2022-08-22T19:36:00 | D103: 44795.81667 | E103: 9.9 | F103: Solar FV | G103: Fortalecillas 34.5 | H103: SC_2147 | I103: 2024-12-31 | J103: 2024-12-31 | K103: NO | L103: NO | M103: Tolima - Huila Caquetá | N103: NO | O103: 0 | P103: -4.628 | Q103: 44795,816666666744795,8166666667 | R103: 104
A104: SC_2080_A1 | B104: Proyecto Fotovoltaico Pi Épsilon Coyaima I 9.9 MW | C104: 2022-08-24T14:31:00 | D104: 44797.60486 | E104: 9.9 | F104: Solar FV | G104: Castilla 34.5 | H104: SC_2080 | I104: 2025-12-31 | J104: 2025-12-31 | K104: NO | L104: NO | M104: Tolima - Huila Caquetá | N104: NO | O104: 0 | P104: -2.77 | Q104: 44797,604861111144797,6048611111 | R104: 105
A105: SC_2080_A2 | B105: Proyecto Fotovoltaico Pi Épsilon Coyaima I 9.9 MW | C105: 2022-08-24T14:31:00 | D105: 44797.60486 | E105: 9.9 | F105: Solar FV | G105: Natagaima 34.5 | H105: SC_2080 | I105: 2025-12-31 | J105: 2025-12-31 | K105: NO | L105: NO | M105: Tolima - Huila Caquetá | N105: NO | O105: 0 | P105: -2.3 | Q105: 44797,604861111144797,6048611111 | R105: 106
A106: SC_2088_A1 | B106: Proyecto Fotovoltaico Pi Épsilon Coyaima IV 9.9 MW | C106: 2022-08-24T14:43:00 | D106: 44797.61319 | E106: 9.9 | F106: Solar FV | G106: Castilla 34.5 | H106: SC_2088 | I106: 2025-12-31 | J106: 2025-12-31 | K106: NO | L106: NO | M106: Tolima - Huila Caquetá | N106: NO | O106: 0 | P106: -2.77 | Q106: 44797,613194444444797,6131944444 | R106: 107
A107: SC_2088_A2 | B107: Proyecto Fotovoltaico Pi Épsilon Coyaima IV 9.9 MW | C107: 2022-08-24T14:43:00 | D107: 44797.61319 | E107: 9.9 | F107: Solar FV | G107: Natagaima 34.5 | H107: SC_2088 | I107: 2025-12-31 | J107: 2025-12-31 | K107: NO | L107: NO | M107: Tolima - Huila Caquetá | N107: NO | O107: 0 | P107: -2.3 | Q107: 44797,613194444444797,6131944444 | R107: 108
A108: SC_2118_A1 | B108: SAPUCA | C108: 2022-08-24T17:30:00 | D108: 44797.72917 | E108: 50 | F108: Solar FV | G108: La Plata 115 | H108: SC_2118 | I108: 2024-12-31 | J108: 2024-12-31 | K108: NO | L108: NO | M108: Tolima - Huila Caquetá | N108: NO | O108: 0 | P108: -38.756 | Q108: 44797,729166666744797,7291666667 | R108: 109
A109: SC_2118_A2 | B109: SAPUCA | C109: 2022-08-24T17:30:00 | D109: 44797.72917 | E109: 50 | F109: Solar FV | G109: Segoviana 115 | H109: SC_2118 | I109: 2024-12-31 | J109: 2024-12-31 | K109: NO | L109: NO | M109: Tolima - Huila Caquetá | N109: NO | O109: 0 | P109: -37.596 | Q109: 44797,729166666744797,7291666667 | R109: 110
A110: SC_2338_A2 | B110: SOLAR FOTOVOLTAICO MANDARINOS DE 9,9 | C110: 2022-08-27T17:46:00 | D110: 44800.74028 | E110: 9.9 | F110: Solar FV | G110: Flandes 115 | H110: SC_2338 | I110: 2026-12-31 | J110: 2026-12-31 | K110: NO | L110: NO | M110: Tolima - Huila Caquetá | N110: NO | O110: 0 | P110: -2.883 | Q110: 44800,740277777844800,7402777778 | R110: 111
A111: SC_1559_A1 | B111: Parque Solar Chenche | C111: 2022-09-01T16:18:00 | D111: 44805 | E111: 9.9 | F111: Solar FV | G111: Chenche 34.5 | H111: SC_1559 | I111: 2024-12-31 | J111: 2024-12-31 | K111: NO | L111: NO | M111: Tolima - Huila Caquetá | N111: NO | O111: 0 | P111: -4.846 | Q111: 44805,679166666744805 | R111: 112
A112: SC_1559_A2 | B112: Parque Solar Chenche | C112: 2022-09-01T16:18:00 | D112: 44805 | E112: 9.9 | F112: Solar FV | G112: Hilarco 34.5 | H112: SC_1559 | I112: 2024-12-31 | J112: 2024-12-31 | K112: NO | L112: NO | M112: Tolima - Huila Caquetá | N112: NO | O112: 0 | P112: -4.734 | Q112: 44805,679166666744805 | R112: 113
A113: SC_2310_A2 | B113: SOLAR FOTOVOLTAICO LIMAS DE 9,9 MW | C113: 2022-09-02T11:06:00 | D113: 44806.4625 | E113: 9.9 | F113: Solar FV | G113: Flandes 115 | H113: SC_2310 | I113: 2026-12-31 | J113: 2026-12-31 | K113: NO | L113: NO | M113: Tolima - Huila Caquetá | N113: NO | O113: 0 | P113: -2.883 | Q113: 44806,462544806,4625 | R113: 114
A114: SC_2310_A1 | B114: SOLAR FOTOVOLTAICO LIMAS DE 9,9 MW | C114: 2022-09-02T11:06:00 | D114: 44806.4625 | E114: 9.9 | F114: Solar FV | G114: Lanceros 115 | H114: SC_2310 | I114: 2026-12-31 | J114: 2026-12-31 | K114: NO | L114: NO | M114: Tolima - Huila Caquetá | N114: NO | O114: 0 | P114: -2.961 | Q114: 44806,462544806,4625 | R114: 115
A115: SC_1636_A1 | B115: PARQUE SOLAR INTELIGENTE ZONA FRANCA SUR COLOMBIAN 9.9 MW | C115: 2022-09-02T16:18:00 | D115: 44805 | E115: 9.9 | F115: Solar FV | G115: El Bote 34.5 | H115: SC_1636 | I115: 2026-01-30 | J115: 2026-01-30 | K115: NO | L115: NO | M115: Tolima - Huila Caquetá | N115: NO | O115: 0 | P115: -0.789 | Q115: 44806,679166666744805 | R115: 116
A116: SC_2263_A1 | B116: El Espino | C116: 2022-09-02T16:18:00 | D116: 44806.67917 | E116: 18 | F116: Solar FV | G116: El Bote 115 | H116: SC_2263 | I116: 2024-06-30 | J116: 2024-06-30 | K116: NO | L116: NO | M116: Tolima - Huila Caquetá | N116: NO | O116: 0 | P116: 0.146 | Q116: 44806,679166666744806,6791666667 | R116: 117
A117: SC_2263_A2 | B117: El Espino | C117: 2022-09-02T16:18:00 | D117: 44806.67917 | E117: 18 | F117: Solar FV | G117: El Bote 34.5 | H117: SC_2263 | I117: 2024-06-30 | J117: 2024-06-30 | K117: NO | L117: NO | M117: Tolima - Huila Caquetá | N117: NO | O117: 0 | P117: 0.146 | Q117: 44806,679166666744806,6791666667 | R117: 118
A118: SC_1331_A2 | B118: Sol de Colombia Tuluní | C118: 2022-07-15 | D118: 44757 | E118: 200 | F118: Solar FV | G118: Ibague 220 | H118: SC_1331 | I118: 2026-11-30 | J118: 2026-11-30 | K118: NO | L118: SI | M118: Tolima - Huila Caquetá | N118: NO | O118: 209586221000 | P118: -14.82 | Q118: 4475744757 | R118: 21
A119: SC_2314_A1 | B119: SOLAR FOTOVOLTAICO LOS LIMONEROS DE 9,9 MW | C119: 2022-09-02T11:06:00 | D119: 44806.4625 | E119: 9.9 | F119: Solar FV | G119: Lanceros 115 | H119: SC_2314 | I119: 2026-12-31 | J119: 2026-12-31 | K119: NO | L119: NO | M119: Tolima - Huila Caquetá | N119: NO | O119: 0 | P119: -2.961 | Q119: 44806,462544806,4625 | R119: 115
A120: SC_2314_A2 | B120: SOLAR FOTOVOLTAICO LOS LIMONEROS DE 9,9 MW | C120: 2022-09-02T11:06:00 | D120: 44806.4625 | E120: 9.9 | F120: Solar FV | G120: Flandes 115 | H120: SC_2314 | I120: 2026-12-31 | J120: 2026-12-31 | K120: NO | L120: NO | M120: Tolima - Huila Caquetá | N120: NO | O120: 0 | P120: -2.883 | Q120: 44806,462544806,4625 | R120: 114
A121: SC_2327_A1 | B121: PARQUE SOLAR FOTOVOLTAICO LOS NARANJOS DE 19,9MW | C121: 2022-07-18T11:06:00 | D121: 44806.65208 | E121: 19.9 | F121: Solar FV | G121: Lanceros 115 | H121: SC_2327 | I121: 2026-12-31 | J121: 2026-12-31 | K121: NO | L121: NO | M121: Tolima - Huila Caquetá | N121: NO | O121: 0 | P121: -1.438 | Q121: 44760,462544806,6520833333 | R121: 115
A122: SC_2327_A2 | B122: PARQUE SOLAR FOTOVOLTAICO LOS NARANJOS DE 19,9MW | C122: 2022-07-18T11:06:00 | D122: 44806.65208 | E122: 19.9 | F122: Solar FV | G122: Flandes 115 | H122: SC_2327 | I122: 2026-12-31 | J122: 2026-12-31 | K122: NO | L122: NO | M122: Tolima - Huila Caquetá | N122: NO | O122: 0 | P122: -1.46 | Q122: 44760,462544806,6520833333 | R122: 114
A123: SC_2330_A1 | B123: SOLAR FOTOVOLTAICO MAGDALENA SOL 180 MW | C123: 2022-07-18 | D123: 44760 | E123: 180 | F123: Solar FV | G123: Huila 230 | H123: SC_2330 | I123: 2026-12-31 | J123: 2026-12-31 | K123: NO | L123: NO | M123: Tolima - Huila Caquetá | N123: NO | O123: 0 | P123: -14.61 | Q123: 4476044760 | R123: 113.5
A124: SC_2330_A2 | B124: SOLAR FOTOVOLTAICO MAGDALENA SOL 180 MW | C124: 2022-07-18 | D124: 44760 | E124: 180 | F124: Solar FV | G124: Huila 115 | H124: SC_2330 | I124: 2026-12-31 | J124: 2026-12-31 | K124: NO | L124: NO | M124: Tolima - Huila Caquetá | N124: NO | O124: 0 | P124: -21.137 | Q124: 4476044760 | R124: 112.5
A125: SC_2338_A1 | B125: SOLAR FOTOVOLTAICO MANDARINOS DE 9,9 | C125: 2022-08-27T17:46:00 | D125: 44800.74028 | E125: 9.9 | F125: Solar FV | G125: Lanceros 115 | H125: SC_2338 | I125: 2026-12-31 | J125: 2026-12-31 | K125: NO | L125: NO | M125: Tolima - Huila Caquetá | N125: NO | O125: 0 | P125: -2.961 | Q125: =CONCATENATE(C125,D125) -> 44800,740277777844800,7402777778 | R125: 111

Sheet Hoja1 (hidden)
B1: a | C1: b | D1: c | E1: d | F1: e | L1: a | M1: b | T1: a | U1: b | V1: c | W1: d
B2: SC_170 | C2: 0 | D2: =COUNTIF(InfoPro!$H$2:$H$127,Hoja1!B2) -> 0 | E2: =COUNTIF(InfoPro!$H$2:$H$127,Hoja1!C2) -> 0 | F2: =IF(E2=0,IF(D2=0,"NO","SI"),"SI") -> NO | J2: SC_1753 | L2: SC_1753 | M2: =COUNTIF($J$2:$J$144,L2) -> 2 | T2: SC_9 | U2: =COUNTIF($B$2:$B$85,T2) -> 0 | V2: =COUNTIF($C$1:$C$84,T2) -> 0 | W2: =SUM(U2:V2) -> 0
B3: SC_314 | C3: SC_829 | D3: =COUNTIF(InfoPro!$H$2:$H$127,Hoja1!B3) -> 0 | E3: =COUNTIF(InfoPro!$H$2:$H$127,Hoja1!C3) -> 0 | F3: =IF(E3=0,IF(D3=0,"NO","SI"),"SI") -> NO | J3: SC_1753 | L3: SC_1753 | M3: =COUNTIF($J$2:$J$144,L3) -> 2 | T3: SC_36 | U3: =COUNTIF($B$2:$B$85,T3) -> 0 | V3: =COUNTIF($C$1:$C$84,T3) -> 0 | W3: =SUM(U3:V3) -> 0
B4: SC_436 | C4: 0 | D4: =COUNTIF(InfoPro!$H$2:$H$127,Hoja1!B4) -> 0 | E4: =COUNTIF(InfoPro!$H$2:$H$127,Hoja1!C4) -> 0 | F4: NO | J4: SC_1754 | L4: SC_1754 | M4: 2 | T4: SC_57 | U4: 0 | V4: 0 | W4: 0
B5: SC_484 | C5: 0 | D5: =COUNTIF(InfoPro!$H$2:$H$127,Hoja1!B5) -> 0 | E5: =COUNTIF(InfoPro!$H$2:$H$127,Hoja1!C5) -> 0 | F5: NO | J5: SC_1754 | L5: SC_1754 | M5: 2 | T5: SC_128 | U5: 0 | V5: 0 | W5: 0
B6: SC_501 | C6: 0 | D6: =COUNTIF(InfoPro!$H$2:$H$127,Hoja1!B6) -> 0 | E6: =COUNTIF(InfoPro!$H$2:$H$127,Hoja1!C6) -> 0 | F6: NO | J6: SC_1307 | L6: SC_1307 | M6: 2 | T6: SC_193 | U6: 0 | V6: 0 | W6: 0
B7: SC_640 | C7: SC_1753 | D7: =COUNTIF(InfoPro!$H$2:$H$127,Hoja1!B7) -> 0 | E7: =COUNTIF(InfoPro!$H$2:$H$127,Hoja1!C7) -> 0 | F7: NO | J7: SC_1307 | L7: SC_1307 | M7: 2 | T7: SC_204 | U7: 0 | V7: 0 | W7: 0
B8: SC_864 | C8: SC_1754 | D8: =COUNTIF(InfoPro!$H$2:$H$127,Hoja1!B8) -> 0 | E8: =COUNTIF(InfoPro!$H$2:$H$127,Hoja1!C8) -> 0 | F8: NO | J8: SC_1607 | L8: SC_1607 | M8: 2 | T8: SC_217 | U8: 0 | V8: 0 | W8: 0
B9: SC_646 | C9: SC_1307 | D9: =COUNTIF(InfoPro!$H$2:$H$127,Hoja1!B9) -> 0 | E9: =COUNTIF(InfoPro!$H$2:$H$127,Hoja1!C9) -> 0 | F9: NO | J9: SC_1607 | L9: SC_1607 | M9: 2 | T9: SC_919 | U9: 0 | V9: 0 | W9: 0
B10: SC_678 | C10: SC_1607 | D10: =COUNTIF(InfoPro!$H$2:$H$127,Hoja1!B10) -> 0 | E10: =COUNTIF(InfoPro!$H$2:$H$127,Hoja1!C10) -> 0 | F10: NO | J10: SC_1003 | L10: SC_1003 | M10: 2 | T10: SC_848 | U10: 0 | V10: 0 | W10: 0
B11: SC_1003 | C11: 0 | D11: =COUNTIF(InfoPro!$H$2:$H$127,Hoja1!B11) -> 0 | E11: =COUNTIF(InfoPro!$H$2:$H$127,Hoja1!C11) -> 0 | F11: NO | J11: SC_1003 | L11: SC_1003 | M11: 2 | T11: SC_947 | U11: 0 | V11: 0 | W11: 0
B12: SC_577 | C12: SC_2068 | D12: =COUNTIF(InfoPro!$H$2:$H$127,Hoja1!B12) -> 0 | E12: =COUNTIF(InfoPro!$H$2:$H$127,Hoja1!C12) -> 0 | F12: NO | J12: SC_2068 | L12: SC_2068 | M12: 2 | T12: SC_955 | U12: 0 | V12: 0 | W12: 0
B13: SC_545 | C13: 0 | D13: =COUNTIF(InfoPro!$H$2:$H$127,Hoja1!B13) -> 0 | E13: =COUNTIF(InfoPro!$H$2:$H$127,Hoja1!C13) -> 0 | F13: NO | J13: SC_2068 | L13: SC_2068 | M13: 2 | T13: SC_956 | U13: 1 | V13: 0 | W13: 1
B14: SC_969 | C14: 0 | D14: =COUNTIF(InfoPro!$H$2:$H$127,Hoja1!B14) -> 0 | E14: =COUNTIF(InfoPro!$H$2:$H$127,Hoja1!C14) -> 0 | F14: NO | J14: SC_969 | L14: SC_969 | M14: 2 | T14: SC_823 | U14: 0 | V14: 0 | W14: 0
B15: SC_970 | C15: 0 | D15: =COUNTIF(InfoPro!$H$2:$H$127,Hoja1!B15) -> 0 | E15: =COUNTIF(InfoPro!$H$2:$H$127,Hoja1!C15) -> 0 | F15: NO | J15: SC_969 | L15: SC_969 | M15: 2 | T15: SC_999 | U15: 0 | V15: 0 | W15: 0
B16: SC_385 | C16: SC_1372 | D16: =COUNTIF(InfoPro!$H$2:$H$127,Hoja1!B16) -> 0 | E16: =COUNTIF(InfoPro!$H$2:$H$127,Hoja1!C16) -> 0 | F16: NO | J16: SC_970 | L16: SC_970 | M16: 1 | T16: SC_1078 | U16: 0 | V16: 0 | W16: 0
B17: SC_537 | C17: 0 | D17: =COUNTIF(InfoPro!$H$2:$H$127,Hoja1!B17) -> 0 | E17: =COUNTIF(InfoPro!$H$2:$H$127,Hoja1!C17) -> 0 | F17: NO | J17: SC_537 | L17: SC_1372 | M17: 0 | T17: SC_1096 | U17: 0 | V17: 0 | W17: 0
B18: SC_765 | C18: 0 | D18: =COUNTIF(InfoPro!$H$2:$H$127,Hoja1!B18) -> 0 | E18: =COUNTIF(InfoPro!$H$2:$H$127,Hoja1!C18) -> 0 | F18: NO | J18: SC_765 | L18: SC_1372 | M18: 0 | T18: SC_1153 | U18: 0 | V18: 0 | W18: 0
B19: SC_784 | C19: 0 | D19: =COUNTIF(InfoPro!$H$2:$H$127,Hoja1!B19) -> 0 | E19: =COUNTIF(InfoPro!$H$2:$H$127,Hoja1!C19) -> 0 | F19: NO | J19: SC_765 | L19: SC_537 | M19: 1 | T19: SC_1213 | U19: 0 | V19: 0 | W19: 0
B20: SC_579 | C20: SC_1776 | D20: =COUNTIF(InfoPro!$H$2:$H$127,Hoja1!B20) -> 0 | E20: =COUNTIF(InfoPro!$H$2:$H$127,Hoja1!C20) -> 0 | F20: NO | J20: SC_784 | L20: SC_537 | M20: 1 | T20: SC_1225 | U20: 0 | V20: 0 | W20: 0
B21: SC_588 | C21: 0 | D21: =COUNTIF(InfoPro!$H$2:$H$127,Hoja1!B21) -> 0 | E21: =COUNTIF(InfoPro!$H$2:$H$127,Hoja1!C21) -> 0 | F21: NO | J21: SC_784 | L21: SC_765 | M21: 2 | T21: SC_1257 | U21: 0 | V21: 0 | W21: 0
B22: SC_629 | C22: 0 | D22: =COUNTIF(InfoPro!$H$2:$H$127,Hoja1!B22) -> 0 | E22: =COUNTIF(InfoPro!$H$2:$H$127,Hoja1!C22) -> 0 | F22: NO | J22: SC_1776 | L22: SC_765 | M22: 2 | T22: SC_1282 | U22: 0 | V22: 0 | W22: 0
B23: SC_631 | C23: 0 | D23: =COUNTIF(InfoPro!$H$2:$H$127,Hoja1!B23) -> 0 | E23: =COUNTIF(InfoPro!$H$2:$H$127,Hoja1!C23) -> 0 | F23: NO | J23: SC_1776 | L23: SC_784 | M23: 2 | T23: SC_1283 | U23: 0 | V23: 0 | W23: 0
B24: SC_647 | C24: SC_1705 | D24: =COUNTIF(InfoPro!$H$2:$H$127,Hoja1!B24) -> 0 | E24: =COUNTIF(InfoPro!$H$2:$H$127,Hoja1!C24) -> 0 | F24: NO | J24: SC_588 | L24: SC_784 | M24: 2 | T24: SC_1381 | U24: 0 | V24: 0 | W24: 0
B25: SC_674 | C25: SC_1795 | D25: =COUNTIF(InfoPro!$H$2:$H$127,Hoja1!B25) -> 0 | E25: =COUNTIF(InfoPro!$H$2:$H$127,Hoja1!C25) -> 0 | F25: NO | J25: SC_588 | L25: SC_1776 | M25: 2 | T25: SC_1386 | U25: 0 | V25: 0 | W25: 0
B26: SC_956 | C26: SC_1806 | D26: =COUNTIF(InfoPro!$H$2:$H$127,Hoja1!B26) -> 0 | E26: =COUNTIF(InfoPro!$H$2:$H$127,Hoja1!C26) -> 0 | F26: NO | J26: SC_629 | L26: SC_1776 | M26: 2 | T26: SC_1399 | U26: 0 | V26: 0 | W26: 0
B27: SC_960 | C27: 0 | D27: =COUNTIF(InfoPro!$H$2:$H$127,Hoja1!B27) -> 0 | E27: =COUNTIF(InfoPro!$H$2:$H$127,Hoja1!C27) -> 0 | F27: NO | J27: SC_629 | L27: SC_588 | M27: 2 | T27: SC_1407 | U27: 0 | V27: 0 | W27: 0
B28: SC_980 | C28: 0 | D28: =COUNTIF(InfoPro!$H$2:$H$127,Hoja1!B28) -> 0 | E28: =COUNTIF(InfoPro!$H$2:$H$127,Hoja1!C28) -> 0 | F28: NO | J28: SC_631 | L28: SC_588 | M28: 2 | T28: SC_1415 | U28: 0 | V28: 0 | W28: 0
B29: SC_995 | C29: 0 | D29: =COUNTIF(InfoPro!$H$2:$H$127,Hoja1!B29) -> 0 | E29: =COUNTIF(InfoPro!$H$2:$H$127,Hoja1!C29) -> 0 | F29: NO | J29: SC_631 | L29: SC_629 | M29: 2 | T29: SC_1420 | U29: 0 | V29: 0 | W29: 0
B30: SC_997 | C30: SC_1909 | D30: =COUNTIF(InfoPro!$H$2:$H$127,Hoja1!B30) -> 0 | E30: =COUNTIF(InfoPro!$H$2:$H$127,Hoja1!C30) -> 0 | F30: NO | J30: SC_1705 | L30: SC_629 | M30: 2 | T30: SC_1541 | U30: 0 | V30: 0 | W30: 0
B31: SC_1053 | C31: SC_1903 | D31: =COUNTIF(InfoPro!$H$2:$H$127,Hoja1!B31) -> 0 | E31: =COUNTIF(InfoPro!$H$2:$H$127,Hoja1!C31) -> 0 | F31: NO | J31: SC_1705 | L31: SC_631 | M31: 2 | T31: SC_1543 | U31: 0 | V31: 0 | W31: 0
B32: SC_1084 | C32: SC_1939 | D32: =COUNTIF(InfoPro!$H$2:$H$127,Hoja1!B32) -> 0 | E32: =COUNTIF(InfoPro!$H$2:$H$127,Hoja1!C32) -> 0 | F32: NO | J32: SC_1795 | L32: SC_631 | M32: 2 | T32: SC_1450 | U32: 0 | V32: 0 | W32: 0
B33: SC_831 | C33: 0 | D33: =COUNTIF(InfoPro!$H$2:$H$127,Hoja1!B33) -> 0 | E33: =COUNTIF(InfoPro!$H$2:$H$127,Hoja1!C33) -> 0 | F33: NO | J33: SC_1795 | L33: SC_1705 | M33: 2 | T33: SC_1570 | U33: 0 | V33: 0 | W33: 0
B34: SC_1101 | C34: 0 | D34: =COUNTIF(InfoPro!$H$2:$H$127,Hoja1!B34) -> 0 | E34: =COUNTIF(InfoPro!$H$2:$H$127,Hoja1!C34) -> 0 | F34: NO | J34: SC_960 | L34: SC_1795 | M34: 2 | T34: SC_1566 | U34: 0 | V34: 0 | W34: 0
B35: SC_1123 | C35: 0 | D35: =COUNTIF(InfoPro!$H$2:$H$127,Hoja1!B35) -> 0 | E35: =COUNTIF(InfoPro!$H$2:$H$127,Hoja1!C35) -> 0 | F35: NO | J35: SC_980 | L35: SC_1795 | M35: 2 | T35: SC_1598 | U35: 0 | V35: 0 | W35: 0
B36: SC_1143 | C36: SC_1896 | D36: =COUNTIF(InfoPro!$H$2:$H$127,Hoja1!B36) -> 0 | E36: =COUNTIF(InfoPro!$H$2:$H$127,Hoja1!C36) -> 0 | F36: NO | J36: SC_980 | L36: SC_1806 | M36: 0 | T36: SC_1602 | U36: 0 | V36: 0 | W36: 0
B37: SC_1146 | C37: SC_1915 | D37: =COUNTIF(InfoPro!$H$2:$H$127,Hoja1!B37) -> 0 | E37: =COUNTIF(InfoPro!$H$2:$H$127,Hoja1!C37) -> 0 | F37: NO | J37: SC_995 | L37: SC_1806 | M37: 0 | T37: SC_1603 | U37: 0 | V37: 0 | W37: 0
B38: SC_1149 | C38: SC_2003 | D38: =COUNTIF(InfoPro!$H$2:$H$127,Hoja1!B38) -> 0 | E38: =COUNTIF(InfoPro!$H$2:$H$127,Hoja1!C38) -> 0 | F38: NO | J38: SC_1909 | L38: SC_960 | M38: 1 | T38: SC_1616 | U38: 0 | V38: 0 | W38: 0
B39: SC_1151 | C39: SC_1929 | D39: =COUNTIF(InfoPro!$H$2:$H$127,Hoja1!B39) -> 0 | E39: =COUNTIF(InfoPro!$H$2:$H$127,Hoja1!C39) -> 0 | F39: NO | J39: SC_1909 | L39: SC_980 | M39: 2 | T39: SC_1651 | U39: 0 | V39: 0 | W39: 0
B40: SC_1156 | C40: SC_1963 | D40: =COUNTIF(InfoPro!$H$2:$H$127,Hoja1!B40) -> 0 | E40: =COUNTIF(InfoPro!$H$2:$H$127,Hoja1!C40) -> 0 | F40: NO | J40: SC_1903 | L40: SC_980 | M40: 2 | T40: SC_1673 | U40: 0 | V40: 0 | W40: 0
B41: SC_1157 | C41: SC_1969 | D41: =COUNTIF(InfoPro!$H$2:$H$127,Hoja1!B41) -> 0 | E41: =COUNTIF(InfoPro!$H$2:$H$127,Hoja1!C41) -> 0 | F41: NO | J41: SC_1903 | L41: SC_995 | M41: 1 | T41: SC_1681 | U41: 0 | V41: 0 | W41: 0
B42: SC_1159 | C42: SC_1975 | D42: =COUNTIF(InfoPro!$H$2:$H$127,Hoja1!B42) -> 0 | E42: =COUNTIF(InfoPro!$H$2:$H$127,Hoja1!C42) -> 0 | F42: NO | J42: SC_1939 | L42: SC_1909 | M42: 2 | T42: SC_1687 | U42: 0 | V42: 0 | W42: 0
B43: SC_1163 | C43: SC_1976 | D43: =COUNTIF(InfoPro!$H$2:$H$127,Hoja1!B43) -> 0 | E43: =COUNTIF(InfoPro!$H$2:$H$127,Hoja1!C43) -> 0 | F43: NO | J43: SC_831 | L43: SC_1909 | M43: 2 | T43: SC_1688 | U43: 1 | V43: 0 | W43: 1
B44: SC_1166 | C44: SC_1801 | D44: =COUNTIF(InfoPro!$H$2:$H$127,Hoja1!B44) -> 0 | E44: =COUNTIF(InfoPro!$H$2:$H$127,Hoja1!C44) -> 0 | F44: NO | J44: SC_831 | L44: SC_1903 | M44: 2 | T44: SC_1726 | U44: 0 | V44: 0 | W44: 0
B45: SC_1170 | C45: SC_1832 | D45: =COUNTIF(InfoPro!$H$2:$H$127,Hoja1!B45) -> 0 | E45: =COUNTIF(InfoPro!$H$2:$H$127,Hoja1!C45) -> 0 | F45: NO | J45: SC_1101 | L45: SC_1903 | M45: 2 | T45: SC_1734 | U45: 0 | V45: 0 | W45: 0
B46: SC_1172 | C46: SC_1841 | D46: =COUNTIF(InfoPro!$H$2:$H$127,Hoja1!B46) -> 0 | E46: =COUNTIF(InfoPro!$H$2:$H$127,Hoja1!C46) -> 0 | F46: NO | J46: SC_1101 | L46: SC_1939 | M46: 1 | T46: SC_1748 | U46: 0 | V46: 0 | W46: 0
B47: SC_1184 | C47: 0 | D47: =COUNTIF(InfoPro!$H$2:$H$127,Hoja1!B47) -> 0 | E47: =COUNTIF(InfoPro!$H$2:$H$127,Hoja1!C47) -> 0 | F47: NO | J47: SC_1123 | L47: SC_831 | M47: 2 | T47: SC_1001 | U47: 0 | V47: 0 | W47: 0
B48: SC_1193 | C48: SC_2097 | D48: =COUNTIF(InfoPro!$H$2:$H$127,Hoja1!B48) -> 0 | E48: =COUNTIF(InfoPro!$H$2:$H$127,Hoja1!C48) -> 0 | F48: NO | J48: SC_1896 | L48: SC_831 | M48: 2 | T48: SC_1030 | U48: 0 | V48: 0 | W48: 0
B49: SC_1196 | C49: 0 | D49: =COUNTIF(InfoPro!$H$2:$H$127,Hoja1!B49) -> 0 | E49: =COUNTIF(InfoPro!$H$2:$H$127,Hoja1!C49) -> 0 | F49: NO | J49: SC_1896 | L49: SC_1101 | M49: 2 | T49: SC_1623 | U49: 0 | V49: 0 | W49: 0
B50: SC_1209 | C50: 0 | D50: =COUNTIF(InfoPro!$H$2:$H$127,Hoja1!B50) -> 0 | E50: =COUNTIF(InfoPro!$H$2:$H$127,Hoja1!C50) -> 0 | F50: NO | J50: SC_1915 | L50: SC_1101 | M50: 2 | T50: SC_1639 | U50: 0 | V50: 0 | W50: 0
B51: SC_1210 | C51: SC_1813 | D51: =COUNTIF(InfoPro!$H$2:$H$127,Hoja1!B51) -> 0 | E51: =COUNTIF(InfoPro!$H$2:$H$127,Hoja1!C51) -> 0 | F51: NO | J51: SC_2003 | L51: SC_1123 | M51: 1 | T51: SC_1646 | U51: 0 | V51: 0 | W51: 0
B52: SC_1240 | C52: SC_2285 | D52: =COUNTIF(InfoPro!$H$2:$H$127,Hoja1!B52) -> 0 | E52: =COUNTIF(InfoPro!$H$2:$H$127,Hoja1!C52) -> 0 | F52: NO | J52: SC_2003 | L52: SC_1896 | M52: 2 | T52: SC_2269 | U52: 0 | V52: 0 | W52: 0
B53: SC_1241 | C53: 0 | D53: =COUNTIF(InfoPro!$H$2:$H$127,Hoja1!B53) -> 0 | E53: =COUNTIF(InfoPro!$H$2:$H$127,Hoja1!C53) -> 0 | F53: NO | J53: SC_1929 | L53: SC_1896 | M53: 2 | T53: SC_1613 | U53: 0 | V53: 0 | W53: 0
B54: SC_1260 | C54: 0 | D54: =COUNTIF(InfoPro!$H$2:$H$127,Hoja1!B54) -> 0 | E54: =COUNTIF(InfoPro!$H$2:$H$127,Hoja1!C54) -> 0 | F54: NO | J54: SC_1963 | L54: SC_1915 | M54: 1 | T54: SC_1079 | U54: 0 | V54: 0 | W54: 0
B55: SC_1290 | C55: 0 | D55: =COUNTIF(InfoPro!$H$2:$H$127,Hoja1!B55) -> 0 | E55: =COUNTIF(InfoPro!$H$2:$H$127,Hoja1!C55) -> 0 | F55: NO | J55: SC_1963 | L55: SC_2003 | M55: 2 | T55: SC_1659 | U55: 0 | V55: 0 | W55: 0
B56: SC_1428 | C56: 0 | D56: =COUNTIF(InfoPro!$H$2:$H$127,Hoja1!B56) -> 0 | E56: =COUNTIF(InfoPro!$H$2:$H$127,Hoja1!C56) -> 0 | F56: NO | J56: SC_1969 | L56: SC_2003 | M56: 2 | T56: SC_1751 | U56: 0 | V56: 0 | W56: 0
B57: SC_1437 | C57: SC_2045 | D57: =COUNTIF(InfoPro!$H$2:$H$127,Hoja1!B57) -> 0 | E57: =COUNTIF(InfoPro!$H$2:$H$127,Hoja1!C57) -> 0 | F57: NO | J57: SC_1969 | L57: SC_1929 | M57: 1 | T57: SC_1565 | U57: 0 | V57: 0 | W57: 0
B58: SC_1441 | C58: SC_2047 | D58: =COUNTIF(InfoPro!$H$2:$H$127,Hoja1!B58) -> 0 | E58: =COUNTIF(InfoPro!$H$2:$H$127,Hoja1!C58) -> 0 | F58: NO | J58: SC_1975 | L58: SC_1963 | M58: 2 | T58: SC_1686 | U58: 0 | V58: 0 | W58: 0
B59: SC_1443 | C59: SC_2048 | D59: =COUNTIF(InfoPro!$H$2:$H$127,Hoja1!B59) -> 0 | E59: =COUNTIF(InfoPro!$H$2:$H$127,Hoja1!C59) -> 0 | F59: NO | J59: SC_1975 | L59: SC_1963 | M59: 2 | T59: SC_1708 | U59: 0 | V59: 0 | W59: 0
B60: SC_1440 | C60: SC_2009 | D60: =COUNTIF(InfoPro!$H$2:$H$127,Hoja1!B60) -> 0 | E60: =COUNTIF(InfoPro!$H$2:$H$127,Hoja1!C60) -> 0 | F60: NO | J60: SC_1976 | L60: SC_1969 | M60: 2 | T60: SC_1692 | U60: 0 | V60: 0 | W60: 0
B61: SC_1453 | C61: SC_2022 | D61: =COUNTIF(InfoPro!$H$2:$H$127,Hoja1!B61) -> 0 | E61: =COUNTIF(InfoPro!$H$2:$H$127,Hoja1!C61) -> 0 | F61: NO | J61: SC_1976 | L61: SC_1969 | M61: 2 | T61: SC_1595 | U61: 0 | V61: 0 | W61: 0
B62: SC_1458 | C62: SC_2034 | D62: =COUNTIF(InfoPro!$H$2:$H$127,Hoja1!B62) -> 0 | E62: =COUNTIF(InfoPro!$H$2:$H$127,Hoja1!C62) -> 0 | F62: NO | J62: SC_1801 | L62: SC_1975 | M62: 2 | T62: SC_1700 | U62: 0 | V62: 0 | W62: 0
B63: SC_1460 | C63: SC_2036 | D63: =COUNTIF(InfoPro!$H$2:$H$127,Hoja1!B63) -> 0 | E63: =COUNTIF(InfoPro!$H$2:$H$127,Hoja1!C63) -> 0 | F63: NO | J63: SC_1832 | L63: SC_1975 | M63: 2 | T63: SC_2061 | U63: 0 | V63: 0 | W63: 0
B64: SC_1524 | C64: SC_2099 | D64: =COUNTIF(InfoPro!$H$2:$H$127,Hoja1!B64) -> 0 | E64: =COUNTIF(InfoPro!$H$2:$H$127,Hoja1!C64) -> 0 | F64: NO | J64: SC_1832 | L64: SC_1976 | M64: 2 | T64: SC_2129 | U64: 0 | V64: 0 | W64: 0
B65: SC_1525 | C65: 0 | D65: =COUNTIF(InfoPro!$H$2:$H$127,Hoja1!B65) -> 0 | E65: =COUNTIF(InfoPro!$H$2:$H$127,Hoja1!C65) -> 0 | F65: NO | J65: SC_1841 | L65: SC_1976 | M65: 2 | T65: SC_1805 | U65: 0 | V65: 0 | W65: 0
B66: SC_1486 | C66: SC_1945 | D66: =COUNTIF(InfoPro!$H$2:$H$127,Hoja1!B66) -> 0 | E66: =COUNTIF(InfoPro!$H$2:$H$127,Hoja1!C66) -> 0 | F66: NO | J66: SC_1841 | L66: SC_1801 | M66: 1 | T66: SC_1806 | U66: 0 | V66: 1 | W66: 1
B67: SC_1488 | C67: SC_2012 | D67: =COUNTIF(InfoPro!$H$2:$H$127,Hoja1!B67) -> 0 | E67: =COUNTIF(InfoPro!$H$2:$H$127,Hoja1!C67) -> 0 | F67: =IF(E67=0,IF(D67=0,"NO","SI"),"SI") -> NO | J67: SC_1184 | L67: SC_1832 | M67: =COUNTIF($J$2:$J$144,L67) -> 2 | T67: SC_1803 | U67: =COUNTIF($B$2:$B$85,T67) -> 0 | V67: =COUNTIF($C$1:$C$84,T67) -> 0 | W67: =SUM(U67:V67) -> 0
B68: SC_1516 | C68: SC_2179 | D68: =COUNTIF(InfoPro!$H$2:$H$127,Hoja1!B68) -> 0 | E68: =COUNTIF(InfoPro!$H$2:$H$127,Hoja1!C68) -> 0 | F68: NO | J68: SC_1184 | L68: SC_1832 | M68: 2 | T68: SC_2274 | U68: 0 | V68: 0 | W68: 0
B69: SC_1521 | C69: 0 | D69: =COUNTIF(InfoPro!$H$2:$H$127,Hoja1!B69) -> 0 | E69: =COUNTIF(InfoPro!$H$2:$H$127,Hoja1!C69) -> 0 | F69: NO | J69: SC_2097 | L69: SC_1841 | M69: 2 | T69: SC_1814 | U69: 0 | V69: 0 | W69: 0
B70: SC_1522 | C70: SC_2201 | D70: =COUNTIF(InfoPro!$H$2:$H$127,Hoja1!B70) -> 0 | E70: =COUNTIF(InfoPro!$H$2:$H$127,Hoja1!C70) -> 0 | F70: NO | J70: SC_2097 | L70: SC_1841 | M70: 2 | T70: SC_1932 | U70: 0 | V70: 0 | W70: 0
B71: SC_1574 | C71: SC_2203 | D71: =COUNTIF(InfoPro!$H$2:$H$127,Hoja1!B71) -> 0 | E71: =COUNTIF(InfoPro!$H$2:$H$127,Hoja1!C71) -> 0 | F71: NO | J71: SC_1196 | L71: SC_1184 | M71: 2 | T71: SC_1940 | U71: 0 | V71: 0 | W71: 0
B72: SC_1576 | C72: SC_2204 | D72: =COUNTIF(InfoPro!$H$2:$H$127,Hoja1!B72) -> 0 | E72: =COUNTIF(InfoPro!$H$2:$H$127,Hoja1!C72) -> 0 | F72: NO | J72: SC_1196 | L72: SC_1184 | M72: 2 | T72: SC_2052 | U72: 0 | V72: 0 | W72: 0
B73: SC_1562 | C73: SC_2146 | D73: =COUNTIF(InfoPro!$H$2:$H$127,Hoja1!B73) -> 0 | E73: =COUNTIF(InfoPro!$H$2:$H$127,Hoja1!C73) -> 0 | F73: NO | J73: SC_1209 | L73: SC_2097 | M73: 2 | T73: SC_2053 | U73: 0 | V73: 0 | W73: 0
B74: SC_1582 | C74: SC_2000 | D74: =COUNTIF(InfoPro!$H$2:$H$127,Hoja1!B74) -> 0 | E74: =COUNTIF(InfoPro!$H$2:$H$127,Hoja1!C74) -> 0 | F74: NO | J74: SC_1209 | L74: SC_2097 | M74: 2 | T74: SC_1785 | U74: 0 | V74: 0 | W74: 0
B75: SC_1586 | C75: SC_2019 | D75: =COUNTIF(InfoPro!$H$2:$H$127,Hoja1!B75) -> 0 | E75: =COUNTIF(InfoPro!$H$2:$H$127,Hoja1!C75) -> 0 | F75: NO | J75: SC_2285 | L75: SC_1196 | M75: 2 | T75: SC_2152 | U75: 0 | V75: 0 | W75: 0
B76: SC_1589 | C76: SC_2027 | D76: =COUNTIF(InfoPro!$H$2:$H$127,Hoja1!B76) -> 0 | E76: =COUNTIF(InfoPro!$H$2:$H$127,Hoja1!C76) -> 0 | F76: NO | J76: SC_1241 | L76: SC_1196 | M76: 2 | T76: SC_2154 | U76: 0 | V76: 0 | W76: 0
B77: SC_1641 | C77: SC_2256 | D77: =COUNTIF(InfoPro!$H$2:$H$127,Hoja1!B77) -> 0 | E77: =COUNTIF(InfoPro!$H$2:$H$127,Hoja1!C77) -> 0 | F77: NO | J77: SC_1241 | L77: SC_1209 | M77: 2 | T77: SC_2030 | U77: 0 | V77: 0 | W77: 0
B78: SC_1660 | C78: SC_2336 | D78: =COUNTIF(InfoPro!$H$2:$H$127,Hoja1!B78) -> 0 | E78: =COUNTIF(InfoPro!$H$2:$H$127,Hoja1!C78) -> 0 | F78: NO | J78: SC_1260 | L78: SC_1209 | M78: 2 | T78: SC_2096 | U78: 0 | V78: 0 | W78: 0
B79: SC_1669 | C79: SC_2186 | D79: =COUNTIF(InfoPro!$H$2:$H$127,Hoja1!B79) -> 0 | E79: =COUNTIF(InfoPro!$H$2:$H$127,Hoja1!C79) -> 0 | F79: NO | J79: SC_1260 | L79: SC_1813 | M79: 0 | T79: SC_2199 | U79: 0 | V79: 0 | W79: 0
B80: SC_1688 | C80: 0 | D80: =COUNTIF(InfoPro!$H$2:$H$127,Hoja1!B80) -> 0 | E80: =COUNTIF(InfoPro!$H$2:$H$127,Hoja1!C80) -> 0 | F80: NO | J80: SC_1290 | L80: SC_1813 | M80: 0 | T80: SC_2221 | U80: 0 | V80: 0 | W80: 0
B81: SC_1690 | C81: SC_2192 | D81: =COUNTIF(InfoPro!$H$2:$H$127,Hoja1!B81) -> 0 | E81: =COUNTIF(InfoPro!$H$2:$H$127,Hoja1!C81) -> 0 | F81: NO | J81: SC_1428 | L81: SC_2285 | M81: 1 | T81: SC_1973 | U81: 0 | V81: 0 | W81: 0
B82: SC_1701 | C82: SC_2216 | D82: =COUNTIF(InfoPro!$H$2:$H$127,Hoja1!B82) -> 0 | E82: =COUNTIF(InfoPro!$H$2:$H$127,Hoja1!C82) -> 0 | F82: NO | J82: SC_1428 | L82: SC_1241 | M82: 2 | T82: SC_1984 | U82: 0 | V82: 0 | W82: 0
B83: SC_1736 | C83: SC_2187 | D83: =COUNTIF(InfoPro!$H$2:$H$127,Hoja1!B83) -> 0 | E83: =COUNTIF(InfoPro!$H$2:$H$127,Hoja1!C83) -> 0 | F83: NO | J83: SC_2045 | L83: SC_1241 | M83: 2 | T83: SC_2091 | U83: 0 | V83: 0 | W83: 0
B84: SC_1739 | C84: SC_2122 | D84: =COUNTIF(InfoPro!$H$2:$H$127,Hoja1!B84) -> 0 | E84: =COUNTIF(InfoPro!$H$2:$H$127,Hoja1!C84) -> 0 | F84: NO | J84: SC_2045 | L84: SC_1260 | M84: 2 | T84: SC_2106 | U84: 0 | V84: 0 | W84: 0
B85: SC_1741 | C85: 0 | D85: =COUNTIF(InfoPro!$H$2:$H$127,Hoja1!B85) -> 0 | E85: =COUNTIF(InfoPro!$H$2:$H$127,Hoja1!C85) -> 0 | F85: NO | J85: SC_2047 | L85: SC_1260 | M85: 2 | T85: SC_1996 | U85: 0 | V85: 0 | W85: 0
J86: SC_2047 | L86: SC_1290 | M86: 1 | T86: SC_2243 | U86: 0 | V86: 0 | W86: 0
J87: SC_2048 | L87: SC_1428 | M87: 2 | T87: SC_2148 | U87: 0 | V87: 0 | W87: 0
J88: SC_2048 | L88: SC_1428 | M88: 2 | T88: SC_2050 | U88: 0 | V88: 0 | W88: 0
J89: SC_2009 | L89: SC_2045 | M89: 2 | T89: SC_2093 | U89: 0 | V89: 0 | W89: 0
J90: SC_2009 | L90: SC_2045 | M90: 2 | T90: SC_2092 | U90: 0 | V90: 0 | W90: 0
J91: SC_2022 | L91: SC_2047 | M91: 2 | T91: SC_2141 | U91: 0 | V91: 0 | W91: 0
J92: SC_2022 | L92: SC_2047 | M92: 2 | T92: SC_2073 | U92: 0 | V92: 0 | W92: 0
J93: SC_2034 | L93: SC_2048 | M93: 2 | T93: SC_2181 | U93: 0 | V93: 0 | W93: 0
J94: SC_2034 | L94: SC_2048 | M94: 2 | T94: SC_2164 | U94: 0 | V94: 0 | W94: 0
J95: SC_2036 | L95: SC_2009 | M95: 2 | T95: SC_2182 | U95: 0 | V95: 0 | W95: 0
J96: SC_2036 | L96: SC_2009 | M96: 2 | T96: SC_2230 | U96: 0 | V96: 0 | W96: 0
J97: SC_2099 | L97: SC_2022 | M97: 2 | T97: SC_2244 | U97: 0 | V97: 0 | W97: 0
J98: SC_2099 | L98: SC_2022 | M98: 2 | T98: SC_2161 | U98: 0 | V98: 0 | W98: 0
J99: SC_1525 | L99: SC_2034 | M99: 2 | T99: SC_2196 | U99: 0 | V99: 0 | W99: 0
J100: SC_1525 | L100: SC_2034 | M100: 2 | T100: SC_1890 | U100: 0 | V100: 0 | W100: 0
J101: SC_1945 | L101: SC_2036 | M101: 2 | T101: SC_1893 | U101: 0 | V101: 0 | W101: 0
J102: SC_1945 | L102: SC_2036 | M102: 2 | T102: SC_2082 | U102: 0 | V102: 0 | W102: 0
J103: SC_2179 | L103: SC_2099 | M103: 2 | T103: SC_2142 | U103: 0 | V103: 0 | W103: 0
J104: SC_2179 | L104: SC_2099 | M104: 2 | T104: SC_2197 | U104: 0 | V104: 0 | W104: 0
J105: SC_1521 | L105: SC_1525 | M105: 2 | T105: SC_2282 | U105: 0 | V105: 0 | W105: 0
J106: SC_2201 | L106: SC_1525 | M106: 2 | T106: SC_2134 | U106: 0 | V106: 0 | W106: 0
J107: SC_2201 | L107: SC_1945 | M107: 2 | T107: SC_1871 | U107: 0 | V107: 0 | W107: 0
J108: SC_2203 | L108: SC_1945 | M108: 2
J109: SC_2203 | L109: SC_2012 | M109: 0
J110: SC_2146 | L110: SC_2012 | M110: 0
J111: SC_2146 | L111: SC_2179 | M111: 2
J112: SC_2000 | L112: SC_2179 | M112: 2
J113: SC_2000 | L113: SC_1521 | M113: 1
J114: SC_2019 | L114: SC_2201 | M114: 2
J115: SC_2019 | L115: SC_2201 | M115: 2
J116: SC_2256 | L116: SC_2203 | M116: 2
J117: SC_2256 | L117: SC_2203 | M117: 2
J118: SC_2336 | L118: SC_2204 | M118: 0
J119: SC_2336 | L119: SC_2204 | M119: 0
J120: SC_2186 | L120: SC_2146 | M120: 2
J121: SC_2186 | L121: SC_2146 | M121: 2
J122: SC_1688 | L122: SC_2000 | M122: 2
J123: SC_1688 | L123: SC_2000 | M123: 2
J124: SC_2192 | L124: SC_2019 | M124: 2
J125: SC_2192 | L125: SC_2019 | M125: 2
J126: SC_2216 | L126: SC_2027 | M126: 0
J127: SC_2216 | L127: SC_2027 | M127: 0
J128: SC_2187 | L128: SC_2027 | M128: 0
J129: SC_2187 | L129: SC_2256 | M129: 2
J130: SC_2122 | L130: SC_2256 | M130: 2
J131: SC_2122 | L131: SC_2336 | M131: =COUNTIF($J$2:$J$144,L131) -> 2
J132: SC_1741 | L132: SC_2336 | M132: 2
J133: SC_1741 | L133: SC_2186 | M133: 2
J134: SC_170 | L134: SC_2186 | M134: 2
J135: SC_170 | L135: SC_1688 | M135: 2
J136: SC_829 | L136: SC_1688 | M136: 2
J137: SC_829 | L137: SC_2192 | M137: 2
J138: SC_436 | L138: SC_2192 | M138: 2
J139: SC_436 | L139: SC_2216 | M139: 2
J140: SC_484 | L140: SC_2216 | M140: 2
J141: SC_501 | L141: SC_2187 | M141: 2
J142: SC_501 | L142: SC_2187 | M142: 2
J143: SC_545 | L143: SC_2122 | M143: 2
J144: SC_545 | L144: SC_2122 | M144: 2
L145: SC_1741 | M145: 2
L146: SC_1741 | M146: 2
L147: SC_68 | M147: 0
L148: SC_170 | M148: 2
L149: SC_170 | M149: 2
L150: SC_829 | M150: 2
L151: SC_829 | M151: 2
L152: SC_436 | M152: 2
L153: SC_436 | M153: 2
L154: SC_484 | M154: 1
L155: SC_501 | M155: 2
L156: SC_501 | M156: 2
L157: SC_545 | M157: 2
L158: SC_545 | M158: 2

Sheet IT-TA
B1: Codigo | C1: Nombre | D1: Capacidad | E1: Licencia Ambiental obtenida | F1: Año de entrada | G1: P | H1: Total | J1: Año de Referencia
B2: =IF(ISBLANK(InfoPro!A2),"",InfoPro!A2) -> SC_410_A1 | C2: =IF(ISBLANK(InfoPro!B2),"",InfoPro!B2) -> PARQUE SOLAR EL ACEITE 9.9 MW | D2: =IF(ISBLANK(InfoPro!E2),"",InfoPro!E2) -> 9.9 | E2: =IF(ISBLANK(InfoPro!N2),"",InfoPro!N2) -> NO | F2: =IF(ISBLANK(InfoPro!I2),"",YEAR(InfoPro!I2)-$J$2) -> 2 | G2: =IF(E2="SI",100,IF(E2="NO",0,"")) -> 0 | H2: =IF(G2="","",(G2)) -> 0 | J2: 2023
B3: =IF(ISBLANK(InfoPro!A3),"",InfoPro!A3) -> SC_458_A1 | C3: =IF(ISBLANK(InfoPro!B3),"",InfoPro!B3) -> Helios Guamo 19.9MW | D3: =IF(ISBLANK(InfoPro!E3),"",InfoPro!E3) -> 19.9 | E3: =IF(ISBLANK(InfoPro!N3),"",InfoPro!N3) -> NO | F3: =IF(ISBLANK(InfoPro!I3),"",YEAR(InfoPro!I3)-$J$2) -> 1 | G3: =IF(E3="SI",100,IF(E3="NO",0,"")) -> 0 | H3: =IF(G3="","",(G3)) -> 0
B4: =IF(ISBLANK(InfoPro!A4),"",InfoPro!A4) -> SC_458_A2 | C4: =IF(ISBLANK(InfoPro!B4),"",InfoPro!B4) -> Helios Guamo 19.9MW | D4: =IF(ISBLANK(InfoPro!E4),"",InfoPro!E4) -> 19.9 | E4: =IF(ISBLANK(InfoPro!N4),"",InfoPro!N4) -> NO | F4: =IF(ISBLANK(InfoPro!I4),"",YEAR(InfoPro!I4)-$J$2) -> 1 | G4: 0 | H4: 0
B5: =IF(ISBLANK(InfoPro!A5),"",InfoPro!A5) -> SC_478_A2 | C5: =IF(ISBLANK(InfoPro!B5),"",InfoPro!B5) -> Helios Tuluni 19.9 MW | D5: =IF(ISBLANK(InfoPro!E5),"",InfoPro!E5) -> 19.9 | E5: =IF(ISBLANK(InfoPro!N5),"",InfoPro!N5) -> NO | F5: =IF(ISBLANK(InfoPro!I5),"",YEAR(InfoPro!I5)-$J$2) -> 1 | G5: 0 | H5: 0
B6: =IF(ISBLANK(InfoPro!A6),"",InfoPro!A6) -> SC_478_A1 | C6: =IF(ISBLANK(InfoPro!B6),"",InfoPro!B6) -> Helios Tuluni 19.9 MW | D6: =IF(ISBLANK(InfoPro!E6),"",InfoPro!E6) -> 19.9 | E6: =IF(ISBLANK(InfoPro!N6),"",InfoPro!N6) -> NO | F6: =IF(ISBLANK(InfoPro!I6),"",YEAR(InfoPro!I6)-$J$2) -> 1 | G6: 0 | H6: 0
B7: =IF(ISBLANK(InfoPro!A7),"",InfoPro!A7) -> SC_491_A1 | C7: =IF(ISBLANK(InfoPro!B7),"",InfoPro!B7) -> Florida - 9.9 MW | D7: =IF(ISBLANK(InfoPro!E7),"",InfoPro!E7) -> 9.9 | E7: =IF(ISBLANK(InfoPro!N7),"",InfoPro!N7) -> NO | F7: =IF(ISBLANK(InfoPro!I7),"",YEAR(InfoPro!I7)-$J$2) -> 2 | G7: 0 | H7: 0
B8: =IF(ISBLANK(InfoPro!A8),"",InfoPro!A8) -> SC_519_A1 | C8: =IF(ISBLANK(InfoPro!B8),"",InfoPro!B8) -> PARQUE SOLAR EL ACEITE 9.9 MW | D8: =IF(ISBLANK(InfoPro!E8),"",InfoPro!E8) -> 9.9 | E8: =IF(ISBLANK(InfoPro!N8),"",InfoPro!N8) -> NO | F8: =IF(ISBLANK(InfoPro!I8),"",YEAR(InfoPro!I8)-$J$2) -> 2 | G8: 0 | H8: 0
B9: =IF(ISBLANK(InfoPro!A9),"",InfoPro!A9) -> SC_492_A1 | C9: =IF(ISBLANK(InfoPro!B9),"",InfoPro!B9) -> Ricaurte 9.9 MW | D9: =IF(ISBLANK(InfoPro!E9),"",InfoPro!E9) -> 9.9 | E9: =IF(ISBLANK(InfoPro!N9),"",InfoPro!N9) -> NO | F9: =IF(ISBLANK(InfoPro!I9),"",YEAR(InfoPro!I9)-$J$2) -> 2 | G9: 0 | H9: 0
B10: =IF(ISBLANK(InfoPro!A10),"",InfoPro!A10) -> SC_492_A2 | C10: =IF(ISBLANK(InfoPro!B10),"",InfoPro!B10) -> Ricaurte 9.9 MW | D10: =IF(ISBLANK(InfoPro!E10),"",InfoPro!E10) -> 9.9 | E10: =IF(ISBLANK(InfoPro!N10),"",InfoPro!N10) -> NO | F10: =IF(ISBLANK(InfoPro!I10),"",YEAR(InfoPro!I10)-$J$2) -> 2 | G10: 0 | H10: 0
B11: =IF(ISBLANK(InfoPro!A11),"",InfoPro!A11) -> SC_826_A1 | C11: =IF(ISBLANK(InfoPro!B11),"",InfoPro!B11) -> PARQUE SOLAR HELIOS LANCEROS 19.9 MW | D11: =IF(ISBLANK(InfoPro!E11),"",InfoPro!E11) -> 19.9 | E11: =IF(ISBLANK(InfoPro!N11),"",InfoPro!N11) -> NO | F11: =IF(ISBLANK(InfoPro!I11),"",YEAR(InfoPro!I11)-$J$2) -> 1 | G11: 0 | H11: 0
B12: =IF(ISBLANK(InfoPro!A12),"",InfoPro!A12) -> SC_827_A1 | C12: =IF(ISBLANK(InfoPro!B12),"",InfoPro!B12) -> PARQUE SOLAR FOTOVOLTAICO HELIOS NATAGAIMA (19,9MW) | D12: =IF(ISBLANK(InfoPro!E12),"",InfoPro!E12) -> 19.9 | E12: =IF(ISBLANK(InfoPro!N12),"",InfoPro!N12) -> NO | F12: =IF(ISBLANK(InfoPro!I12),"",YEAR(InfoPro!I12)-$J$2) -> 1 | G12: 0 | H12: 0
B13: =IF(ISBLANK(InfoPro!A13),"",InfoPro!A13) -> SC_827_A2 | C13: =IF(ISBLANK(InfoPro!B13),"",InfoPro!B13) -> PARQUE SOLAR FOTOVOLTAICO HELIOS NATAGAIMA (19,9MW) | D13: =IF(ISBLANK(InfoPro!E13),"",InfoPro!E13) -> 19.9 | E13: =IF(ISBLANK(InfoPro!N13),"",InfoPro!N13) -> NO | F13: =IF(ISBLANK(InfoPro!I13),"",YEAR(InfoPro!I13)-$J$2) -> 1 | G13: 0 | H13: 0
B14: =IF(ISBLANK(InfoPro!A14),"",InfoPro!A14) -> SC_722_A1 | C14: =IF(ISBLANK(InfoPro!B14),"",InfoPro!B14) -> Sevilla de 9,9 MW | D14: =IF(ISBLANK(InfoPro!E14),"",InfoPro!E14) -> 9.9 | E14: =IF(ISBLANK(InfoPro!N14),"",InfoPro!N14) -> NO | F14: =IF(ISBLANK(InfoPro!I14),"",YEAR(InfoPro!I14)-$J$2) -> 2 | G14: 0 | H14: 0
B15: =IF(ISBLANK(InfoPro!A15),"",InfoPro!A15) -> SC_722_A2 | C15: =IF(ISBLANK(InfoPro!B15),"",InfoPro!B15) -> Sevilla de 9,9 MW | D15: =IF(ISBLANK(InfoPro!E15),"",InfoPro!E15) -> 9.9 | E15: =IF(ISBLANK(InfoPro!N15),"",InfoPro!N15) -> NO | F15: =IF(ISBLANK(InfoPro!I15),"",YEAR(InfoPro!I15)-$J$2) -> 2 | G15: 0 | H15: 0
B16: =IF(ISBLANK(InfoPro!A16),"",InfoPro!A16) -> SC_958_A1 | C16: =IF(ISBLANK(InfoPro!B16),"",InfoPro!B16) -> DSE NEIVA SUR_9.9MW | D16: =IF(ISBLANK(InfoPro!E16),"",InfoPro!E16) -> 9.9 | E16: =IF(ISBLANK(InfoPro!N16),"",InfoPro!N16) -> NO | F16: =IF(ISBLANK(InfoPro!I16),"",YEAR(InfoPro!I16)-$J$2) -> 3 | G16: 0 | H16: 0
B17: =IF(ISBLANK(InfoPro!A17),"",InfoPro!A17) -> SC_1004_A1 | C17: =IF(ISBLANK(InfoPro!B17),"",InfoPro!B17) -> EXCEDENTES AUTOGENERACIÓN VAO HUILA | D17: =IF(ISBLANK(InfoPro!E17),"",InfoPro!E17) -> 7.5 | E17: =IF(ISBLANK(InfoPro!N17),"",InfoPro!N17) -> NO | F17: =IF(ISBLANK(InfoPro!I17),"",YEAR(InfoPro!I17)-$J$2) -> 0 | G17: 0 | H17: 0
B18: =IF(ISBLANK(InfoPro!A18),"",InfoPro!A18) -> SC_1104_A1 | C18: =IF(ISBLANK(InfoPro!B18),"",InfoPro!B18) -> CAMPOALEGRE SOLAR 9.9 MW | D18: =IF(ISBLANK(InfoPro!E18),"",InfoPro!E18) -> 9.9 | E18: =IF(ISBLANK(InfoPro!N18),"",InfoPro!N18) -> NO | F18: =IF(ISBLANK(InfoPro!I18),"",YEAR(InfoPro!I18)-$J$2) -> 1 | G18: 0 | H18: 0
B19: =IF(ISBLANK(InfoPro!A19),"",InfoPro!A19) -> SC_1104_A2 | C19: =IF(ISBLANK(InfoPro!B19),"",InfoPro!B19) -> CAMPOALEGRE SOLAR 9.9 MW | D19: =IF(ISBLANK(InfoPro!E19),"",InfoPro!E19) -> 9.9 | E19: =IF(ISBLANK(InfoPro!N19),"",InfoPro!N19) -> NO | F19: =IF(ISBLANK(InfoPro!I19),"",YEAR(InfoPro!I19)-$J$2) -> 1 | G19: 0 | H19: 0
B20: =IF(ISBLANK(InfoPro!A20),"",InfoPro!A20) -> SC_1331_A1 | C20: =IF(ISBLANK(InfoPro!B20),"",InfoPro!B20) -> Sol de Colombia Tuluní | D20: =IF(ISBLANK(InfoPro!E20),"",InfoPro!E20) -> 200 | E20: =IF(ISBLANK(InfoPro!N20),"",InfoPro!N20) -> NO | F20: =IF(ISBLANK(InfoPro!I20),"",YEAR(InfoPro!I20)-$J$2) -> 3 | G20: 0 | H20: 0
B21: =IF(ISBLANK(InfoPro!A21),"",InfoPro!A21) -> SC_806_A1 | C21: =IF(ISBLANK(InfoPro!B21),"",InfoPro!B21) -> Wartsila | D21: =IF(ISBLANK(InfoPro!E21),"",InfoPro!E21) -> 26.25 | E21: =IF(ISBLANK(InfoPro!N21),"",InfoPro!N21) -> NO | F21: =IF(ISBLANK(InfoPro!I21),"",YEAR(InfoPro!I21)-$J$2) -> 0 | G21: 0 | H21: 0
B22: =IF(ISBLANK(InfoPro!A22),"",InfoPro!A22) -> SC_764_A1 | C22: =IF(ISBLANK(InfoPro!B22),"",InfoPro!B22) -> PARQUE FOTOVOLTAICO LAS CEIBAS | D22: =IF(ISBLANK(InfoPro!E22),"",InfoPro!E22) -> 80 | E22: =IF(ISBLANK(InfoPro!N22),"",InfoPro!N22) -> NO | F22: =IF(ISBLANK(InfoPro!I22),"",YEAR(InfoPro!I22)-$J$2) -> 3 | G22: 0 | H22: 0
B23: =IF(ISBLANK(InfoPro!A23),"",InfoPro!A23) -> SC_1231_A2 | C23: =IF(ISBLANK(InfoPro!B23),"",InfoPro!B23) -> Palermo 1 | D23: =IF(ISBLANK(InfoPro!E23),"",InfoPro!E23) -> 50 | E23: =IF(ISBLANK(InfoPro!N23),"",InfoPro!N23) -> NO | F23: =IF(ISBLANK(InfoPro!I23),"",YEAR(InfoPro!I23)-$J$2) -> 1 | G23: 0 | H23: 0
B24: =IF(ISBLANK(InfoPro!A24),"",InfoPro!A24) -> SC_1246_A2 | C24: =IF(ISBLANK(InfoPro!B24),"",InfoPro!B24) -> Palermo 2 | D24: =IF(ISBLANK(InfoPro!E24),"",InfoPro!E24) -> 9.9 | E24: =IF(ISBLANK(InfoPro!N24),"",InfoPro!N24) -> NO | F24: =IF(ISBLANK(InfoPro!I24),"",YEAR(InfoPro!I24)-$J$2) -> 1 | G24: 0 | H24: 0
B25: =IF(ISBLANK(InfoPro!A25),"",InfoPro!A25) -> SC_1214_A2 | C25: =IF(ISBLANK(InfoPro!B25),"",InfoPro!B25) -> Sol de Espinal 9,9 MW | D25: =IF(ISBLANK(InfoPro!E25),"",InfoPro!E25) -> 9.9 | E25: =IF(ISBLANK(InfoPro!N25),"",InfoPro!N25) -> NO | F25: =IF(ISBLANK(InfoPro!I25),"",YEAR(InfoPro!I25)-$J$2) -> 5 | G25: 0 | H25: 0
B26: =IF(ISBLANK(InfoPro!A26),"",InfoPro!A26) -> SC_1334_A2 | C26: =IF(ISBLANK(InfoPro!B26),"",InfoPro!B26) -> Flandes Solar | D26: =IF(ISBLANK(InfoPro!E26),"",InfoPro!E26) -> 9.9 | E26: =IF(ISBLANK(InfoPro!N26),"",InfoPro!N26) -> NO | F26: =IF(ISBLANK(InfoPro!I26),"",YEAR(InfoPro!I26)-$J$2) -> 3 | G26: 0 | H26: 0
B27: =IF(ISBLANK(InfoPro!A27),"",InfoPro!A27) -> SC_1334_A1 | C27: =IF(ISBLANK(InfoPro!B27),"",InfoPro!B27) -> Flandes Solar | D27: =IF(ISBLANK(InfoPro!E27),"",InfoPro!E27) -> 9.9 | E27: =IF(ISBLANK(InfoPro!N27),"",InfoPro!N27) -> NO | F27: =IF(ISBLANK(InfoPro!I27),"",YEAR(InfoPro!I27)-$J$2) -> 3 | G27: 0 | H27: 0
B28: =IF(ISBLANK(InfoPro!A28),"",InfoPro!A28) -> SC_1273_A1 | C28: =IF(ISBLANK(InfoPro!B28),"",InfoPro!B28) -> Santa Clara DE 9,9 MW | D28: =IF(ISBLANK(InfoPro!E28),"",InfoPro!E28) -> 9.9 | E28: =IF(ISBLANK(InfoPro!N28),"",InfoPro!N28) -> NO | F28: =IF(ISBLANK(InfoPro!I28),"",YEAR(InfoPro!I28)-$J$2) -> 1 | G28: 0 | H28: 0
B29: =IF(ISBLANK(InfoPro!A29),"",InfoPro!A29) -> SC_806_A2 | C29: =IF(ISBLANK(InfoPro!B29),"",InfoPro!B29) -> Wartsila | D29: =IF(ISBLANK(InfoPro!E29),"",InfoPro!E29) -> 26.25 | E29: =IF(ISBLANK(InfoPro!N29),"",InfoPro!N29) -> NO | F29: =IF(ISBLANK(InfoPro!I29),"",YEAR(InfoPro!I29)-$J$2) -> 0 | G29: 0 | H29: 0
B30: =IF(ISBLANK(InfoPro!A30),"",InfoPro!A30) -> SC_1248_A2 | C30: =IF(ISBLANK(InfoPro!B30),"",InfoPro!B30) -> El Piojo IV | D30: =IF(ISBLANK(InfoPro!E30),"",InfoPro!E30) -> 9.9 | E30: =IF(ISBLANK(InfoPro!N30),"",InfoPro!N30) -> NO | F30: =IF(ISBLANK(InfoPro!I30),"",YEAR(InfoPro!I30)-$J$2) -> 1 | G30: 0 | H30: 0
B31: =IF(ISBLANK(InfoPro!A31),"",InfoPro!A31) -> SC_1248_A1 | C31: =IF(ISBLANK(InfoPro!B31),"",InfoPro!B31) -> El Piojo IV | D31: =IF(ISBLANK(InfoPro!E31),"",InfoPro!E31) -> 9.9 | E31: =IF(ISBLANK(InfoPro!N31),"",InfoPro!N31) -> NO | F31: =IF(ISBLANK(InfoPro!I31),"",YEAR(InfoPro!I31)-$J$2) -> 1 | G31: 0 | H31: 0
B32: =IF(ISBLANK(InfoPro!A32),"",InfoPro!A32) -> SC_871_A1 | C32: =IF(ISBLANK(InfoPro!B32),"",InfoPro!B32) -> PARQUE SOLAR SANTA LUCIA | D32: =IF(ISBLANK(InfoPro!E32),"",InfoPro!E32) -> 9.9 | E32: =IF(ISBLANK(InfoPro!N32),"",InfoPro!N32) -> NO | F32: =IF(ISBLANK(InfoPro!I32),"",YEAR(InfoPro!I32)-$J$2) -> 1 | G32: 0 | H32: 0
B33: =IF(ISBLANK(InfoPro!A33),"",InfoPro!A33) -> SC_1214_A1 | C33: =IF(ISBLANK(InfoPro!B33),"",InfoPro!B33) -> Sol de Espinal 9,9 MW | D33: =IF(ISBLANK(InfoPro!E33),"",InfoPro!E33) -> 9.9 | E33: =IF(ISBLANK(InfoPro!N33),"",InfoPro!N33) -> NO | F33: =IF(ISBLANK(InfoPro!I33),"",YEAR(InfoPro!I33)-$J$2) -> 5 | G33: 0 | H33: 0
B34: =IF(ISBLANK(InfoPro!A34),"",InfoPro!A34) -> SC_1126_A1 | C34: =IF(ISBLANK(InfoPro!B34),"",InfoPro!B34) -> Solar Escobal 9 | D34: =IF(ISBLANK(InfoPro!E34),"",InfoPro!E34) -> 19.9 | E34: =IF(ISBLANK(InfoPro!N34),"",InfoPro!N34) -> NO | F34: =IF(ISBLANK(InfoPro!I34),"",YEAR(InfoPro!I34)-$J$2) -> 7 | G34: 0 | H34: 0
B35: =IF(ISBLANK(InfoPro!A35),"",InfoPro!A35) -> SC_764_A2 | C35: =IF(ISBLANK(InfoPro!B35),"",InfoPro!B35) -> PARQUE FOTOVOLTAICO LAS CEIBAS | D35: =IF(ISBLANK(InfoPro!E35),"",InfoPro!E35) -> 80 | E35: =IF(ISBLANK(InfoPro!N35),"",InfoPro!N35) -> NO | F35: =IF(ISBLANK(InfoPro!I35),"",YEAR(InfoPro!I35)-$J$2) -> 3 | G35: 0 | H35: 0
B36: =IF(ISBLANK(InfoPro!A36),"",InfoPro!A36) -> SC_661_A1 | C36: =IF(ISBLANK(InfoPro!B36),"",InfoPro!B36) -> TR Solar 11 | D36: =IF(ISBLANK(InfoPro!E36),"",InfoPro!E36) -> 45 | E36: =IF(ISBLANK(InfoPro!N36),"",InfoPro!N36) -> NO | F36: =IF(ISBLANK(InfoPro!I36),"",YEAR(InfoPro!I36)-$J$2) -> 2 | G36: 0 | H36: 0
B37: =IF(ISBLANK(InfoPro!A37),"",InfoPro!A37) -> SC_661_A2 | C37: =IF(ISBLANK(InfoPro!B37),"",InfoPro!B37) -> TR Solar 11 | D37: =IF(ISBLANK(InfoPro!E37),"",InfoPro!E37) -> 45 | E37: =IF(ISBLANK(InfoPro!N37),"",InfoPro!N37) -> NO | F37: =IF(ISBLANK(InfoPro!I37),"",YEAR(InfoPro!I37)-$J$2) -> 2 | G37: 0 | H37: 0
B38: =IF(ISBLANK(InfoPro!A38),"",InfoPro!A38) -> SC_1337_A1 | C38: =IF(ISBLANK(InfoPro!B38),"",InfoPro!B38) -> Los Venados_15MW | D38: =IF(ISBLANK(InfoPro!E38),"",InfoPro!E38) -> 15 | E38: =IF(ISBLANK(InfoPro!N38),"",InfoPro!N38) -> NO | F38: =IF(ISBLANK(InfoPro!I38),"",YEAR(InfoPro!I38)-$J$2) -> 1 | G38: 0 | H38: 0
B39: =IF(ISBLANK(InfoPro!A39),"",InfoPro!A39) -> SC_1337_A2 | C39: =IF(ISBLANK(InfoPro!B39),"",InfoPro!B39) -> Los Venados_15MW | D39: =IF(ISBLANK(InfoPro!E39),"",InfoPro!E39) -> 15 | E39: =IF(ISBLANK(InfoPro!N39),"",InfoPro!N39) -> NO | F39: =IF(ISBLANK(InfoPro!I39),"",YEAR(InfoPro!I39)-$J$2) -> 1 | G39: 0 | H39: 0
B40: =IF(ISBLANK(InfoPro!A40),"",InfoPro!A40) -> SC_1482_A1 | C40: =IF(ISBLANK(InfoPro!B40),"",InfoPro!B40) -> Proyecto de Autogeneración Con InyecciónCero CEMEX_0MW (AUTOGENERACIÓN) | D40: =IF(ISBLANK(InfoPro!E40),"",InfoPro!E40) -> 0 | E40: =IF(ISBLANK(InfoPro!N40),"",InfoPro!N40) -> NO | F40: =IF(ISBLANK(InfoPro!I40),"",YEAR(InfoPro!I40)-$J$2) -> 1 | G40: 0 | H40: 0
B41: =IF(ISBLANK(InfoPro!A41),"",InfoPro!A41) -> SC_1043_A2 | C41: =IF(ISBLANK(InfoPro!B41),"",InfoPro!B41) -> PARQUE SOLAR PALERMO SAS | D41: =IF(ISBLANK(InfoPro!E41),"",InfoPro!E41) -> 9.9 | E41: =IF(ISBLANK(InfoPro!N41),"",InfoPro!N41) -> NO | F41: =IF(ISBLANK(InfoPro!I41),"",YEAR(InfoPro!I41)-$J$2) -> 1 | G41: 0 | H41: 0
B42: =IF(ISBLANK(InfoPro!A42),"",InfoPro!A42) -> SC_1043_A1 | C42: =IF(ISBLANK(InfoPro!B42),"",InfoPro!B42) -> PARQUE SOLAR PALERMO SAS | D42: =IF(ISBLANK(InfoPro!E42),"",InfoPro!E42) -> 9.9 | E42: =IF(ISBLANK(InfoPro!N42),"",InfoPro!N42) -> NO | F42: =IF(ISBLANK(InfoPro!I42),"",YEAR(InfoPro!I42)-$J$2) -> 1 | G42: 0 | H42: 0
B43: =IF(ISBLANK(InfoPro!A43),"",InfoPro!A43) -> SC_1410_A2 | C43: =IF(ISBLANK(InfoPro!B43),"",InfoPro!B43) -> Coyaima | D43: =IF(ISBLANK(InfoPro!E43),"",InfoPro!E43) -> 60 | E43: =IF(ISBLANK(InfoPro!N43),"",InfoPro!N43) -> NO | F43: =IF(ISBLANK(InfoPro!I43),"",YEAR(InfoPro!I43)-$J$2) -> 3 | G43: 0 | H43: 0
B44: =IF(ISBLANK(InfoPro!A44),"",InfoPro!A44) -> SC_1410_A1 | C44: =IF(ISBLANK(InfoPro!B44),"",InfoPro!B44) -> Coyaima | D44: =IF(ISBLANK(InfoPro!E44),"",InfoPro!E44) -> 60 | E44: =IF(ISBLANK(InfoPro!N44),"",InfoPro!N44) -> NO | F44: =IF(ISBLANK(InfoPro!I44),"",YEAR(InfoPro!I44)-$J$2) -> 3 | G44: 0 | H44: 0
B45: =IF(ISBLANK(InfoPro!A45),"",InfoPro!A45) -> SC_857_A1 | C45: =IF(ISBLANK(InfoPro!B45),"",InfoPro!B45) -> Andaki Wind Farm | D45: =IF(ISBLANK(InfoPro!E45),"",InfoPro!E45) -> 125 | E45: =IF(ISBLANK(InfoPro!N45),"",InfoPro!N45) -> NO | F45: =IF(ISBLANK(InfoPro!I45),"",YEAR(InfoPro!I45)-$J$2) -> 3 | G45: 0 | H45: 0
B46: =IF(ISBLANK(InfoPro!A46),"",InfoPro!A46) -> SC_880_A2 | C46: =IF(ISBLANK(InfoPro!B46),"",InfoPro!B46) -> PARQUE FOTOVOLTAICO LA ACHIRA | D46: =IF(ISBLANK(InfoPro!E46),"",InfoPro!E46) -> 60 | E46: =IF(ISBLANK(InfoPro!N46),"",InfoPro!N46) -> NO | F46: =IF(ISBLANK(InfoPro!I46),"",YEAR(InfoPro!I46)-$J$2) -> 3 | G46: 0 | H46: 0
B47: =IF(ISBLANK(InfoPro!A47),"",InfoPro!A47) -> SC_880_A1 | C47: =IF(ISBLANK(InfoPro!B47),"",InfoPro!B47) -> PARQUE FOTOVOLTAICO LA ACHIRA | D47: =IF(ISBLANK(InfoPro!E47),"",InfoPro!E47) -> 60 | E47: =IF(ISBLANK(InfoPro!N47),"",InfoPro!N47) -> NO | F47: =IF(ISBLANK(InfoPro!I47),"",YEAR(InfoPro!I47)-$J$2) -> 3 | G47: 0 | H47: 0
B48: =IF(ISBLANK(InfoPro!A48),"",InfoPro!A48) -> SC_1235_A1 | C48: =IF(ISBLANK(InfoPro!B48),"",InfoPro!B48) -> PROYECTO FOTOVOLTAICO AIPE | D48: =IF(ISBLANK(InfoPro!E48),"",InfoPro!E48) -> 9.9 | E48: =IF(ISBLANK(InfoPro!N48),"",InfoPro!N48) -> NO | F48: =IF(ISBLANK(InfoPro!I48),"",YEAR(InfoPro!I48)-$J$2) -> 3 | G48: 0 | H48: 0
B49: =IF(ISBLANK(InfoPro!A49),"",InfoPro!A49) -> SC_857_A2 | C49: =IF(ISBLANK(InfoPro!B49),"",InfoPro!B49) -> Andaki Wind Farm | D49: =IF(ISBLANK(InfoPro!E49),"",InfoPro!E49) -> 125 | E49: =IF(ISBLANK(InfoPro!N49),"",InfoPro!N49) -> NO | F49: =IF(ISBLANK(InfoPro!I49),"",YEAR(InfoPro!I49)-$J$2) -> 3 | G49: 0 | H49: 0
B50: =IF(ISBLANK(InfoPro!A50),"",InfoPro!A50) -> SC_1694_A2 | C50: =IF(ISBLANK(InfoPro!B50),"",InfoPro!B50) -> Parque Solar Fotovoltaico El Patá | D50: =IF(ISBLANK(InfoPro!E50),"",InfoPro!E50) -> 9.9 | E50: =IF(ISBLANK(InfoPro!N50),"",InfoPro!N50) -> NO | F50: =IF(ISBLANK(InfoPro!I50),"",YEAR(InfoPro!I50)-$J$2) -> 3 | G50: 0 | H50: 0
B51: =IF(ISBLANK(InfoPro!A51),"",InfoPro!A51) -> SC_1694_A1 | C51: =IF(ISBLANK(InfoPro!B51),"",InfoPro!B51) -> Parque Solar Fotovoltaico El Patá | D51: =IF(ISBLANK(InfoPro!E51),"",InfoPro!E51) -> 9.9 | E51: =IF(ISBLANK(InfoPro!N51),"",InfoPro!N51) -> NO | F51: =IF(ISBLANK(InfoPro!I51),"",YEAR(InfoPro!I51)-$J$2) -> 3 | G51: 0 | H51: 0
B52: =IF(ISBLANK(InfoPro!A52),"",InfoPro!A52) -> SC_1666_A1 | C52: =IF(ISBLANK(InfoPro!B52),"",InfoPro!B52) -> PROYECTO SOLAR FOTOVOLTAICO IGUAIMA DE 9,9 | D52: =IF(ISBLANK(InfoPro!E52),"",InfoPro!E52) -> 9.9 | E52: =IF(ISBLANK(InfoPro!N52),"",InfoPro!N52) -> NO | F52: =IF(ISBLANK(InfoPro!I52),"",YEAR(InfoPro!I52)-$J$2) -> 3 | G52: 0 | H52: 0
B53: =IF(ISBLANK(InfoPro!A53),"",InfoPro!A53) -> SC_1666_A2 | C53: =IF(ISBLANK(InfoPro!B53),"",InfoPro!B53) -> PROYECTO SOLAR FOTOVOLTAICO IGUAIMA DE 9,9 | D53: =IF(ISBLANK(InfoPro!E53),"",InfoPro!E53) -> 9.9 | E53: =IF(ISBLANK(InfoPro!N53),"",InfoPro!N53) -> NO | F53: =IF(ISBLANK(InfoPro!I53),"",YEAR(InfoPro!I53)-$J$2) -> 3 | G53: 0 | H53: 0
B54: =IF(ISBLANK(InfoPro!A54),"",InfoPro!A54) -> SC_1668_A1 | C54: =IF(ISBLANK(InfoPro!B54),"",InfoPro!B54) -> PARQUE SOLAR FOTOVOLTAICO DINDAL DE 9,9 MW | D54: =IF(ISBLANK(InfoPro!E54),"",InfoPro!E54) -> 9.9 | E54: =IF(ISBLANK(InfoPro!N54),"",InfoPro!N54) -> NO | F54: =IF(ISBLANK(InfoPro!I54),"",YEAR(InfoPro!I54)-$J$2) -> 3 | G54: 0 | H54: 0
B55: =IF(ISBLANK(InfoPro!A55),"",InfoPro!A55) -> SC_1668_A2 | C55: =IF(ISBLANK(InfoPro!B55),"",InfoPro!B55) -> PARQUE SOLAR FOTOVOLTAICO DINDAL DE 9,9 MW | D55: =IF(ISBLANK(InfoPro!E55),"",InfoPro!E55) -> 9.9 | E55: =IF(ISBLANK(InfoPro!N55),"",InfoPro!N55) -> NO | F55: =IF(ISBLANK(InfoPro!I55),"",YEAR(InfoPro!I55)-$J$2) -> 3 | G55: 0 | H55: 0
B56: =IF(ISBLANK(InfoPro!A56),"",InfoPro!A56) -> SC_1577_A2 | C56: =IF(ISBLANK(InfoPro!B56),"",InfoPro!B56) -> PARQUE SOLAR FOTOVOLTAICO SAN ALEJO I DE 19,9MW | D56: =IF(ISBLANK(InfoPro!E56),"",InfoPro!E56) -> 19.9 | E56: =IF(ISBLANK(InfoPro!N56),"",InfoPro!N56) -> NO | F56: =IF(ISBLANK(InfoPro!I56),"",YEAR(InfoPro!I56)-$J$2) -> 3 | G56: 0 | H56: 0
B57: =IF(ISBLANK(InfoPro!A57),"",InfoPro!A57) -> SC_1578_A2 | C57: =IF(ISBLANK(InfoPro!B57),"",InfoPro!B57) -> PROYECTO FOTOVOLTAICO SAN ALEJO II DE 19,9MW | D57: =IF(ISBLANK(InfoPro!E57),"",InfoPro!E57) -> 19.9 | E57: =IF(ISBLANK(InfoPro!N57),"",InfoPro!N57) -> NO | F57: =IF(ISBLANK(InfoPro!I57),"",YEAR(InfoPro!I57)-$J$2) -> 3 | G57: 0 | H57: 0
B58: =IF(ISBLANK(InfoPro!A58),"",InfoPro!A58) -> SC_1583_A2 | C58: =IF(ISBLANK(InfoPro!B58),"",InfoPro!B58) -> PARQUE FOTOVOLTAICO SAN ALEJO III DE 19,9MW, | D58: =IF(ISBLANK(InfoPro!E58),"",InfoPro!E58) -> 19.9 | E58: =IF(ISBLANK(InfoPro!N58),"",InfoPro!N58) -> NO | F58: =IF(ISBLANK(InfoPro!I58),"",YEAR(InfoPro!I58)-$J$2) -> 3 | G58: 0 | H58: 0
B59: =IF(ISBLANK(InfoPro!A59),"",InfoPro!A59) -> SC_1577_A1 | C59: =IF(ISBLANK(InfoPro!B59),"",InfoPro!B59) -> PARQUE SOLAR FOTOVOLTAICO SAN ALEJO I DE 19,9MW | D59: =IF(ISBLANK(InfoPro!E59),"",InfoPro!E59) -> 19.9 | E59: =IF(ISBLANK(InfoPro!N59),"",InfoPro!N59) -> NO | F59: =IF(ISBLANK(InfoPro!I59),"",YEAR(InfoPro!I59)-$J$2) -> 3 | G59: 0 | H59: 0
B60: =IF(ISBLANK(InfoPro!A60),"",InfoPro!A60) -> SC_1578_A1 | C60: =IF(ISBLANK(InfoPro!B60),"",InfoPro!B60) -> PROYECTO FOTOVOLTAICO SAN ALEJO II DE 19,9MW | D60: =IF(ISBLANK(InfoPro!E60),"",InfoPro!E60) -> 19.9 | E60: =IF(ISBLANK(InfoPro!N60),"",InfoPro!N60) -> NO | F60: =IF(ISBLANK(InfoPro!I60),"",YEAR(InfoPro!I60)-$J$2) -> 3 | G60: 0 | H60: 0
B61: =IF(ISBLANK(InfoPro!A61),"",InfoPro!A61) -> SC_1583_A1 | C61: =IF(ISBLANK(InfoPro!B61),"",InfoPro!B61) -> PARQUE FOTOVOLTAICO SAN ALEJO III DE 19,9MW, | D61: =IF(ISBLANK(InfoPro!E61),"",InfoPro!E61) -> 19.9 | E61: =IF(ISBLANK(InfoPro!N61),"",InfoPro!N61) -> NO | F61: =IF(ISBLANK(InfoPro!I61),"",YEAR(InfoPro!I61)-$J$2) -> 3 | G61: 0 | H61: 0
B62: =IF(ISBLANK(InfoPro!A62),"",InfoPro!A62) -> SC_1706_A1 | C62: =IF(ISBLANK(InfoPro!B62),"",InfoPro!B62) -> DSE NEIVA | D62: =IF(ISBLANK(InfoPro!E62),"",InfoPro!E62) -> 19.9 | E62: =IF(ISBLANK(InfoPro!N62),"",InfoPro!N62) -> NO | F62: =IF(ISBLANK(InfoPro!I62),"",YEAR(InfoPro!I62)-$J$2) -> 2 | G62: 0 | H62: 0
B63: =IF(ISBLANK(InfoPro!A63),"",InfoPro!A63) -> SC_573_A2 | C63: =IF(ISBLANK(InfoPro!B63),"",InfoPro!B63) -> Pétalo del Huila Baraya | D63: =IF(ISBLANK(InfoPro!E63),"",InfoPro!E63) -> 9.9 | E63: =IF(ISBLANK(InfoPro!N63),"",InfoPro!N63) -> NO | F63: =IF(ISBLANK(InfoPro!I63),"",YEAR(InfoPro!I63)-$J$2) -> 3 | G63: 0 | H63: 0
B64: =IF(ISBLANK(InfoPro!A64),"",InfoPro!A64) -> SC_573_A1 | C64: =IF(ISBLANK(InfoPro!B64),"",InfoPro!B64) -> Pétalo del Huila Baraya | D64: =IF(ISBLANK(InfoPro!E64),"",InfoPro!E64) -> 9.9 | E64: =IF(ISBLANK(InfoPro!N64),"",InfoPro!N64) -> NO | F64: =IF(ISBLANK(InfoPro!I64),"",YEAR(InfoPro!I64)-$J$2) -> 3 | G64: 0 | H64: 0
B65: =IF(ISBLANK(InfoPro!A65),"",InfoPro!A65) -> SC_1858_A1 | C65: =IF(ISBLANK(InfoPro!B65),"",InfoPro!B65) -> Yat solar 60 MW | D65: =IF(ISBLANK(InfoPro!E65),"",InfoPro!E65) -> 60 | E65: =IF(ISBLANK(InfoPro!N65),"",InfoPro!N65) -> NO | F65: =IF(ISBLANK(InfoPro!I65),"",YEAR(InfoPro!I65)-$J$2) -> 4 | G65: =IF(E65="SI",100,IF(E65="NO",0,"")) -> 0 | H65: =IF(G65="","",(G65)) -> 0
B66: =IF(ISBLANK(InfoPro!A66),"",InfoPro!A66) -> SC_1858_A2 | C66: =IF(ISBLANK(InfoPro!B66),"",InfoPro!B66) -> Yat solar 60 MW | D66: =IF(ISBLANK(InfoPro!E66),"",InfoPro!E66) -> 60 | E66: =IF(ISBLANK(InfoPro!N66),"",InfoPro!N66) -> NO | F66: =IF(ISBLANK(InfoPro!I66),"",YEAR(InfoPro!I66)-$J$2) -> 4 | G66: 0 | H66: 0
B67: =IF(ISBLANK(InfoPro!A67),"",InfoPro!A67) -> SC_1305_A1 | C67: =IF(ISBLANK(InfoPro!B67),"",InfoPro!B67) -> Helios Espinal II 19,9MW | D67: =IF(ISBLANK(InfoPro!E67),"",InfoPro!E67) -> 19.9 | E67: =IF(ISBLANK(InfoPro!N67),"",InfoPro!N67) -> NO | F67: =IF(ISBLANK(InfoPro!I67),"",YEAR(InfoPro!I67)-$J$2) -> 1 | G67: 0 | H67: 0
B68: =IF(ISBLANK(InfoPro!A68),"",InfoPro!A68) -> SC_1305_A2 | C68: =IF(ISBLANK(InfoPro!B68),"",InfoPro!B68) -> Helios Espinal II 19,9MW | D68: =IF(ISBLANK(InfoPro!E68),"",InfoPro!E68) -> 19.9 | E68: =IF(ISBLANK(InfoPro!N68),"",InfoPro!N68) -> NO | F68: =IF(ISBLANK(InfoPro!I68),"",YEAR(InfoPro!I68)-$J$2) -> 1 | G68: 0 | H68: 0
B69: =IF(ISBLANK(InfoPro!A69),"",InfoPro!A69) -> SC_1330_A1 | C69: =IF(ISBLANK(InfoPro!B69),"",InfoPro!B69) -> Helios Espinal I - 100MW | D69: =IF(ISBLANK(InfoPro!E69),"",InfoPro!E69) -> 100 | E69: =IF(ISBLANK(InfoPro!N69),"",InfoPro!N69) -> NO | F69: =IF(ISBLANK(InfoPro!I69),"",YEAR(InfoPro!I69)-$J$2) -> 2 | G69: 0 | H69: 0
B70: =IF(ISBLANK(InfoPro!A70),"",InfoPro!A70) -> SC_1330_A2 | C70: =IF(ISBLANK(InfoPro!B70),"",InfoPro!B70) -> Helios Espinal I - 100MW | D70: =IF(ISBLANK(InfoPro!E70),"",InfoPro!E70) -> 100 | E70: =IF(ISBLANK(InfoPro!N70),"",InfoPro!N70) -> NO | F70: =IF(ISBLANK(InfoPro!I70),"",YEAR(InfoPro!I70)-$J$2) -> 2 | G70: 0 | H70: 0
B71: =IF(ISBLANK(InfoPro!A71),"",InfoPro!A71) -> SC_1872_A2 | C71: =IF(ISBLANK(InfoPro!B71),"",InfoPro!B71) -> PARQUE SOLAR LA CANDILEJA | D71: =IF(ISBLANK(InfoPro!E71),"",InfoPro!E71) -> 9.9 | E71: =IF(ISBLANK(InfoPro!N71),"",InfoPro!N71) -> NO | F71: =IF(ISBLANK(InfoPro!I71),"",YEAR(InfoPro!I71)-$J$2) -> 1 | G71: 0 | H71: 0
B72: =IF(ISBLANK(InfoPro!A72),"",InfoPro!A72) -> SC_1872_A1 | C72: =IF(ISBLANK(InfoPro!B72),"",InfoPro!B72) -> PARQUE SOLAR LA CANDILEJA | D72: =IF(ISBLANK(InfoPro!E72),"",InfoPro!E72) -> 9.9 | E72: =IF(ISBLANK(InfoPro!N72),"",InfoPro!N72) -> NO | F72: =IF(ISBLANK(InfoPro!I72),"",YEAR(InfoPro!I72)-$J$2) -> 1 | G72: 0 | H72: 0
B73: =IF(ISBLANK(InfoPro!A73),"",InfoPro!A73) -> SC_1852_A1 | C73: =IF(ISBLANK(InfoPro!B73),"",InfoPro!B73) -> Helios Natagaima II - 50MW | D73: =IF(ISBLANK(InfoPro!E73),"",InfoPro!E73) -> 50 | E73: =IF(ISBLANK(InfoPro!N73),"",InfoPro!N73) -> NO | F73: =IF(ISBLANK(InfoPro!I73),"",YEAR(InfoPro!I73)-$J$2) -> 2 | G73: 0 | H73: 0
B74: =IF(ISBLANK(InfoPro!A74),"",InfoPro!A74) -> SC_1852_A2 | C74: =IF(ISBLANK(InfoPro!B74),"",InfoPro!B74) -> Helios Natagaima II - 50MW | D74: =IF(ISBLANK(InfoPro!E74),"",InfoPro!E74) -> 50 | E74: =IF(ISBLANK(InfoPro!N74),"",InfoPro!N74) -> NO | F74: =IF(ISBLANK(InfoPro!I74),"",YEAR(InfoPro!I74)-$J$2) -> 2 | G74: 0 | H74: 0
B75: =IF(ISBLANK(InfoPro!A75),"",InfoPro!A75) -> SC_1778_A1 | C75: =IF(ISBLANK(InfoPro!B75),"",InfoPro!B75) -> Paraiso Solar _ 9.9MW | D75: =IF(ISBLANK(InfoPro!E75),"",InfoPro!E75) -> 9.9 | E75: =IF(ISBLANK(InfoPro!N75),"",InfoPro!N75) -> NO | F75: =IF(ISBLANK(InfoPro!I75),"",YEAR(InfoPro!I75)-$J$2) -> 1 | G75: 0 | H75: 0
B76: =IF(ISBLANK(InfoPro!A76),"",InfoPro!A76) -> SC_1828_A1 | C76: =IF(ISBLANK(InfoPro!B76),"",InfoPro!B76) -> Parque Fotovoltaico Santa Rita | D76: =IF(ISBLANK(InfoPro!E76),"",InfoPro!E76) -> 9.9 | E76: =IF(ISBLANK(InfoPro!N76),"",InfoPro!N76) -> NO | F76: =IF(ISBLANK(InfoPro!I76),"",YEAR(InfoPro!I76)-$J$2) -> 1 | G76: 0 | H76: 0
B77: =IF(ISBLANK(InfoPro!A77),"",InfoPro!A77) -> SC_1828_A2 | C77: =IF(ISBLANK(InfoPro!B77),"",InfoPro!B77) -> Parque Fotovoltaico Santa Rita | D77: =IF(ISBLANK(InfoPro!E77),"",InfoPro!E77) -> 9.9 | E77: =IF(ISBLANK(InfoPro!N77),"",InfoPro!N77) -> NO | F77: =IF(ISBLANK(InfoPro!I77),"",YEAR(InfoPro!I77)-$J$2) -> 1 | G77: 0 | H77: 0
B78: =IF(ISBLANK(InfoPro!A78),"",InfoPro!A78) -> SC_1767_A1 | C78: =IF(ISBLANK(InfoPro!B78),"",InfoPro!B78) -> Los Rosales 9,9 MW | D78: =IF(ISBLANK(InfoPro!E78),"",InfoPro!E78) -> 9.9 | E78: =IF(ISBLANK(InfoPro!N78),"",InfoPro!N78) -> NO | F78: =IF(ISBLANK(InfoPro!I78),"",YEAR(InfoPro!I78)-$J$2) -> 1 | G78: 0 | H78: 0
B79: =IF(ISBLANK(InfoPro!A79),"",InfoPro!A79) -> SC_2006_A1 | C79: =IF(ISBLANK(InfoPro!B79),"",InfoPro!B79) -> JUNCAL 1 | D79: =IF(ISBLANK(InfoPro!E79),"",InfoPro!E79) -> 4.9 | E79: =IF(ISBLANK(InfoPro!N79),"",InfoPro!N79) -> NO | F79: =IF(ISBLANK(InfoPro!I79),"",YEAR(InfoPro!I79)-$J$2) -> 1 | G79: 0 | H79: 0
B80: =IF(ISBLANK(InfoPro!A80),"",InfoPro!A80) -> SC_2038_A2 | C80: =IF(ISBLANK(InfoPro!B80),"",InfoPro!B80) -> TRAPICHITO SOLAR - 40 MW | D80: =IF(ISBLANK(InfoPro!E80),"",InfoPro!E80) -> 40 | E80: =IF(ISBLANK(InfoPro!N80),"",InfoPro!N80) -> NO | F80: =IF(ISBLANK(InfoPro!I80),"",YEAR(InfoPro!I80)-$J$2) -> 3 | G80: 0 | H80: 0
B81: =IF(ISBLANK(InfoPro!A81),"",InfoPro!A81) -> SC_2038_A1 | C81: =IF(ISBLANK(InfoPro!B81),"",InfoPro!B81) -> TRAPICHITO SOLAR - 40 MW | D81: =IF(ISBLANK(InfoPro!E81),"",InfoPro!E81) -> 40 | E81: =IF(ISBLANK(InfoPro!N81),"",InfoPro!N81) -> NO | F81: =IF(ISBLANK(InfoPro!I81),"",YEAR(InfoPro!I81)-$J$2) -> 3 | G81: 0 | H81: 0
B82: =IF(ISBLANK(InfoPro!A82),"",InfoPro!A82) -> SC_1777_A1 | C82: =IF(ISBLANK(InfoPro!B82),"",InfoPro!B82) -> Sol Bochica | D82: =IF(ISBLANK(InfoPro!E82),"",InfoPro!E82) -> 19.9 | E82: =IF(ISBLANK(InfoPro!N82),"",InfoPro!N82) -> NO | F82: =IF(ISBLANK(InfoPro!I82),"",YEAR(InfoPro!I82)-$J$2) -> 1 | G82: 0 | H82: 0
B83: =IF(ISBLANK(InfoPro!A83),"",InfoPro!A83) -> SC_1777_A2 | C83: =IF(ISBLANK(InfoPro!B83),"",InfoPro!B83) -> Sol Bochica | D83: =IF(ISBLANK(InfoPro!E83),"",InfoPro!E83) -> 19.9 | E83: =IF(ISBLANK(InfoPro!N83),"",InfoPro!N83) -> NO | F83: =IF(ISBLANK(InfoPro!I83),"",YEAR(InfoPro!I83)-$J$2) -> 1 | G83: 0 | H83: 0
B84: =IF(ISBLANK(InfoPro!A84),"",InfoPro!A84) -> SC_1930_A1 | C84: =IF(ISBLANK(InfoPro!B84),"",InfoPro!B84) -> PV José Maria Cordova | D84: =IF(ISBLANK(InfoPro!E84),"",InfoPro!E84) -> 9.9 | E84: =IF(ISBLANK(InfoPro!N84),"",InfoPro!N84) -> NO | F84: =IF(ISBLANK(InfoPro!I84),"",YEAR(InfoPro!I84)-$J$2) -> 2 | G84: 0 | H84: 0
B85: =IF(ISBLANK(InfoPro!A85),"",InfoPro!A85) -> SC_2004_A1 | C85: =IF(ISBLANK(InfoPro!B85),"",InfoPro!B85) -> Arreboles l | D85: =IF(ISBLANK(InfoPro!E85),"",InfoPro!E85) -> 19.9 | E85: =IF(ISBLANK(InfoPro!N85),"",InfoPro!N85) -> NO | F85: =IF(ISBLANK(InfoPro!I85),"",YEAR(InfoPro!I85)-$J$2) -> 2 | G85: 0 | H85: 0
B86: =IF(ISBLANK(InfoPro!A86),"",InfoPro!A86) -> SC_2004_A2 | C86: =IF(ISBLANK(InfoPro!B86),"",InfoPro!B86) -> Arreboles l | D86: =IF(ISBLANK(InfoPro!E86),"",InfoPro!E86) -> 19.9 | E86: =IF(ISBLANK(InfoPro!N86),"",InfoPro!N86) -> NO | F86: =IF(ISBLANK(InfoPro!I86),"",YEAR(InfoPro!I86)-$J$2) -> 2 | G86: 0 | H86: 0
B87: =IF(ISBLANK(InfoPro!A87),"",InfoPro!A87) -> SC_2151_A1 | C87: =IF(ISBLANK(InfoPro!B87),"",InfoPro!B87) -> El Jaspe | D87: =IF(ISBLANK(InfoPro!E87),"",InfoPro!E87) -> 19.9 | E87: =IF(ISBLANK(InfoPro!N87),"",InfoPro!N87) -> NO | F87: =IF(ISBLANK(InfoPro!I87),"",YEAR(InfoPro!I87)-$J$2) -> 1 | G87: 0 | H87: 0
B88: =IF(ISBLANK(InfoPro!A88),"",InfoPro!A88) -> SC_2114_A1 | C88: =IF(ISBLANK(InfoPro!B88),"",InfoPro!B88) -> Arcadia | D88: =IF(ISBLANK(InfoPro!E88),"",InfoPro!E88) -> 8 | E88: =IF(ISBLANK(InfoPro!N88),"",InfoPro!N88) -> NO | F88: =IF(ISBLANK(InfoPro!I88),"",YEAR(InfoPro!I88)-$J$2) -> 1 | G88: 0 | H88: 0
B89: =IF(ISBLANK(InfoPro!A89),"",InfoPro!A89) -> SC_2114_A2 | C89: =IF(ISBLANK(InfoPro!B89),"",InfoPro!B89) -> Arcadia | D89: =IF(ISBLANK(InfoPro!E89),"",InfoPro!E89) -> 8 | E89: =IF(ISBLANK(InfoPro!N89),"",InfoPro!N89) -> NO | F89: =IF(ISBLANK(InfoPro!I89),"",YEAR(InfoPro!I89)-$J$2) -> 1 | G89: 0 | H89: 0
B90: =IF(ISBLANK(InfoPro!A90),"",InfoPro!A90) -> SC_2105_A1 | C90: =IF(ISBLANK(InfoPro!B90),"",InfoPro!B90) -> Misak | D90: =IF(ISBLANK(InfoPro!E90),"",InfoPro!E90) -> 80 | E90: =IF(ISBLANK(InfoPro!N90),"",InfoPro!N90) -> NO | F90: =IF(ISBLANK(InfoPro!I90),"",YEAR(InfoPro!I90)-$J$2) -> 3 | G90: 0 | H90: 0
B91: =IF(ISBLANK(InfoPro!A91),"",InfoPro!A91) -> SC_2105_A2 | C91: =IF(ISBLANK(InfoPro!B91),"",InfoPro!B91) -> Misak | D91: =IF(ISBLANK(InfoPro!E91),"",InfoPro!E91) -> 80 | E91: =IF(ISBLANK(InfoPro!N91),"",InfoPro!N91) -> NO | F91: =IF(ISBLANK(InfoPro!I91),"",YEAR(InfoPro!I91)-$J$2) -> 3 | G91: 0 | H91: 0
B92: =IF(ISBLANK(InfoPro!A92),"",InfoPro!A92) -> SC_1787_A1 | C92: =IF(ISBLANK(InfoPro!B92),"",InfoPro!B92) -> Proyecto Xanadu | D92: =IF(ISBLANK(InfoPro!E92),"",InfoPro!E92) -> 15 | E92: =IF(ISBLANK(InfoPro!N92),"",InfoPro!N92) -> NO | F92: =IF(ISBLANK(InfoPro!I92),"",YEAR(InfoPro!I92)-$J$2) -> 4 | G92: 0 | H92: 0
B93: =IF(ISBLANK(InfoPro!A93),"",InfoPro!A93) -> SC_1787_A2 | C93: =IF(ISBLANK(InfoPro!B93),"",InfoPro!B93) -> Proyecto Xanadu | D93: =IF(ISBLANK(InfoPro!E93),"",InfoPro!E93) -> 15 | E93: =IF(ISBLANK(InfoPro!N93),"",InfoPro!N93) -> NO | F93: =IF(ISBLANK(InfoPro!I93),"",YEAR(InfoPro!I93)-$J$2) -> 4 | G93: 0 | H93: 0
B94: =IF(ISBLANK(InfoPro!A94),"",InfoPro!A94) -> SC_2191_A1 | C94: =IF(ISBLANK(InfoPro!B94),"",InfoPro!B94) -> Yama Wind Farm | D94: =IF(ISBLANK(InfoPro!E94),"",InfoPro!E94) -> 125 | E94: =IF(ISBLANK(InfoPro!N94),"",InfoPro!N94) -> NO | F94: =IF(ISBLANK(InfoPro!I94),"",YEAR(InfoPro!I94)-$J$2) -> 3 | G94: 0 | H94: 0
B95: =IF(ISBLANK(InfoPro!A95),"",InfoPro!A95) -> SC_2191_A2 | C95: =IF(ISBLANK(InfoPro!B95),"",InfoPro!B95) -> Yama Wind Farm | D95: =IF(ISBLANK(InfoPro!E95),"",InfoPro!E95) -> 125 | E95: =IF(ISBLANK(InfoPro!N95),"",InfoPro!N95) -> NO | F95: =IF(ISBLANK(InfoPro!I95),"",YEAR(InfoPro!I95)-$J$2) -> 3 | G95: 0 | H95: 0
B96: =IF(ISBLANK(InfoPro!A96),"",InfoPro!A96) -> SC_1990_A1 | C96: =IF(ISBLANK(InfoPro!B96),"",InfoPro!B96) -> Solar Escobal 8 19.9 MW | D96: =IF(ISBLANK(InfoPro!E96),"",InfoPro!E96) -> 19.9 | E96: =IF(ISBLANK(InfoPro!N96),"",InfoPro!N96) -> NO | F96: =IF(ISBLANK(InfoPro!I96),"",YEAR(InfoPro!I96)-$J$2) -> 7 | G96: 0 | H96: 0
B97: =IF(ISBLANK(InfoPro!A97),"",InfoPro!A97) -> SC_1936_A1 | C97: =IF(ISBLANK(InfoPro!B97),"",InfoPro!B97) -> Solar Escobal 7 19.9 MW | D97: =IF(ISBLANK(InfoPro!E97),"",InfoPro!E97) -> 19.9 | E97: =IF(ISBLANK(InfoPro!N97),"",InfoPro!N97) -> NO | F97: =IF(ISBLANK(InfoPro!I97),"",YEAR(InfoPro!I97)-$J$2) -> 7 | G97: 0 | H97: 0
B98: =IF(ISBLANK(InfoPro!A98),"",InfoPro!A98) -> SC_2138_A2 | C98: =IF(ISBLANK(InfoPro!B98),"",InfoPro!B98) -> Parque Solar Libra | D98: =IF(ISBLANK(InfoPro!E98),"",InfoPro!E98) -> 100 | E98: =IF(ISBLANK(InfoPro!N98),"",InfoPro!N98) -> NO | F98: =IF(ISBLANK(InfoPro!I98),"",YEAR(InfoPro!I98)-$J$2) -> 4 | G98: 0 | H98: 0
B99: =IF(ISBLANK(InfoPro!A99),"",InfoPro!A99) -> SC_2138_A1 | C99: =IF(ISBLANK(InfoPro!B99),"",InfoPro!B99) -> Parque Solar Libra | D99: =IF(ISBLANK(InfoPro!E99),"",InfoPro!E99) -> 100 | E99: =IF(ISBLANK(InfoPro!N99),"",InfoPro!N99) -> NO | F99: =IF(ISBLANK(InfoPro!I99),"",YEAR(InfoPro!I99)-$J$2) -> 4 | G99: 0 | H99: 0
B100: =IF(ISBLANK(InfoPro!A100),"",InfoPro!A100) -> SC_2202_A1 | C100: =IF(ISBLANK(InfoPro!B100),"",InfoPro!B100) -> Parque Fotovoltaico Fortalecillas 9.9 MW | D100: =IF(ISBLANK(InfoPro!E100),"",InfoPro!E100) -> 9.9 | E100: =IF(ISBLANK(InfoPro!N100),"",InfoPro!N100) -> NO | F100: =IF(ISBLANK(InfoPro!I100),"",YEAR(InfoPro!I100)-$J$2) -> 1 | G100: 0 | H100: 0
B101: =IF(ISBLANK(InfoPro!A101),"",InfoPro!A101) -> SC_2207_A1 | C101: =IF(ISBLANK(InfoPro!B101),"",InfoPro!B101) -> Proyecto Fotovoltaico Pi Épsilon Coyaima II | D101: =IF(ISBLANK(InfoPro!E101),"",InfoPro!E101) -> 9.9 | E101: =IF(ISBLANK(InfoPro!N101),"",InfoPro!N101) -> NO | F101: =IF(ISBLANK(InfoPro!I101),"",YEAR(InfoPro!I101)-$J$2) -> 1 | G101: 0 | H101: 0
B102: =IF(ISBLANK(InfoPro!A102),"",InfoPro!A102) -> SC_2207_A2 | C102: =IF(ISBLANK(InfoPro!B102),"",InfoPro!B102) -> Proyecto Fotovoltaico Pi Épsilon Coyaima II | D102: =IF(ISBLANK(InfoPro!E102),"",InfoPro!E102) -> 9.9 | E102: =IF(ISBLANK(InfoPro!N102),"",InfoPro!N102) -> NO | F102: =IF(ISBLANK(InfoPro!I102),"",YEAR(InfoPro!I102)-$J$2) -> 1 | G102: 0 | H102: 0
B103: =IF(ISBLANK(InfoPro!A103),"",InfoPro!A103) -> SC_2147_A1 | C103: =IF(ISBLANK(InfoPro!B103),"",InfoPro!B103) -> Parque Fotovoltaico Bateas 9.9 MW | D103: =IF(ISBLANK(InfoPro!E103),"",InfoPro!E103) -> 9.9 | E103: =IF(ISBLANK(InfoPro!N103),"",InfoPro!N103) -> NO | F103: =IF(ISBLANK(InfoPro!I103),"",YEAR(InfoPro!I103)-$J$2) -> 1 | G103: 0 | H103: 0
B104: =IF(ISBLANK(InfoPro!A104),"",InfoPro!A104) -> SC_2080_A1 | C104: =IF(ISBLANK(InfoPro!B104),"",InfoPro!B104) -> Proyecto Fotovoltaico Pi Épsilon Coyaima I 9.9 MW | D104: =IF(ISBLANK(InfoPro!E104),"",InfoPro!E104) -> 9.9 | E104: =IF(ISBLANK(InfoPro!N104),"",InfoPro!N104) -> NO | F104: =IF(ISBLANK(InfoPro!I104),"",YEAR(InfoPro!I104)-$J$2) -> 2 | G104: 0 | H104: 0
B105: =IF(ISBLANK(InfoPro!A105),"",InfoPro!A105) -> SC_2080_A2 | C105: =IF(ISBLANK(InfoPro!B105),"",InfoPro!B105) -> Proyecto Fotovoltaico Pi Épsilon Coyaima I 9.9 MW | D105: =IF(ISBLANK(InfoPro!E105),"",InfoPro!E105) -> 9.9 | E105: =IF(ISBLANK(InfoPro!N105),"",InfoPro!N105) -> NO | F105: =IF(ISBLANK(InfoPro!I105),"",YEAR(InfoPro!I105)-$J$2) -> 2 | G105: 0 | H105: 0
B106: =IF(ISBLANK(InfoPro!A106),"",InfoPro!A106) -> SC_2088_A1 | C106: =IF(ISBLANK(InfoPro!B106),"",InfoPro!B106) -> Proyecto Fotovoltaico Pi Épsilon Coyaima IV 9.9 MW | D106: =IF(ISBLANK(InfoPro!E106),"",InfoPro!E106) -> 9.9 | E106: =IF(ISBLANK(InfoPro!N106),"",InfoPro!N106) -> NO | F106: =IF(ISBLANK(InfoPro!I106),"",YEAR(InfoPro!I106)-$J$2) -> 2 | G106: 0 | H106: 0
B107: =IF(ISBLANK(InfoPro!A107),"",InfoPro!A107) -> SC_2088_A2 | C107: =IF(ISBLANK(InfoPro!B107),"",InfoPro!B107) -> Proyecto Fotovoltaico Pi Épsilon Coyaima IV 9.9 MW | D107: =IF(ISBLANK(InfoPro!E107),"",InfoPro!E107) -> 9.9 | E107: =IF(ISBLANK(InfoPro!N107),"",InfoPro!N107) -> NO | F107: =IF(ISBLANK(InfoPro!I107),"",YEAR(InfoPro!I107)-$J$2) -> 2 | G107: 0 | H107: 0
B108: =IF(ISBLANK(InfoPro!A108),"",InfoPro!A108) -> SC_2118_A1 | C108: =IF(ISBLANK(InfoPro!B108),"",InfoPro!B108) -> SAPUCA | D108: =IF(ISBLANK(InfoPro!E108),"",InfoPro!E108) -> 50 | E108: =IF(ISBLANK(InfoPro!N108),"",InfoPro!N108) -> NO | F108: =IF(ISBLANK(InfoPro!I108),"",YEAR(InfoPro!I108)-$J$2) -> 1 | G108: 0 | H108: 0
B109: =IF(ISBLANK(InfoPro!A109),"",InfoPro!A109) -> SC_2118_A2 | C109: =IF(ISBLANK(InfoPro!B109),"",InfoPro!B109) -> SAPUCA | D109: =IF(ISBLANK(InfoPro!E109),"",InfoPro!E109) -> 50 | E109: =IF(ISBLANK(InfoPro!N109),"",InfoPro!N109) -> NO | F109: =IF(ISBLANK(InfoPro!I109),"",YEAR(InfoPro!I109)-$J$2) -> 1 | G109: 0 | H109: 0
B110: =IF(ISBLANK(InfoPro!A110),"",InfoPro!A110) -> SC_2338_A2 | C110: =IF(ISBLANK(InfoPro!B110),"",InfoPro!B110) -> SOLAR FOTOVOLTAICO MANDARINOS DE 9,9 | D110: =IF(ISBLANK(InfoPro!E110),"",InfoPro!E110) -> 9.9 | E110: =IF(ISBLANK(InfoPro!N110),"",InfoPro!N110) -> NO | F110: =IF(ISBLANK(InfoPro!I110),"",YEAR(InfoPro!I110)-$J$2) -> 3 | G110: 0 | H110: 0
B111: =IF(ISBLANK(InfoPro!A111),"",InfoPro!A111) -> SC_1559_A1 | C111: =IF(ISBLANK(InfoPro!B111),"",InfoPro!B111) -> Parque Solar Chenche | D111: =IF(ISBLANK(InfoPro!E111),"",InfoPro!E111) -> 9.9 | E111: =IF(ISBLANK(InfoPro!N111),"",InfoPro!N111) -> NO | F111: =IF(ISBLANK(InfoPro!I111),"",YEAR(InfoPro!I111)-$J$2) -> 1 | G111: 0 | H111: 0
B112: =IF(ISBLANK(InfoPro!A112),"",InfoPro!A112) -> SC_1559_A2 | C112: =IF(ISBLANK(InfoPro!B112),"",InfoPro!B112) -> Parque Solar Chenche | D112: =IF(ISBLANK(InfoPro!E112),"",InfoPro!E112) -> 9.9 | E112: =IF(ISBLANK(InfoPro!N112),"",InfoPro!N112) -> NO | F112: =IF(ISBLANK(InfoPro!I112),"",YEAR(InfoPro!I112)-$J$2) -> 1 | G112: 0 | H112: 0
B113: =IF(ISBLANK(InfoPro!A113),"",InfoPro!A113) -> SC_2310_A2 | C113: =IF(ISBLANK(InfoPro!B113),"",InfoPro!B113) -> SOLAR FOTOVOLTAICO LIMAS DE 9,9 MW | D113: =IF(ISBLANK(InfoPro!E113),"",InfoPro!E113) -> 9.9 | E113: =IF(ISBLANK(InfoPro!N113),"",InfoPro!N113) -> NO | F113: =IF(ISBLANK(InfoPro!I113),"",YEAR(InfoPro!I113)-$J$2) -> 3 | G113: 0 | H113: 0
B114: =IF(ISBLANK(InfoPro!A114),"",InfoPro!A114) -> SC_2310_A1 | C114: =IF(ISBLANK(InfoPro!B114),"",InfoPro!B114) -> SOLAR FOTOVOLTAICO LIMAS DE 9,9 MW | D114: =IF(ISBLANK(InfoPro!E114),"",InfoPro!E114) -> 9.9 | E114: =IF(ISBLANK(InfoPro!N114),"",InfoPro!N114) -> NO | F114: =IF(ISBLANK(InfoPro!I114),"",YEAR(InfoPro!I114)-$J$2) -> 3 | G114: 0 | H114: 0
B115: =IF(ISBLANK(InfoPro!A115),"",InfoPro!A115) -> SC_1636_A1 | C115: =IF(ISBLANK(InfoPro!B115),"",InfoPro!B115) -> PARQUE SOLAR INTELIGENTE ZONA FRANCA SUR COLOMBIAN 9.9 MW | D115: =IF(ISBLANK(InfoPro!E115),"",InfoPro!E115) -> 9.9 | E115: =IF(ISBLANK(InfoPro!N115),"",InfoPro!N115) -> NO | F115: =IF(ISBLANK(InfoPro!I115),"",YEAR(InfoPro!I115)-$J$2) -> 3 | G115: 0 | H115: 0
B116: =IF(ISBLANK(InfoPro!A116),"",InfoPro!A116) -> SC_2263_A1 | C116: =IF(ISBLANK(InfoPro!B116),"",InfoPro!B116) -> El Espino | D116: =IF(ISBLANK(InfoPro!E116),"",InfoPro!E116) -> 18 | E116: =IF(ISBLANK(InfoPro!N116),"",InfoPro!N116) -> NO | F116: =IF(ISBLANK(InfoPro!I116),"",YEAR(InfoPro!I116)-$J$2) -> 1 | G116: 0 | H116: 0
B117: =IF(ISBLANK(InfoPro!A117),"",InfoPro!A117) -> SC_2263_A2 | C117: =IF(ISBLANK(InfoPro!B117),"",InfoPro!B117) -> El Espino | D117: =IF(ISBLANK(InfoPro!E117),"",InfoPro!E117) -> 18 | E117: =IF(ISBLANK(InfoPro!N117),"",InfoPro!N117) -> NO | F117: =IF(ISBLANK(InfoPro!I117),"",YEAR(InfoPro!I117)-$J$2) -> 1 | G117: 0 | H117: 0
B118: =IF(ISBLANK(InfoPro!A118),"",InfoPro!A118) -> SC_1331_A2 | C118: =IF(ISBLANK(InfoPro!B118),"",InfoPro!B118) -> Sol de Colombia Tuluní | D118: =IF(ISBLANK(InfoPro!E118),"",InfoPro!E118) -> 200 | E118: =IF(ISBLANK(InfoPro!N118),"",InfoPro!N118) -> NO | F118: =IF(ISBLANK(InfoPro!I118),"",YEAR(InfoPro!I118)-$J$2) -> 3 | G118: =IF(E118="SI",100,IF(E118="NO",0,"")) -> 0 | H118: =IF(G118="","",(G118)) -> 0
B119: =IF(ISBLANK(InfoPro!A119),"",InfoPro!A119) -> SC_2314_A1 | C119: =IF(ISBLANK(InfoPro!B119),"",InfoPro!B119) -> SOLAR FOTOVOLTAICO LOS LIMONEROS DE 9,9 MW | D119: =IF(ISBLANK(InfoPro!E119),"",InfoPro!E119) -> 9.9 | E119: =IF(ISBLANK(InfoPro!N119),"",InfoPro!N119) -> NO | F119: =IF(ISBLANK(InfoPro!I119),"",YEAR(InfoPro!I119)-$J$2) -> 3 | G119: 0 | H119: 0
B120: =IF(ISBLANK(InfoPro!A120),"",InfoPro!A120) -> SC_2314_A2 | C120: =IF(ISBLANK(InfoPro!B120),"",InfoPro!B120) -> SOLAR FOTOVOLTAICO LOS LIMONEROS DE 9,9 MW | D120: =IF(ISBLANK(InfoPro!E120),"",InfoPro!E120) -> 9.9 | E120: =IF(ISBLANK(InfoPro!N120),"",InfoPro!N120) -> NO | F120: =IF(ISBLANK(InfoPro!I120),"",YEAR(InfoPro!I120)-$J$2) -> 3 | G120: 0 | H120: 0
B121: =IF(ISBLANK(InfoPro!A121),"",InfoPro!A121) -> SC_2327_A1 | C121: =IF(ISBLANK(InfoPro!B121),"",InfoPro!B121) -> PARQUE SOLAR FOTOVOLTAICO LOS NARANJOS DE 19,9MW | D121: =IF(ISBLANK(InfoPro!E121),"",InfoPro!E121) -> 19.9 | E121: =IF(ISBLANK(InfoPro!N121),"",InfoPro!N121) -> NO | F121: =IF(ISBLANK(InfoPro!I121),"",YEAR(InfoPro!I121)-$J$2) -> 3 | G121: 0 | H121: 0
B122: =IF(ISBLANK(InfoPro!A122),"",InfoPro!A122) -> SC_2327_A2 | C122: =IF(ISBLANK(InfoPro!B122),"",InfoPro!B122) -> PARQUE SOLAR FOTOVOLTAICO LOS NARANJOS DE 19,9MW | D122: =IF(ISBLANK(InfoPro!E122),"",InfoPro!E122) -> 19.9 | E122: =IF(ISBLANK(InfoPro!N122),"",InfoPro!N122) -> NO | F122: =IF(ISBLANK(InfoPro!I122),"",YEAR(InfoPro!I122)-$J$2) -> 3 | G122: =IF(E122="SI",100,IF(E122="NO",0,"")) -> 0 | H122: =IF(G122="","",(G122)) -> 0
B123: =IF(ISBLANK(InfoPro!A123),"",InfoPro!A123) -> SC_2330_A1 | C123: =IF(ISBLANK(InfoPro!B123),"",InfoPro!B123) -> SOLAR FOTOVOLTAICO MAGDALENA SOL 180 MW | D123: =IF(ISBLANK(InfoPro!E123),"",InfoPro!E123) -> 180 | E123: =IF(ISBLANK(InfoPro!N123),"",InfoPro!N123) -> NO | F123: =IF(ISBLANK(InfoPro!I123),"",YEAR(InfoPro!I123)-$J$2) -> 3 | G123: 0 | H123: 0
B124: =IF(ISBLANK(InfoPro!A124),"",InfoPro!A124) -> SC_2330_A2 | C124: =IF(ISBLANK(InfoPro!B124),"",InfoPro!B124) -> SOLAR FOTOVOLTAICO MAGDALENA SOL 180 MW | D124: =IF(ISBLANK(InfoPro!E124),"",InfoPro!E124) -> 180 | E124: =IF(ISBLANK(InfoPro!N124),"",InfoPro!N124) -> NO | F124: =IF(ISBLANK(InfoPro!I124),"",YEAR(InfoPro!I124)-$J$2) -> 3 | G124: 0 | H124: 0
B125: =IF(ISBLANK(InfoPro!A125),"",InfoPro!A125) -> SC_2338_A1 | C125: =IF(ISBLANK(InfoPro!B125),"",InfoPro!B125) -> SOLAR FOTOVOLTAICO MANDARINOS DE 9,9 | D125: =IF(ISBLANK(InfoPro!E125),"",InfoPro!E125) -> 9.9 | E125: =IF(ISBLANK(InfoPro!N125),"",InfoPro!N125) -> NO | F125: =IF(ISBLANK(InfoPro!I125),"",YEAR(InfoPro!I125)-$J$2) -> 3 | G125: 0 | H125: 0
B126: =IF(ISBLANK(InfoPro!A126),"",InfoPro!A126) ->  | C126: =IF(ISBLANK(InfoPro!B126),"",InfoPro!B126) ->  | D126: =IF(ISBLANK(InfoPro!E126),"",InfoPro!E126) ->  | E126: =IF(ISBLANK(InfoPro!N126),"",InfoPro!N126) ->  | F126: =IF(ISBLANK(InfoPro!I126),"",YEAR(InfoPro!I126)-$J$2) -> 
B127: =IF(ISBLANK(InfoPro!A127),"",InfoPro!A127) ->  | C127: =IF(ISBLANK(InfoPro!B127),"",InfoPro!B127) ->  | D127: =IF(ISBLANK(InfoPro!E127),"",InfoPro!E127) ->  | E127: =IF(ISBLANK(InfoPro!N127),"",InfoPro!N127) ->  | F127: =IF(ISBLANK(InfoPro!I127),"",YEAR(InfoPro!I127)-$J$2) -> 
B128: =IF(ISBLANK(InfoPro!A128),"",InfoPro!A128) ->  | C128: =IF(ISBLANK(InfoPro!B128),"",InfoPro!B128) ->  | D128: =IF(ISBLANK(InfoPro!E128),"",InfoPro!E128) ->  | E128: =IF(ISBLANK(InfoPro!N128),"",InfoPro!N128) ->  | F128: =IF(ISBLANK(InfoPro!I128),"",YEAR(InfoPro!I128)-$J$2) -> 
B129: =IF(ISBLANK(InfoPro!A129),"",InfoPro!A129) ->  | C129: =IF(ISBLANK(InfoPro!B129),"",InfoPro!B129) ->  | D129: =IF(ISBLANK(InfoPro!E129),"",InfoPro!E129) ->  | E129: =IF(ISBLANK(InfoPro!N129),"",InfoPro!N129) ->  | F129: =IF(ISBLANK(InfoPro!I129),"",YEAR(InfoPro!I129)-$J$2) -> 
B130: =IF(ISBLANK(InfoPro!A130),"",InfoPro!A130) ->  | C130: =IF(ISBLANK(InfoPro!B130),"",InfoPro!B130) ->  | D130: =IF(ISBLANK(InfoPro!E130),"",InfoPro!E130) ->  | E130: =IF(ISBLANK(InfoPro!N130),"",InfoPro!N130) ->  | F130: =IF(ISBLANK(InfoPro!I130),"",YEAR(InfoPro!I130)-$J$2) -> 
B131: =IF(ISBLANK(InfoPro!A131),"",InfoPro!A131) ->  | C131: =IF(ISBLANK(InfoPro!B131),"",InfoPro!B131) ->  | D131: =IF(ISBLANK(InfoPro!E131),"",InfoPro!E131) ->  | E131: =IF(ISBLANK(InfoPro!N131),"",InfoPro!N131) ->  | F131: =IF(ISBLANK(InfoPro!I131),"",YEAR(InfoPro!I131)-$J$2) -> 
B132: =IF(ISBLANK(InfoPro!A132),"",InfoPro!A132) ->  | C132: =IF(ISBLANK(InfoPro!B132),"",InfoPro!B132) ->  | D132: =IF(ISBLANK(InfoPro!E132),"",InfoPro!E132) ->  | E132: =IF(ISBLANK(InfoPro!N132),"",InfoPro!N132) ->  | F132: =IF(ISBLANK(InfoPro!I132),"",YEAR(InfoPro!I132)-$J$2) -> 
B133: =IF(ISBLANK(InfoPro!A133),"",InfoPro!A133) ->  | C133: =IF(ISBLANK(InfoPro!B133),"",InfoPro!B133) ->  | D133: =IF(ISBLANK(InfoPro!E133),"",InfoPro!E133) ->  | E133: =IF(ISBLANK(InfoPro!N133),"",InfoPro!N133) ->  | F133: =IF(ISBLANK(InfoPro!I133),"",YEAR(InfoPro!I133)-$J$2) -> 

Sheet EC-RE
B3: Factor emisiones sistema | C3: 0.127283 | D3: Ton/MWh | F3: Año de Referencia | G3: 2023
B4: Tasa de descuento | C4: 0.118 | F4: Mínimo | G4: =MIN(Z9:Z319) -> -17642891.43
B5: Costo emisiones Ton | C5: 91.94 | D5: USD/Ton
B6: TRM | C6: 4070 | D6: COP/USD
J7: 0 | K7: 1 | L7: 2 | M7: 3 | N7: 4 | O7: 5 | P7: 6 | Q7: 7 | R7: 8 | S7: 9 | T7: 10 | U7: 11 | V7: 12 | W7: 13 | X7: 14
A8: Codigo | B8: Nombre | C8: capacidad | D8: tipo | E8: Año de entrada | F8: FP | G8: Factor emisiones | H8: Produccion media/a MWh/a | I8: Emisiones evitadas Ton/a | J8: Flujo Descontado 0 | K8: Flujo Descontado 1 | L8: Flujo Descontado 2 | M8: Flujo Descontado 3 | N8: Flujo Descontado 4 | O8: Flujo Descontado 5 | P8: Flujo Descontado 6 | Q8: Flujo Descontado 7 | R8: Flujo Descontado 8 | S8: Flujo Descontado 9 | T8: Flujo Descontado 10 | U8: Flujo Descontado 11 | V8: Flujo Descontado 12 | W8: Flujo Descontado 13 | X8: Flujo Descontado 14 | Y8: VPN | Z8: (Beneficio)/kW
A9: =IF(ISBLANK(InfoPro!A2),"",InfoPro!A2) -> SC_410_A1 | B9: =IF(ISBLANK(InfoPro!B2),"",InfoPro!B2) -> PARQUE SOLAR EL ACEITE 9.9 MW | C9: =IF(ISBLANK(InfoPro!E2),"",InfoPro!E2) -> 9.9 | D9: =IF(ISBLANK(InfoPro!F2),"",InfoPro!F2) -> Solar FV | E9: =IF(ISBLANK(InfoPro!I2),"",YEAR(InfoPro!I2)-$G$3) -> 2 | F9: =IF(B9="","",VLOOKUP(D9,Tablas!$B$2:$E$13,2,FALSE)) -> 0.26 | G9: =IF(B9="","",VLOOKUP(D9,Tablas!$B$2:$G$13,6,FALSE)) -> 0 | H9: =IF(C9="","",+C9*F9*24*365) -> 22548.24 | I9: =IF(H9="","",+H9*($C$3-G9)) -> 2870.007632 | J9: =IF($I9="","",(1/(1+$C$4)^(J$7+$E9))*$I9*$C$5) -> 211107.6367 | K9: =IF($I9="","",(1/(1+$C$4)^(K$7+$E9))*$I9*$C$5) -> 188826.1509 | L9: 168896.3782 | M9: 151070.1058 | N9: 135125.3182 | O9: 120863.4331 | P9: 108106.8275 | Q9: 96696.62564 | R9: 86490.72061 | S9: 77362.00413 | T9: 69196.78365 | U9: 61893.36642 | V9: 55360.79286 | W9: 49517.70381 | X9: 44291.3272 | Y9: =IF(X9="","",SUM(J9:X9)*$C$6) -> 6612957061 | Z9: =IF(C9=0,0,IF(Y9="","",Y9/(C9*1000))) -> 667975.4607
A10: =IF(ISBLANK(InfoPro!A3),"",InfoPro!A3) -> SC_458_A1 | B10: =IF(ISBLANK(InfoPro!B3),"",InfoPro!B3) -> Helios Guamo 19.9MW | C10: =IF(ISBLANK(InfoPro!E3),"",InfoPro!E3) -> 19.9 | D10: =IF(ISBLANK(InfoPro!F3),"",InfoPro!F3) -> Solar FV | E10: =IF(ISBLANK(InfoPro!I3),"",YEAR(InfoPro!I3)-$G$3) -> 1 | F10: =IF(B10="","",VLOOKUP(D10,Tablas!$B$2:$E$13,2,FALSE)) -> 0.26 | G10: =IF(B10="","",VLOOKUP(D10,Tablas!$B$2:$G$13,6,FALSE)) -> 0 | H10: =IF(C10="","",+C10*F10*24*365) -> 45324.24 | I10: =IF(H10="","",+H10*($C$3-G10)) -> 5769.00524 | J10: 474420.6992 | K10: 424347.6737 | L10: 379559.6366 | M10: 339498.7805 | N10: 303666.1722 | O10: 271615.5386 | P10: 242947.709 | Q10: 217305.6431 | R10: 194369.9849 | S10: 173855.0849 | T10: 155505.4426 | U10: 139092.5247 | V10: 124411.9184 | W10: 111280.7856 | X10: 99535.58645 | Y10: =IF(X10="","",SUM(J10:X10)*$C$6) -> 1.486125165e+10 | Z10: =IF(C10=0,0,IF(Y10="","",Y10/(C10*1000))) -> 746796.5651
A11: =IF(ISBLANK(InfoPro!A4),"",InfoPro!A4) -> SC_458_A2 | B11: =IF(ISBLANK(InfoPro!B4),"",InfoPro!B4) -> Helios Guamo 19.9MW | C11: =IF(ISBLANK(InfoPro!E4),"",InfoPro!E4) -> 19.9 | D11: =IF(ISBLANK(InfoPro!F4),"",InfoPro!F4) -> Solar FV | E11: =IF(ISBLANK(InfoPro!I4),"",YEAR(InfoPro!I4)-$G$3) -> 1 | F11: =IF(B11="","",VLOOKUP(D11,Tablas!$B$2:$E$13,2,FALSE)) -> 0.26 | G11: =IF(B11="","",VLOOKUP(D11,Tablas!$B$2:$G$13,6,FALSE)) -> 0 | H11: =IF(C11="","",+C11*F11*24*365) -> 45324.24 | I11: 5769.00524 | J11: 474420.6992 | K11: 424347.6737 | L11: 379559.6366 | M11: 339498.7805 | N11: 303666.1722 | O11: 271615.5386 | P11: 242947.709 | Q11: 217305.6431 | R11: 194369.9849 | S11: 173855.0849 | T11: 155505.4426 | U11: 139092.5247 | V11: 124411.9184 | W11: 111280.7856 | X11: 99535.58645 | Y11: 1.486125165e+10 | Z11: 746796.5651
A12: =IF(ISBLANK(InfoPro!A5),"",InfoPro!A5) -> SC_478_A2 | B12: =IF(ISBLANK(InfoPro!B5),"",InfoPro!B5) -> Helios Tuluni 19.9 MW | C12: =IF(ISBLANK(InfoPro!E5),"",InfoPro!E5) -> 19.9 | D12: =IF(ISBLANK(InfoPro!F5),"",InfoPro!F5) -> Solar FV | E12: =IF(ISBLANK(InfoPro!I5),"",YEAR(InfoPro!I5)-$G$3) -> 1 | F12: =IF(B12="","",VLOOKUP(D12,Tablas!$B$2:$E$13,2,FALSE)) -> 0.26 | G12: =IF(B12="","",VLOOKUP(D12,Tablas!$B$2:$G$13,6,FALSE)) -> 0 | H12: 45324.24 | I12: 5769.00524 | J12: 474420.6992 | K12: 424347.6737 | L12: 379559.6366 | M12: 339498.7805 | N12: 303666.1722 | O12: 271615.5386 | P12: 242947.709 | Q12: 217305.6431 | R12: 194369.9849 | S12: 173855.0849 | T12: 155505.4426 | U12: 139092.5247 | V12: 124411.9184 | W12: 111280.7856 | X12: 99535.58645 | Y12: 1.486125165e+10 | Z12: 746796.5651
A13: =IF(ISBLANK(InfoPro!A6),"",InfoPro!A6) -> SC_478_A1 | B13: =IF(ISBLANK(InfoPro!B6),"",InfoPro!B6) -> Helios Tuluni 19.9 MW | C13: =IF(ISBLANK(InfoPro!E6),"",InfoPro!E6) -> 19.9 | D13: =IF(ISBLANK(InfoPro!F6),"",InfoPro!F6) -> Solar FV | E13: =IF(ISBLANK(InfoPro!I6),"",YEAR(InfoPro!I6)-$G$3) -> 1 | F13: =IF(B13="","",VLOOKUP(D13,Tablas!$B$2:$E$13,2,FALSE)) -> 0.26 | G13: =IF(B13="","",VLOOKUP(D13,Tablas!$B$2:$G$13,6,FALSE)) -> 0 | H13: 45324.24 | I13: 5769.00524 | J13: 474420.6992 | K13: 424347.6737 | L13: 379559.6366 | M13: 339498.7805 | N13: 303666.1722 | O13: 271615.5386 | P13: 242947.709 | Q13: 217305.6431 | R13: 194369.9849 | S13: 173855.0849 | T13: 155505.4426 | U13: 139092.5247 | V13: 124411.9184 | W13: 111280.7856 | X13: 99535.58645 | Y13: 1.486125165e+10 | Z13: 746796.5651
A14: =IF(ISBLANK(InfoPro!A7),"",InfoPro!A7) -> SC_491_A1 | B14: =IF(ISBLANK(InfoPro!B7),"",InfoPro!B7) -> Florida - 9.9 MW | C14: =IF(ISBLANK(InfoPro!E7),"",InfoPro!E7) -> 9.9 | D14: =IF(ISBLANK(InfoPro!F7),"",InfoPro!F7) -> Solar FV | E14: =IF(ISBLANK(InfoPro!I7),"",YEAR(InfoPro!I7)-$G$3) -> 2 | F14: =IF(B14="","",VLOOKUP(D14,Tablas!$B$2:$E$13,2,FALSE)) -> 0.26 | G14: =IF(B14="","",VLOOKUP(D14,Tablas!$B$2:$G$13,6,FALSE)) -> 0 | H14: 22548.24 | I14: 2870.007632 | J14: 211107.6367 | K14: 188826.1509 | L14: 168896.3782 | M14: 151070.1058 | N14: 135125.3182 | O14: 120863.4331 | P14: 108106.8275 | Q14: 96696.62564 | R14: 86490.72061 | S14: 77362.00413 | T14: 69196.78365 | U14: 61893.36642 | V14: 55360.79286 | W14: 49517.70381 | X14: 44291.3272 | Y14: 6612957061 | Z14: 667975.4607
A15: =IF(ISBLANK(InfoPro!A8),"",InfoPro!A8) -> SC_519_A1 | B15: =IF(ISBLANK(InfoPro!B8),"",InfoPro!B8) -> PARQUE SOLAR EL ACEITE 9.9 MW | C15: =IF(ISBLANK(InfoPro!E8),"",InfoPro!E8) -> 9.9 | D15: =IF(ISBLANK(InfoPro!F8),"",InfoPro!F8) -> Solar FV | E15: =IF(ISBLANK(InfoPro!I8),"",YEAR(InfoPro!I8)-$G$3) -> 2 | F15: =IF(B15="","",VLOOKUP(D15,Tablas!$B$2:$E$13,2,FALSE)) -> 0.26 | G15: =IF(B15="","",VLOOKUP(D15,Tablas!$B$2:$G$13,6,FALSE)) -> 0 | H15: 22548.24 | I15: 2870.007632 | J15: 211107.6367 | K15: 188826.1509 | L15: 168896.3782 | M15: 151070.1058 | N15: 135125.3182 | O15: 120863.4331 | P15: 108106.8275 | Q15: 96696.62564 | R15: 86490.72061 | S15: 77362.00413 | T15: 69196.78365 | U15: 61893.36642 | V15: 55360.79286 | W15: 49517.70381 | X15: 44291.3272 | Y15: 6612957061 | Z15: 667975.4607
A16: =IF(ISBLANK(InfoPro!A9),"",InfoPro!A9) -> SC_492_A1 | B16: =IF(ISBLANK(InfoPro!B9),"",InfoPro!B9) -> Ricaurte 9.9 MW | C16: =IF(ISBLANK(InfoPro!E9),"",InfoPro!E9) -> 9.9 | D16: =IF(ISBLANK(InfoPro!F9),"",InfoPro!F9) -> Solar FV | E16: =IF(ISBLANK(InfoPro!I9),"",YEAR(InfoPro!I9)-$G$3) -> 2 | F16: =IF(B16="","",VLOOKUP(D16,Tablas!$B$2:$E$13,2,FALSE)) -> 0.26 | G16: =IF(B16="","",VLOOKUP(D16,Tablas!$B$2:$G$13,6,FALSE)) -> 0 | H16: 22548.24 | I16: 2870.007632 | J16: 211107.6367 | K16: 188826.1509 | L16: 168896.3782 | M16: 151070.1058 | N16: 135125.3182 | O16: 120863.4331 | P16: 108106.8275 | Q16: 96696.62564 | R16: 86490.72061 | S16: 77362.00413 | T16: 69196.78365 | U16: 61893.36642 | V16: 55360.79286 | W16: 49517.70381 | X16: 44291.3272 | Y16: 6612957061 | Z16: 667975.4607
A17: =IF(ISBLANK(InfoPro!A10),"",InfoPro!A10) -> SC_492_A2 | B17: =IF(ISBLANK(InfoPro!B10),"",InfoPro!B10) -> Ricaurte 9.9 MW | C17: =IF(ISBLANK(InfoPro!E10),"",InfoPro!E10) -> 9.9 | D17: =IF(ISBLANK(InfoPro!F10),"",InfoPro!F10) -> Solar FV | E17: =IF(ISBLANK(InfoPro!I10),"",YEAR(InfoPro!I10)-$G$3) -> 2 | F17: =IF(B17="","",VLOOKUP(D17,Tablas!$B$2:$E$13,2,FALSE)) -> 0.26 | G17: =IF(B17="","",VLOOKUP(D17,Tablas!$B$2:$G$13,6,FALSE)) -> 0 | H17: 22548.24 | I17: 2870.007632 | J17: 211107.6367 | K17: 188826.1509 | L17: 168896.3782 | M17: 151070.1058 | N17: 135125.3182 | O17: 120863.4331 | P17: 108106.8275 | Q17: 96696.62564 | R17: 86490.72061 | S17: 77362.00413 | T17: 69196.78365 | U17: 61893.36642 | V17: 55360.79286 | W17: 49517.70381 | X17: 44291.3272 | Y17: 6612957061 | Z17: 667975.4607
A18: =IF(ISBLANK(InfoPro!A11),"",InfoPro!A11) -> SC_826_A1 | B18: =IF(ISBLANK(InfoPro!B11),"",InfoPro!B11) -> PARQUE SOLAR HELIOS LANCEROS 19.9 MW | C18: =IF(ISBLANK(InfoPro!E11),"",InfoPro!E11) -> 19.9 | D18: =IF(ISBLANK(InfoPro!F11),"",InfoPro!F11) -> Solar FV | E18: =IF(ISBLANK(InfoPro!I11),"",YEAR(InfoPro!I11)-$G$3) -> 1 | F18: =IF(B18="","",VLOOKUP(D18,Tablas!$B$2:$E$13,2,FALSE)) -> 0.26 | G18: =IF(B18="","",VLOOKUP(D18,Tablas!$B$2:$G$13,6,FALSE)) -> 0 | H18: 45324.24 | I18: 5769.00524 | J18: =IF($I18="","",(1/(1+$C$4)^(J$7+$E18))*$I18*$C$5) -> 474420.6992 | K18: 424347.6737 | L18: 379559.6366 | M18: 339498.7805 | N18: 303666.1722 | O18: 271615.5386 | P18: 242947.709 | Q18: 217305.6431 | R18: 194369.9849 | S18: 173855.0849 | T18: 155505.4426 | U18: 139092.5247 | V18: 124411.9184 | W18: 111280.7856 | X18: 99535.58645 | Y18: 1.486125165e+10 | Z18: 746796.5651
A19: =IF(ISBLANK(InfoPro!A12),"",InfoPro!A12) -> SC_827_A1 | B19: =IF(ISBLANK(InfoPro!B12),"",InfoPro!B12) -> PARQUE SOLAR FOTOVOLTAICO HELIOS NATAGAIMA (19,9MW) | C19: =IF(ISBLANK(InfoPro!E12),"",InfoPro!E12) -> 19.9 | D19: =IF(ISBLANK(InfoPro!F12),"",InfoPro!F12) -> Solar FV | E19: =IF(ISBLANK(InfoPro!I12),"",YEAR(InfoPro!I12)-$G$3) -> 1 | F19: =IF(B19="","",VLOOKUP(D19,Tablas!$B$2:$E$13,2,FALSE)) -> 0.26 | G19: =IF(B19="","",VLOOKUP(D19,Tablas!$B$2:$G$13,6,FALSE)) -> 0 | H19: 45324.24 | I19: 5769.00524 | J19: 474420.6992 | K19: 424347.6737 | L19: 379559.6366 | M19: 339498.7805 | N19: 303666.1722 | O19: 271615.5386 | P19: 242947.709 | Q19: 217305.6431 | R19: 194369.9849 | S19: 173855.0849 | T19: 155505.4426 | U19: 139092.5247 | V19: 124411.9184 | W19: 111280.7856 | X19: 99535.58645 | Y19: 1.486125165e+10 | Z19: 746796.5651
A20: =IF(ISBLANK(InfoPro!A13),"",InfoPro!A13) -> SC_827_A2 | B20: =IF(ISBLANK(InfoPro!B13),"",InfoPro!B13) -> PARQUE SOLAR FOTOVOLTAICO HELIOS NATAGAIMA (19,9MW) | C20: =IF(ISBLANK(InfoPro!E13),"",InfoPro!E13) -> 19.9 | D20: =IF(ISBLANK(InfoPro!F13),"",InfoPro!F13) -> Solar FV | E20: =IF(ISBLANK(InfoPro!I13),"",YEAR(InfoPro!I13)-$G$3) -> 1 | F20: =IF(B20="","",VLOOKUP(D20,Tablas!$B$2:$E$13,2,FALSE)) -> 0.26 | G20: =IF(B20="","",VLOOKUP(D20,Tablas!$B$2:$G$13,6,FALSE)) -> 0 | H20: 45324.24 | I20: 5769.00524 | J20: 474420.6992 | K20: 424347.6737 | L20: 379559.6366 | M20: 339498.7805 | N20: 303666.1722 | O20: 271615.5386 | P20: 242947.709 | Q20: 217305.6431 | R20: 194369.9849 | S20: 173855.0849 | T20: 155505.4426 | U20: 139092.5247 | V20: 124411.9184 | W20: 111280.7856 | X20: 99535.58645 | Y20: 1.486125165e+10 | Z20: 746796.5651
A21: =IF(ISBLANK(InfoPro!A14),"",InfoPro!A14) -> SC_722_A1 | B21: =IF(ISBLANK(InfoPro!B14),"",InfoPro!B14) -> Sevilla de 9,9 MW | C21: =IF(ISBLANK(InfoPro!E14),"",InfoPro!E14) -> 9.9 | D21: =IF(ISBLANK(InfoPro!F14),"",InfoPro!F14) -> Solar FV | E21: =IF(ISBLANK(InfoPro!I14),"",YEAR(InfoPro!I14)-$G$3) -> 2 | F21: =IF(B21="","",VLOOKUP(D21,Tablas!$B$2:$E$13,2,FALSE)) -> 0.26 | G21: =IF(B21="","",VLOOKUP(D21,Tablas!$B$2:$G$13,6,FALSE)) -> 0 | H21: 22548.24 | I21: 2870.007632 | J21: 211107.6367 | K21: 188826.1509 | L21: 168896.3782 | M21: 151070.1058 | N21: 135125.3182 | O21: 120863.4331 | P21: 108106.8275 | Q21: 96696.62564 | R21: 86490.72061 | S21: 77362.00413 | T21: 69196.78365 | U21: 61893.36642 | V21: 55360.79286 | W21: 49517.70381 | X21: 44291.3272 | Y21: 6612957061 | Z21: 667975.4607
A22: =IF(ISBLANK(InfoPro!A15),"",InfoPro!A15) -> SC_722_A2 | B22: =IF(ISBLANK(InfoPro!B15),"",InfoPro!B15) -> Sevilla de 9,9 MW | C22: =IF(ISBLANK(InfoPro!E15),"",InfoPro!E15) -> 9.9 | D22: =IF(ISBLANK(InfoPro!F15),"",InfoPro!F15) -> Solar FV | E22: =IF(ISBLANK(InfoPro!I15),"",YEAR(InfoPro!I15)-$G$3) -> 2 | F22: =IF(B22="","",VLOOKUP(D22,Tablas!$B$2:$E$13,2,FALSE)) -> 0.26 | G22: =IF(B22="","",VLOOKUP(D22,Tablas!$B$2:$G$13,6,FALSE)) -> 0 | H22: 22548.24 | I22: 2870.007632 | J22: 211107.6367 | K22: 188826.1509 | L22: 168896.3782 | M22: 151070.1058 | N22: 135125.3182 | O22: 120863.4331 | P22: 108106.8275 | Q22: 96696.62564 | R22: 86490.72061 | S22: 77362.00413 | T22: 69196.78365 | U22: 61893.36642 | V22: 55360.79286 | W22: 49517.70381 | X22: 44291.3272 | Y22: 6612957061 | Z22: 667975.4607
A23: =IF(ISBLANK(InfoPro!A16),"",InfoPro!A16) -> SC_958_A1 | B23: =IF(ISBLANK(InfoPro!B16),"",InfoPro!B16) -> DSE NEIVA SUR_9.9MW | C23: =IF(ISBLANK(InfoPro!E16),"",InfoPro!E16) -> 9.9 | D23: =IF(ISBLANK(InfoPro!F16),"",InfoPro!F16) -> Solar FV | E23: =IF(ISBLANK(InfoPro!I16),"",YEAR(InfoPro!I16)-$G$3) -> 3 | F23: =IF(B23="","",VLOOKUP(D23,Tablas!$B$2:$E$13,2,FALSE)) -> 0.26 | G23: =IF(B23="","",VLOOKUP(D23,Tablas!$B$2:$G$13,6,FALSE)) -> 0 | H23: 22548.24 | I23: 2870.007632 | J23: 188826.1509 | K23: 168896.3782 | L23: 151070.1058 | M23: 135125.3182 | N23: 120863.4331 | O23: 108106.8275 | P23: 96696.62564 | Q23: 86490.72061 | R23: 77362.00413 | S23: 69196.78365 | T23: 61893.36642 | U23: 55360.79286 | V23: 49517.70381 | W23: 44291.3272 | X23: 39616.57174 | Y23: 5914988427 | Z23: 597473.5785
A24: =IF(ISBLANK(InfoPro!A17),"",InfoPro!A17) -> SC_1004_A1 | B24: =IF(ISBLANK(InfoPro!B17),"",InfoPro!B17) -> EXCEDENTES AUTOGENERACIÓN VAO HUILA | C24: =IF(ISBLANK(InfoPro!E17),"",InfoPro!E17) -> 7.5 | D24: =IF(ISBLANK(InfoPro!F17),"",InfoPro!F17) -> Solar FV | E24: =IF(ISBLANK(InfoPro!I17),"",YEAR(InfoPro!I17)-$G$3) -> 0 | F24: =IF(B24="","",VLOOKUP(D24,Tablas!$B$2:$E$13,2,FALSE)) -> 0.26 | G24: =IF(B24="","",VLOOKUP(D24,Tablas!$B$2:$G$13,6,FALSE)) -> 0 | H24: 17082 | I24: 2174.248206 | J24: 199900.3801 | K24: 178801.7711 | L24: 159930.0278 | M24: 143050.1143 | N24: 127951.8017 | O24: 114447.0498 | P24: 102367.6653 | Q24: 91563.2069 | R24: 81899.11172 | S24: 73255.01943 | T24: 65523.27319 | U24: 58607.57888 | V24: 52421.8058 | W24: 46888.91395 | X24: 41939.99459 | Y24: 6261889198 | Z24: 834918.5598
A25: =IF(ISBLANK(InfoPro!A18),"",InfoPro!A18) -> SC_1104_A1 | B25: =IF(ISBLANK(InfoPro!B18),"",InfoPro!B18) -> CAMPOALEGRE SOLAR 9.9 MW | C25: =IF(ISBLANK(InfoPro!E18),"",InfoPro!E18) -> 9.9 | D25: =IF(ISBLANK(InfoPro!F18),"",InfoPro!F18) -> Solar FV | E25: =IF(ISBLANK(InfoPro!I18),"",YEAR(InfoPro!I18)-$G$3) -> 1 | F25: =IF(B25="","",VLOOKUP(D25,Tablas!$B$2:$E$13,2,FALSE)) -> 0.26 | G25: =IF(B25="","",VLOOKUP(D25,Tablas!$B$2:$G$13,6,FALSE)) -> 0 | H25: 22548.24 | I25: 2870.007632 | J25: 236018.3378 | K25: 211107.6367 | L25: 188826.1509 | M25: 168896.3782 | N25: 151070.1058 | O25: 135125.3182 | P25: 120863.4331 | Q25: 108106.8275 | R25: 96696.62564 | S25: 86490.72061 | T25: 77362.00413 | U25: 69196.78365 | V25: 61893.36642 | W25: 55360.79286 | X25: 49517.70381 | Y25: 7393285994 | Z25: 746796.5651
A26: =IF(ISBLANK(InfoPro!A19),"",InfoPro!A19) -> SC_1104_A2 | B26: =IF(ISBLANK(InfoPro!B19),"",InfoPro!B19) -> CAMPOALEGRE SOLAR 9.9 MW | C26: =IF(ISBLANK(InfoPro!E19),"",InfoPro!E19) -> 9.9 | D26: =IF(ISBLANK(InfoPro!F19),"",InfoPro!F19) -> Solar FV | E26: =IF(ISBLANK(InfoPro!I19),"",YEAR(InfoPro!I19)-$G$3) -> 1 | F26: =IF(B26="","",VLOOKUP(D26,Tablas!$B$2:$E$13,2,FALSE)) -> 0.26 | G26: =IF(B26="","",VLOOKUP(D26,Tablas!$B$2:$G$13,6,FALSE)) -> 0 | H26: 22548.24 | I26: 2870.007632 | J26: 236018.3378 | K26: 211107.6367 | L26: 188826.1509 | M26: 168896.3782 | N26: 151070.1058 | O26: 135125.3182 | P26: 120863.4331 | Q26: 108106.8275 | R26: 96696.62564 | S26: 86490.72061 | T26: 77362.00413 | U26: 69196.78365 | V26: 61893.36642 | W26: 55360.79286 | X26: 49517.70381 | Y26: 7393285994 | Z26: 746796.5651
A27: =IF(ISBLANK(InfoPro!A20),"",InfoPro!A20) -> SC_1331_A1 | B27: =IF(ISBLANK(InfoPro!B20),"",InfoPro!B20) -> Sol de Colombia Tuluní | C27: =IF(ISBLANK(InfoPro!E20),"",InfoPro!E20) -> 200 | D27: =IF(ISBLANK(InfoPro!F20),"",InfoPro!F20) -> Solar FV | E27: =IF(ISBLANK(InfoPro!I20),"",YEAR(InfoPro!I20)-$G$3) -> 3 | F27: =IF(B27="","",VLOOKUP(D27,Tablas!$B$2:$E$13,2,FALSE)) -> 0.26 | G27: =IF(B27="","",VLOOKUP(D27,Tablas!$B$2:$G$13,6,FALSE)) -> 0 | H27: 455520 | I27: 57979.95216 | J27: =IF($I27="","",(1/(1+$C$4)^(J$7+$E27))*$I27*$C$5) -> 3814669.715 | K27: 3412048.045 | L27: 3051921.329 | M27: 2729804.408 | N27: 2441685.517 | O27: 2183976.313 | P27: 1953467.185 | Q27: 1747287.285 | R27: 1562868.77 | S27: 1397914.821 | T27: 1250371.039 | U27: 1118399.856 | V27: 1000357.653 | W27: 894774.2869 | X27: 800334.7825 | Y27: 1.194947157e+11 | Z27: 597473.5785
A28: =IF(ISBLANK(InfoPro!A21),"",InfoPro!A21) -> SC_806_A1 | B28: =IF(ISBLANK(InfoPro!B21),"",InfoPro!B21) -> Wartsila | C28: =IF(ISBLANK(InfoPro!E21),"",InfoPro!E21) -> 26.25 | D28: =IF(ISBLANK(InfoPro!F21),"",InfoPro!F21) -> Termica - Ciclo combinado | E28: =IF(ISBLANK(InfoPro!I21),"",YEAR(InfoPro!I21)-$G$3) -> 0 | F28: =IF(B28="","",VLOOKUP(D28,Tablas!$B$2:$E$13,2,FALSE)) -> 0.85 | G28: =IF(B28="","",VLOOKUP(D28,Tablas!$B$2:$G$13,6,FALSE)) -> 0.95 | H28: 195457.5 | I28: -160806.208 | J28: -14784522.77 | K28: -13224081.19 | L28: -11828337.38 | M28: -10579908.21 | N28: -9463245.266 | O28: -8464441.204 | P28: -7571056.533 | Q28: -6771964.699 | R28: -6057213.505 | S28: -5417901.167 | T28: -4846065.445 | U28: -4334584.477 | V28: -3877088.083 | W28: -3467878.428 | X28: -3101859.059 | Y28: -4.631258999e+11 | Z28: -17642891.43
A29: =IF(ISBLANK(InfoPro!A22),"",InfoPro!A22) -> SC_764_A1 | B29: =IF(ISBLANK(InfoPro!B22),"",InfoPro!B22) -> PARQUE FOTOVOLTAICO LAS CEIBAS | C29: =IF(ISBLANK(InfoPro!E22),"",InfoPro!E22) -> 80 | D29: =IF(ISBLANK(InfoPro!F22),"",InfoPro!F22) -> Solar FV | E29: =IF(ISBLANK(InfoPro!I22),"",YEAR(InfoPro!I22)-$G$3) -> 3 | F29: =IF(B29="","",VLOOKUP(D29,Tablas!$B$2:$E$13,2,FALSE)) -> 0.26 | G29: =IF(B29="","",VLOOKUP(D29,Tablas!$B$2:$G$13,6,FALSE)) -> 0 | H29: 182208 | I29: 23191.98086 | J29: 1525867.886 | K29: 1364819.218 | L29: 1220768.531 | M29: 1091921.763 | N29: 976674.207 | O29: 873590.525 | P29: 781386.8739 | Q29: 698914.914 | R29: 625147.5081 | S29: 559165.9285 | T29: 500148.4155 | U29: 447359.9423 | V29: 400143.0611 | W29: 357909.7147 | X29: 320133.913 | Y29: 4.779788628e+10 | Z29: 597473.5785
A30: =IF(ISBLANK(InfoPro!A23),"",InfoPro!A23) -> SC_1231_A2 | B30: =IF(ISBLANK(InfoPro!B23),"",InfoPro!B23) -> Palermo 1 | C30: =IF(ISBLANK(InfoPro!E23),"",InfoPro!E23) -> 50 | D30: =IF(ISBLANK(InfoPro!F23),"",InfoPro!F23) -> Solar FV | E30: =IF(ISBLANK(InfoPro!I23),"",YEAR(InfoPro!I23)-$G$3) -> 1 | F30: =IF(B30="","",VLOOKUP(D30,Tablas!$B$2:$E$13,2,FALSE)) -> 0.26 | G30: =IF(B30="","",VLOOKUP(D30,Tablas!$B$2:$G$13,6,FALSE)) -> 0 | H30: 113880 | I30: 14494.98804 | J30: 1192011.807 | K30: 1066200.185 | L30: 953667.4287 | M30: 853012.0114 | N30: 762980.3322 | O30: 682451.1021 | P30: 610421.3794 | Q30: 545994.0781 | R30: 488366.7962 | S30: 436821.8213 | T30: 390717.1926 | U30: 349478.7053 | V30: 312592.7597 | W30: 279599.9639 | X30: 250089.4132 | Y30: 3.733982825e+10 | Z30: 746796.5651
A31: =IF(ISBLANK(InfoPro!A24),"",InfoPro!A24) -> SC_1246_A2 | B31: =IF(ISBLANK(InfoPro!B24),"",InfoPro!B24) -> Palermo 2 | C31: =IF(ISBLANK(InfoPro!E24),"",InfoPro!E24) -> 9.9 | D31: =IF(ISBLANK(InfoPro!F24),"",InfoPro!F24) -> Solar FV | E31: =IF(ISBLANK(InfoPro!I24),"",YEAR(InfoPro!I24)-$G$3) -> 1 | F31: =IF(B31="","",VLOOKUP(D31,Tablas!$B$2:$E$13,2,FALSE)) -> 0.26 | G31: =IF(B31="","",VLOOKUP(D31,Tablas!$B$2:$G$13,6,FALSE)) -> 0 | H31: 22548.24 | I31: 2870.007632 | J31: 236018.3378 | K31: 211107.6367 | L31: 188826.1509 | M31: 168896.3782 | N31: 151070.1058 | O31: 135125.3182 | P31: 120863.4331 | Q31: 108106.8275 | R31: 96696.62564 | S31: 86490.72061 | T31: 77362.00413 | U31: 69196.78365 | V31: 61893.36642 | W31: 55360.79286 | X31: 49517.70381 | Y31: 7393285994 | Z31: 746796.5651
A32: =IF(ISBLANK(InfoPro!A25),"",InfoPro!A25) -> SC_1214_A2 | B32: =IF(ISBLANK(InfoPro!B25),"",InfoPro!B25) -> Sol de Espinal 9,9 MW | C32: =IF(ISBLANK(InfoPro!E25),"",InfoPro!E25) -> 9.9 | D32: =IF(ISBLANK(InfoPro!F25),"",InfoPro!F25) -> Solar FV | E32: =IF(ISBLANK(InfoPro!I25),"",YEAR(InfoPro!I25)-$G$3) -> 5 | F32: =IF(B32="","",VLOOKUP(D32,Tablas!$B$2:$E$13,2,FALSE)) -> 0.26 | G32: =IF(B32="","",VLOOKUP(D32,Tablas!$B$2:$G$13,6,FALSE)) -> 0 | H32: 22548.24 | I32: 2870.007632 | J32: 151070.1058 | K32: 135125.3182 | L32: 120863.4331 | M32: 108106.8275 | N32: 96696.62564 | O32: 86490.72061 | P32: 77362.00413 | Q32: 69196.78365 | R32: 61893.36642 | S32: 55360.79286 | T32: 49517.70381 | U32: 44291.3272 | V32: 39616.57174 | W32: 35435.21622 | X32: 31695.18446 | Y32: 4732278464 | Z32: 478007.9256
A33: =IF(ISBLANK(InfoPro!A26),"",InfoPro!A26) -> SC_1334_A2 | B33: =IF(ISBLANK(InfoPro!B26),"",InfoPro!B26) -> Flandes Solar | C33: =IF(ISBLANK(InfoPro!E26),"",InfoPro!E26) -> 9.9 | D33: =IF(ISBLANK(InfoPro!F26),"",InfoPro!F26) -> Solar FV | E33: =IF(ISBLANK(InfoPro!I26),"",YEAR(InfoPro!I26)-$G$3) -> 3 | F33: =IF(B33="","",VLOOKUP(D33,Tablas!$B$2:$E$13,2,FALSE)) -> 0.26 | G33: =IF(B33="","",VLOOKUP(D33,Tablas!$B$2:$G$13,6,FALSE)) -> 0 | H33: 22548.24 | I33: 2870.007632 | J33: 188826.1509 | K33: 168896.3782 | L33: 151070.1058 | M33: 135125.3182 | N33: 120863.4331 | O33: 108106.8275 | P33: 96696.62564 | Q33: 86490.72061 | R33: 77362.00413 | S33: 69196.78365 | T33: 61893.36642 | U33: 55360.79286 | V33: 49517.70381 | W33: 44291.3272 | X33: 39616.57174 | Y33: 5914988427 | Z33: 597473.5785
A34: =IF(ISBLANK(InfoPro!A27),"",InfoPro!A27) -> SC_1334_A1 | B34: =IF(ISBLANK(InfoPro!B27),"",InfoPro!B27) -> Flandes Solar | C34: =IF(ISBLANK(InfoPro!E27),"",InfoPro!E27) -> 9.9 | D34: =IF(ISBLANK(InfoPro!F27),"",InfoPro!F27) -> Solar FV | E34: =IF(ISBLANK(InfoPro!I27),"",YEAR(InfoPro!I27)-$G$3) -> 3 | F34: =IF(B34="","",VLOOKUP(D34,Tablas!$B$2:$E$13,2,FALSE)) -> 0.26 | G34: =IF(B34="","",VLOOKUP(D34,Tablas!$B$2:$G$13,6,FALSE)) -> 0 | H34: 22548.24 | I34: 2870.007632 | J34: 188826.1509 | K34: 168896.3782 | L34: 151070.1058 | M34: 135125.3182 | N34: 120863.4331 | O34: 108106.8275 | P34: 96696.62564 | Q34: 86490.72061 | R34: 77362.00413 | S34: 69196.78365 | T34: 61893.36642 | U34: 55360.79286 | V34: 49517.70381 | W34: 44291.3272 | X34: 39616.57174 | Y34: 5914988427 | Z34: 597473.5785
A35: =IF(ISBLANK(InfoPro!A28),"",InfoPro!A28) -> SC_1273_A1 | B35: =IF(ISBLANK(InfoPro!B28),"",InfoPro!B28) -> Santa Clara DE 9,9 MW | C35: =IF(ISBLANK(InfoPro!E28),"",InfoPro!E28) -> 9.9 | D35: =IF(ISBLANK(InfoPro!F28),"",InfoPro!F28) -> Solar FV | E35: =IF(ISBLANK(InfoPro!I28),"",YEAR(InfoPro!I28)-$G$3) -> 1 | F35: =IF(B35="","",VLOOKUP(D35,Tablas!$B$2:$E$13,2,FALSE)) -> 0.26 | G35: =IF(B35="","",VLOOKUP(D35,Tablas!$B$2:$G$13,6,FALSE)) -> 0 | H35: 22548.24 | I35: 2870.007632 | J35: 236018.3378 | K35: 211107.6367 | L35: 188826.1509 | M35: 168896.3782 | N35: 151070.1058 | O35: 135125.3182 | P35: 120863.4331 | Q35: 108106.8275 | R35: 96696.62564 | S35: 86490.72061 | T35: 77362.00413 | U35: 69196.78365 | V35: 61893.36642 | W35: 55360.79286 | X35: 49517.70381 | Y35: 7393285994 | Z35: 746796.5651
A36: =IF(ISBLANK(InfoPro!A29),"",InfoPro!A29) -> SC_806_A2 | B36: =IF(ISBLANK(InfoPro!B29),"",InfoPro!B29) -> Wartsila | C36: =IF(ISBLANK(InfoPro!E29),"",InfoPro!E29) -> 26.25 | D36: =IF(ISBLANK(InfoPro!F29),"",InfoPro!F29) -> Termica - Ciclo combinado | E36: =IF(ISBLANK(InfoPro!I29),"",YEAR(InfoPro!I29)-$G$3) -> 0 | F36: =IF(B36="","",VLOOKUP(D36,Tablas!$B$2:$E$13,2,FALSE)) -> 0.85 | G36: =IF(B36="","",VLOOKUP(D36,Tablas!$B$2:$G$13,6,FALSE)) -> 0.95 | H36: 195457.5 | I36: -160806.208 | J36: -14784522.77 | K36: -13224081.19 | L36: -11828337.38 | M36: -10579908.21 | N36: -9463245.266 | O36: -8464441.204 | P36: -7571056.533 | Q36: -6771964.699 | R36: -6057213.505 | S36: -5417901.167 | T36: -4846065.445 | U36: -4334584.477 | V36: -3877088.083 | W36: -3467878.428 | X36: -3101859.059 | Y36: -4.631258999e+11 | Z36: -17642891.43
A37: =IF(ISBLANK(InfoPro!A30),"",InfoPro!A30) -> SC_1248_A2 | B37: =IF(ISBLANK(InfoPro!B30),"",InfoPro!B30) -> El Piojo IV | C37: =IF(ISBLANK(InfoPro!E30),"",InfoPro!E30) -> 9.9 | D37: =IF(ISBLANK(InfoPro!F30),"",InfoPro!F30) -> Solar FV | E37: =IF(ISBLANK(InfoPro!I30),"",YEAR(InfoPro!I30)-$G$3) -> 1 | F37: =IF(B37="","",VLOOKUP(D37,Tablas!$B$2:$E$13,2,FALSE)) -> 0.26 | G37: =IF(B37="","",VLOOKUP(D37,Tablas!$B$2:$G$13,6,FALSE)) -> 0 | H37: 22548.24 | I37: 2870.007632 | J37: =IF($I37="","",(1/(1+$C$4)^(J$7+$E37))*$I37*$C$5) -> 236018.3378 | K37: 211107.6367 | L37: 188826.1509 | M37: 168896.3782 | N37: 151070.1058 | O37: 135125.3182 | P37: 120863.4331 | Q37: 108106.8275 | R37: 96696.62564 | S37: 86490.72061 | T37: 77362.00413 | U37: 69196.78365 | V37: 61893.36642 | W37: 55360.79286 | X37: 49517.70381 | Y37: 7393285994 | Z37: 746796.5651
A38: =IF(ISBLANK(InfoPro!A31),"",InfoPro!A31) -> SC_1248_A1 | B38: =IF(ISBLANK(InfoPro!B31),"",InfoPro!B31) -> El Piojo IV | C38: =IF(ISBLANK(InfoPro!E31),"",InfoPro!E31) -> 9.9 | D38: =IF(ISBLANK(InfoPro!F31),"",InfoPro!F31) -> Solar FV | E38: =IF(ISBLANK(InfoPro!I31),"",YEAR(InfoPro!I31)-$G$3) -> 1 | F38: =IF(B38="","",VLOOKUP(D38,Tablas!$B$2:$E$13,2,FALSE)) -> 0.26 | G38: =IF(B38="","",VLOOKUP(D38,Tablas!$B$2:$G$13,6,FALSE)) -> 0 | H38: 22548.24 | I38: 2870.007632 | J38: 236018.3378 | K38: 211107.6367 | L38: 188826.1509 | M38: 168896.3782 | N38: 151070.1058 | O38: 135125.3182 | P38: 120863.4331 | Q38: 108106.8275 | R38: 96696.62564 | S38: 86490.72061 | T38: 77362.00413 | U38: 69196.78365 | V38: 61893.36642 | W38: 55360.79286 | X38: 49517.70381 | Y38: 7393285994 | Z38: 746796.5651
A39: =IF(ISBLANK(InfoPro!A32),"",InfoPro!A32) -> SC_871_A1 | B39: =IF(ISBLANK(InfoPro!B32),"",InfoPro!B32) -> PARQUE SOLAR SANTA LUCIA | C39: =IF(ISBLANK(InfoPro!E32),"",InfoPro!E32) -> 9.9 | D39: =IF(ISBLANK(InfoPro!F32),"",InfoPro!F32) -> Solar FV | E39: =IF(ISBLANK(InfoPro!I32),"",YEAR(InfoPro!I32)-$G$3) -> 1 | F39: =IF(B39="","",VLOOKUP(D39,Tablas!$B$2:$E$13,2,FALSE)) -> 0.26 | G39: =IF(B39="","",VLOOKUP(D39,Tablas!$B$2:$G$13,6,FALSE)) -> 0 | H39: =IF(C39="","",+C39*F39*24*365) -> 22548.24 | I39: =IF(H39="","",+H39*($C$3-G39)) -> 2870.007632 | J39: 236018.3378 | K39: 211107.6367 | L39: 188826.1509 | M39: 168896.3782 | N39: 151070.1058 | O39: 135125.3182 | P39: 120863.4331 | Q39: 108106.8275 | R39: 96696.62564 | S39: 86490.72061 | T39: 77362.00413 | U39: 69196.78365 | V39: 61893.36642 | W39: 55360.79286 | X39: 49517.70381 | Y39: 7393285994 | Z39: 746796.5651
A40: =IF(ISBLANK(InfoPro!A33),"",InfoPro!A33) -> SC_1214_A1 | B40: =IF(ISBLANK(InfoPro!B33),"",InfoPro!B33) -> Sol de Espinal 9,9 MW | C40: =IF(ISBLANK(InfoPro!E33),"",InfoPro!E33) -> 9.9 | D40: =IF(ISBLANK(InfoPro!F33),"",InfoPro!F33) -> Solar FV | E40: =IF(ISBLANK(InfoPro!I33),"",YEAR(InfoPro!I33)-$G$3) -> 5 | F40: =IF(B40="","",VLOOKUP(D40,Tablas!$B$2:$E$13,2,FALSE)) -> 0.26 | G40: =IF(B40="","",VLOOKUP(D40,Tablas!$B$2:$G$13,6,FALSE)) -> 0 | H40: 22548.24 | I40: 2870.007632 | J40: 151070.1058 | K40: 135125.3182 | L40: 120863.4331 | M40: 108106.8275 | N40: 96696.62564 | O40: 86490.72061 | P40: 77362.00413 | Q40: 69196.78365 | R40: 61893.36642 | S40: 55360.79286 | T40: 49517.70381 | U40: 44291.3272 | V40: 39616.57174 | W40: 35435.21622 | X40: 31695.18446 | Y40: 4732278464 | Z40: 478007.9256
A41: =IF(ISBLANK(InfoPro!A34),"",InfoPro!A34) -> SC_1126_A1 | B41: =IF(ISBLANK(InfoPro!B34),"",InfoPro!B34) -> Solar Escobal 9 | C41: =IF(ISBLANK(InfoPro!E34),"",InfoPro!E34) -> 19.9 | D41: =IF(ISBLANK(InfoPro!F34),"",InfoPro!F34) -> Solar FV | E41: =IF(ISBLANK(InfoPro!I34),"",YEAR(InfoPro!I34)-$G$3) -> 7 | F41: =IF(B41="","",VLOOKUP(D41,Tablas!$B$2:$E$13,2,FALSE)) -> 0.26 | G41: =IF(B41="","",VLOOKUP(D41,Tablas!$B$2:$G$13,6,FALSE)) -> 0 | H41: 45324.24 | I41: 5769.00524 | J41: 242947.709 | K41: 217305.6431 | L41: 194369.9849 | M41: 173855.0849 | N41: 155505.4426 | O41: 139092.5247 | P41: 124411.9184 | Q41: 111280.7856 | R41: 99535.58645 | S41: 89030.04154 | T41: 79633.31086 | U41: 71228.36392 | V41: 63710.52229 | W41: 56986.15589 | X41: 50971.5169 | Y41: 7610348886 | Z41: 382429.5922
A42: =IF(ISBLANK(InfoPro!A35),"",InfoPro!A35) -> SC_764_A2 | B42: =IF(ISBLANK(InfoPro!B35),"",InfoPro!B35) -> PARQUE FOTOVOLTAICO LAS CEIBAS | C42: =IF(ISBLANK(InfoPro!E35),"",InfoPro!E35) -> 80 | D42: =IF(ISBLANK(InfoPro!F35),"",InfoPro!F35) -> Solar FV | E42: =IF(ISBLANK(InfoPro!I35),"",YEAR(InfoPro!I35)-$G$3) -> 3 | F42: =IF(B42="","",VLOOKUP(D42,Tablas!$B$2:$E$13,2,FALSE)) -> 0.26 | G42: =IF(B42="","",VLOOKUP(D42,Tablas!$B$2:$G$13,6,FALSE)) -> 0 | H42: 182208 | I42: 23191.98086 | J42: 1525867.886 | K42: 1364819.218 | L42: 1220768.531 | M42: 1091921.763 | N42: 976674.207 | O42: 873590.525 | P42: 781386.8739 | Q42: 698914.914 | R42: 625147.5081 | S42: 559165.9285 | T42: 500148.4155 | U42: 447359.9423 | V42: 400143.0611 | W42: 357909.7147 | X42: 320133.913 | Y42: 4.779788628e+10 | Z42: 597473.5785
A43: =IF(ISBLANK(InfoPro!A36),"",InfoPro!A36) -> SC_661_A1 | B43: =IF(ISBLANK(InfoPro!B36),"",InfoPro!B36) -> TR Solar 11 | C43: =IF(ISBLANK(InfoPro!E36),"",InfoPro!E36) -> 45 | D43: =IF(ISBLANK(InfoPro!F36),"",InfoPro!F36) -> Solar FV | E43: =IF(ISBLANK(InfoPro!I36),"",YEAR(InfoPro!I36)-$G$3) -> 2 | F43: =IF(B43="","",VLOOKUP(D43,Tablas!$B$2:$E$13,2,FALSE)) -> 0.26 | G43: =IF(B43="","",VLOOKUP(D43,Tablas!$B$2:$G$13,6,FALSE)) -> 0 | H43: 102492 | I43: 13045.48924 | J43: 959580.1668 | K43: 858300.6858 | L43: 767710.8102 | M43: 686682.2989 | N43: 614205.9919 | O43: 549379.2414 | P43: 491394.6703 | Q43: 439530.1166 | R43: 393139.6391 | S43: 351645.4733 | T43: 314530.8348 | U43: 281333.4837 | V43: 251639.9675 | W43: 225080.4719 | X43: 201324.2145 | Y43: 3.005889573e+10 | Z43: 667975.4607
A44: =IF(ISBLANK(InfoPro!A37),"",InfoPro!A37) -> SC_661_A2 | B44: =IF(ISBLANK(InfoPro!B37),"",InfoPro!B37) -> TR Solar 11 | C44: =IF(ISBLANK(InfoPro!E37),"",InfoPro!E37) -> 45 | D44: =IF(ISBLANK(InfoPro!F37),"",InfoPro!F37) -> Solar FV | E44: =IF(ISBLANK(InfoPro!I37),"",YEAR(InfoPro!I37)-$G$3) -> 2 | F44: =IF(B44="","",VLOOKUP(D44,Tablas!$B$2:$E$13,2,FALSE)) -> 0.26 | G44: =IF(B44="","",VLOOKUP(D44,Tablas!$B$2:$G$13,6,FALSE)) -> 0 | H44: 102492 | I44: 13045.48924 | J44: 959580.1668 | K44: 858300.6858 | L44: 767710.8102 | M44: 686682.2989 | N44: 614205.9919 | O44: 549379.2414 | P44: 491394.6703 | Q44: 439530.1166 | R44: 393139.6391 | S44: 351645.4733 | T44: 314530.8348 | U44: 281333.4837 | V44: 251639.9675 | W44: 225080.4719 | X44: 201324.2145 | Y44: 3.005889573e+10 | Z44: 667975.4607
A45: =IF(ISBLANK(InfoPro!A38),"",InfoPro!A38) -> SC_1337_A1 | B45: =IF(ISBLANK(InfoPro!B38),"",InfoPro!B38) -> Los Venados_15MW | C45: =IF(ISBLANK(InfoPro!E38),"",InfoPro!E38) -> 15 | D45: =IF(ISBLANK(InfoPro!F38),"",InfoPro!F38) -> Solar FV | E45: =IF(ISBLANK(InfoPro!I38),"",YEAR(InfoPro!I38)-$G$3) -> 1 | F45: =IF(B45="","",VLOOKUP(D45,Tablas!$B$2:$E$13,2,FALSE)) -> 0.26 | G45: =IF(B45="","",VLOOKUP(D45,Tablas!$B$2:$G$13,6,FALSE)) -> 0 | H45: 34164 | I45: 4348.496412 | J45: 357603.5421 | K45: 319860.0556 | L45: 286100.2286 | M45: 255903.6034 | N45: 228894.0996 | O45: 204735.3306 | P45: 183126.4138 | Q45: 163798.2234 | R45: 146510.0389 | S45: 131046.5464 | T45: 117215.1578 | U45: 104843.6116 | V45: 93777.8279 | W45: 83879.98918 | X45: 75026.82395 | Y45: 1.120194848e+10 | Z45: 746796.5651
A46: =IF(ISBLANK(InfoPro!A39),"",InfoPro!A39) -> SC_1337_A2 | B46: =IF(ISBLANK(InfoPro!B39),"",InfoPro!B39) -> Los Venados_15MW | C46: =IF(ISBLANK(InfoPro!E39),"",InfoPro!E39) -> 15 | D46: =IF(ISBLANK(InfoPro!F39),"",InfoPro!F39) -> Solar FV | E46: =IF(ISBLANK(InfoPro!I39),"",YEAR(InfoPro!I39)-$G$3) -> 1 | F46: =IF(B46="","",VLOOKUP(D46,Tablas!$B$2:$E$13,2,FALSE)) -> 0.26 | G46: =IF(B46="","",VLOOKUP(D46,Tablas!$B$2:$G$13,6,FALSE)) -> 0 | H46: 34164 | I46: 4348.496412 | J46: 357603.5421 | K46: 319860.0556 | L46: 286100.2286 | M46: 255903.6034 | N46: 228894.0996 | O46: 204735.3306 | P46: 183126.4138 | Q46: 163798.2234 | R46: 146510.0389 | S46: 131046.5464 | T46: 117215.1578 | U46: 104843.6116 | V46: 93777.8279 | W46: 83879.98918 | X46: 75026.82395 | Y46: 1.120194848e+10 | Z46: 746796.5651
A47: =IF(ISBLANK(InfoPro!A40),"",InfoPro!A40) -> SC_1482_A1 | B47: =IF(ISBLANK(InfoPro!B40),"",InfoPro!B40) -> Proyecto de Autogeneración Con InyecciónCero CEMEX_0MW (AUTOGENERACIÓN) | C47: =IF(ISBLANK(InfoPro!E40),"",InfoPro!E40) -> 0 | D47: =IF(ISBLANK(InfoPro!F40),"",InfoPro!F40) -> Solar FV | E47: =IF(ISBLANK(InfoPro!I40),"",YEAR(InfoPro!I40)-$G$3) -> 1 | F47: =IF(B47="","",VLOOKUP(D47,Tablas!$B$2:$E$13,2,FALSE)) -> 0.26 | G47: =IF(B47="","",VLOOKUP(D47,Tablas!$B$2:$G$13,6,FALSE)) -> 0 | H47: 0 | I47: 0 | J47: =IF($I47="","",(1/(1+$C$4)^(J$7+$E47))*$I47*$C$5) -> 0 | K47: 0 | L47: 0 | M47: 0 | N47: 0 | O47: 0 | P47: 0 | Q47: 0 | R47: 0 | S47: 0 | T47: 0 | U47: 0 | V47: 0 | W47: 0 | X47: 0 | Y47: 0 | Z47: 0
A48: =IF(ISBLANK(InfoPro!A41),"",InfoPro!A41) -> SC_1043_A2 | B48: =IF(ISBLANK(InfoPro!B41),"",InfoPro!B41) -> PARQUE SOLAR PALERMO SAS | C48: =IF(ISBLANK(InfoPro!E41),"",InfoPro!E41) -> 9.9 | D48: =IF(ISBLANK(InfoPro!F41),"",InfoPro!F41) -> Solar FV | E48: =IF(ISBLANK(InfoPro!I41),"",YEAR(InfoPro!I41)-$G$3) -> 1 | F48: =IF(B48="","",VLOOKUP(D48,Tablas!$B$2:$E$13,2,FALSE)) -> 0.26 | G48: =IF(B48="","",VLOOKUP(D48,Tablas!$B$2:$G$13,6,FALSE)) -> 0 | H48: 22548.24 | I48: 2870.007632 | J48: 236018.3378 | K48: 211107.6367 | L48: 188826.1509 | M48: 168896.3782 | N48: 151070.1058 | O48: 135125.3182 | P48: 120863.4331 | Q48: 108106.8275 | R48: 96696.62564 | S48: 86490.72061 | T48: 77362.00413 | U48: 69196.78365 | V48: 61893.36642 | W48: 55360.79286 | X48: 49517.70381 | Y48: 7393285994 | Z48: 746796.5651
A49: =IF(ISBLANK(InfoPro!A42),"",InfoPro!A42) -> SC_1043_A1 | B49: =IF(ISBLANK(InfoPro!B42),"",InfoPro!B42) -> PARQUE SOLAR PALERMO SAS | C49: =IF(ISBLANK(InfoPro!E42),"",InfoPro!E42) -> 9.9 | D49: =IF(ISBLANK(InfoPro!F42),"",InfoPro!F42) -> Solar FV | E49: =IF(ISBLANK(InfoPro!I42),"",YEAR(InfoPro!I42)-$G$3) -> 1 | F49: =IF(B49="","",VLOOKUP(D49,Tablas!$B$2:$E$13,2,FALSE)) -> 0.26 | G49: =IF(B49="","",VLOOKUP(D49,Tablas!$B$2:$G$13,6,FALSE)) -> 0 | H49: 22548.24 | I49: 2870.007632 | J49: 236018.3378 | K49: 211107.6367 | L49: 188826.1509 | M49: 168896.3782 | N49: 151070.1058 | O49: 135125.3182 | P49: 120863.4331 | Q49: 108106.8275 | R49: 96696.62564 | S49: 86490.72061 | T49: 77362.00413 | U49: 69196.78365 | V49: 61893.36642 | W49: 55360.79286 | X49: 49517.70381 | Y49: 7393285994 | Z49: 746796.5651
A50: =IF(ISBLANK(InfoPro!A43),"",InfoPro!A43) -> SC_1410_A2 | B50: =IF(ISBLANK(InfoPro!B43),"",InfoPro!B43) -> Coyaima | C50: =IF(ISBLANK(InfoPro!E43),"",InfoPro!E43) -> 60 | D50: =IF(ISBLANK(InfoPro!F43),"",InfoPro!F43) -> Solar FV | E50: =IF(ISBLANK(InfoPro!I43),"",YEAR(InfoPro!I43)-$G$3) -> 3 | F50: =IF(B50="","",VLOOKUP(D50,Tablas!$B$2:$E$13,2,FALSE)) -> 0.26 | G50: =IF(B50="","",VLOOKUP(D50,Tablas!$B$2:$G$13,6,FALSE)) -> 0 | H50: 136656 | I50: 17393.98565 | J50: 1144400.914 | K50: 1023614.414 | L50: 915576.3986 | M50: 818941.3225 | N50: 732505.6552 | O50: 655192.8938 | P50: 586040.1554 | Q50: 524186.1855 | R50: 468860.6311 | S50: 419374.4464 | T50: 375111.3116 | U50: 335519.9567 | V50: 300107.2958 | W50: 268432.2861 | X50: 240100.4348 | Y50: 3.584841471e+10 | Z50: 597473.5785
A51: =IF(ISBLANK(InfoPro!A44),"",InfoPro!A44) -> SC_1410_A1 | B51: =IF(ISBLANK(InfoPro!B44),"",InfoPro!B44) -> Coyaima | C51: =IF(ISBLANK(InfoPro!E44),"",InfoPro!E44) -> 60 | D51: =IF(ISBLANK(InfoPro!F44),"",InfoPro!F44) -> Solar FV | E51: =IF(ISBLANK(InfoPro!I44),"",YEAR(InfoPro!I44)-$G$3) -> 3 | F51: =IF(B51="","",VLOOKUP(D51,Tablas!$B$2:$E$13,2,FALSE)) -> 0.26 | G51: =IF(B51="","",VLOOKUP(D51,Tablas!$B$2:$G$13,6,FALSE)) -> 0 | H51: 136656 | I51: 17393.98565 | J51: 1144400.914 | K51: 1023614.414 | L51: 915576.3986 | M51: 818941.3225 | N51: 732505.6552 | O51: 655192.8938 | P51: 586040.1554 | Q51: 524186.1855 | R51: 468860.6311 | S51: 419374.4464 | T51: 375111.3116 | U51: 335519.9567 | V51: 300107.2958 | W51: 268432.2861 | X51: 240100.4348 | Y51: 3.584841471e+10 | Z51: 597473.5785
A52: =IF(ISBLANK(InfoPro!A45),"",InfoPro!A45) -> SC_857_A1 | B52: =IF(ISBLANK(InfoPro!B45),"",InfoPro!B45) -> Andaki Wind Farm | C52: =IF(ISBLANK(InfoPro!E45),"",InfoPro!E45) -> 125 | D52: =IF(ISBLANK(InfoPro!F45),"",InfoPro!F45) -> Eólico Onshore | E52: =IF(ISBLANK(InfoPro!I45),"",YEAR(InfoPro!I45)-$G$3) -> 3 | F52: =IF(B52="","",VLOOKUP(D52,Tablas!$B$2:$E$13,2,FALSE)) -> 0.57 | G52: =IF(B52="","",VLOOKUP(D52,Tablas!$B$2:$G$13,6,FALSE)) -> 0 | H52: 624150 | I52: 79443.68445 | J52: 5226831.1 | K52: 4675161.985 | L52: 4181719.128 | M52: 3740357.002 | N52: 3345578.714 | O52: 2992467.544 | P52: 2676625.71 | Q52: 2394119.597 | R52: 2141430.767 | S52: 1915412.135 | T52: 1713248.779 | U52: 1532422.879 | V52: 1370682.361 | W52: 1226012.845 | X52: 1096612.563 | Y52: 1.637307403e+11 | Z52: 1309845.922
A53: =IF(ISBLANK(InfoPro!A46),"",InfoPro!A46) -> SC_880_A2 | B53: =IF(ISBLANK(InfoPro!B46),"",InfoPro!B46) -> PARQUE FOTOVOLTAICO LA ACHIRA | C53: =IF(ISBLANK(InfoPro!E46),"",InfoPro!E46) -> 60 | D53: =IF(ISBLANK(InfoPro!F46),"",InfoPro!F46) -> Solar FV | E53: =IF(ISBLANK(InfoPro!I46),"",YEAR(InfoPro!I46)-$G$3) -> 3 | F53: =IF(B53="","",VLOOKUP(D53,Tablas!$B$2:$E$13,2,FALSE)) -> 0.26 | G53: =IF(B53="","",VLOOKUP(D53,Tablas!$B$2:$G$13,6,FALSE)) -> 0 | H53: 136656 | I53: 17393.98565 | J53: 1144400.914 | K53: 1023614.414 | L53: 915576.3986 | M53: 818941.3225 | N53: 732505.6552 | O53: 655192.8938 | P53: 586040.1554 | Q53: 524186.1855 | R53: 468860.6311 | S53: 419374.4464 | T53: 375111.3116 | U53: 335519.9567 | V53: 300107.2958 | W53: 268432.2861 | X53: 240100.4348 | Y53: 3.584841471e+10 | Z53: 597473.5785
A54: =IF(ISBLANK(InfoPro!A47),"",InfoPro!A47) -> SC_880_A1 | B54: =IF(ISBLANK(InfoPro!B47),"",InfoPro!B47) -> PARQUE FOTOVOLTAICO LA ACHIRA | C54: =IF(ISBLANK(InfoPro!E47),"",InfoPro!E47) -> 60 | D54: =IF(ISBLANK(InfoPro!F47),"",InfoPro!F47) -> Solar FV | E54: =IF(ISBLANK(InfoPro!I47),"",YEAR(InfoPro!I47)-$G$3) -> 3 | F54: =IF(B54="","",VLOOKUP(D54,Tablas!$B$2:$E$13,2,FALSE)) -> 0.26 | G54: =IF(B54="","",VLOOKUP(D54,Tablas!$B$2:$G$13,6,FALSE)) -> 0 | H54: 136656 | I54: 17393.98565 | J54: 1144400.914 | K54: 1023614.414 | L54: 915576.3986 | M54: 818941.3225 | N54: 732505.6552 | O54: 655192.8938 | P54: 586040.1554 | Q54: 524186.1855 | R54: 468860.6311 | S54: 419374.4464 | T54: 375111.3116 | U54: 335519.9567 | V54: 300107.2958 | W54: 268432.2861 | X54: 240100.4348 | Y54: 3.584841471e+10 | Z54: 597473.5785
A55: =IF(ISBLANK(InfoPro!A48),"",InfoPro!A48) -> SC_1235_A1 | B55: =IF(ISBLANK(InfoPro!B48),"",InfoPro!B48) -> PROYECTO FOTOVOLTAICO AIPE | C55: =IF(ISBLANK(InfoPro!E48),"",InfoPro!E48) -> 9.9 | D55: =IF(ISBLANK(InfoPro!F48),"",InfoPro!F48) -> Solar FV | E55: =IF(ISBLANK(InfoPro!I48),"",YEAR(InfoPro!I48)-$G$3) -> 3 | F55: =IF(B55="","",VLOOKUP(D55,Tablas!$B$2:$E$13,2,FALSE)) -> 0.26 | G55: =IF(B55="","",VLOOKUP(D55,Tablas!$B$2:$G$13,6,FALSE)) -> 0 | H55: 22548.24 | I55: 2870.007632 | J55: 188826.1509 | K55: 168896.3782 | L55: 151070.1058 | M55: 135125.3182 | N55: 120863.4331 | O55: 108106.8275 | P55: 96696.62564 | Q55: 86490.72061 | R55: 77362.00413 | S55: 69196.78365 | T55: 61893.36642 | U55: 55360.79286 | V55: 49517.70381 | W55: 44291.3272 | X55: 39616.57174 | Y55: 5914988427 | Z55: 597473.5785
A56: =IF(ISBLANK(InfoPro!A49),"",InfoPro!A49) -> SC_857_A2 | B56: =IF(ISBLANK(InfoPro!B49),"",InfoPro!B49) -> Andaki Wind Farm | C56: =IF(ISBLANK(InfoPro!E49),"",InfoPro!E49) -> 125 | D56: =IF(ISBLANK(InfoPro!F49),"",InfoPro!F49) -> Eólico Onshore | E56: =IF(ISBLANK(InfoPro!I49),"",YEAR(InfoPro!I49)-$G$3) -> 3 | F56: =IF(B56="","",VLOOKUP(D56,Tablas!$B$2:$E$13,2,FALSE)) -> 0.57 | G56: =IF(B56="","",VLOOKUP(D56,Tablas!$B$2:$G$13,6,FALSE)) -> 0 | H56: 624150 | I56: 79443.68445 | J56: 5226831.1 | K56: 4675161.985 | L56: 4181719.128 | M56: 3740357.002 | N56: 3345578.714 | O56: 2992467.544 | P56: 2676625.71 | Q56: 2394119.597 | R56: 2141430.767 | S56: 1915412.135 | T56: 1713248.779 | U56: 1532422.879 | V56: 1370682.361 | W56: 1226012.845 | X56: 1096612.563 | Y56: 1.637307403e+11 | Z56: 1309845.922
A57: =IF(ISBLANK(InfoPro!A50),"",InfoPro!A50) -> SC_1694_A2 | B57: =IF(ISBLANK(InfoPro!B50),"",InfoPro!B50) -> Parque Solar Fotovoltaico El Patá | C57: =IF(ISBLANK(InfoPro!E50),"",InfoPro!E50) -> 9.9 | D57: =IF(ISBLANK(InfoPro!F50),"",InfoPro!F50) -> Solar FV | E57: =IF(ISBLANK(InfoPro!I50),"",YEAR(InfoPro!I50)-$G$3) -> 3 | F57: =IF(B57="","",VLOOKUP(D57,Tablas!$B$2:$E$13,2,FALSE)) -> 0.26 | G57: =IF(B57="","",VLOOKUP(D57,Tablas!$B$2:$G$13,6,FALSE)) -> 0 | H57: 22548.24 | I57: 2870.007632 | J57: =IF($I57="","",(1/(1+$C$4)^(J$7+$E57))*$I57*$C$5) -> 188826.1509 | K57: 168896.3782 | L57: 151070.1058 | M57: 135125.3182 | N57: 120863.4331 | O57: 108106.8275 | P57: 96696.62564 | Q57: 86490.72061 | R57: 77362.00413 | S57: 69196.78365 | T57: 61893.36642 | U57: 55360.79286 | V57: 49517.70381 | W57: 44291.3272 | X57: 39616.57174 | Y57: 5914988427 | Z57: 597473.5785
A58: =IF(ISBLANK(InfoPro!A51),"",InfoPro!A51) -> SC_1694_A1 | B58: =IF(ISBLANK(InfoPro!B51),"",InfoPro!B51) -> Parque Solar Fotovoltaico El Patá | C58: =IF(ISBLANK(InfoPro!E51),"",InfoPro!E51) -> 9.9 | D58: =IF(ISBLANK(InfoPro!F51),"",InfoPro!F51) -> Solar FV | E58: =IF(ISBLANK(InfoPro!I51),"",YEAR(InfoPro!I51)-$G$3) -> 3 | F58: =IF(B58="","",VLOOKUP(D58,Tablas!$B$2:$E$13,2,FALSE)) -> 0.26 | G58: =IF(B58="","",VLOOKUP(D58,Tablas!$B$2:$G$13,6,FALSE)) -> 0 | H58: 22548.24 | I58: 2870.007632 | J58: 188826.1509 | K58: 168896.3782 | L58: 151070.1058 | M58: 135125.3182 | N58: 120863.4331 | O58: 108106.8275 | P58: 96696.62564 | Q58: 86490.72061 | R58: 77362.00413 | S58: 69196.78365 | T58: 61893.36642 | U58: 55360.79286 | V58: 49517.70381 | W58: 44291.3272 | X58: 39616.57174 | Y58: 5914988427 | Z58: 597473.5785
A59: =IF(ISBLANK(InfoPro!A52),"",InfoPro!A52) -> SC_1666_A1 | B59: =IF(ISBLANK(InfoPro!B52),"",InfoPro!B52) -> PROYECTO SOLAR FOTOVOLTAICO IGUAIMA DE 9,9 | C59: =IF(ISBLANK(InfoPro!E52),"",InfoPro!E52) -> 9.9 | D59: =IF(ISBLANK(InfoPro!F52),"",InfoPro!F52) -> Solar FV | E59: =IF(ISBLANK(InfoPro!I52),"",YEAR(InfoPro!I52)-$G$3) -> 3 | F59: =IF(B59="","",VLOOKUP(D59,Tablas!$B$2:$E$13,2,FALSE)) -> 0.26 | G59: =IF(B59="","",VLOOKUP(D59,Tablas!$B$2:$G$13,6,FALSE)) -> 0 | H59: 22548.24 | I59: 2870.007632 | J59: 188826.1509 | K59: 168896.3782 | L59: 151070.1058 | M59: 135125.3182 | N59: 120863.4331 | O59: 108106.8275 | P59: 96696.62564 | Q59: 86490.72061 | R59: 77362.00413 | S59: 69196.78365 | T59: 61893.36642 | U59: 55360.79286 | V59: 49517.70381 | W59: 44291.3272 | X59: 39616.57174 | Y59: 5914988427 | Z59: 597473.5785
A60: =IF(ISBLANK(InfoPro!A53),"",InfoPro!A53) -> SC_1666_A2 | B60: =IF(ISBLANK(InfoPro!B53),"",InfoPro!B53) -> PROYECTO SOLAR FOTOVOLTAICO IGUAIMA DE 9,9 | C60: =IF(ISBLANK(InfoPro!E53),"",InfoPro!E53) -> 9.9 | D60: =IF(ISBLANK(InfoPro!F53),"",InfoPro!F53) -> Solar FV | E60: =IF(ISBLANK(InfoPro!I53),"",YEAR(InfoPro!I53)-$G$3) -> 3 | F60: =IF(B60="","",VLOOKUP(D60,Tablas!$B$2:$E$13,2,FALSE)) -> 0.26 | G60: =IF(B60="","",VLOOKUP(D60,Tablas!$B$2:$G$13,6,FALSE)) -> 0 | H60: 22548.24 | I60: 2870.007632 | J60: 188826.1509 | K60: 168896.3782 | L60: 151070.1058 | M60: 135125.3182 | N60: 120863.4331 | O60: 108106.8275 | P60: 96696.62564 | Q60: 86490.72061 | R60: 77362.00413 | S60: 69196.78365 | T60: 61893.36642 | U60: 55360.79286 | V60: 49517.70381 | W60: 44291.3272 | X60: 39616.57174 | Y60: 5914988427 | Z60: 597473.5785
A61: =IF(ISBLANK(InfoPro!A54),"",InfoPro!A54) -> SC_1668_A1 | B61: =IF(ISBLANK(InfoPro!B54),"",InfoPro!B54) -> PARQUE SOLAR FOTOVOLTAICO DINDAL DE 9,9 MW | C61: =IF(ISBLANK(InfoPro!E54),"",InfoPro!E54) -> 9.9 | D61: =IF(ISBLANK(InfoPro!F54),"",InfoPro!F54) -> Solar FV | E61: =IF(ISBLANK(InfoPro!I54),"",YEAR(InfoPro!I54)-$G$3) -> 3 | F61: =IF(B61="","",VLOOKUP(D61,Tablas!$B$2:$E$13,2,FALSE)) -> 0.26 | G61: =IF(B61="","",VLOOKUP(D61,Tablas!$B$2:$G$13,6,FALSE)) -> 0 | H61: 22548.24 | I61: 2870.007632 | J61: 188826.1509 | K61: 168896.3782 | L61: 151070.1058 | M61: 135125.3182 | N61: 120863.4331 | O61: 108106.8275 | P61: 96696.62564 | Q61: 86490.72061 | R61: 77362.00413 | S61: 69196.78365 | T61: 61893.36642 | U61: 55360.79286 | V61: 49517.70381 | W61: 44291.3272 | X61: 39616.57174 | Y61: 5914988427 | Z61: 597473.5785
A62: =IF(ISBLANK(InfoPro!A55),"",InfoPro!A55) -> SC_1668_A2 | B62: =IF(ISBLANK(InfoPro!B55),"",InfoPro!B55) -> PARQUE SOLAR FOTOVOLTAICO DINDAL DE 9,9 MW | C62: =IF(ISBLANK(InfoPro!E55),"",InfoPro!E55) -> 9.9 | D62: =IF(ISBLANK(InfoPro!F55),"",InfoPro!F55) -> Solar FV | E62: =IF(ISBLANK(InfoPro!I55),"",YEAR(InfoPro!I55)-$G$3) -> 3 | F62: =IF(B62="","",VLOOKUP(D62,Tablas!$B$2:$E$13,2,FALSE)) -> 0.26 | G62: =IF(B62="","",VLOOKUP(D62,Tablas!$B$2:$G$13,6,FALSE)) -> 0 | H62: 22548.24 | I62: 2870.007632 | J62: 188826.1509 | K62: 168896.3782 | L62: 151070.1058 | M62: 135125.3182 | N62: 120863.4331 | O62: 108106.8275 | P62: 96696.62564 | Q62: 86490.72061 | R62: 77362.00413 | S62: 69196.78365 | T62: 61893.36642 | U62: 55360.79286 | V62: 49517.70381 | W62: 44291.3272 | X62: 39616.57174 | Y62: 5914988427 | Z62: 597473.5785
A63: =IF(ISBLANK(InfoPro!A56),"",InfoPro!A56) -> SC_1577_A2 | B63: =IF(ISBLANK(InfoPro!B56),"",InfoPro!B56) -> PARQUE SOLAR FOTOVOLTAICO SAN ALEJO I DE 19,9MW | C63: =IF(ISBLANK(InfoPro!E56),"",InfoPro!E56) -> 19.9 | D63: =IF(ISBLANK(InfoPro!F56),"",InfoPro!F56) -> Solar FV | E63: =IF(ISBLANK(InfoPro!I56),"",YEAR(InfoPro!I56)-$G$3) -> 3 | F63: =IF(B63="","",VLOOKUP(D63,Tablas!$B$2:$E$13,2,FALSE)) -> 0.26 | G63: =IF(B63="","",VLOOKUP(D63,Tablas!$B$2:$G$13,6,FALSE)) -> 0 | H63: 45324.24 | I63: 5769.00524 | J63: 379559.6366 | K63: 339498.7805 | L63: 303666.1722 | M63: 271615.5386 | N63: 242947.709 | O63: 217305.6431 | P63: 194369.9849 | Q63: 173855.0849 | R63: 155505.4426 | S63: 139092.5247 | T63: 124411.9184 | U63: 111280.7856 | V63: 99535.58645 | W63: 89030.04154 | X63: 79633.31086 | Y63: 1.188972421e+10 | Z63: 597473.5785
A64: =IF(ISBLANK(InfoPro!A57),"",InfoPro!A57) -> SC_1578_A2 | B64: =IF(ISBLANK(InfoPro!B57),"",InfoPro!B57) -> PROYECTO FOTOVOLTAICO SAN ALEJO II DE 19,9MW | C64: =IF(ISBLANK(InfoPro!E57),"",InfoPro!E57) -> 19.9 | D64: =IF(ISBLANK(InfoPro!F57),"",InfoPro!F57) -> Solar FV | E64: =IF(ISBLANK(InfoPro!I57),"",YEAR(InfoPro!I57)-$G$3) -> 3 | F64: =IF(B64="","",VLOOKUP(D64,Tablas!$B$2:$E$13,2,FALSE)) -> 0.26 | G64: =IF(B64="","",VLOOKUP(D64,Tablas!$B$2:$G$13,6,FALSE)) -> 0 | H64: 45324.24 | I64: 5769.00524 | J64: 379559.6366 | K64: 339498.7805 | L64: 303666.1722 | M64: 271615.5386 | N64: 242947.709 | O64: 217305.6431 | P64: 194369.9849 | Q64: 173855.0849 | R64: 155505.4426 | S64: 139092.5247 | T64: 124411.9184 | U64: 111280.7856 | V64: 99535.58645 | W64: 89030.04154 | X64: 79633.31086 | Y64: 1.188972421e+10 | Z64: 597473.5785
A65: =IF(ISBLANK(InfoPro!A58),"",InfoPro!A58) -> SC_1583_A2 | B65: =IF(ISBLANK(InfoPro!B58),"",InfoPro!B58) -> PARQUE FOTOVOLTAICO SAN ALEJO III DE 19,9MW, | C65: =IF(ISBLANK(InfoPro!E58),"",InfoPro!E58) -> 19.9 | D65: =IF(ISBLANK(InfoPro!F58),"",InfoPro!F58) -> Solar FV | E65: =IF(ISBLANK(InfoPro!I58),"",YEAR(InfoPro!I58)-$G$3) -> 3 | F65: =IF(B65="","",VLOOKUP(D65,Tablas!$B$2:$E$13,2,FALSE)) -> 0.26 | G65: =IF(B65="","",VLOOKUP(D65,Tablas!$B$2:$G$13,6,FALSE)) -> 0 | H65: 45324.24 | I65: 5769.00524 | J65: 379559.6366 | K65: 339498.7805 | L65: 303666.1722 | M65: 271615.5386 | N65: 242947.709 | O65: 217305.6431 | P65: 194369.9849 | Q65: 173855.0849 | R65: 155505.4426 | S65: 139092.5247 | T65: 124411.9184 | U65: 111280.7856 | V65: 99535.58645 | W65: 89030.04154 | X65: 79633.31086 | Y65: 1.188972421e+10 | Z65: 597473.5785
A66: =IF(ISBLANK(InfoPro!A59),"",InfoPro!A59) -> SC_1577_A1 | B66: =IF(ISBLANK(InfoPro!B59),"",InfoPro!B59) -> PARQUE SOLAR FOTOVOLTAICO SAN ALEJO I DE 19,9MW | C66: =IF(ISBLANK(InfoPro!E59),"",InfoPro!E59) -> 19.9 | D66: =IF(ISBLANK(InfoPro!F59),"",InfoPro!F59) -> Solar FV | E66: =IF(ISBLANK(InfoPro!I59),"",YEAR(InfoPro!I59)-$G$3) -> 3 | F66: =IF(B66="","",VLOOKUP(D66,Tablas!$B$2:$E$13,2,FALSE)) -> 0.26 | G66: =IF(B66="","",VLOOKUP(D66,Tablas!$B$2:$G$13,6,FALSE)) -> 0 | H66: 45324.24 | I66: 5769.00524 | J66: 379559.6366 | K66: 339498.7805 | L66: 303666.1722 | M66: 271615.5386 | N66: 242947.709 | O66: 217305.6431 | P66: 194369.9849 | Q66: 173855.0849 | R66: 155505.4426 | S66: 139092.5247 | T66: 124411.9184 | U66: 111280.7856 | V66: 99535.58645 | W66: 89030.04154 | X66: 79633.31086 | Y66: 1.188972421e+10 | Z66: 597473.5785
A67: =IF(ISBLANK(InfoPro!A60),"",InfoPro!A60) -> SC_1578_A1 | B67: =IF(ISBLANK(InfoPro!B60),"",InfoPro!B60) -> PROYECTO FOTOVOLTAICO SAN ALEJO II DE 19,9MW | C67: =IF(ISBLANK(InfoPro!E60),"",InfoPro!E60) -> 19.9 | D67: =IF(ISBLANK(InfoPro!F60),"",InfoPro!F60) -> Solar FV | E67: =IF(ISBLANK(InfoPro!I60),"",YEAR(InfoPro!I60)-$G$3) -> 3 | F67: =IF(B67="","",VLOOKUP(D67,Tablas!$B$2:$E$13,2,FALSE)) -> 0.26 | G67: =IF(B67="","",VLOOKUP(D67,Tablas!$B$2:$G$13,6,FALSE)) -> 0 | H67: 45324.24 | I67: 5769.00524 | J67: =IF($I67="","",(1/(1+$C$4)^(J$7+$E67))*$I67*$C$5) -> 379559.6366 | K67: 339498.7805 | L67: 303666.1722 | M67: 271615.5386 | N67: 242947.709 | O67: 217305.6431 | P67: 194369.9849 | Q67: 173855.0849 | R67: 155505.4426 | S67: 139092.5247 | T67: 124411.9184 | U67: 111280.7856 | V67: 99535.58645 | W67: 89030.04154 | X67: 79633.31086 | Y67: 1.188972421e+10 | Z67: 597473.5785
A68: =IF(ISBLANK(InfoPro!A61),"",InfoPro!A61) -> SC_1583_A1 | B68: =IF(ISBLANK(InfoPro!B61),"",InfoPro!B61) -> PARQUE FOTOVOLTAICO SAN ALEJO III DE 19,9MW, | C68: =IF(ISBLANK(InfoPro!E61),"",InfoPro!E61) -> 19.9 | D68: =IF(ISBLANK(InfoPro!F61),"",InfoPro!F61) -> Solar FV | E68: =IF(ISBLANK(InfoPro!I61),"",YEAR(InfoPro!I61)-$G$3) -> 3 | F68: =IF(B68="","",VLOOKUP(D68,Tablas!$B$2:$E$13,2,FALSE)) -> 0.26 | G68: =IF(B68="","",VLOOKUP(D68,Tablas!$B$2:$G$13,6,FALSE)) -> 0 | H68: 45324.24 | I68: 5769.00524 | J68: 379559.6366 | K68: 339498.7805 | L68: 303666.1722 | M68: 271615.5386 | N68: 242947.709 | O68: 217305.6431 | P68: 194369.9849 | Q68: 173855.0849 | R68: 155505.4426 | S68: 139092.5247 | T68: 124411.9184 | U68: 111280.7856 | V68: 99535.58645 | W68: 89030.04154 | X68: 79633.31086 | Y68: 1.188972421e+10 | Z68: 597473.5785
A69: =IF(ISBLANK(InfoPro!A62),"",InfoPro!A62) -> SC_1706_A1 | B69: =IF(ISBLANK(InfoPro!B62),"",InfoPro!B62) -> DSE NEIVA | C69: =IF(ISBLANK(InfoPro!E62),"",InfoPro!E62) -> 19.9 | D69: =IF(ISBLANK(InfoPro!F62),"",InfoPro!F62) -> Solar FV | E69: =IF(ISBLANK(InfoPro!I62),"",YEAR(InfoPro!I62)-$G$3) -> 2 | F69: =IF(B69="","",VLOOKUP(D69,Tablas!$B$2:$E$13,2,FALSE)) -> 0.26 | G69: =IF(B69="","",VLOOKUP(D69,Tablas!$B$2:$G$13,6,FALSE)) -> 0 | H69: 45324.24 | I69: 5769.00524 | J69: 424347.6737 | K69: 379559.6366 | L69: 339498.7805 | M69: 303666.1722 | N69: 271615.5386 | O69: 242947.709 | P69: 217305.6431 | Q69: 194369.9849 | R69: 173855.0849 | S69: 155505.4426 | T69: 139092.5247 | U69: 124411.9184 | V69: 111280.7856 | W69: 99535.58645 | X69: 89030.04154 | Y69: 1.329271167e+10 | Z69: 667975.4607
A70: =IF(ISBLANK(InfoPro!A63),"",InfoPro!A63) -> SC_573_A2 | B70: =IF(ISBLANK(InfoPro!B63),"",InfoPro!B63) -> Pétalo del Huila Baraya | C70: =IF(ISBLANK(InfoPro!E63),"",InfoPro!E63) -> 9.9 | D70: =IF(ISBLANK(InfoPro!F63),"",InfoPro!F63) -> Solar FV | E70: =IF(ISBLANK(InfoPro!I63),"",YEAR(InfoPro!I63)-$G$3) -> 3 | F70: =IF(B70="","",VLOOKUP(D70,Tablas!$B$2:$E$13,2,FALSE)) -> 0.26 | G70: =IF(B70="","",VLOOKUP(D70,Tablas!$B$2:$G$13,6,FALSE)) -> 0 | H70: 22548.24 | I70: 2870.007632 | J70: 188826.1509 | K70: 168896.3782 | L70: 151070.1058 | M70: 135125.3182 | N70: 120863.4331 | O70: 108106.8275 | P70: 96696.62564 | Q70: 86490.72061 | R70: 77362.00413 | S70: 69196.78365 | T70: 61893.36642 | U70: 55360.79286 | V70: 49517.70381 | W70: 44291.3272 | X70: 39616.57174 | Y70: 5914988427 | Z70: 597473.5785
A71: =IF(ISBLANK(InfoPro!A64),"",InfoPro!A64) -> SC_573_A1 | B71: =IF(ISBLANK(InfoPro!B64),"",InfoPro!B64) -> Pétalo del Huila Baraya | C71: =IF(ISBLANK(InfoPro!E64),"",InfoPro!E64) -> 9.9 | D71: =IF(ISBLANK(InfoPro!F64),"",InfoPro!F64) -> Solar FV | E71: =IF(ISBLANK(InfoPro!I64),"",YEAR(InfoPro!I64)-$G$3) -> 3 | F71: =IF(B71="","",VLOOKUP(D71,Tablas!$B$2:$E$13,2,FALSE)) -> 0.26 | G71: =IF(B71="","",VLOOKUP(D71,Tablas!$B$2:$G$13,6,FALSE)) -> 0 | H71: =IF(C71="","",+C71*F71*24*365) -> 22548.24 | I71: =IF(H71="","",+H71*($C$3-G71)) -> 2870.007632 | J71: 188826.1509 | K71: 168896.3782 | L71: 151070.1058 | M71: 135125.3182 | N71: 120863.4331 | O71: 108106.8275 | P71: 96696.62564 | Q71: 86490.72061 | R71: 77362.00413 | S71: 69196.78365 | T71: 61893.36642 | U71: 55360.79286 | V71: 49517.70381 | W71: 44291.3272 | X71: 39616.57174 | Y71: 5914988427 | Z71: 597473.5785
A72: =IF(ISBLANK(InfoPro!A65),"",InfoPro!A65) -> SC_1858_A1 | B72: =IF(ISBLANK(InfoPro!B65),"",InfoPro!B65) -> Yat solar 60 MW | C72: =IF(ISBLANK(InfoPro!E65),"",InfoPro!E65) -> 60 | D72: =IF(ISBLANK(InfoPro!F65),"",InfoPro!F65) -> Solar FV | E72: =IF(ISBLANK(InfoPro!I65),"",YEAR(InfoPro!I65)-$G$3) -> 4 | F72: =IF(B72="","",VLOOKUP(D72,Tablas!$B$2:$E$13,2,FALSE)) -> 0.26 | G72: =IF(B72="","",VLOOKUP(D72,Tablas!$B$2:$G$13,6,FALSE)) -> 0 | H72: 136656 | I72: 17393.98565 | J72: 1023614.414 | K72: 915576.3986 | L72: 818941.3225 | M72: 732505.6552 | N72: 655192.8938 | O72: 586040.1554 | P72: 524186.1855 | Q72: 468860.6311 | R72: 419374.4464 | S72: 375111.3116 | T72: 335519.9567 | U72: 300107.2958 | V72: 268432.2861 | W72: 240100.4348 | X72: 214758.8862 | Y72: =IF(X72="","",SUM(J72:X72)*$C$6) -> 3.206477165e+10 | Z72: =IF(C72=0,0,IF(Y72="","",Y72/(C72*1000))) -> 534412.8609
A73: =IF(ISBLANK(InfoPro!A66),"",InfoPro!A66) -> SC_1858_A2 | B73: =IF(ISBLANK(InfoPro!B66),"",InfoPro!B66) -> Yat solar 60 MW | C73: =IF(ISBLANK(InfoPro!E66),"",InfoPro!E66) -> 60 | D73: =IF(ISBLANK(InfoPro!F66),"",InfoPro!F66) -> Solar FV | E73: =IF(ISBLANK(InfoPro!I66),"",YEAR(InfoPro!I66)-$G$3) -> 4 | F73: =IF(B73="","",VLOOKUP(D73,Tablas!$B$2:$E$13,2,FALSE)) -> 0.26 | G73: =IF(B73="","",VLOOKUP(D73,Tablas!$B$2:$G$13,6,FALSE)) -> 0 | H73: 136656 | I73: 17393.98565 | J73: 1023614.414 | K73: 915576.3986 | L73: 818941.3225 | M73: 732505.6552 | N73: 655192.8938 | O73: 586040.1554 | P73: 524186.1855 | Q73: 468860.6311 | R73: 419374.4464 | S73: 375111.3116 | T73: 335519.9567 | U73: 300107.2958 | V73: 268432.2861 | W73: 240100.4348 | X73: 214758.8862 | Y73: 3.206477165e+10 | Z73: 534412.8609
A74: =IF(ISBLANK(InfoPro!A67),"",InfoPro!A67) -> SC_1305_A1 | B74: =IF(ISBLANK(InfoPro!B67),"",InfoPro!B67) -> Helios Espinal II 19,9MW | C74: =IF(ISBLANK(InfoPro!E67),"",InfoPro!E67) -> 19.9 | D74: =IF(ISBLANK(InfoPro!F67),"",InfoPro!F67) -> Solar FV | E74: =IF(ISBLANK(InfoPro!I67),"",YEAR(InfoPro!I67)-$G$3) -> 1 | F74: =IF(B74="","",VLOOKUP(D74,Tablas!$B$2:$E$13,2,FALSE)) -> 0.26 | G74: =IF(B74="","",VLOOKUP(D74,Tablas!$B$2:$G$13,6,FALSE)) -> 0 | H74: 45324.24 | I74: 5769.00524 | J74: 474420.6992 | K74: 424347.6737 | L74: 379559.6366 | M74: 339498.7805 | N74: 303666.1722 | O74: 271615.5386 | P74: 242947.709 | Q74: 217305.6431 | R74: 194369.9849 | S74: 173855.0849 | T74: 155505.4426 | U74: 139092.5247 | V74: 124411.9184 | W74: 111280.7856 | X74: 99535.58645 | Y74: 1.486125165e+10 | Z74: 746796.5651
A75: =IF(ISBLANK(InfoPro!A68),"",InfoPro!A68) -> SC_1305_A2 | B75: =IF(ISBLANK(InfoPro!B68),"",InfoPro!B68) -> Helios Espinal II 19,9MW | C75: =IF(ISBLANK(InfoPro!E68),"",InfoPro!E68) -> 19.9 | D75: =IF(ISBLANK(InfoPro!F68),"",InfoPro!F68) -> Solar FV | E75: =IF(ISBLANK(InfoPro!I68),"",YEAR(InfoPro!I68)-$G$3) -> 1 | F75: =IF(B75="","",VLOOKUP(D75,Tablas!$B$2:$E$13,2,FALSE)) -> 0.26 | G75: =IF(B75="","",VLOOKUP(D75,Tablas!$B$2:$G$13,6,FALSE)) -> 0 | H75: 45324.24 | I75: 5769.00524 | J75: 474420.6992 | K75: 424347.6737 | L75: 379559.6366 | M75: 339498.7805 | N75: 303666.1722 | O75: 271615.5386 | P75: 242947.709 | Q75: 217305.6431 | R75: 194369.9849 | S75: 173855.0849 | T75: 155505.4426 | U75: 139092.5247 | V75: 124411.9184 | W75: 111280.7856 | X75: 99535.58645 | Y75: 1.486125165e+10 | Z75: 746796.5651
A76: =IF(ISBLANK(InfoPro!A69),"",InfoPro!A69) -> SC_1330_A1 | B76: =IF(ISBLANK(InfoPro!B69),"",InfoPro!B69) -> Helios Espinal I - 100MW | C76: =IF(ISBLANK(InfoPro!E69),"",InfoPro!E69) -> 100 | D76: =IF(ISBLANK(InfoPro!F69),"",InfoPro!F69) -> Solar FV | E76: =IF(ISBLANK(InfoPro!I69),"",YEAR(InfoPro!I69)-$G$3) -> 2 | F76: =IF(B76="","",VLOOKUP(D76,Tablas!$B$2:$E$13,2,FALSE)) -> 0.26 | G76: =IF(B76="","",VLOOKUP(D76,Tablas!$B$2:$G$13,6,FALSE)) -> 0 | H76: 227760 | I76: 28989.97608 | J76: 2132400.371 | K76: 1907334.857 | L76: 1706024.023 | M76: 1525960.664 | N76: 1364902.204 | O76: 1220842.759 | P76: 1091988.156 | Q76: 976733.5924 | R76: 873643.6425 | S76: 781434.3851 | T76: 698957.4106 | U76: 625185.5194 | V76: 559199.9279 | W76: 500178.8264 | X76: 447387.1434 | Y76: 6.679754607e+10 | Z76: 667975.4607
A77: =IF(ISBLANK(InfoPro!A70),"",InfoPro!A70) -> SC_1330_A2 | B77: =IF(ISBLANK(InfoPro!B70),"",InfoPro!B70) -> Helios Espinal I - 100MW | C77: =IF(ISBLANK(InfoPro!E70),"",InfoPro!E70) -> 100 | D77: =IF(ISBLANK(InfoPro!F70),"",InfoPro!F70) -> Solar FV | E77: =IF(ISBLANK(InfoPro!I70),"",YEAR(InfoPro!I70)-$G$3) -> 2 | F77: =IF(B77="","",VLOOKUP(D77,Tablas!$B$2:$E$13,2,FALSE)) -> 0.26 | G77: =IF(B77="","",VLOOKUP(D77,Tablas!$B$2:$G$13,6,FALSE)) -> 0 | H77: 227760 | I77: 28989.97608 | J77: =IF($I77="","",(1/(1+$C$4)^(J$7+$E77))*$I77*$C$5) -> 2132400.371 | K77: 1907334.857 | L77: 1706024.023 | M77: 1525960.664 | N77: 1364902.204 | O77: 1220842.759 | P77: 1091988.156 | Q77: 976733.5924 | R77: 873643.6425 | S77: 781434.3851 | T77: 698957.4106 | U77: 625185.5194 | V77: 559199.9279 | W77: 500178.8264 | X77: 447387.1434 | Y77: 6.679754607e+10 | Z77: 667975.4607
A78: =IF(ISBLANK(InfoPro!A71),"",InfoPro!A71) -> SC_1872_A2 | B78: =IF(ISBLANK(InfoPro!B71),"",InfoPro!B71) -> PARQUE SOLAR LA CANDILEJA | C78: =IF(ISBLANK(InfoPro!E71),"",InfoPro!E71) -> 9.9 | D78: =IF(ISBLANK(InfoPro!F71),"",InfoPro!F71) -> Solar FV | E78: =IF(ISBLANK(InfoPro!I71),"",YEAR(InfoPro!I71)-$G$3) -> 1 | F78: =IF(B78="","",VLOOKUP(D78,Tablas!$B$2:$E$13,2,FALSE)) -> 0.26 | G78: =IF(B78="","",VLOOKUP(D78,Tablas!$B$2:$G$13,6,FALSE)) -> 0 | H78: 22548.24 | I78: 2870.007632 | J78: 236018.3378 | K78: 211107.6367 | L78: 188826.1509 | M78: 168896.3782 | N78: 151070.1058 | O78: 135125.3182 | P78: 120863.4331 | Q78: 108106.8275 | R78: 96696.62564 | S78: 86490.72061 | T78: 77362.00413 | U78: 69196.78365 | V78: 61893.36642 | W78: 55360.79286 | X78: 49517.70381 | Y78: 7393285994 | Z78: 746796.5651
A79: =IF(ISBLANK(InfoPro!A72),"",InfoPro!A72) -> SC_1872_A1 | B79: =IF(ISBLANK(InfoPro!B72),"",InfoPro!B72) -> PARQUE SOLAR LA CANDILEJA | C79: =IF(ISBLANK(InfoPro!E72),"",InfoPro!E72) -> 9.9 | D79: =IF(ISBLANK(InfoPro!F72),"",InfoPro!F72) -> Solar FV | E79: =IF(ISBLANK(InfoPro!I72),"",YEAR(InfoPro!I72)-$G$3) -> 1 | F79: =IF(B79="","",VLOOKUP(D79,Tablas!$B$2:$E$13,2,FALSE)) -> 0.26 | G79: =IF(B79="","",VLOOKUP(D79,Tablas!$B$2:$G$13,6,FALSE)) -> 0 | H79: 22548.24 | I79: 2870.007632 | J79: 236018.3378 | K79: 211107.6367 | L79: 188826.1509 | M79: 168896.3782 | N79: 151070.1058 | O79: 135125.3182 | P79: 120863.4331 | Q79: 108106.8275 | R79: 96696.62564 | S79: 86490.72061 | T79: 77362.00413 | U79: 69196.78365 | V79: 61893.36642 | W79: 55360.79286 | X79: 49517.70381 | Y79: 7393285994 | Z79: 746796.5651
A80: =IF(ISBLANK(InfoPro!A73),"",InfoPro!A73) -> SC_1852_A1 | B80: =IF(ISBLANK(InfoPro!B73),"",InfoPro!B73) -> Helios Natagaima II - 50MW | C80: =IF(ISBLANK(InfoPro!E73),"",InfoPro!E73) -> 50 | D80: =IF(ISBLANK(InfoPro!F73),"",InfoPro!F73) -> Solar FV | E80: =IF(ISBLANK(InfoPro!I73),"",YEAR(InfoPro!I73)-$G$3) -> 2 | F80: =IF(B80="","",VLOOKUP(D80,Tablas!$B$2:$E$13,2,FALSE)) -> 0.26 | G80: =IF(B80="","",VLOOKUP(D80,Tablas!$B$2:$G$13,6,FALSE)) -> 0 | H80: 113880 | I80: 14494.98804 | J80: 1066200.185 | K80: 953667.4287 | L80: 853012.0114 | M80: 762980.3322 | N80: 682451.1021 | O80: 610421.3794 | P80: 545994.0781 | Q80: 488366.7962 | R80: 436821.8213 | S80: 390717.1926 | T80: 349478.7053 | U80: 312592.7597 | V80: 279599.9639 | W80: 250089.4132 | X80: 223693.5717 | Y80: 3.339877304e+10 | Z80: 667975.4607
A81: =IF(ISBLANK(InfoPro!A74),"",InfoPro!A74) -> SC_1852_A2 | B81: =IF(ISBLANK(InfoPro!B74),"",InfoPro!B74) -> Helios Natagaima II - 50MW | C81: =IF(ISBLANK(InfoPro!E74),"",InfoPro!E74) -> 50 | D81: =IF(ISBLANK(InfoPro!F74),"",InfoPro!F74) -> Solar FV | E81: =IF(ISBLANK(InfoPro!I74),"",YEAR(InfoPro!I74)-$G$3) -> 2 | F81: =IF(B81="","",VLOOKUP(D81,Tablas!$B$2:$E$13,2,FALSE)) -> 0.26 | G81: =IF(B81="","",VLOOKUP(D81,Tablas!$B$2:$G$13,6,FALSE)) -> 0 | H81: 113880 | I81: 14494.98804 | J81: 1066200.185 | K81: 953667.4287 | L81: 853012.0114 | M81: 762980.3322 | N81: 682451.1021 | O81: 610421.3794 | P81: 545994.0781 | Q81: 488366.7962 | R81: 436821.8213 | S81: 390717.1926 | T81: 349478.7053 | U81: 312592.7597 | V81: 279599.9639 | W81: 250089.4132 | X81: 223693.5717 | Y81: 3.339877304e+10 | Z81: 667975.4607
A82: =IF(ISBLANK(InfoPro!A75),"",InfoPro!A75) -> SC_1778_A1 | B82: =IF(ISBLANK(InfoPro!B75),"",InfoPro!B75) -> Paraiso Solar _ 9.9MW | C82: =IF(ISBLANK(InfoPro!E75),"",InfoPro!E75) -> 9.9 | D82: =IF(ISBLANK(InfoPro!F75),"",InfoPro!F75) -> Solar FV | E82: =IF(ISBLANK(InfoPro!I75),"",YEAR(InfoPro!I75)-$G$3) -> 1 | F82: =IF(B82="","",VLOOKUP(D82,Tablas!$B$2:$E$13,2,FALSE)) -> 0.26 | G82: =IF(B82="","",VLOOKUP(D82,Tablas!$B$2:$G$13,6,FALSE)) -> 0 | H82: 22548.24 | I82: 2870.007632 | J82: 236018.3378 | K82: 211107.6367 | L82: 188826.1509 | M82: 168896.3782 | N82: 151070.1058 | O82: 135125.3182 | P82: 120863.4331 | Q82: 108106.8275 | R82: 96696.62564 | S82: 86490.72061 | T82: 77362.00413 | U82: 69196.78365 | V82: 61893.36642 | W82: 55360.79286 | X82: 49517.70381 | Y82: 7393285994 | Z82: 746796.5651
A83: =IF(ISBLANK(InfoPro!A76),"",InfoPro!A76) -> SC_1828_A1 | B83: =IF(ISBLANK(InfoPro!B76),"",InfoPro!B76) -> Parque Fotovoltaico Santa Rita | C83: =IF(ISBLANK(InfoPro!E76),"",InfoPro!E76) -> 9.9 | D83: =IF(ISBLANK(InfoPro!F76),"",InfoPro!F76) -> Solar FV | E83: =IF(ISBLANK(InfoPro!I76),"",YEAR(InfoPro!I76)-$G$3) -> 1 | F83: =IF(B83="","",VLOOKUP(D83,Tablas!$B$2:$E$13,2,FALSE)) -> 0.26 | G83: =IF(B83="","",VLOOKUP(D83,Tablas!$B$2:$G$13,6,FALSE)) -> 0 | H83: 22548.24 | I83: 2870.007632 | J83: 236018.3378 | K83: 211107.6367 | L83: 188826.1509 | M83: 168896.3782 | N83: 151070.1058 | O83: 135125.3182 | P83: 120863.4331 | Q83: 108106.8275 | R83: 96696.62564 | S83: 86490.72061 | T83: 77362.00413 | U83: 69196.78365 | V83: 61893.36642 | W83: 55360.79286 | X83: 49517.70381 | Y83: 7393285994 | Z83: 746796.5651
A84: =IF(ISBLANK(InfoPro!A77),"",InfoPro!A77) -> SC_1828_A2 | B84: =IF(ISBLANK(InfoPro!B77),"",InfoPro!B77) -> Parque Fotovoltaico Santa Rita | C84: =IF(ISBLANK(InfoPro!E77),"",InfoPro!E77) -> 9.9 | D84: =IF(ISBLANK(InfoPro!F77),"",InfoPro!F77) -> Solar FV | E84: =IF(ISBLANK(InfoPro!I77),"",YEAR(InfoPro!I77)-$G$3) -> 1 | F84: =IF(B84="","",VLOOKUP(D84,Tablas!$B$2:$E$13,2,FALSE)) -> 0.26 | G84: =IF(B84="","",VLOOKUP(D84,Tablas!$B$2:$G$13,6,FALSE)) -> 0 | H84: 22548.24 | I84: 2870.007632 | J84: 236018.3378 | K84: 211107.6367 | L84: 188826.1509 | M84: 168896.3782 | N84: 151070.1058 | O84: 135125.3182 | P84: 120863.4331 | Q84: 108106.8275 | R84: 96696.62564 | S84: 86490.72061 | T84: 77362.00413 | U84: 69196.78365 | V84: 61893.36642 | W84: 55360.79286 | X84: 49517.70381 | Y84: 7393285994 | Z84: 746796.5651
A85: =IF(ISBLANK(InfoPro!A78),"",InfoPro!A78) -> SC_1767_A1 | B85: =IF(ISBLANK(InfoPro!B78),"",InfoPro!B78) -> Los Rosales 9,9 MW | C85: =IF(ISBLANK(InfoPro!E78),"",InfoPro!E78) -> 9.9 | D85: =IF(ISBLANK(InfoPro!F78),"",InfoPro!F78) -> Solar FV | E85: =IF(ISBLANK(InfoPro!I78),"",YEAR(InfoPro!I78)-$G$3) -> 1 | F85: =IF(B85="","",VLOOKUP(D85,Tablas!$B$2:$E$13,2,FALSE)) -> 0.26 | G85: =IF(B85="","",VLOOKUP(D85,Tablas!$B$2:$G$13,6,FALSE)) -> 0 | H85: 22548.24 | I85: 2870.007632 | J85: 236018.3378 | K85: 211107.6367 | L85: 188826.1509 | M85: 168896.3782 | N85: 151070.1058 | O85: 135125.3182 | P85: 120863.4331 | Q85: 108106.8275 | R85: 96696.62564 | S85: 86490.72061 | T85: 77362.00413 | U85: 69196.78365 | V85: 61893.36642 | W85: 55360.79286 | X85: 49517.70381 | Y85: 7393285994 | Z85: 746796.5651
A86: =IF(ISBLANK(InfoPro!A79),"",InfoPro!A79) -> SC_2006_A1 | B86: =IF(ISBLANK(InfoPro!B79),"",InfoPro!B79) -> JUNCAL 1 | C86: =IF(ISBLANK(InfoPro!E79),"",InfoPro!E79) -> 4.9 | D86: =IF(ISBLANK(InfoPro!F79),"",InfoPro!F79) -> Solar FV | E86: =IF(ISBLANK(InfoPro!I79),"",YEAR(InfoPro!I79)-$G$3) -> 1 | F86: =IF(B86="","",VLOOKUP(D86,Tablas!$B$2:$E$13,2,FALSE)) -> 0.26 | G86: =IF(B86="","",VLOOKUP(D86,Tablas!$B$2:$G$13,6,FALSE)) -> 0 | H86: 11160.24 | I86: 1420.508828 | J86: 116817.1571 | K86: 104487.6182 | L86: 93459.40801 | M86: 83595.17711 | N86: 74772.07255 | O86: 66880.20801 | P86: 59821.29518 | Q86: 53507.41966 | R86: 47859.94603 | S86: 42808.53848 | T86: 38290.28487 | U86: 34248.91312 | V86: 30634.09045 | W86: 27400.79647 | X86: 24508.76249 | Y86: 3659303169 | Z86: 746796.5651
A87: =IF(ISBLANK(InfoPro!A80),"",InfoPro!A80) -> SC_2038_A2 | B87: =IF(ISBLANK(InfoPro!B80),"",InfoPro!B80) -> TRAPICHITO SOLAR - 40 MW | C87: =IF(ISBLANK(InfoPro!E80),"",InfoPro!E80) -> 40 | D87: =IF(ISBLANK(InfoPro!F80),"",InfoPro!F80) -> Solar FV | E87: =IF(ISBLANK(InfoPro!I80),"",YEAR(InfoPro!I80)-$G$3) -> 3 | F87: =IF(B87="","",VLOOKUP(D87,Tablas!$B$2:$E$13,2,FALSE)) -> 0.26 | G87: =IF(B87="","",VLOOKUP(D87,Tablas!$B$2:$G$13,6,FALSE)) -> 0 | H87: 91104 | I87: 11595.99043 | J87: =IF($I87="","",(1/(1+$C$4)^(J$7+$E87))*$I87*$C$5) -> 762933.943 | K87: 682409.6091 | L87: 610384.2657 | M87: 545960.8817 | N87: 488337.1035 | O87: 436795.2625 | P87: 390693.4369 | Q87: 349457.457 | R87: 312573.754 | S87: 279582.9643 | T87: 250074.2077 | U87: 223679.9711 | V87: 200071.5305 | W87: 178954.8574 | X87: 160066.9565 | Y87: 2.389894314e+10 | Z87: 597473.5785
A88: =IF(ISBLANK(InfoPro!A81),"",InfoPro!A81) -> SC_2038_A1 | B88: =IF(ISBLANK(InfoPro!B81),"",InfoPro!B81) -> TRAPICHITO SOLAR - 40 MW | C88: =IF(ISBLANK(InfoPro!E81),"",InfoPro!E81) -> 40 | D88: =IF(ISBLANK(InfoPro!F81),"",InfoPro!F81) -> Solar FV | E88: =IF(ISBLANK(InfoPro!I81),"",YEAR(InfoPro!I81)-$G$3) -> 3 | F88: =IF(B88="","",VLOOKUP(D88,Tablas!$B$2:$E$13,2,FALSE)) -> 0.26 | G88: =IF(B88="","",VLOOKUP(D88,Tablas!$B$2:$G$13,6,FALSE)) -> 0 | H88: 91104 | I88: 11595.99043 | J88: 762933.943 | K88: 682409.6091 | L88: 610384.2657 | M88: 545960.8817 | N88: 488337.1035 | O88: 436795.2625 | P88: 390693.4369 | Q88: 349457.457 | R88: 312573.754 | S88: 279582.9643 | T88: 250074.2077 | U88: 223679.9711 | V88: 200071.5305 | W88: 178954.8574 | X88: 160066.9565 | Y88: 2.389894314e+10 | Z88: 597473.5785
A89: =IF(ISBLANK(InfoPro!A82),"",InfoPro!A82) -> SC_1777_A1 | B89: =IF(ISBLANK(InfoPro!B82),"",InfoPro!B82) -> Sol Bochica | C89: =IF(ISBLANK(InfoPro!E82),"",InfoPro!E82) -> 19.9 | D89: =IF(ISBLANK(InfoPro!F82),"",InfoPro!F82) -> Solar FV | E89: =IF(ISBLANK(InfoPro!I82),"",YEAR(InfoPro!I82)-$G$3) -> 1 | F89: =IF(B89="","",VLOOKUP(D89,Tablas!$B$2:$E$13,2,FALSE)) -> 0.26 | G89: =IF(B89="","",VLOOKUP(D89,Tablas!$B$2:$G$13,6,FALSE)) -> 0 | H89: 45324.24 | I89: 5769.00524 | J89: 474420.6992 | K89: 424347.6737 | L89: 379559.6366 | M89: 339498.7805 | N89: 303666.1722 | O89: 271615.5386 | P89: 242947.709 | Q89: 217305.6431 | R89: 194369.9849 | S89: 173855.0849 | T89: 155505.4426 | U89: 139092.5247 | V89: 124411.9184 | W89: 111280.7856 | X89: 99535.58645 | Y89: 1.486125165e+10 | Z89: 746796.5651
A90: =IF(ISBLANK(InfoPro!A83),"",InfoPro!A83) -> SC_1777_A2 | B90: =IF(ISBLANK(InfoPro!B83),"",InfoPro!B83) -> Sol Bochica | C90: =IF(ISBLANK(InfoPro!E83),"",InfoPro!E83) -> 19.9 | D90: =IF(ISBLANK(InfoPro!F83),"",InfoPro!F83) -> Solar FV | E90: =IF(ISBLANK(InfoPro!I83),"",YEAR(InfoPro!I83)-$G$3) -> 1 | F90: =IF(B90="","",VLOOKUP(D90,Tablas!$B$2:$E$13,2,FALSE)) -> 0.26 | G90: =IF(B90="","",VLOOKUP(D90,Tablas!$B$2:$G$13,6,FALSE)) -> 0 | H90: 45324.24 | I90: 5769.00524 | J90: 474420.6992 | K90: 424347.6737 | L90: 379559.6366 | M90: 339498.7805 | N90: 303666.1722 | O90: 271615.5386 | P90: 242947.709 | Q90: 217305.6431 | R90: 194369.9849 | S90: 173855.0849 | T90: 155505.4426 | U90: 139092.5247 | V90: 124411.9184 | W90: 111280.7856 | X90: 99535.58645 | Y90: 1.486125165e+10 | Z90: 746796.5651
A91: =IF(ISBLANK(InfoPro!A84),"",InfoPro!A84) -> SC_1930_A1 | B91: =IF(ISBLANK(InfoPro!B84),"",InfoPro!B84) -> PV José Maria Cordova | C91: =IF(ISBLANK(InfoPro!E84),"",InfoPro!E84) -> 9.9 | D91: =IF(ISBLANK(InfoPro!F84),"",InfoPro!F84) -> Solar FV | E91: =IF(ISBLANK(InfoPro!I84),"",YEAR(InfoPro!I84)-$G$3) -> 2 | F91: =IF(B91="","",VLOOKUP(D91,Tablas!$B$2:$E$13,2,FALSE)) -> 0.26 | G91: =IF(B91="","",VLOOKUP(D91,Tablas!$B$2:$G$13,6,FALSE)) -> 0 | H91: 22548.24 | I91: 2870.007632 | J91: 211107.6367 | K91: 188826.1509 | L91: 168896.3782 | M91: 151070.1058 | N91: 135125.3182 | O91: 120863.4331 | P91: 108106.8275 | Q91: 96696.62564 | R91: 86490.72061 | S91: 77362.00413 | T91: 69196.78365 | U91: 61893.36642 | V91: 55360.79286 | W91: 49517.70381 | X91: 44291.3272 | Y91: 6612957061 | Z91: 667975.4607
A92: =IF(ISBLANK(InfoPro!A85),"",InfoPro!A85) -> SC_2004_A1 | B92: =IF(ISBLANK(InfoPro!B85),"",InfoPro!B85) -> Arreboles l | C92: =IF(ISBLANK(InfoPro!E85),"",InfoPro!E85) -> 19.9 | D92: =IF(ISBLANK(InfoPro!F85),"",InfoPro!F85) -> Solar FV | E92: =IF(ISBLANK(InfoPro!I85),"",YEAR(InfoPro!I85)-$G$3) -> 2 | F92: =IF(B92="","",VLOOKUP(D92,Tablas!$B$2:$E$13,2,FALSE)) -> 0.26 | G92: =IF(B92="","",VLOOKUP(D92,Tablas!$B$2:$G$13,6,FALSE)) -> 0 | H92: 45324.24 | I92: 5769.00524 | J92: 424347.6737 | K92: 379559.6366 | L92: 339498.7805 | M92: 303666.1722 | N92: 271615.5386 | O92: 242947.709 | P92: 217305.6431 | Q92: 194369.9849 | R92: 173855.0849 | S92: 155505.4426 | T92: 139092.5247 | U92: 124411.9184 | V92: 111280.7856 | W92: 99535.58645 | X92: 89030.04154 | Y92: 1.329271167e+10 | Z92: 667975.4607
A93: =IF(ISBLANK(InfoPro!A86),"",InfoPro!A86) -> SC_2004_A2 | B93: =IF(ISBLANK(InfoPro!B86),"",InfoPro!B86) -> Arreboles l | C93: =IF(ISBLANK(InfoPro!E86),"",InfoPro!E86) -> 19.9 | D93: =IF(ISBLANK(InfoPro!F86),"",InfoPro!F86) -> Solar FV | E93: =IF(ISBLANK(InfoPro!I86),"",YEAR(InfoPro!I86)-$G$3) -> 2 | F93: =IF(B93="","",VLOOKUP(D93,Tablas!$B$2:$E$13,2,FALSE)) -> 0.26 | G93: =IF(B93="","",VLOOKUP(D93,Tablas!$B$2:$G$13,6,FALSE)) -> 0 | H93: =IF(C93="","",+C93*F93*24*365) -> 45324.24 | I93: 5769.00524 | J93: 424347.6737 | K93: 379559.6366 | L93: 339498.7805 | M93: 303666.1722 | N93: 271615.5386 | O93: 242947.709 | P93: 217305.6431 | Q93: 194369.9849 | R93: 173855.0849 | S93: 155505.4426 | T93: 139092.5247 | U93: 124411.9184 | V93: 111280.7856 | W93: 99535.58645 | X93: 89030.04154 | Y93: 1.329271167e+10 | Z93: 667975.4607
A94: =IF(ISBLANK(InfoPro!A87),"",InfoPro!A87) -> SC_2151_A1 | B94: =IF(ISBLANK(InfoPro!B87),"",InfoPro!B87) -> El Jaspe | C94: =IF(ISBLANK(InfoPro!E87),"",InfoPro!E87) -> 19.9 | D94: =IF(ISBLANK(InfoPro!F87),"",InfoPro!F87) -> Solar FV | E94: =IF(ISBLANK(InfoPro!I87),"",YEAR(InfoPro!I87)-$G$3) -> 1 | F94: =IF(B94="","",VLOOKUP(D94,Tablas!$B$2:$E$13,2,FALSE)) -> 0.26 | G94: =IF(B94="","",VLOOKUP(D94,Tablas!$B$2:$G$13,6,FALSE)) -> 0 | H94: 45324.24 | I94: 5769.00524 | J94: 474420.6992 | K94: 424347.6737 | L94: 379559.6366 | M94: 339498.7805 | N94: 303666.1722 | O94: 271615.5386 | P94: 242947.709 | Q94: 217305.6431 | R94: 194369.9849 | S94: 173855.0849 | T94: 155505.4426 | U94: 139092.5247 | V94: 124411.9184 | W94: 111280.7856 | X94: 99535.58645 | Y94: 1.486125165e+10 | Z94: 746796.5651
A95: =IF(ISBLANK(InfoPro!A88),"",InfoPro!A88) -> SC_2114_A1 | B95: =IF(ISBLANK(InfoPro!B88),"",InfoPro!B88) -> Arcadia | C95: =IF(ISBLANK(InfoPro!E88),"",InfoPro!E88) -> 8 | D95: =IF(ISBLANK(InfoPro!F88),"",InfoPro!F88) -> Solar FV | E95: =IF(ISBLANK(InfoPro!I88),"",YEAR(InfoPro!I88)-$G$3) -> 1 | F95: =IF(B95="","",VLOOKUP(D95,Tablas!$B$2:$E$13,2,FALSE)) -> 0.26 | G95: =IF(B95="","",VLOOKUP(D95,Tablas!$B$2:$G$13,6,FALSE)) -> 0 | H95: 18220.8 | I95: 2319.198086 | J95: 190721.8891 | K95: 170592.0296 | L95: 152586.7886 | M95: 136481.9218 | N95: 122076.8531 | O95: 109192.1763 | P95: 97667.4207 | Q95: 87359.0525 | R95: 78138.68739 | S95: 69891.4914 | T95: 62514.75081 | U95: 55916.59285 | V95: 50014.84155 | W95: 44735.99423 | X95: 40014.30611 | Y95: 5974372521 | Z95: 746796.5651
A96: =IF(ISBLANK(InfoPro!A89),"",InfoPro!A89) -> SC_2114_A2 | B96: =IF(ISBLANK(InfoPro!B89),"",InfoPro!B89) -> Arcadia | C96: =IF(ISBLANK(InfoPro!E89),"",InfoPro!E89) -> 8 | D96: =IF(ISBLANK(InfoPro!F89),"",InfoPro!F89) -> Solar FV | E96: =IF(ISBLANK(InfoPro!I89),"",YEAR(InfoPro!I89)-$G$3) -> 1 | F96: =IF(B96="","",VLOOKUP(D96,Tablas!$B$2:$E$13,2,FALSE)) -> 0.26 | G96: =IF(B96="","",VLOOKUP(D96,Tablas!$B$2:$G$13,6,FALSE)) -> 0 | H96: 18220.8 | I96: 2319.198086 | J96: 190721.8891 | K96: 170592.0296 | L96: 152586.7886 | M96: 136481.9218 | N96: 122076.8531 | O96: 109192.1763 | P96: 97667.4207 | Q96: 87359.0525 | R96: 78138.68739 | S96: 69891.4914 | T96: 62514.75081 | U96: 55916.59285 | V96: 50014.84155 | W96: 44735.99423 | X96: 40014.30611 | Y96: 5974372521 | Z96: 746796.5651
A97: =IF(ISBLANK(InfoPro!A90),"",InfoPro!A90) -> SC_2105_A1 | B97: =IF(ISBLANK(InfoPro!B90),"",InfoPro!B90) -> Misak | C97: =IF(ISBLANK(InfoPro!E90),"",InfoPro!E90) -> 80 | D97: =IF(ISBLANK(InfoPro!F90),"",InfoPro!F90) -> Solar FV | E97: =IF(ISBLANK(InfoPro!I90),"",YEAR(InfoPro!I90)-$G$3) -> 3 | F97: =IF(B97="","",VLOOKUP(D97,Tablas!$B$2:$E$13,2,FALSE)) -> 0.26 | G97: =IF(B97="","",VLOOKUP(D97,Tablas!$B$2:$G$13,6,FALSE)) -> 0 | H97: 182208 | I97: 23191.98086 | J97: =IF($I97="","",(1/(1+$C$4)^(J$7+$E97))*$I97*$C$5) -> 1525867.886 | K97: 1364819.218 | L97: 1220768.531 | M97: 1091921.763 | N97: 976674.207 | O97: 873590.525 | P97: 781386.8739 | Q97: 698914.914 | R97: 625147.5081 | S97: 559165.9285 | T97: 500148.4155 | U97: 447359.9423 | V97: 400143.0611 | W97: 357909.7147 | X97: 320133.913 | Y97: 4.779788628e+10 | Z97: 597473.5785
A98: =IF(ISBLANK(InfoPro!A91),"",InfoPro!A91) -> SC_2105_A2 | B98: =IF(ISBLANK(InfoPro!B91),"",InfoPro!B91) -> Misak | C98: =IF(ISBLANK(InfoPro!E91),"",InfoPro!E91) -> 80 | D98: =IF(ISBLANK(InfoPro!F91),"",InfoPro!F91) -> Solar FV | E98: =IF(ISBLANK(InfoPro!I91),"",YEAR(InfoPro!I91)-$G$3) -> 3 | F98: =IF(B98="","",VLOOKUP(D98,Tablas!$B$2:$E$13,2,FALSE)) -> 0.26 | G98: =IF(B98="","",VLOOKUP(D98,Tablas!$B$2:$G$13,6,FALSE)) -> 0 | H98: 182208 | I98: 23191.98086 | J98: 1525867.886 | K98: 1364819.218 | L98: 1220768.531 | M98: 1091921.763 | N98: 976674.207 | O98: 873590.525 | P98: 781386.8739 | Q98: 698914.914 | R98: 625147.5081 | S98: 559165.9285 | T98: 500148.4155 | U98: 447359.9423 | V98: 400143.0611 | W98: 357909.7147 | X98: 320133.913 | Y98: 4.779788628e+10 | Z98: 597473.5785
A99: =IF(ISBLANK(InfoPro!A92),"",InfoPro!A92) -> SC_1787_A1 | B99: =IF(ISBLANK(InfoPro!B92),"",InfoPro!B92) -> Proyecto Xanadu | C99: =IF(ISBLANK(InfoPro!E92),"",InfoPro!E92) -> 15 | D99: =IF(ISBLANK(InfoPro!F92),"",InfoPro!F92) -> Solar FV | E99: =IF(ISBLANK(InfoPro!I92),"",YEAR(InfoPro!I92)-$G$3) -> 4 | F99: =IF(B99="","",VLOOKUP(D99,Tablas!$B$2:$E$13,2,FALSE)) -> 0.26 | G99: =IF(B99="","",VLOOKUP(D99,Tablas!$B$2:$G$13,6,FALSE)) -> 0 | H99: 34164 | I99: 4348.496412 | J99: 255903.6034 | K99: 228894.0996 | L99: 204735.3306 | M99: 183126.4138 | N99: 163798.2234 | O99: 146510.0389 | P99: 131046.5464 | Q99: 117215.1578 | R99: 104843.6116 | S99: 93777.8279 | T99: 83879.98918 | U99: 75026.82395 | V99: 67108.07152 | W99: 60025.10869 | X99: 53689.72155 | Y99: 8016192913 | Z99: 534412.8609
A100: =IF(ISBLANK(InfoPro!A93),"",InfoPro!A93) -> SC_1787_A2 | B100: =IF(ISBLANK(InfoPro!B93),"",InfoPro!B93) -> Proyecto Xanadu | C100: =IF(ISBLANK(InfoPro!E93),"",InfoPro!E93) -> 15 | D100: =IF(ISBLANK(InfoPro!F93),"",InfoPro!F93) -> Solar FV | E100: =IF(ISBLANK(InfoPro!I93),"",YEAR(InfoPro!I93)-$G$3) -> 4 | F100: =IF(B100="","",VLOOKUP(D100,Tablas!$B$2:$E$13,2,FALSE)) -> 0.26 | G100: =IF(B100="","",VLOOKUP(D100,Tablas!$B$2:$G$13,6,FALSE)) -> 0 | H100: 34164 | I100: 4348.496412 | J100: 255903.6034 | K100: 228894.0996 | L100: 204735.3306 | M100: 183126.4138 | N100: 163798.2234 | O100: 146510.0389 | P100: 131046.5464 | Q100: 117215.1578 | R100: 104843.6116 | S100: 93777.8279 | T100: 83879.98918 | U100: 75026.82395 | V100: 67108.07152 | W100: 60025.10869 | X100: 53689.72155 | Y100: 8016192913 | Z100: 534412.8609
A101: =IF(ISBLANK(InfoPro!A94),"",InfoPro!A94) -> SC_2191_A1 | B101: =IF(ISBLANK(InfoPro!B94),"",InfoPro!B94) -> Yama Wind Farm | C101: =IF(ISBLANK(InfoPro!E94),"",InfoPro!E94) -> 125 | D101: =IF(ISBLANK(InfoPro!F94),"",InfoPro!F94) -> Eólico Onshore | E101: =IF(ISBLANK(InfoPro!I94),"",YEAR(InfoPro!I94)-$G$3) -> 3 | F101: =IF(B101="","",VLOOKUP(D101,Tablas!$B$2:$E$13,2,FALSE)) -> 0.57 | G101: =IF(B101="","",VLOOKUP(D101,Tablas!$B$2:$G$13,6,FALSE)) -> 0 | H101: 624150 | I101: 79443.68445 | J101: 5226831.1 | K101: 4675161.985 | L101: 4181719.128 | M101: 3740357.002 | N101: 3345578.714 | O101: 2992467.544 | P101: 2676625.71 | Q101: 2394119.597 | R101: 2141430.767 | S101: 1915412.135 | T101: 1713248.779 | U101: 1532422.879 | V101: 1370682.361 | W101: 1226012.845 | X101: 1096612.563 | Y101: 1.637307403e+11 | Z101: 1309845.922
A102: =IF(ISBLANK(InfoPro!A95),"",InfoPro!A95) -> SC_2191_A2 | B102: =IF(ISBLANK(InfoPro!B95),"",InfoPro!B95) -> Yama Wind Farm | C102: =IF(ISBLANK(InfoPro!E95),"",InfoPro!E95) -> 125 | D102: =IF(ISBLANK(InfoPro!F95),"",InfoPro!F95) -> Eólico Onshore | E102: =IF(ISBLANK(InfoPro!I95),"",YEAR(InfoPro!I95)-$G$3) -> 3 | F102: =IF(B102="","",VLOOKUP(D102,Tablas!$B$2:$E$13,2,FALSE)) -> 0.57 | G102: =IF(B102="","",VLOOKUP(D102,Tablas!$B$2:$G$13,6,FALSE)) -> 0 | H102: 624150 | I102: 79443.68445 | J102: 5226831.1 | K102: 4675161.985 | L102: 4181719.128 | M102: 3740357.002 | N102: 3345578.714 | O102: 2992467.544 | P102: 2676625.71 | Q102: 2394119.597 | R102: 2141430.767 | S102: 1915412.135 | T102: 1713248.779 | U102: 1532422.879 | V102: 1370682.361 | W102: 1226012.845 | X102: 1096612.563 | Y102: 1.637307403e+11 | Z102: 1309845.922
A103: =IF(ISBLANK(InfoPro!A96),"",InfoPro!A96) -> SC_1990_A1 | B103: =IF(ISBLANK(InfoPro!B96),"",InfoPro!B96) -> Solar Escobal 8 19.9 MW | C103: =IF(ISBLANK(InfoPro!E96),"",InfoPro!E96) -> 19.9 | D103: =IF(ISBLANK(InfoPro!F96),"",InfoPro!F96) -> Solar FV | E103: =IF(ISBLANK(InfoPro!I96),"",YEAR(InfoPro!I96)-$G$3) -> 7 | F103: =IF(B103="","",VLOOKUP(D103,Tablas!$B$2:$E$13,2,FALSE)) -> 0.26 | G103: =IF(B103="","",VLOOKUP(D103,Tablas!$B$2:$G$13,6,FALSE)) -> 0 | H103: 45324.24 | I103: =IF(H103="","",+H103*($C$3-G103)) -> 5769.00524 | J103: 242947.709 | K103: 217305.6431 | L103: 194369.9849 | M103: 173855.0849 | N103: 155505.4426 | O103: 139092.5247 | P103: 124411.9184 | Q103: 111280.7856 | R103: 99535.58645 | S103: 89030.04154 | T103: 79633.31086 | U103: 71228.36392 | V103: 63710.52229 | W103: 56986.15589 | X103: 50971.5169 | Y103: 7610348886 | Z103: 382429.5922
A104: =IF(ISBLANK(InfoPro!A97),"",InfoPro!A97) -> SC_1936_A1 | B104: =IF(ISBLANK(InfoPro!B97),"",InfoPro!B97) -> Solar Escobal 7 19.9 MW | C104: =IF(ISBLANK(InfoPro!E97),"",InfoPro!E97) -> 19.9 | D104: =IF(ISBLANK(InfoPro!F97),"",InfoPro!F97) -> Solar FV | E104: =IF(ISBLANK(InfoPro!I97),"",YEAR(InfoPro!I97)-$G$3) -> 7 | F104: =IF(B104="","",VLOOKUP(D104,Tablas!$B$2:$E$13,2,FALSE)) -> 0.26 | G104: =IF(B104="","",VLOOKUP(D104,Tablas!$B$2:$G$13,6,FALSE)) -> 0 | H104: 45324.24 | I104: 5769.00524 | J104: 242947.709 | K104: 217305.6431 | L104: 194369.9849 | M104: 173855.0849 | N104: 155505.4426 | O104: 139092.5247 | P104: 124411.9184 | Q104: 111280.7856 | R104: 99535.58645 | S104: 89030.04154 | T104: 79633.31086 | U104: 71228.36392 | V104: 63710.52229 | W104: 56986.15589 | X104: 50971.5169 | Y104: 7610348886 | Z104: 382429.5922
A105: =IF(ISBLANK(InfoPro!A98),"",InfoPro!A98) -> SC_2138_A2 | B105: =IF(ISBLANK(InfoPro!B98),"",InfoPro!B98) -> Parque Solar Libra | C105: =IF(ISBLANK(InfoPro!E98),"",InfoPro!E98) -> 100 | D105: =IF(ISBLANK(InfoPro!F98),"",InfoPro!F98) -> Solar FV | E105: =IF(ISBLANK(InfoPro!I98),"",YEAR(InfoPro!I98)-$G$3) -> 4 | F105: =IF(B105="","",VLOOKUP(D105,Tablas!$B$2:$E$13,2,FALSE)) -> 0.26 | G105: =IF(B105="","",VLOOKUP(D105,Tablas!$B$2:$G$13,6,FALSE)) -> 0 | H105: 227760 | I105: 28989.97608 | J105: 1706024.023 | K105: 1525960.664 | L105: 1364902.204 | M105: 1220842.759 | N105: 1091988.156 | O105: 976733.5924 | P105: 873643.6425 | Q105: 781434.3851 | R105: 698957.4106 | S105: 625185.5194 | T105: 559199.9279 | U105: 500178.8264 | V105: 447387.1434 | W105: 400167.3913 | X105: 357931.477 | Y105: 5.344128609e+10 | Z105: 534412.8609
A106: =IF(ISBLANK(InfoPro!A99),"",InfoPro!A99) -> SC_2138_A1 | B106: =IF(ISBLANK(InfoPro!B99),"",InfoPro!B99) -> Parque Solar Libra | C106: =IF(ISBLANK(InfoPro!E99),"",InfoPro!E99) -> 100 | D106: =IF(ISBLANK(InfoPro!F99),"",InfoPro!F99) -> Solar FV | E106: =IF(ISBLANK(InfoPro!I99),"",YEAR(InfoPro!I99)-$G$3) -> 4 | F106: =IF(B106="","",VLOOKUP(D106,Tablas!$B$2:$E$13,2,FALSE)) -> 0.26 | G106: =IF(B106="","",VLOOKUP(D106,Tablas!$B$2:$G$13,6,FALSE)) -> 0 | H106: 227760 | I106: 28989.97608 | J106: 1706024.023 | K106: 1525960.664 | L106: 1364902.204 | M106: 1220842.759 | N106: 1091988.156 | O106: 976733.5924 | P106: 873643.6425 | Q106: 781434.3851 | R106: 698957.4106 | S106: 625185.5194 | T106: 559199.9279 | U106: 500178.8264 | V106: 447387.1434 | W106: 400167.3913 | X106: 357931.477 | Y106: 5.344128609e+10 | Z106: 534412.8609
A107: =IF(ISBLANK(InfoPro!A100),"",InfoPro!A100) -> SC_2202_A1 | B107: =IF(ISBLANK(InfoPro!B100),"",InfoPro!B100) -> Parque Fotovoltaico Fortalecillas 9.9 MW | C107: =IF(ISBLANK(InfoPro!E100),"",InfoPro!E100) -> 9.9 | D107: =IF(ISBLANK(InfoPro!F100),"",InfoPro!F100) -> Solar FV | E107: =IF(ISBLANK(InfoPro!I100),"",YEAR(InfoPro!I100)-$G$3) -> 1 | F107: =IF(B107="","",VLOOKUP(D107,Tablas!$B$2:$E$13,2,FALSE)) -> 0.26 | G107: =IF(B107="","",VLOOKUP(D107,Tablas!$B$2:$G$13,6,FALSE)) -> 0 | H107: =IF(C107="","",+C107*F107*24*365) -> 22548.24 | I107: =IF(H107="","",+H107*($C$3-G107)) -> 2870.007632 | J107: 236018.3378 | K107: 211107.6367 | L107: 188826.1509 | M107: 168896.3782 | N107: 151070.1058 | O107: 135125.3182 | P107: 120863.4331 | Q107: 108106.8275 | R107: 96696.62564 | S107: 86490.72061 | T107: 77362.00413 | U107: 69196.78365 | V107: 61893.36642 | W107: 55360.79286 | X107: 49517.70381 | Y107: =IF(X107="","",SUM(J107:X107)*$C$6) -> 7393285994 | Z107: =IF(C107=0,0,IF(Y107="","",Y107/(C107*1000))) -> 746796.5651
A108: =IF(ISBLANK(InfoPro!A101),"",InfoPro!A101) -> SC_2207_A1 | B108: =IF(ISBLANK(InfoPro!B101),"",InfoPro!B101) -> Proyecto Fotovoltaico Pi Épsilon Coyaima II | C108: =IF(ISBLANK(InfoPro!E101),"",InfoPro!E101) -> 9.9 | D108: =IF(ISBLANK(InfoPro!F101),"",InfoPro!F101) -> Solar FV | E108: =IF(ISBLANK(InfoPro!I101),"",YEAR(InfoPro!I101)-$G$3) -> 1 | F108: =IF(B108="","",VLOOKUP(D108,Tablas!$B$2:$E$13,2,FALSE)) -> 0.26 | G108: =IF(B108="","",VLOOKUP(D108,Tablas!$B$2:$G$13,6,FALSE)) -> 0 | H108: 22548.24 | I108: 2870.007632 | J108: 236018.3378 | K108: 211107.6367 | L108: 188826.1509 | M108: 168896.3782 | N108: 151070.1058 | O108: 135125.3182 | P108: 120863.4331 | Q108: 108106.8275 | R108: 96696.62564 | S108: 86490.72061 | T108: 77362.00413 | U108: 69196.78365 | V108: 61893.36642 | W108: 55360.79286 | X108: 49517.70381 | Y108: 7393285994 | Z108: 746796.5651
A109: =IF(ISBLANK(InfoPro!A102),"",InfoPro!A102) -> SC_2207_A2 | B109: =IF(ISBLANK(InfoPro!B102),"",InfoPro!B102) -> Proyecto Fotovoltaico Pi Épsilon Coyaima II | C109: =IF(ISBLANK(InfoPro!E102),"",InfoPro!E102) -> 9.9 | D109: =IF(ISBLANK(InfoPro!F102),"",InfoPro!F102) -> Solar FV | E109: =IF(ISBLANK(InfoPro!I102),"",YEAR(InfoPro!I102)-$G$3) -> 1 | F109: =IF(B109="","",VLOOKUP(D109,Tablas!$B$2:$E$13,2,FALSE)) -> 0.26 | G109: =IF(B109="","",VLOOKUP(D109,Tablas!$B$2:$G$13,6,FALSE)) -> 0 | H109: =IF(C109="","",+C109*F109*24*365) -> 22548.24 | I109: =IF(H109="","",+H109*($C$3-G109)) -> 2870.007632 | J109: 236018.3378 | K109: 211107.6367 | L109: 188826.1509 | M109: 168896.3782 | N109: 151070.1058 | O109: 135125.3182 | P109: 120863.4331 | Q109: 108106.8275 | R109: 96696.62564 | S109: 86490.72061 | T109: 77362.00413 | U109: 69196.78365 | V109: 61893.36642 | W109: 55360.79286 | X109: 49517.70381 | Y109: =IF(X109="","",SUM(J109:X109)*$C$6) -> 7393285994 | Z109: =IF(C109=0,0,IF(Y109="","",Y109/(C109*1000))) -> 746796.5651
A110: =IF(ISBLANK(InfoPro!A103),"",InfoPro!A103) -> SC_2147_A1 | B110: =IF(ISBLANK(InfoPro!B103),"",InfoPro!B103) -> Parque Fotovoltaico Bateas 9.9 MW | C110: =IF(ISBLANK(InfoPro!E103),"",InfoPro!E103) -> 9.9 | D110: =IF(ISBLANK(InfoPro!F103),"",InfoPro!F103) -> Solar FV | E110: =IF(ISBLANK(InfoPro!I103),"",YEAR(InfoPro!I103)-$G$3) -> 1 | F110: =IF(B110="","",VLOOKUP(D110,Tablas!$B$2:$E$13,2,FALSE)) -> 0.26 | G110: =IF(B110="","",VLOOKUP(D110,Tablas!$B$2:$G$13,6,FALSE)) -> 0 | H110: 22548.24 | I110: 2870.007632 | J110: 236018.3378 | K110: 211107.6367 | L110: 188826.1509 | M110: 168896.3782 | N110: 151070.1058 | O110: 135125.3182 | P110: 120863.4331 | Q110: 108106.8275 | R110: 96696.62564 | S110: 86490.72061 | T110: 77362.00413 | U110: 69196.78365 | V110: 61893.36642 | W110: 55360.79286 | X110: 49517.70381 | Y110: 7393285994 | Z110: 746796.5651
A111: =IF(ISBLANK(InfoPro!A104),"",InfoPro!A104) -> SC_2080_A1 | B111: =IF(ISBLANK(InfoPro!B104),"",InfoPro!B104) -> Proyecto Fotovoltaico Pi Épsilon Coyaima I 9.9 MW | C111: =IF(ISBLANK(InfoPro!E104),"",InfoPro!E104) -> 9.9 | D111: =IF(ISBLANK(InfoPro!F104),"",InfoPro!F104) -> Solar FV | E111: =IF(ISBLANK(InfoPro!I104),"",YEAR(InfoPro!I104)-$G$3) -> 2 | F111: =IF(B111="","",VLOOKUP(D111,Tablas!$B$2:$E$13,2,FALSE)) -> 0.26 | G111: =IF(B111="","",VLOOKUP(D111,Tablas!$B$2:$G$13,6,FALSE)) -> 0 | H111: 22548.24 | I111: 2870.007632 | J111: 211107.6367 | K111: 188826.1509 | L111: 168896.3782 | M111: 151070.1058 | N111: 135125.3182 | O111: 120863.4331 | P111: 108106.8275 | Q111: 96696.62564 | R111: 86490.72061 | S111: 77362.00413 | T111: 69196.78365 | U111: 61893.36642 | V111: 55360.79286 | W111: 49517.70381 | X111: 44291.3272 | Y111: 6612957061 | Z111: 667975.4607
A112: =IF(ISBLANK(InfoPro!A105),"",InfoPro!A105) -> SC_2080_A2 | B112: =IF(ISBLANK(InfoPro!B105),"",InfoPro!B105) -> Proyecto Fotovoltaico Pi Épsilon Coyaima I 9.9 MW | C112: =IF(ISBLANK(InfoPro!E105),"",InfoPro!E105) -> 9.9 | D112: =IF(ISBLANK(InfoPro!F105),"",InfoPro!F105) -> Solar FV | E112: =IF(ISBLANK(InfoPro!I105),"",YEAR(InfoPro!I105)-$G$3) -> 2 | F112: =IF(B112="","",VLOOKUP(D112,Tablas!$B$2:$E$13,2,FALSE)) -> 0.26 | G112: =IF(B112="","",VLOOKUP(D112,Tablas!$B$2:$G$13,6,FALSE)) -> 0 | H112: 22548.24 | I112: 2870.007632 | J112: 211107.6367 | K112: 188826.1509 | L112: 168896.3782 | M112: 151070.1058 | N112: 135125.3182 | O112: 120863.4331 | P112: 108106.8275 | Q112: 96696.62564 | R112: 86490.72061 | S112: 77362.00413 | T112: 69196.78365 | U112: 61893.36642 | V112: 55360.79286 | W112: 49517.70381 | X112: 44291.3272 | Y112: 6612957061 | Z112: 667975.4607
A113: =IF(ISBLANK(InfoPro!A106),"",InfoPro!A106) -> SC_2088_A1 | B113: =IF(ISBLANK(InfoPro!B106),"",InfoPro!B106) -> Proyecto Fotovoltaico Pi Épsilon Coyaima IV 9.9 MW | C113: =IF(ISBLANK(InfoPro!E106),"",InfoPro!E106) -> 9.9 | D113: =IF(ISBLANK(InfoPro!F106),"",InfoPro!F106) -> Solar FV | E113: =IF(ISBLANK(InfoPro!I106),"",YEAR(InfoPro!I106)-$G$3) -> 2 | F113: =IF(B113="","",VLOOKUP(D113,Tablas!$B$2:$E$13,2,FALSE)) -> 0.26 | G113: =IF(B113="","",VLOOKUP(D113,Tablas!$B$2:$G$13,6,FALSE)) -> 0 | H113: 22548.24 | I113: 2870.007632 | J113: =IF($I113="","",(1/(1+$C$4)^(J$7+$E113))*$I113*$C$5) -> 211107.6367 | K113: 188826.1509 | L113: 168896.3782 | M113: 151070.1058 | N113: 135125.3182 | O113: 120863.4331 | P113: 108106.8275 | Q113: 96696.62564 | R113: 86490.72061 | S113: 77362.00413 | T113: 69196.78365 | U113: 61893.36642 | V113: 55360.79286 | W113: 49517.70381 | X113: 44291.3272 | Y113: 6612957061 | Z113: 667975.4607
A114: =IF(ISBLANK(InfoPro!A107),"",InfoPro!A107) -> SC_2088_A2 | B114: =IF(ISBLANK(InfoPro!B107),"",InfoPro!B107) -> Proyecto Fotovoltaico Pi Épsilon Coyaima IV 9.9 MW | C114: =IF(ISBLANK(InfoPro!E107),"",InfoPro!E107) -> 9.9 | D114: =IF(ISBLANK(InfoPro!F107),"",InfoPro!F107) -> Solar FV | E114: =IF(ISBLANK(InfoPro!I107),"",YEAR(InfoPro!I107)-$G$3) -> 2 | F114: =IF(B114="","",VLOOKUP(D114,Tablas!$B$2:$E$13,2,FALSE)) -> 0.26 | G114: =IF(B114="","",VLOOKUP(D114,Tablas!$B$2:$G$13,6,FALSE)) -> 0 | H114: 22548.24 | I114: 2870.007632 | J114: 211107.6367 | K114: 188826.1509 | L114: 168896.3782 | M114: 151070.1058 | N114: 135125.3182 | O114: 120863.4331 | P114: 108106.8275 | Q114: 96696.62564 | R114: 86490.72061 | S114: 77362.00413 | T114: 69196.78365 | U114: 61893.36642 | V114: 55360.79286 | W114: 49517.70381 | X114: 44291.3272 | Y114: 6612957061 | Z114: 667975.4607
A115: =IF(ISBLANK(InfoPro!A108),"",InfoPro!A108) -> SC_2118_A1 | B115: =IF(ISBLANK(InfoPro!B108),"",InfoPro!B108) -> SAPUCA | C115: =IF(ISBLANK(InfoPro!E108),"",InfoPro!E108) -> 50 | D115: =IF(ISBLANK(InfoPro!F108),"",InfoPro!F108) -> Solar FV | E115: =IF(ISBLANK(InfoPro!I108),"",YEAR(InfoPro!I108)-$G$3) -> 1 | F115: =IF(B115="","",VLOOKUP(D115,Tablas!$B$2:$E$13,2,FALSE)) -> 0.26 | G115: =IF(B115="","",VLOOKUP(D115,Tablas!$B$2:$G$13,6,FALSE)) -> 0 | H115: 113880 | I115: 14494.98804 | J115: 1192011.807 | K115: 1066200.185 | L115: 953667.4287 | M115: 853012.0114 | N115: 762980.3322 | O115: 682451.1021 | P115: 610421.3794 | Q115: 545994.0781 | R115: 488366.7962 | S115: 436821.8213 | T115: 390717.1926 | U115: 349478.7053 | V115: 312592.7597 | W115: 279599.9639 | X115: 250089.4132 | Y115: 3.733982825e+10 | Z115: 746796.5651
A116: =IF(ISBLANK(InfoPro!A109),"",InfoPro!A109) -> SC_2118_A2 | B116: =IF(ISBLANK(InfoPro!B109),"",InfoPro!B109) -> SAPUCA | C116: =IF(ISBLANK(InfoPro!E109),"",InfoPro!E109) -> 50 | D116: =IF(ISBLANK(InfoPro!F109),"",InfoPro!F109) -> Solar FV | E116: =IF(ISBLANK(InfoPro!I109),"",YEAR(InfoPro!I109)-$G$3) -> 1 | F116: =IF(B116="","",VLOOKUP(D116,Tablas!$B$2:$E$13,2,FALSE)) -> 0.26 | G116: =IF(B116="","",VLOOKUP(D116,Tablas!$B$2:$G$13,6,FALSE)) -> 0 | H116: 113880 | I116: 14494.98804 | J116: 1192011.807 | K116: 1066200.185 | L116: 953667.4287 | M116: 853012.0114 | N116: 762980.3322 | O116: 682451.1021 | P116: 610421.3794 | Q116: 545994.0781 | R116: 488366.7962 | S116: 436821.8213 | T116: 390717.1926 | U116: 349478.7053 | V116: 312592.7597 | W116: 279599.9639 | X116: 250089.4132 | Y116: 3.733982825e+10 | Z116: 746796.5651
A117: =IF(ISBLANK(InfoPro!A110),"",InfoPro!A110) -> SC_2338_A2 | B117: =IF(ISBLANK(InfoPro!B110),"",InfoPro!B110) -> SOLAR FOTOVOLTAICO MANDARINOS DE 9,9 | C117: =IF(ISBLANK(InfoPro!E110),"",InfoPro!E110) -> 9.9 | D117: =IF(ISBLANK(InfoPro!F110),"",InfoPro!F110) -> Solar FV | E117: =IF(ISBLANK(InfoPro!I110),"",YEAR(InfoPro!I110)-$G$3) -> 3 | F117: =IF(B117="","",VLOOKUP(D117,Tablas!$B$2:$E$13,2,FALSE)) -> 0.26 | G117: =IF(B117="","",VLOOKUP(D117,Tablas!$B$2:$G$13,6,FALSE)) -> 0 | H117: 22548.24 | I117: 2870.007632 | J117: 188826.1509 | K117: 168896.3782 | L117: 151070.1058 | M117: 135125.3182 | N117: 120863.4331 | O117: 108106.8275 | P117: 96696.62564 | Q117: 86490.72061 | R117: 77362.00413 | S117: 69196.78365 | T117: 61893.36642 | U117: 55360.79286 | V117: 49517.70381 | W117: 44291.3272 | X117: 39616.57174 | Y117: 5914988427 | Z117: 597473.5785
A118: =IF(ISBLANK(InfoPro!A111),"",InfoPro!A111) -> SC_1559_A1 | B118: =IF(ISBLANK(InfoPro!B111),"",InfoPro!B111) -> Parque Solar Chenche | C118: =IF(ISBLANK(InfoPro!E111),"",InfoPro!E111) -> 9.9 | D118: =IF(ISBLANK(InfoPro!F111),"",InfoPro!F111) -> Solar FV | E118: =IF(ISBLANK(InfoPro!I111),"",YEAR(InfoPro!I111)-$G$3) -> 1 | F118: =IF(B118="","",VLOOKUP(D118,Tablas!$B$2:$E$13,2,FALSE)) -> 0.26 | G118: =IF(B118="","",VLOOKUP(D118,Tablas!$B$2:$G$13,6,FALSE)) -> 0 | H118: 22548.24 | I118: 2870.007632 | J118: 236018.3378 | K118: 211107.6367 | L118: 188826.1509 | M118: 168896.3782 | N118: 151070.1058 | O118: 135125.3182 | P118: 120863.4331 | Q118: 108106.8275 | R118: 96696.62564 | S118: 86490.72061 | T118: 77362.00413 | U118: 69196.78365 | V118: 61893.36642 | W118: 55360.79286 | X118: 49517.70381 | Y118: 7393285994 | Z118: 746796.5651
A119: =IF(ISBLANK(InfoPro!A112),"",InfoPro!A112) -> SC_1559_A2 | B119: =IF(ISBLANK(InfoPro!B112),"",InfoPro!B112) -> Parque Solar Chenche | C119: =IF(ISBLANK(InfoPro!E112),"",InfoPro!E112) -> 9.9 | D119: =IF(ISBLANK(InfoPro!F112),"",InfoPro!F112) -> Solar FV | E119: =IF(ISBLANK(InfoPro!I112),"",YEAR(InfoPro!I112)-$G$3) -> 1 | F119: =IF(B119="","",VLOOKUP(D119,Tablas!$B$2:$E$13,2,FALSE)) -> 0.26 | G119: =IF(B119="","",VLOOKUP(D119,Tablas!$B$2:$G$13,6,FALSE)) -> 0 | H119: 22548.24 | I119: 2870.007632 | J119: 236018.3378 | K119: 211107.6367 | L119: 188826.1509 | M119: 168896.3782 | N119: 151070.1058 | O119: 135125.3182 | P119: 120863.4331 | Q119: 108106.8275 | R119: 96696.62564 | S119: 86490.72061 | T119: 77362.00413 | U119: 69196.78365 | V119: 61893.36642 | W119: 55360.79286 | X119: 49517.70381 | Y119: 7393285994 | Z119: 746796.5651
A120: =IF(ISBLANK(InfoPro!A113),"",InfoPro!A113) -> SC_2310_A2 | B120: =IF(ISBLANK(InfoPro!B113),"",InfoPro!B113) -> SOLAR FOTOVOLTAICO LIMAS DE 9,9 MW | C120: =IF(ISBLANK(InfoPro!E113),"",InfoPro!E113) -> 9.9 | D120: =IF(ISBLANK(InfoPro!F113),"",InfoPro!F113) -> Solar FV | E120: =IF(ISBLANK(InfoPro!I113),"",YEAR(InfoPro!I113)-$G$3) -> 3 | F120: =IF(B120="","",VLOOKUP(D120,Tablas!$B$2:$E$13,2,FALSE)) -> 0.26 | G120: =IF(B120="","",VLOOKUP(D120,Tablas!$B$2:$G$13,6,FALSE)) -> 0 | H120: 22548.24 | I120: 2870.007632 | J120: 188826.1509 | K120: 168896.3782 | L120: 151070.1058 | M120: 135125.3182 | N120: 120863.4331 | O120: 108106.8275 | P120: 96696.62564 | Q120: 86490.72061 | R120: 77362.00413 | S120: 69196.78365 | T120: 61893.36642 | U120: 55360.79286 | V120: 49517.70381 | W120: 44291.3272 | X120: 39616.57174 | Y120: 5914988427 | Z120: 597473.5785
A121: =IF(ISBLANK(InfoPro!A114),"",InfoPro!A114) -> SC_2310_A1 | B121: =IF(ISBLANK(InfoPro!B114),"",InfoPro!B114) -> SOLAR FOTOVOLTAICO LIMAS DE 9,9 MW | C121: =IF(ISBLANK(InfoPro!E114),"",InfoPro!E114) -> 9.9 | D121: =IF(ISBLANK(InfoPro!F114),"",InfoPro!F114) -> Solar FV | E121: =IF(ISBLANK(InfoPro!I114),"",YEAR(InfoPro!I114)-$G$3) -> 3 | F121: =IF(B121="","",VLOOKUP(D121,Tablas!$B$2:$E$13,2,FALSE)) -> 0.26 | G121: =IF(B121="","",VLOOKUP(D121,Tablas!$B$2:$G$13,6,FALSE)) -> 0 | H121: 22548.24 | I121: 2870.007632 | J121: 188826.1509 | K121: 168896.3782 | L121: 151070.1058 | M121: 135125.3182 | N121: 120863.4331 | O121: 108106.8275 | P121: 96696.62564 | Q121: 86490.72061 | R121: 77362.00413 | S121: 69196.78365 | T121: 61893.36642 | U121: 55360.79286 | V121: 49517.70381 | W121: 44291.3272 | X121: 39616.57174 | Y121: 5914988427 | Z121: 597473.5785
A122: =IF(ISBLANK(InfoPro!A115),"",InfoPro!A115) -> SC_1636_A1 | B122: =IF(ISBLANK(InfoPro!B115),"",InfoPro!B115) -> PARQUE SOLAR INTELIGENTE ZONA FRANCA SUR COLOMBIAN 9.9 MW | C122: =IF(ISBLANK(InfoPro!E115),"",InfoPro!E115) -> 9.9 | D122: =IF(ISBLANK(InfoPro!F115),"",InfoPro!F115) -> Solar FV | E122: =IF(ISBLANK(InfoPro!I115),"",YEAR(InfoPro!I115)-$G$3) -> 3 | F122: =IF(B122="","",VLOOKUP(D122,Tablas!$B$2:$E$13,2,FALSE)) -> 0.26 | G122: =IF(B122="","",VLOOKUP(D122,Tablas!$B$2:$G$13,6,FALSE)) -> 0 | H122: 22548.24 | I122: 2870.007632 | J122: 188826.1509 | K122: 168896.3782 | L122: 151070.1058 | M122: 135125.3182 | N122: 120863.4331 | O122: 108106.8275 | P122: 96696.62564 | Q122: 86490.72061 | R122: 77362.00413 | S122: 69196.78365 | T122: 61893.36642 | U122: 55360.79286 | V122: 49517.70381 | W122: 44291.3272 | X122: 39616.57174 | Y122: 5914988427 | Z122: 597473.5785
A123: =IF(ISBLANK(InfoPro!A116),"",InfoPro!A116) -> SC_2263_A1 | B123: =IF(ISBLANK(InfoPro!B116),"",InfoPro!B116) -> El Espino | C123: =IF(ISBLANK(InfoPro!E116),"",InfoPro!E116) -> 18 | D123: =IF(ISBLANK(InfoPro!F116),"",InfoPro!F116) -> Solar FV | E123: =IF(ISBLANK(InfoPro!I116),"",YEAR(InfoPro!I116)-$G$3) -> 1 | F123: =IF(B123="","",VLOOKUP(D123,Tablas!$B$2:$E$13,2,FALSE)) -> 0.26 | G123: =IF(B123="","",VLOOKUP(D123,Tablas!$B$2:$G$13,6,FALSE)) -> 0 | H123: 40996.8 | I123: 5218.195694 | J123: 429124.2506 | K123: 383832.0667 | L123: 343320.2743 | M123: 307084.3241 | N123: 274672.9196 | O123: 245682.3968 | P123: 219751.6966 | Q123: 196557.8681 | R123: 175812.0466 | S123: 157255.8557 | T123: 140658.1893 | U123: 125812.3339 | V123: 112533.3935 | W123: 100655.987 | X123: 90032.18875 | Y123: 1.344233817e+10 | Z123: 746796.5651
A124: =IF(ISBLANK(InfoPro!A117),"",InfoPro!A117) -> SC_2263_A2 | B124: =IF(ISBLANK(InfoPro!B117),"",InfoPro!B117) -> El Espino | C124: =IF(ISBLANK(InfoPro!E117),"",InfoPro!E117) -> 18 | D124: =IF(ISBLANK(InfoPro!F117),"",InfoPro!F117) -> Solar FV | E124: =IF(ISBLANK(InfoPro!I117),"",YEAR(InfoPro!I117)-$G$3) -> 1 | F124: =IF(B124="","",VLOOKUP(D124,Tablas!$B$2:$E$13,2,FALSE)) -> 0.26 | G124: =IF(B124="","",VLOOKUP(D124,Tablas!$B$2:$G$13,6,FALSE)) -> 0 | H124: 40996.8 | I124: 5218.195694 | J124: 429124.2506 | K124: 383832.0667 | L124: 343320.2743 | M124: 307084.3241 | N124: 274672.9196 | O124: 245682.3968 | P124: 219751.6966 | Q124: 196557.8681 | R124: 175812.0466 | S124: 157255.8557 | T124: 140658.1893 | U124: 125812.3339 | V124: 112533.3935 | W124: 100655.987 | X124: 90032.18875 | Y124: 1.344233817e+10 | Z124: 746796.5651
A125: =IF(ISBLANK(InfoPro!A118),"",InfoPro!A118) -> SC_1331_A2 | B125: =IF(ISBLANK(InfoPro!B118),"",InfoPro!B118) -> Sol de Colombia Tuluní | C125: =IF(ISBLANK(InfoPro!E118),"",InfoPro!E118) -> 200 | D125: =IF(ISBLANK(InfoPro!F118),"",InfoPro!F118) -> Solar FV | E125: =IF(ISBLANK(InfoPro!I118),"",YEAR(InfoPro!I118)-$G$3) -> 3 | F125: =IF(B125="","",VLOOKUP(D125,Tablas!$B$2:$E$13,2,FALSE)) -> 0.26 | G125: =IF(B125="","",VLOOKUP(D125,Tablas!$B$2:$G$13,6,FALSE)) -> 0 | H125: =IF(C125="","",+C125*F125*24*365) -> 455520 | I125: =IF(H125="","",+H125*($C$3-G125)) -> 57979.95216 | J125: 3814669.715 | K125: 3412048.045 | L125: 3051921.329 | M125: 2729804.408 | N125: 2441685.517 | O125: 2183976.313 | P125: 1953467.185 | Q125: 1747287.285 | R125: 1562868.77 | S125: 1397914.821 | T125: 1250371.039 | U125: 1118399.856 | V125: 1000357.653 | W125: 894774.2869 | X125: 800334.7825 | Y125: =IF(X125="","",SUM(J125:X125)*$C$6) -> 1.194947157e+11 | Z125: =IF(C125=0,0,IF(Y125="","",Y125/(C125*1000))) -> 597473.5785
A126: =IF(ISBLANK(InfoPro!A119),"",InfoPro!A119) -> SC_2314_A1 | B126: =IF(ISBLANK(InfoPro!B119),"",InfoPro!B119) -> SOLAR FOTOVOLTAICO LOS LIMONEROS DE 9,9 MW | C126: =IF(ISBLANK(InfoPro!E119),"",InfoPro!E119) -> 9.9 | D126: =IF(ISBLANK(InfoPro!F119),"",InfoPro!F119) -> Solar FV | E126: =IF(ISBLANK(InfoPro!I119),"",YEAR(InfoPro!I119)-$G$3) -> 3 | F126: =IF(B126="","",VLOOKUP(D126,Tablas!$B$2:$E$13,2,FALSE)) -> 0.26 | G126: =IF(B126="","",VLOOKUP(D126,Tablas!$B$2:$G$13,6,FALSE)) -> 0 | H126: =IF(C126="","",+C126*F126*24*365) -> 22548.24 | I126: =IF(H126="","",+H126*($C$3-G126)) -> 2870.007632 | J126: 188826.1509 | K126: 168896.3782 | L126: 151070.1058 | M126: 135125.3182 | N126: 120863.4331 | O126: 108106.8275 | P126: 96696.62564 | Q126: 86490.72061 | R126: 77362.00413 | S126: 69196.78365 | T126: 61893.36642 | U126: 55360.79286 | V126: 49517.70381 | W126: 44291.3272 | X126: 39616.57174 | Y126: =IF(X126="","",SUM(J126:X126)*$C$6) -> 5914988427 | Z126: =IF(C126=0,0,IF(Y126="","",Y126/(C126*1000))) -> 597473.5785
A127: =IF(ISBLANK(InfoPro!A120),"",InfoPro!A120) -> SC_2314_A2 | B127: =IF(ISBLANK(InfoPro!B120),"",InfoPro!B120) -> SOLAR FOTOVOLTAICO LOS LIMONEROS DE 9,9 MW | C127: =IF(ISBLANK(InfoPro!E120),"",InfoPro!E120) -> 9.9 | D127: =IF(ISBLANK(InfoPro!F120),"",InfoPro!F120) -> Solar FV | E127: =IF(ISBLANK(InfoPro!I120),"",YEAR(InfoPro!I120)-$G$3) -> 3 | F127: =IF(B127="","",VLOOKUP(D127,Tablas!$B$2:$E$13,2,FALSE)) -> 0.26 | G127: =IF(B127="","",VLOOKUP(D127,Tablas!$B$2:$G$13,6,FALSE)) -> 0 | H127: 22548.24 | I127: 2870.007632 | J127: 188826.1509 | K127: 168896.3782 | L127: 151070.1058 | M127: 135125.3182 | N127: 120863.4331 | O127: 108106.8275 | P127: 96696.62564 | Q127: 86490.72061 | R127: 77362.00413 | S127: 69196.78365 | T127: 61893.36642 | U127: 55360.79286 | V127: 49517.70381 | W127: 44291.3272 | X127: 39616.57174 | Y127: 5914988427 | Z127: 597473.5785
A128: =IF(ISBLANK(InfoPro!A121),"",InfoPro!A121) -> SC_2327_A1 | B128: =IF(ISBLANK(InfoPro!B121),"",InfoPro!B121) -> PARQUE SOLAR FOTOVOLTAICO LOS NARANJOS DE 19,9MW | C128: =IF(ISBLANK(InfoPro!E121),"",InfoPro!E121) -> 19.9 | D128: =IF(ISBLANK(InfoPro!F121),"",InfoPro!F121) -> Solar FV | E128: =IF(ISBLANK(InfoPro!I121),"",YEAR(InfoPro!I121)-$G$3) -> 3 | F128: =IF(B128="","",VLOOKUP(D128,Tablas!$B$2:$E$13,2,FALSE)) -> 0.26 | G128: =IF(B128="","",VLOOKUP(D128,Tablas!$B$2:$G$13,6,FALSE)) -> 0 | H128: =IF(C128="","",+C128*F128*24*365) -> 45324.24 | I128: =IF(H128="","",+H128*($C$3-G128)) -> 5769.00524 | J128: 379559.6366 | K128: 339498.7805 | L128: 303666.1722 | M128: 271615.5386 | N128: 242947.709 | O128: 217305.6431 | P128: 194369.9849 | Q128: 173855.0849 | R128: 155505.4426 | S128: 139092.5247 | T128: 124411.9184 | U128: 111280.7856 | V128: 99535.58645 | W128: 89030.04154 | X128: 79633.31086 | Y128: =IF(X128="","",SUM(J128:X128)*$C$6) -> 1.188972421e+10 | Z128: =IF(C128=0,0,IF(Y128="","",Y128/(C128*1000))) -> 597473.5785
A129: =IF(ISBLANK(InfoPro!A122),"",InfoPro!A122) -> SC_2327_A2 | B129: =IF(ISBLANK(InfoPro!B122),"",InfoPro!B122) -> PARQUE SOLAR FOTOVOLTAICO LOS NARANJOS DE 19,9MW | C129: =IF(ISBLANK(InfoPro!E122),"",InfoPro!E122) -> 19.9 | D129: =IF(ISBLANK(InfoPro!F122),"",InfoPro!F122) -> Solar FV | E129: =IF(ISBLANK(InfoPro!I122),"",YEAR(InfoPro!I122)-$G$3) -> 3 | F129: =IF(B129="","",VLOOKUP(D129,Tablas!$B$2:$E$13,2,FALSE)) -> 0.26 | G129: =IF(B129="","",VLOOKUP(D129,Tablas!$B$2:$G$13,6,FALSE)) -> 0 | H129: 45324.24 | I129: 5769.00524 | J129: =IF($I129="","",(1/(1+$C$4)^(J$7+$E129))*$I129*$C$5) -> 379559.6366 | K129: 339498.7805 | L129: 303666.1722 | M129: 271615.5386 | N129: 242947.709 | O129: 217305.6431 | P129: 194369.9849 | Q129: 173855.0849 | R129: 155505.4426 | S129: 139092.5247 | T129: 124411.9184 | U129: 111280.7856 | V129: 99535.58645 | W129: 89030.04154 | X129: 79633.31086 | Y129: 1.188972421e+10 | Z129: 597473.5785
A130: =IF(ISBLANK(InfoPro!A123),"",InfoPro!A123) -> SC_2330_A1 | B130: =IF(ISBLANK(InfoPro!B123),"",InfoPro!B123) -> SOLAR FOTOVOLTAICO MAGDALENA SOL 180 MW | C130: =IF(ISBLANK(InfoPro!E123),"",InfoPro!E123) -> 180 | D130: =IF(ISBLANK(InfoPro!F123),"",InfoPro!F123) -> Solar FV | E130: =IF(ISBLANK(InfoPro!I123),"",YEAR(InfoPro!I123)-$G$3) -> 3 | F130: =IF(B130="","",VLOOKUP(D130,Tablas!$B$2:$E$13,2,FALSE)) -> 0.26 | G130: =IF(B130="","",VLOOKUP(D130,Tablas!$B$2:$G$13,6,FALSE)) -> 0 | H130: 409968 | I130: 52181.95694 | J130: 3433202.743 | K130: 3070843.241 | L130: 2746729.196 | M130: 2456823.968 | N130: 2197516.966 | O130: 1965578.681 | P130: 1758120.466 | Q130: 1572558.557 | R130: 1406581.893 | S130: 1258123.339 | T130: 1125333.935 | U130: 1006559.87 | V130: 900321.8875 | W130: 805296.8582 | X130: 720301.3043 | Y130: 1.075452441e+11 | Z130: 597473.5785
A131: =IF(ISBLANK(InfoPro!A124),"",InfoPro!A124) -> SC_2330_A2 | B131: =IF(ISBLANK(InfoPro!B124),"",InfoPro!B124) -> SOLAR FOTOVOLTAICO MAGDALENA SOL 180 MW | C131: =IF(ISBLANK(InfoPro!E124),"",InfoPro!E124) -> 180 | D131: =IF(ISBLANK(InfoPro!F124),"",InfoPro!F124) -> Solar FV | E131: =IF(ISBLANK(InfoPro!I124),"",YEAR(InfoPro!I124)-$G$3) -> 3 | F131: =IF(B131="","",VLOOKUP(D131,Tablas!$B$2:$E$13,2,FALSE)) -> 0.26 | G131: =IF(B131="","",VLOOKUP(D131,Tablas!$B$2:$G$13,6,FALSE)) -> 0 | H131: 409968 | I131: 52181.95694 | J131: 3433202.743 | K131: 3070843.241 | L131: 2746729.196 | M131: 2456823.968 | N131: 2197516.966 | O131: 1965578.681 | P131: 1758120.466 | Q131: 1572558.557 | R131: 1406581.893 | S131: 1258123.339 | T131: 1125333.935 | U131: 1006559.87 | V131: 900321.8875 | W131: 805296.8582 | X131: 720301.3043 | Y131: 1.075452441e+11 | Z131: 597473.5785
A132: =IF(ISBLANK(InfoPro!A125),"",InfoPro!A125) -> SC_2338_A1 | B132: =IF(ISBLANK(InfoPro!B125),"",InfoPro!B125) -> SOLAR FOTOVOLTAICO MANDARINOS DE 9,9 | C132: =IF(ISBLANK(InfoPro!E125),"",InfoPro!E125) -> 9.9 | D132: =IF(ISBLANK(InfoPro!F125),"",InfoPro!F125) -> Solar FV | E132: =IF(ISBLANK(InfoPro!I125),"",YEAR(InfoPro!I125)-$G$3) -> 3 | F132: =IF(B132="","",VLOOKUP(D132,Tablas!$B$2:$E$13,2,FALSE)) -> 0.26 | G132: =IF(B132="","",VLOOKUP(D132,Tablas!$B$2:$G$13,6,FALSE)) -> 0 | H132: 22548.24 | I132: 2870.007632 | J132: 188826.1509 | K132: 168896.3782 | L132: 151070.1058 | M132: 135125.3182 | N132: 120863.4331 | O132: 108106.8275 | P132: 96696.62564 | Q132: 86490.72061 | R132: 77362.00413 | S132: 69196.78365 | T132: 61893.36642 | U132: 55360.79286 | V132: 49517.70381 | W132: 44291.3272 | X132: 39616.57174 | Y132: 5914988427 | Z132: 597473.5785
A133: =IF(ISBLANK(InfoPro!A126),"",InfoPro!A126) ->  | B133: =IF(ISBLANK(InfoPro!B126),"",InfoPro!B126) ->  | C133: =IF(ISBLANK(InfoPro!E126),"",InfoPro!E126) ->  | D133: =IF(ISBLANK(InfoPro!F126),"",InfoPro!F126) ->  | E133: =IF(ISBLANK(InfoPro!I126),"",YEAR(InfoPro!I126)-$G$3) ->  | F133: =IF(B133="","",VLOOKUP(D133,Tablas!$B$2:$E$13,2,FALSE)) ->  | G133: =IF(B133="","",VLOOKUP(D133,Tablas!$B$2:$G$13,6,FALSE)) -> 
A134: =IF(ISBLANK(InfoPro!A127),"",InfoPro!A127) ->  | B134: =IF(ISBLANK(InfoPro!B127),"",InfoPro!B127) ->  | C134: =IF(ISBLANK(InfoPro!E127),"",InfoPro!E127) ->  | D134: =IF(ISBLANK(InfoPro!F127),"",InfoPro!F127) ->  | E134: =IF(ISBLANK(InfoPro!I127),"",YEAR(InfoPro!I127)-$G$3) ->  | F134: =IF(B134="","",VLOOKUP(D134,Tablas!$B$2:$E$13,2,FALSE)) ->  | G134: =IF(B134="","",VLOOKUP(D134,Tablas!$B$2:$G$13,6,FALSE)) -> 
A135: =IF(ISBLANK(InfoPro!A128),"",InfoPro!A128) ->  | B135: =IF(ISBLANK(InfoPro!B128),"",InfoPro!B128) ->  | C135: =IF(ISBLANK(InfoPro!E128),"",InfoPro!E128) ->  | D135: =IF(ISBLANK(InfoPro!F128),"",InfoPro!F128) ->  | E135: =IF(ISBLANK(InfoPro!I128),"",YEAR(InfoPro!I128)-$G$3) ->  | F135: =IF(B135="","",VLOOKUP(D135,Tablas!$B$2:$E$13,2,FALSE)) ->  | G135: =IF(B135="","",VLOOKUP(D135,Tablas!$B$2:$G$13,6,FALSE)) -> 
A136: =IF(ISBLANK(InfoPro!A129),"",InfoPro!A129) ->  | B136: =IF(ISBLANK(InfoPro!B129),"",InfoPro!B129) ->  | C136: =IF(ISBLANK(InfoPro!E129),"",InfoPro!E129) ->  | D136: =IF(ISBLANK(InfoPro!F129),"",InfoPro!F129) ->  | E136: =IF(ISBLANK(InfoPro!I129),"",YEAR(InfoPro!I129)-$G$3) ->  | F136: =IF(B136="","",VLOOKUP(D136,Tablas!$B$2:$E$13,2,FALSE)) ->  | G136: =IF(B136="","",VLOOKUP(D136,Tablas!$B$2:$G$13,6,FALSE)) -> 
A137: =IF(ISBLANK(InfoPro!A130),"",InfoPro!A130) ->  | B137: =IF(ISBLANK(InfoPro!B130),"",InfoPro!B130) ->  | C137: =IF(ISBLANK(InfoPro!E130),"",InfoPro!E130) ->  | D137: =IF(ISBLANK(InfoPro!F130),"",InfoPro!F130) ->  | E137: =IF(ISBLANK(InfoPro!I130),"",YEAR(InfoPro!I130)-$G$3) ->  | F137: =IF(B137="","",VLOOKUP(D137,Tablas!$B$2:$E$13,2,FALSE)) ->  | G137: =IF(B137="","",VLOOKUP(D137,Tablas!$B$2:$G$13,6,FALSE)) -> 
A138: =IF(ISBLANK(InfoPro!A131),"",InfoPro!A131) ->  | B138: =IF(ISBLANK(InfoPro!B131),"",InfoPro!B131) ->  | C138: =IF(ISBLANK(InfoPro!E131),"",InfoPro!E131) ->  | D138: =IF(ISBLANK(InfoPro!F131),"",InfoPro!F131) ->  | E138: =IF(ISBLANK(InfoPro!I131),"",YEAR(InfoPro!I131)-$G$3) ->  | F138: =IF(B138="","",VLOOKUP(D138,Tablas!$B$2:$E$13,2,FALSE)) ->  | G138: =IF(B138="","",VLOOKUP(D138,Tablas!$B$2:$G$13,6,FALSE)) -> 
A139: =IF(ISBLANK(InfoPro!A132),"",InfoPro!A132) ->  | B139: =IF(ISBLANK(InfoPro!B132),"",InfoPro!B132) ->  | C139: =IF(ISBLANK(InfoPro!E132),"",InfoPro!E132) ->  | D139: =IF(ISBLANK(InfoPro!F132),"",InfoPro!F132) ->  | E139: =IF(ISBLANK(InfoPro!I132),"",YEAR(InfoPro!I132)-$G$3) ->  | F139: =IF(B139="","",VLOOKUP(D139,Tablas!$B$2:$E$13,2,FALSE)) ->  | G139: =IF(B139="","",VLOOKUP(D139,Tablas!$B$2:$G$13,6,FALSE)) -> 
A140: =IF(ISBLANK(InfoPro!A133),"",InfoPro!A133) ->  | B140: =IF(ISBLANK(InfoPro!B133),"",InfoPro!B133) ->  | C140: =IF(ISBLANK(InfoPro!E133),"",InfoPro!E133) ->  | D140: =IF(ISBLANK(InfoPro!F133),"",InfoPro!F133) ->  | E140: =IF(ISBLANK(InfoPro!I133),"",YEAR(InfoPro!I133)-$G$3) ->  | F140: =IF(B140="","",VLOOKUP(D140,Tablas!$B$2:$E$13,2,FALSE)) ->  | G140: =IF(B140="","",VLOOKUP(D140,Tablas!$B$2:$G$13,6,FALSE)) -> 
A141: =IF(ISBLANK(InfoPro!A134),"",InfoPro!A134) ->  | B141: =IF(ISBLANK(InfoPro!B134),"",InfoPro!B134) ->  | C141: =IF(ISBLANK(InfoPro!E134),"",InfoPro!E134) ->  | D141: =IF(ISBLANK(InfoPro!F134),"",InfoPro!F134) ->  | E141: =IF(ISBLANK(InfoPro!I134),"",YEAR(InfoPro!I134)-$G$3) ->  | F141: =IF(B141="","",VLOOKUP(D141,Tablas!$B$2:$E$13,2,FALSE)) ->  | G141: =IF(B141="","",VLOOKUP(D141,Tablas!$B$2:$G$13,6,FALSE)) -> 
A142: =IF(ISBLANK(InfoPro!A135),"",InfoPro!A135) ->  | B142: =IF(ISBLANK(InfoPro!B135),"",InfoPro!B135) ->  | C142: =IF(ISBLANK(InfoPro!E135),"",InfoPro!E135) ->  | D142: =IF(ISBLANK(InfoPro!F135),"",InfoPro!F135) ->  | E142: =IF(ISBLANK(InfoPro!I135),"",YEAR(InfoPro!I135)-$G$3) ->  | F142: =IF(B142="","",VLOOKUP(D142,Tablas!$B$2:$E$13,2,FALSE)) ->  | G142: =IF(B142="","",VLOOKUP(D142,Tablas!$B$2:$G$13,6,FALSE)) -> 
A143: =IF(ISBLANK(InfoPro!A136),"",InfoPro!A136) ->  | B143: =IF(ISBLANK(InfoPro!B136),"",InfoPro!B136) ->  | C143: =IF(ISBLANK(InfoPro!E136),"",InfoPro!E136) ->  | D143: =IF(ISBLANK(InfoPro!F136),"",InfoPro!F136) ->  | E143: =IF(ISBLANK(InfoPro!I136),"",YEAR(InfoPro!I136)-$G$3) ->  | F143: =IF(B143="","",VLOOKUP(D143,Tablas!$B$2:$E$13,2,FALSE)) ->  | G143: =IF(B143="","",VLOOKUP(D143,Tablas!$B$2:$G$13,6,FALSE)) -> 
A144: =IF(ISBLANK(InfoPro!A137),"",InfoPro!A137) ->  | B144: =IF(ISBLANK(InfoPro!B137),"",InfoPro!B137) ->  | C144: =IF(ISBLANK(InfoPro!E137),"",InfoPro!E137) ->  | D144: =IF(ISBLANK(InfoPro!F137),"",InfoPro!F137) ->  | E144: =IF(ISBLANK(InfoPro!I137),"",YEAR(InfoPro!I137)-$G$3) ->  | F144: =IF(B144="","",VLOOKUP(D144,Tablas!$B$2:$E$13,2,FALSE)) ->  | G144: =IF(B144="","",VLOOKUP(D144,Tablas!$B$2:$G$13,6,FALSE)) -> 
A145: =IF(ISBLANK(InfoPro!A138),"",InfoPro!A138) ->  | B145: =IF(ISBLANK(InfoPro!B138),"",InfoPro!B138) ->  | C145: =IF(ISBLANK(InfoPro!E138),"",InfoPro!E138) ->  | D145: =IF(ISBLANK(InfoPro!F138),"",InfoPro!F138) ->  | E145: =IF(ISBLANK(InfoPro!I138),"",YEAR(InfoPro!I138)-$G$3) ->  | F145: =IF(B145="","",VLOOKUP(D145,Tablas!$B$2:$E$13,2,FALSE)) ->  | G145: =IF(B145="","",VLOOKUP(D145,Tablas!$B$2:$G$13,6,FALSE)) -> 
A146: =IF(ISBLANK(InfoPro!A139),"",InfoPro!A139) ->  | B146: =IF(ISBLANK(InfoPro!B139),"",InfoPro!B139) ->  | C146: =IF(ISBLANK(InfoPro!E139),"",InfoPro!E139) ->  | D146: =IF(ISBLANK(InfoPro!F139),"",InfoPro!F139) ->  | E146: =IF(ISBLANK(InfoPro!I139),"",YEAR(InfoPro!I139)-$G$3) ->  | F146: =IF(B146="","",VLOOKUP(D146,Tablas!$B$2:$E$13,2,FALSE)) ->  | G146: =IF(B146="","",VLOOKUP(D146,Tablas!$B$2:$G$13,6,FALSE)) ->  | J146: =IF($I146="","",(1/(1+$C$4)^(J$7+$E146))*$I146*$C$5) -> 
A147: =IF(ISBLANK(InfoPro!A140),"",InfoPro!A140) ->  | B147: =IF(ISBLANK(InfoPro!B140),"",InfoPro!B140) ->  | C147: =IF(ISBLANK(InfoPro!E140),"",InfoPro!E140) ->  | D147: =IF(ISBLANK(InfoPro!F140),"",InfoPro!F140) ->  | E147: =IF(ISBLANK(InfoPro!I140),"",YEAR(InfoPro!I140)-$G$3) ->  | F147: =IF(B147="","",VLOOKUP(D147,Tablas!$B$2:$E$13,2,FALSE)) ->  | G147: =IF(B147="","",VLOOKUP(D147,Tablas!$B$2:$G$13,6,FALSE)) -> 
A148: =IF(ISBLANK(InfoPro!A141),"",InfoPro!A141) ->  | B148: =IF(ISBLANK(InfoPro!B141),"",InfoPro!B141) ->  | C148: =IF(ISBLANK(InfoPro!E141),"",InfoPro!E141) ->  | D148: =IF(ISBLANK(InfoPro!F141),"",InfoPro!F141) ->  | E148: =IF(ISBLANK(InfoPro!I141),"",YEAR(InfoPro!I141)-$G$3) ->  | F148: =IF(B148="","",VLOOKUP(D148,Tablas!$B$2:$E$13,2,FALSE)) ->  | G148: =IF(B148="","",VLOOKUP(D148,Tablas!$B$2:$G$13,6,FALSE)) -> 
A149: =IF(ISBLANK(InfoPro!A142),"",InfoPro!A142) ->  | B149: =IF(ISBLANK(InfoPro!B142),"",InfoPro!B142) ->  | C149: =IF(ISBLANK(InfoPro!E142),"",InfoPro!E142) ->  | D149: =IF(ISBLANK(InfoPro!F142),"",InfoPro!F142) ->  | E149: =IF(ISBLANK(InfoPro!I142),"",YEAR(InfoPro!I142)-$G$3) ->  | F149: =IF(B149="","",VLOOKUP(D149,Tablas!$B$2:$E$13,2,FALSE)) ->  | G149: =IF(B149="","",VLOOKUP(D149,Tablas!$B$2:$G$13,6,FALSE)) -> 
A150: =IF(ISBLANK(InfoPro!A143),"",InfoPro!A143) ->  | B150: =IF(ISBLANK(InfoPro!B143),"",InfoPro!B143) ->  | C150: =IF(ISBLANK(InfoPro!E143),"",InfoPro!E143) ->  | D150: =IF(ISBLANK(InfoPro!F143),"",InfoPro!F143) ->  | E150: =IF(ISBLANK(InfoPro!I143),"",YEAR(InfoPro!I143)-$G$3) ->  | F150: =IF(B150="","",VLOOKUP(D150,Tablas!$B$2:$E$13,2,FALSE)) ->  | G150: =IF(B150="","",VLOOKUP(D150,Tablas!$B$2:$G$13,6,FALSE)) -> 
A151: =IF(ISBLANK(InfoPro!A144),"",InfoPro!A144) ->  | B151: =IF(ISBLANK(InfoPro!B144),"",InfoPro!B144) ->  | C151: =IF(ISBLANK(InfoPro!E144),"",InfoPro!E144) ->  | D151: =IF(ISBLANK(InfoPro!F144),"",InfoPro!F144) ->  | E151: =IF(ISBLANK(InfoPro!I144),"",YEAR(InfoPro!I144)-$G$3) ->  | F151: =IF(B151="","",VLOOKUP(D151,Tablas!$B$2:$E$13,2,FALSE)) ->  | G151: =IF(B151="","",VLOOKUP(D151,Tablas!$B$2:$G$13,6,FALSE)) -> 
A152: =IF(ISBLANK(InfoPro!A145),"",InfoPro!A145) ->  | B152: =IF(ISBLANK(InfoPro!B145),"",InfoPro!B145) ->  | C152: =IF(ISBLANK(InfoPro!E145),"",InfoPro!E145) ->  | D152: =IF(ISBLANK(InfoPro!F145),"",InfoPro!F145) ->  | E152: =IF(ISBLANK(InfoPro!I145),"",YEAR(InfoPro!I145)-$G$3) ->  | F152: =IF(B152="","",VLOOKUP(D152,Tablas!$B$2:$E$13,2,FALSE)) ->  | G152: =IF(B152="","",VLOOKUP(D152,Tablas!$B$2:$G$13,6,FALSE)) -> 
A153: =IF(ISBLANK(InfoPro!A146),"",InfoPro!A146) ->  | B153: =IF(ISBLANK(InfoPro!B146),"",InfoPro!B146) ->  | C153: =IF(ISBLANK(InfoPro!E146),"",InfoPro!E146) ->  | D153: =IF(ISBLANK(InfoPro!F146),"",InfoPro!F146) ->  | E153: =IF(ISBLANK(InfoPro!I146),"",YEAR(InfoPro!I146)-$G$3) ->  | F153: =IF(B153="","",VLOOKUP(D153,Tablas!$B$2:$E$13,2,FALSE)) ->  | G153: =IF(B153="","",VLOOKUP(D153,Tablas!$B$2:$G$13,6,FALSE)) -> 
A154: =IF(ISBLANK(InfoPro!A147),"",InfoPro!A147) ->  | B154: =IF(ISBLANK(InfoPro!B147),"",InfoPro!B147) ->  | C154: =IF(ISBLANK(InfoPro!E147),"",InfoPro!E147) ->  | D154: =IF(ISBLANK(InfoPro!F147),"",InfoPro!F147) ->  | E154: =IF(ISBLANK(InfoPro!I147),"",YEAR(InfoPro!I147)-$G$3) ->  | F154: =IF(B154="","",VLOOKUP(D154,Tablas!$B$2:$E$13,2,FALSE)) ->  | G154: =IF(B154="","",VLOOKUP(D154,Tablas!$B$2:$G$13,6,FALSE)) -> 
A155: =IF(ISBLANK(InfoPro!A148),"",InfoPro!A148) ->  | B155: =IF(ISBLANK(InfoPro!B148),"",InfoPro!B148) ->  | C155: =IF(ISBLANK(InfoPro!E148),"",InfoPro!E148) ->  | D155: =IF(ISBLANK(InfoPro!F148),"",InfoPro!F148) ->  | E155: =IF(ISBLANK(InfoPro!I148),"",YEAR(InfoPro!I148)-$G$3) ->  | F155: =IF(B155="","",VLOOKUP(D155,Tablas!$B$2:$E$13,2,FALSE)) ->  | G155: =IF(B155="","",VLOOKUP(D155,Tablas!$B$2:$G$13,6,FALSE)) -> 
A156: =IF(ISBLANK(InfoPro!A149),"",InfoPro!A149) ->  | B156: =IF(ISBLANK(InfoPro!B149),"",InfoPro!B149) ->  | C156: =IF(ISBLANK(InfoPro!E149),"",InfoPro!E149) ->  | D156: =IF(ISBLANK(InfoPro!F149),"",InfoPro!F149) ->  | E156: =IF(ISBLANK(InfoPro!I149),"",YEAR(InfoPro!I149)-$G$3) ->  | F156: =IF(B156="","",VLOOKUP(D156,Tablas!$B$2:$E$13,2,FALSE)) ->  | G156: =IF(B156="","",VLOOKUP(D156,Tablas!$B$2:$G$13,6,FALSE)) -> 
A157: =IF(ISBLANK(InfoPro!A150),"",InfoPro!A150) ->  | B157: =IF(ISBLANK(InfoPro!B150),"",InfoPro!B150) ->  | C157: =IF(ISBLANK(InfoPro!E150),"",InfoPro!E150) ->  | D157: =IF(ISBLANK(InfoPro!F150),"",InfoPro!F150) ->  | E157: =IF(ISBLANK(InfoPro!I150),"",YEAR(InfoPro!I150)-$G$3) ->  | F157: =IF(B157="","",VLOOKUP(D157,Tablas!$B$2:$E$13,2,FALSE)) ->  | G157: =IF(B157="","",VLOOKUP(D157,Tablas!$B$2:$G$13,6,FALSE)) -> 
A158: =IF(ISBLANK(InfoPro!A151),"",InfoPro!A151) ->  | B158: =IF(ISBLANK(InfoPro!B151),"",InfoPro!B151) ->  | C158: =IF(ISBLANK(InfoPro!E151),"",InfoPro!E151) ->  | D158: =IF(ISBLANK(InfoPro!F151),"",InfoPro!F151) ->  | E158: =IF(ISBLANK(InfoPro!I151),"",YEAR(InfoPro!I151)-$G$3) ->  | F158: =IF(B158="","",VLOOKUP(D158,Tablas!$B$2:$E$13,2,FALSE)) ->  | G158: =IF(B158="","",VLOOKUP(D158,Tablas!$B$2:$G$13,6,FALSE)) -> 

Sheet EC-RP
B2: Precio promedio de bolsa | C2: 192057 | D2: COP/MWh
B3: Tasa de descuento | C3: 0.118 | F3: Año de Referencia | H3: 2023
F4: Mínimo | H4: =MIN(Z8:Z325) -> -4303623.742
J6: 0 | K6: 1 | L6: 2 | M6: 3 | N6: 4 | O6: 5 | P6: 6 | Q6: 7 | R6: 8 | S6: 9 | T6: 10 | U6: 11 | V6: 12 | W6: 13 | X6: 14
A7: Codigo | B7: Nombre | C7: capacidad | D7: Tecnologia | E7: Año de entrada | F7: FP | G7: Precio de oferta | H7: Desviacion | I7: Produccion media/a MWh/a | J7: Flujo Descontado 0 | K7: Flujo Descontado 1 | L7: Flujo Descontado 2 | M7: Flujo Descontado 3 | N7: Flujo Descontado 4 | O7: Flujo Descontado 5 | P7: Flujo Descontado 6 | Q7: Flujo Descontado 7 | R7: Flujo Descontado 8 | S7: Flujo Descontado 9 | T7: Flujo Descontado 10 | U7: Flujo Descontado 11 | V7: Flujo Descontado 12 | W7: Flujo Descontado 13 | X7: Flujo Descontado 14 | Y7: VPN | Z7: Beneficio/kW
A8: =IF(ISBLANK(InfoPro!A2),"",InfoPro!A2) -> SC_410_A1 | B8: =IF(ISBLANK(InfoPro!B2),"",InfoPro!B2) -> PARQUE SOLAR EL ACEITE 9.9 MW | C8: =IF(ISBLANK(InfoPro!E2),"",InfoPro!E2) -> 9.9 | D8: =IF(ISBLANK(InfoPro!F2),"",InfoPro!F2) -> Solar FV | E8: =IF(ISBLANK(InfoPro!I2),"",YEAR(InfoPro!I2)-$H$3) -> 2 | F8: =IF(B8="","",VLOOKUP(D8,Tablas!$B$2:$E$13,2,FALSE)) -> 0.26 | G8: =IF(B8="","",VLOOKUP(D8,Tablas!$B$2:$H$13,7,FALSE)) -> 83577.2 | H8: =IF(B8="","",($C$2-(G8))/$C$2) -> 0.564831274 | I8: =IF(C8="","",+C8*F8*24*365) -> 22548.24 | J8: =IF($I8="","",(1/(1+$C$3)^(J$6+$E8))*$I8*$C$2*$H8) -> 1956941835 | K8: =IF($I8="","",(1/(1+$C$3)^(K$6+$E8))*$I8*$C$2*$H8) -> 1750395201 | L8: 1565648659 | M8: 1400401305 | N8: 1252595085 | O8: 1120389164 | P8: 1002136998 | Q8: 896365830 | R8: 801758345.3 | S8: 717136265.9 | T8: 641445676.1 | U8: 573743896.3 | V8: 513187742.7 | W8: 459023025.7 | X8: =IF($I8="","",(1/(1+$C$3)^(X$6+$E8))*$I8*$C$2*$H8) -> 410575157.1 | Y8: =IF(X8="","",SUM(J8:X8)) -> 1.506174419e+10 | Z8: =IF(C8=0,0,IF(Y8="","",Y8/(C8*1000))) -> 1521388.302
A9: =IF(ISBLANK(InfoPro!A3),"",InfoPro!A3) -> SC_458_A1 | B9: =IF(ISBLANK(InfoPro!B3),"",InfoPro!B3) -> Helios Guamo 19.9MW | C9: =IF(ISBLANK(InfoPro!E3),"",InfoPro!E3) -> 19.9 | D9: =IF(ISBLANK(InfoPro!F3),"",InfoPro!F3) -> Solar FV | E9: =IF(ISBLANK(InfoPro!I3),"",YEAR(InfoPro!I3)-$H$3) -> 1 | F9: =IF(B9="","",VLOOKUP(D9,Tablas!$B$2:$E$13,2,FALSE)) -> 0.26 | G9: =IF(B9="","",VLOOKUP(D9,Tablas!$B$2:$H$13,7,FALSE)) -> 83577.2 | H9: =IF(B9="","",($C$2-(G9))/$C$2) -> 0.564831274 | I9: =IF(C9="","",+C9*F9*24*365) -> 45324.24 | J9: 4397821548 | K9: 3933650758 | L9: 3518471161 | M9: 3147111951 | N9: 2814948078 | O9: 2517842646 | P9: 2252095390 | Q9: 2014396592 | R9: 1801785860 | S9: 1611615260 | T9: 1441516332 | U9: 1289370601 | V9: 1153283186 | W9: 1031559200 | X9: 922682647.6 | Y9: =IF(X9="","",SUM(J9:X9)) -> 3.384815121e+10 | Z9: =IF(C9=0,0,IF(Y9="","",Y9/(C9*1000))) -> 1700912.121
A10: =IF(ISBLANK(InfoPro!A4),"",InfoPro!A4) -> SC_458_A2 | B10: =IF(ISBLANK(InfoPro!B4),"",InfoPro!B4) -> Helios Guamo 19.9MW | C10: =IF(ISBLANK(InfoPro!E4),"",InfoPro!E4) -> 19.9 | D10: =IF(ISBLANK(InfoPro!F4),"",InfoPro!F4) -> Solar FV | E10: =IF(ISBLANK(InfoPro!I4),"",YEAR(InfoPro!I4)-$H$3) -> 1 | F10: =IF(B10="","",VLOOKUP(D10,Tablas!$B$2:$E$13,2,FALSE)) -> 0.26 | G10: =IF(B10="","",VLOOKUP(D10,Tablas!$B$2:$H$13,7,FALSE)) -> 83577.2 | H10: 0.564831274 | I10: 45324.24 | J10: 4397821548 | K10: 3933650758 | L10: 3518471161 | M10: 3147111951 | N10: 2814948078 | O10: 2517842646 | P10: 2252095390 | Q10: 2014396592 | R10: 1801785860 | S10: 1611615260 | T10: 1441516332 | U10: 1289370601 | V10: 1153283186 | W10: 1031559200 | X10: 922682647.6 | Y10: 3.384815121e+10 | Z10: =IF(C10=0,0,IF(Y10="","",Y10/(C10*1000))) -> 1700912.121
A11: =IF(ISBLANK(InfoPro!A5),"",InfoPro!A5) -> SC_478_A2 | B11: =IF(ISBLANK(InfoPro!B5),"",InfoPro!B5) -> Helios Tuluni 19.9 MW | C11: =IF(ISBLANK(InfoPro!E5),"",InfoPro!E5) -> 19.9 | D11: =IF(ISBLANK(InfoPro!F5),"",InfoPro!F5) -> Solar FV | E11: =IF(ISBLANK(InfoPro!I5),"",YEAR(InfoPro!I5)-$H$3) -> 1 | F11: =IF(B11="","",VLOOKUP(D11,Tablas!$B$2:$E$13,2,FALSE)) -> 0.26 | G11: =IF(B11="","",VLOOKUP(D11,Tablas!$B$2:$H$13,7,FALSE)) -> 83577.2 | H11: 0.564831274 | I11: 45324.24 | J11: 4397821548 | K11: 3933650758 | L11: 3518471161 | M11: 3147111951 | N11: 2814948078 | O11: 2517842646 | P11: 2252095390 | Q11: 2014396592 | R11: 1801785860 | S11: 1611615260 | T11: 1441516332 | U11: 1289370601 | V11: 1153283186 | W11: 1031559200 | X11: 922682647.6 | Y11: 3.384815121e+10 | Z11: 1700912.121
A12: =IF(ISBLANK(InfoPro!A6),"",InfoPro!A6) -> SC_478_A1 | B12: =IF(ISBLANK(InfoPro!B6),"",InfoPro!B6) -> Helios Tuluni 19.9 MW | C12: =IF(ISBLANK(InfoPro!E6),"",InfoPro!E6) -> 19.9 | D12: =IF(ISBLANK(InfoPro!F6),"",InfoPro!F6) -> Solar FV | E12: =IF(ISBLANK(InfoPro!I6),"",YEAR(InfoPro!I6)-$H$3) -> 1 | F12: =IF(B12="","",VLOOKUP(D12,Tablas!$B$2:$E$13,2,FALSE)) -> 0.26 | G12: =IF(B12="","",VLOOKUP(D12,Tablas!$B$2:$H$13,7,FALSE)) -> 83577.2 | H12: 0.564831274 | I12: 45324.24 | J12: 4397821548 | K12: 3933650758 | L12: 3518471161 | M12: 3147111951 | N12: 2814948078 | O12: 2517842646 | P12: 2252095390 | Q12: 2014396592 | R12: 1801785860 | S12: 1611615260 | T12: 1441516332 | U12: 1289370601 | V12: 1153283186 | W12: 1031559200 | X12: 922682647.6 | Y12: 3.384815121e+10 | Z12: 1700912.121
A13: =IF(ISBLANK(InfoPro!A7),"",InfoPro!A7) -> SC_491_A1 | B13: =IF(ISBLANK(InfoPro!B7),"",InfoPro!B7) -> Florida - 9.9 MW | C13: =IF(ISBLANK(InfoPro!E7),"",InfoPro!E7) -> 9.9 | D13: =IF(ISBLANK(InfoPro!F7),"",InfoPro!F7) -> Solar FV | E13: =IF(ISBLANK(InfoPro!I7),"",YEAR(InfoPro!I7)-$H$3) -> 2 | F13: =IF(B13="","",VLOOKUP(D13,Tablas!$B$2:$E$13,2,FALSE)) -> 0.26 | G13: =IF(B13="","",VLOOKUP(D13,Tablas!$B$2:$H$13,7,FALSE)) -> 83577.2 | H13: 0.564831274 | I13: 22548.24 | J13: 1956941835 | K13: 1750395201 | L13: 1565648659 | M13: 1400401305 | N13: 1252595085 | O13: 1120389164 | P13: 1002136998 | Q13: 896365830 | R13: 801758345.3 | S13: 717136265.9 | T13: 641445676.1 | U13: 573743896.3 | V13: 513187742.7 | W13: 459023025.7 | X13: 410575157.1 | Y13: 1.506174419e+10 | Z13: 1521388.302
A14: =IF(ISBLANK(InfoPro!A8),"",InfoPro!A8) -> SC_519_A1 | B14: =IF(ISBLANK(InfoPro!B8),"",InfoPro!B8) -> PARQUE SOLAR EL ACEITE 9.9 MW | C14: =IF(ISBLANK(InfoPro!E8),"",InfoPro!E8) -> 9.9 | D14: =IF(ISBLANK(InfoPro!F8),"",InfoPro!F8) -> Solar FV | E14: =IF(ISBLANK(InfoPro!I8),"",YEAR(InfoPro!I8)-$H$3) -> 2 | F14: =IF(B14="","",VLOOKUP(D14,Tablas!$B$2:$E$13,2,FALSE)) -> 0.26 | G14: =IF(B14="","",VLOOKUP(D14,Tablas!$B$2:$H$13,7,FALSE)) -> 83577.2 | H14: 0.564831274 | I14: 22548.24 | J14: 1956941835 | K14: 1750395201 | L14: 1565648659 | M14: 1400401305 | N14: 1252595085 | O14: 1120389164 | P14: 1002136998 | Q14: 896365830 | R14: 801758345.3 | S14: 717136265.9 | T14: 641445676.1 | U14: 573743896.3 | V14: 513187742.7 | W14: 459023025.7 | X14: 410575157.1 | Y14: 1.506174419e+10 | Z14: 1521388.302
A15: =IF(ISBLANK(InfoPro!A9),"",InfoPro!A9) -> SC_492_A1 | B15: =IF(ISBLANK(InfoPro!B9),"",InfoPro!B9) -> Ricaurte 9.9 MW | C15: =IF(ISBLANK(InfoPro!E9),"",InfoPro!E9) -> 9.9 | D15: =IF(ISBLANK(InfoPro!F9),"",InfoPro!F9) -> Solar FV | E15: =IF(ISBLANK(InfoPro!I9),"",YEAR(InfoPro!I9)-$H$3) -> 2 | F15: =IF(B15="","",VLOOKUP(D15,Tablas!$B$2:$E$13,2,FALSE)) -> 0.26 | G15: =IF(B15="","",VLOOKUP(D15,Tablas!$B$2:$H$13,7,FALSE)) -> 83577.2 | H15: 0.564831274 | I15: 22548.24 | J15: 1956941835 | K15: 1750395201 | L15: 1565648659 | M15: 1400401305 | N15: 1252595085 | O15: 1120389164 | P15: 1002136998 | Q15: 896365830 | R15: 801758345.3 | S15: 717136265.9 | T15: 641445676.1 | U15: 573743896.3 | V15: 513187742.7 | W15: 459023025.7 | X15: 410575157.1 | Y15: 1.506174419e+10 | Z15: 1521388.302
A16: =IF(ISBLANK(InfoPro!A10),"",InfoPro!A10) -> SC_492_A2 | B16: =IF(ISBLANK(InfoPro!B10),"",InfoPro!B10) -> Ricaurte 9.9 MW | C16: =IF(ISBLANK(InfoPro!E10),"",InfoPro!E10) -> 9.9 | D16: =IF(ISBLANK(InfoPro!F10),"",InfoPro!F10) -> Solar FV | E16: =IF(ISBLANK(InfoPro!I10),"",YEAR(InfoPro!I10)-$H$3) -> 2 | F16: =IF(B16="","",VLOOKUP(D16,Tablas!$B$2:$E$13,2,FALSE)) -> 0.26 | G16: =IF(B16="","",VLOOKUP(D16,Tablas!$B$2:$H$13,7,FALSE)) -> 83577.2 | H16: 0.564831274 | I16: 22548.24 | J16: 1956941835 | K16: 1750395201 | L16: 1565648659 | M16: 1400401305 | N16: 1252595085 | O16: 1120389164 | P16: 1002136998 | Q16: 896365830 | R16: 801758345.3 | S16: 717136265.9 | T16: 641445676.1 | U16: 573743896.3 | V16: 513187742.7 | W16: 459023025.7 | X16: 410575157.1 | Y16: 1.506174419e+10 | Z16: 1521388.302
A17: =IF(ISBLANK(InfoPro!A11),"",InfoPro!A11) -> SC_826_A1 | B17: =IF(ISBLANK(InfoPro!B11),"",InfoPro!B11) -> PARQUE SOLAR HELIOS LANCEROS 19.9 MW | C17: =IF(ISBLANK(InfoPro!E11),"",InfoPro!E11) -> 19.9 | D17: =IF(ISBLANK(InfoPro!F11),"",InfoPro!F11) -> Solar FV | E17: =IF(ISBLANK(InfoPro!I11),"",YEAR(InfoPro!I11)-$H$3) -> 1 | F17: =IF(B17="","",VLOOKUP(D17,Tablas!$B$2:$E$13,2,FALSE)) -> 0.26 | G17: =IF(B17="","",VLOOKUP(D17,Tablas!$B$2:$H$13,7,FALSE)) -> 83577.2 | H17: 0.564831274 | I17: 45324.24 | J17: =IF($I17="","",(1/(1+$C$3)^(J$6+$E17))*$I17*$C$2*$H17) -> 4397821548 | K17: 3933650758 | L17: 3518471161 | M17: 3147111951 | N17: 2814948078 | O17: 2517842646 | P17: 2252095390 | Q17: 2014396592 | R17: 1801785860 | S17: 1611615260 | T17: 1441516332 | U17: 1289370601 | V17: 1153283186 | W17: 1031559200 | X17: 922682647.6 | Y17: 3.384815121e+10 | Z17: 1700912.121
A18: =IF(ISBLANK(InfoPro!A12),"",InfoPro!A12) -> SC_827_A1 | B18: =IF(ISBLANK(InfoPro!B12),"",InfoPro!B12) -> PARQUE SOLAR FOTOVOLTAICO HELIOS NATAGAIMA (19,9MW) | C18: =IF(ISBLANK(InfoPro!E12),"",InfoPro!E12) -> 19.9 | D18: =IF(ISBLANK(InfoPro!F12),"",InfoPro!F12) -> Solar FV | E18: =IF(ISBLANK(InfoPro!I12),"",YEAR(InfoPro!I12)-$H$3) -> 1 | F18: =IF(B18="","",VLOOKUP(D18,Tablas!$B$2:$E$13,2,FALSE)) -> 0.26 | G18: =IF(B18="","",VLOOKUP(D18,Tablas!$B$2:$H$13,7,FALSE)) -> 83577.2 | H18: 0.564831274 | I18: 45324.24 | J18: 4397821548 | K18: 3933650758 | L18: 3518471161 | M18: 3147111951 | N18: 2814948078 | O18: 2517842646 | P18: 2252095390 | Q18: 2014396592 | R18: 1801785860 | S18: 1611615260 | T18: 1441516332 | U18: 1289370601 | V18: 1153283186 | W18: 1031559200 | X18: 922682647.6 | Y18: 3.384815121e+10 | Z18: 1700912.121
A19: =IF(ISBLANK(InfoPro!A13),"",InfoPro!A13) -> SC_827_A2 | B19: =IF(ISBLANK(InfoPro!B13),"",InfoPro!B13) -> PARQUE SOLAR FOTOVOLTAICO HELIOS NATAGAIMA (19,9MW) | C19: =IF(ISBLANK(InfoPro!E13),"",InfoPro!E13) -> 19.9 | D19: =IF(ISBLANK(InfoPro!F13),"",InfoPro!F13) -> Solar FV | E19: =IF(ISBLANK(InfoPro!I13),"",YEAR(InfoPro!I13)-$H$3) -> 1 | F19: =IF(B19="","",VLOOKUP(D19,Tablas!$B$2:$E$13,2,FALSE)) -> 0.26 | G19: =IF(B19="","",VLOOKUP(D19,Tablas!$B$2:$H$13,7,FALSE)) -> 83577.2 | H19: 0.564831274 | I19: 45324.24 | J19: 4397821548 | K19: 3933650758 | L19: 3518471161 | M19: 3147111951 | N19: 2814948078 | O19: 2517842646 | P19: 2252095390 | Q19: 2014396592 | R19: 1801785860 | S19: 1611615260 | T19: 1441516332 | U19: 1289370601 | V19: 1153283186 | W19: 1031559200 | X19: 922682647.6 | Y19: 3.384815121e+10 | Z19: 1700912.121
A20: =IF(ISBLANK(InfoPro!A14),"",InfoPro!A14) -> SC_722_A1 | B20: =IF(ISBLANK(InfoPro!B14),"",InfoPro!B14) -> Sevilla de 9,9 MW | C20: =IF(ISBLANK(InfoPro!E14),"",InfoPro!E14) -> 9.9 | D20: =IF(ISBLANK(InfoPro!F14),"",InfoPro!F14) -> Solar FV | E20: =IF(ISBLANK(InfoPro!I14),"",YEAR(InfoPro!I14)-$H$3) -> 2 | F20: =IF(B20="","",VLOOKUP(D20,Tablas!$B$2:$E$13,2,FALSE)) -> 0.26 | G20: =IF(B20="","",VLOOKUP(D20,Tablas!$B$2:$H$13,7,FALSE)) -> 83577.2 | H20: 0.564831274 | I20: 22548.24 | J20: 1956941835 | K20: 1750395201 | L20: 1565648659 | M20: 1400401305 | N20: 1252595085 | O20: 1120389164 | P20: 1002136998 | Q20: 896365830 | R20: 801758345.3 | S20: 717136265.9 | T20: 641445676.1 | U20: 573743896.3 | V20: 513187742.7 | W20: 459023025.7 | X20: 410575157.1 | Y20: 1.506174419e+10 | Z20: 1521388.302
A21: =IF(ISBLANK(InfoPro!A15),"",InfoPro!A15) -> SC_722_A2 | B21: =IF(ISBLANK(InfoPro!B15),"",InfoPro!B15) -> Sevilla de 9,9 MW | C21: =IF(ISBLANK(InfoPro!E15),"",InfoPro!E15) -> 9.9 | D21: =IF(ISBLANK(InfoPro!F15),"",InfoPro!F15) -> Solar FV | E21: =IF(ISBLANK(InfoPro!I15),"",YEAR(InfoPro!I15)-$H$3) -> 2 | F21: =IF(B21="","",VLOOKUP(D21,Tablas!$B$2:$E$13,2,FALSE)) -> 0.26 | G21: =IF(B21="","",VLOOKUP(D21,Tablas!$B$2:$H$13,7,FALSE)) -> 83577.2 | H21: 0.564831274 | I21: 22548.24 | J21: 1956941835 | K21: 1750395201 | L21: 1565648659 | M21: 1400401305 | N21: 1252595085 | O21: 1120389164 | P21: 1002136998 | Q21: 896365830 | R21: 801758345.3 | S21: 717136265.9 | T21: 641445676.1 | U21: 573743896.3 | V21: 513187742.7 | W21: 459023025.7 | X21: 410575157.1 | Y21: 1.506174419e+10 | Z21: 1521388.302
A22: =IF(ISBLANK(InfoPro!A16),"",InfoPro!A16) -> SC_958_A1 | B22: =IF(ISBLANK(InfoPro!B16),"",InfoPro!B16) -> DSE NEIVA SUR_9.9MW | C22: =IF(ISBLANK(InfoPro!E16),"",InfoPro!E16) -> 9.9 | D22: =IF(ISBLANK(InfoPro!F16),"",InfoPro!F16) -> Solar FV | E22: =IF(ISBLANK(InfoPro!I16),"",YEAR(InfoPro!I16)-$H$3) -> 3 | F22: =IF(B22="","",VLOOKUP(D22,Tablas!$B$2:$E$13,2,FALSE)) -> 0.26 | G22: =IF(B22="","",VLOOKUP(D22,Tablas!$B$2:$H$13,7,FALSE)) -> 83577.2 | H22: 0.564831274 | I22: 22548.24 | J22: 1750395201 | K22: 1565648659 | L22: 1400401305 | M22: 1252595085 | N22: 1120389164 | O22: 1002136998 | P22: 896365830 | Q22: 801758345.3 | R22: 717136265.9 | S22: 641445676.1 | T22: 573743896.3 | U22: 513187742.7 | V22: 459023025.7 | W22: 410575157.1 | X22: 367240748.8 | Y22: 1.34720431e+10 | Z22: 1360812.434
A23: =IF(ISBLANK(InfoPro!A17),"",InfoPro!A17) -> SC_1004_A1 | B23: =IF(ISBLANK(InfoPro!B17),"",InfoPro!B17) -> EXCEDENTES AUTOGENERACIÓN VAO HUILA | C23: =IF(ISBLANK(InfoPro!E17),"",InfoPro!E17) -> 7.5 | D23: =IF(ISBLANK(InfoPro!F17),"",InfoPro!F17) -> Solar FV | E23: =IF(ISBLANK(InfoPro!I17),"",YEAR(InfoPro!I17)-$H$3) -> 0 | F23: =IF(B23="","",VLOOKUP(D23,Tablas!$B$2:$E$13,2,FALSE)) -> 0.26 | G23: =IF(B23="","",VLOOKUP(D23,Tablas!$B$2:$H$13,7,FALSE)) -> 83577.2 | H23: 0.564831274 | I23: 17082 | J23: 1853051944 | K23: 1657470433 | L23: 1482531693 | M23: 1326056970 | N23: 1186097469 | O23: 1060910080 | P23: 948935670.5 | Q23: 848779669.5 | R23: 759194695.4 | S23: 679065022.7 | T23: 607392685.8 | U23: 543285049.9 | V23: 485943694 | W23: 434654466.9 | X23: 388778593 | Y23: 1.426214814e+10 | Z23: 1901619.751
A24: =IF(ISBLANK(InfoPro!A18),"",InfoPro!A18) -> SC_1104_A1 | B24: =IF(ISBLANK(InfoPro!B18),"",InfoPro!B18) -> CAMPOALEGRE SOLAR 9.9 MW | C24: =IF(ISBLANK(InfoPro!E18),"",InfoPro!E18) -> 9.9 | D24: =IF(ISBLANK(InfoPro!F18),"",InfoPro!F18) -> Solar FV | E24: =IF(ISBLANK(InfoPro!I18),"",YEAR(InfoPro!I18)-$H$3) -> 1 | F24: =IF(B24="","",VLOOKUP(D24,Tablas!$B$2:$E$13,2,FALSE)) -> 0.26 | G24: =IF(B24="","",VLOOKUP(D24,Tablas!$B$2:$H$13,7,FALSE)) -> 83577.2 | H24: 0.564831274 | I24: 22548.24 | J24: 2187860971 | K24: 1956941835 | L24: 1750395201 | M24: 1565648659 | N24: 1400401305 | O24: 1252595085 | P24: 1120389164 | Q24: 1002136998 | R24: 896365830 | S24: 801758345.3 | T24: 717136265.9 | U24: 641445676.1 | V24: 573743896.3 | W24: 513187742.7 | X24: 459023025.7 | Y24: 1.683903e+10 | Z24: 1700912.121
A25: =IF(ISBLANK(InfoPro!A19),"",InfoPro!A19) -> SC_1104_A2 | B25: =IF(ISBLANK(InfoPro!B19),"",InfoPro!B19) -> CAMPOALEGRE SOLAR 9.9 MW | C25: =IF(ISBLANK(InfoPro!E19),"",InfoPro!E19) -> 9.9 | D25: =IF(ISBLANK(InfoPro!F19),"",InfoPro!F19) -> Solar FV | E25: =IF(ISBLANK(InfoPro!I19),"",YEAR(InfoPro!I19)-$H$3) -> 1 | F25: =IF(B25="","",VLOOKUP(D25,Tablas!$B$2:$E$13,2,FALSE)) -> 0.26 | G25: =IF(B25="","",VLOOKUP(D25,Tablas!$B$2:$H$13,7,FALSE)) -> 83577.2 | H25: 0.564831274 | I25: 22548.24 | J25: 2187860971 | K25: 1956941835 | L25: 1750395201 | M25: 1565648659 | N25: 1400401305 | O25: 1252595085 | P25: 1120389164 | Q25: 1002136998 | R25: 896365830 | S25: 801758345.3 | T25: 717136265.9 | U25: 641445676.1 | V25: 573743896.3 | W25: 513187742.7 | X25: 459023025.7 | Y25: 1.683903e+10 | Z25: 1700912.121
A26: =IF(ISBLANK(InfoPro!A20),"",InfoPro!A20) -> SC_1331_A1 | B26: =IF(ISBLANK(InfoPro!B20),"",InfoPro!B20) -> Sol de Colombia Tuluní | C26: =IF(ISBLANK(InfoPro!E20),"",InfoPro!E20) -> 200 | D26: =IF(ISBLANK(InfoPro!F20),"",InfoPro!F20) -> Solar FV | E26: =IF(ISBLANK(InfoPro!I20),"",YEAR(InfoPro!I20)-$H$3) -> 3 | F26: =IF(B26="","",VLOOKUP(D26,Tablas!$B$2:$E$13,2,FALSE)) -> 0.26 | G26: =IF(B26="","",VLOOKUP(D26,Tablas!$B$2:$H$13,7,FALSE)) -> 83577.2 | H26: 0.564831274 | I26: 455520 | J26: =IF($I26="","",(1/(1+$C$3)^(J$6+$E26))*$I26*$C$2*$H26) -> 3.536151921e+10 | K26: 3.162926584e+10 | L26: 2.829093546e+10 | M26: 2.530495121e+10 | N26: 2.263412452e+10 | O26: 2.024519188e+10 | P26: 1.810840061e+10 | Q26: 1.619713829e+10 | R26: 1.448760133e+10 | S26: 1.295849851e+10 | T26: 1.159078578e+10 | U26: 1.036742915e+10 | V26: 9273192438 | W26: 8294447619 | X26: 7419005026 | Y26: 2.721624869e+11 | Z26: 1360812.434
A27: =IF(ISBLANK(InfoPro!A21),"",InfoPro!A21) -> SC_806_A1 | B27: =IF(ISBLANK(InfoPro!B21),"",InfoPro!B21) -> Wartsila | C27: =IF(ISBLANK(InfoPro!E21),"",InfoPro!E21) -> 26.25 | D27: =IF(ISBLANK(InfoPro!F21),"",InfoPro!F21) -> Termica - Ciclo combinado | E27: =IF(ISBLANK(InfoPro!I21),"",YEAR(InfoPro!I21)-$H$3) -> 0 | F27: =IF(B27="","",VLOOKUP(D27,Tablas!$B$2:$E$13,2,FALSE)) -> 0.85 | G27: =IF(B27="","",VLOOKUP(D27,Tablas!$B$2:$H$13,7,FALSE)) -> 267152.5 | H27: -0.3910063158 | I27: 195457.5 | J27: -1.467797869e+10 | K27: -1.312878237e+10 | L27: -1.174309693e+10 | M27: -1.050366452e+10 | N27: -9395048766 | O27: -8403442545 | P27: -7516496015 | Q27: -6723162805 | R27: -6013562437 | S27: -5378857278 | T27: -4811142467 | U27: -4303347466 | V27: -3849148002 | W27: -3442887300 | X27: -3079505635 | Y27: -1.129701232e+11 | Z27: -4303623.742
A28: =IF(ISBLANK(InfoPro!A22),"",InfoPro!A22) -> SC_764_A1 | B28: =IF(ISBLANK(InfoPro!B22),"",InfoPro!B22) -> PARQUE FOTOVOLTAICO LAS CEIBAS | C28: =IF(ISBLANK(InfoPro!E22),"",InfoPro!E22) -> 80 | D28: =IF(ISBLANK(InfoPro!F22),"",InfoPro!F22) -> Solar FV | E28: =IF(ISBLANK(InfoPro!I22),"",YEAR(InfoPro!I22)-$H$3) -> 3 | F28: =IF(B28="","",VLOOKUP(D28,Tablas!$B$2:$E$13,2,FALSE)) -> 0.26 | G28: =IF(B28="","",VLOOKUP(D28,Tablas!$B$2:$H$13,7,FALSE)) -> 83577.2 | H28: 0.564831274 | I28: 182208 | J28: 1.414460768e+10 | K28: 1.265170634e+10 | L28: 1.131637418e+10 | M28: 1.012198048e+10 | N28: 9053649808 | O28: 8098076751 | P28: 7243360242 | Q28: 6478855315 | R28: 5795040532 | S28: 5183399403 | T28: 4636314314 | U28: 4146971658 | V28: 3709276975 | W28: 3317779048 | X28: 2967602010 | Y28: 1.088649947e+11 | Z28: 1360812.434
A29: =IF(ISBLANK(InfoPro!A23),"",InfoPro!A23) -> SC_1231_A2 | B29: =IF(ISBLANK(InfoPro!B23),"",InfoPro!B23) -> Palermo 1 | C29: =IF(ISBLANK(InfoPro!E23),"",InfoPro!E23) -> 50 | D29: =IF(ISBLANK(InfoPro!F23),"",InfoPro!F23) -> Solar FV | E29: =IF(ISBLANK(InfoPro!I23),"",YEAR(InfoPro!I23)-$H$3) -> 1 | F29: =IF(B29="","",VLOOKUP(D29,Tablas!$B$2:$E$13,2,FALSE)) -> 0.26 | G29: =IF(B29="","",VLOOKUP(D29,Tablas!$B$2:$H$13,7,FALSE)) -> 83577.2 | H29: 0.564831274 | I29: 113880 | J29: 1.104980288e+10 | K29: 9883544619 | L29: 8840379802 | M29: 7907316460 | N29: 7072733864 | O29: 6326237803 | P29: 5658531130 | Q29: 5061297969 | R29: 4527100152 | S29: 4049284572 | T29: 3621900333 | U29: 3239624627 | V29: 2897696446 | W29: 2591857286 | X29: 2318298109 | Y29: 8.504560606e+10 | Z29: 1700912.121
A30: =IF(ISBLANK(InfoPro!A24),"",InfoPro!A24) -> SC_1246_A2 | B30: =IF(ISBLANK(InfoPro!B24),"",InfoPro!B24) -> Palermo 2 | C30: =IF(ISBLANK(InfoPro!E24),"",InfoPro!E24) -> 9.9 | D30: =IF(ISBLANK(InfoPro!F24),"",InfoPro!F24) -> Solar FV | E30: =IF(ISBLANK(InfoPro!I24),"",YEAR(InfoPro!I24)-$H$3) -> 1 | F30: =IF(B30="","",VLOOKUP(D30,Tablas!$B$2:$E$13,2,FALSE)) -> 0.26 | G30: =IF(B30="","",VLOOKUP(D30,Tablas!$B$2:$H$13,7,FALSE)) -> 83577.2 | H30: 0.564831274 | I30: 22548.24 | J30: 2187860971 | K30: 1956941835 | L30: 1750395201 | M30: 1565648659 | N30: 1400401305 | O30: 1252595085 | P30: 1120389164 | Q30: 1002136998 | R30: 896365830 | S30: 801758345.3 | T30: 717136265.9 | U30: 641445676.1 | V30: 573743896.3 | W30: 513187742.7 | X30: 459023025.7 | Y30: 1.683903e+10 | Z30: 1700912.121
A31: =IF(ISBLANK(InfoPro!A25),"",InfoPro!A25) -> SC_1214_A2 | B31: =IF(ISBLANK(InfoPro!B25),"",InfoPro!B25) -> Sol de Espinal 9,9 MW | C31: =IF(ISBLANK(InfoPro!E25),"",InfoPro!E25) -> 9.9 | D31: =IF(ISBLANK(InfoPro!F25),"",InfoPro!F25) -> Solar FV | E31: =IF(ISBLANK(InfoPro!I25),"",YEAR(InfoPro!I25)-$H$3) -> 5 | F31: =IF(B31="","",VLOOKUP(D31,Tablas!$B$2:$E$13,2,FALSE)) -> 0.26 | G31: =IF(B31="","",VLOOKUP(D31,Tablas!$B$2:$H$13,7,FALSE)) -> 83577.2 | H31: 0.564831274 | I31: 22548.24 | J31: 1400401305 | K31: 1252595085 | L31: 1120389164 | M31: 1002136998 | N31: 896365830 | O31: 801758345.3 | P31: 717136265.9 | Q31: 641445676.1 | R31: 573743896.3 | S31: 513187742.7 | T31: 459023025.7 | U31: 410575157.1 | V31: 367240748.8 | W31: 328480097.3 | X31: 293810462.7 | Y31: 1.07782898e+10 | Z31: 1088716.141
A32: =IF(ISBLANK(InfoPro!A26),"",InfoPro!A26) -> SC_1334_A2 | B32: =IF(ISBLANK(InfoPro!B26),"",InfoPro!B26) -> Flandes Solar | C32: =IF(ISBLANK(InfoPro!E26),"",InfoPro!E26) -> 9.9 | D32: =IF(ISBLANK(InfoPro!F26),"",InfoPro!F26) -> Solar FV | E32: =IF(ISBLANK(InfoPro!I26),"",YEAR(InfoPro!I26)-$H$3) -> 3 | F32: =IF(B32="","",VLOOKUP(D32,Tablas!$B$2:$E$13,2,FALSE)) -> 0.26 | G32: =IF(B32="","",VLOOKUP(D32,Tablas!$B$2:$H$13,7,FALSE)) -> 83577.2 | H32: 0.564831274 | I32: 22548.24 | J32: 1750395201 | K32: 1565648659 | L32: 1400401305 | M32: 1252595085 | N32: 1120389164 | O32: 1002136998 | P32: 896365830 | Q32: 801758345.3 | R32: 717136265.9 | S32: 641445676.1 | T32: 573743896.3 | U32: 513187742.7 | V32: 459023025.7 | W32: 410575157.1 | X32: 367240748.8 | Y32: 1.34720431e+10 | Z32: 1360812.434
A33: =IF(ISBLANK(InfoPro!A27),"",InfoPro!A27) -> SC_1334_A1 | B33: =IF(ISBLANK(InfoPro!B27),"",InfoPro!B27) -> Flandes Solar | C33: =IF(ISBLANK(InfoPro!E27),"",InfoPro!E27) -> 9.9 | D33: =IF(ISBLANK(InfoPro!F27),"",InfoPro!F27) -> Solar FV | E33: =IF(ISBLANK(InfoPro!I27),"",YEAR(InfoPro!I27)-$H$3) -> 3 | F33: =IF(B33="","",VLOOKUP(D33,Tablas!$B$2:$E$13,2,FALSE)) -> 0.26 | G33: =IF(B33="","",VLOOKUP(D33,Tablas!$B$2:$H$13,7,FALSE)) -> 83577.2 | H33: 0.564831274 | I33: 22548.24 | J33: 1750395201 | K33: 1565648659 | L33: 1400401305 | M33: 1252595085 | N33: 1120389164 | O33: 1002136998 | P33: 896365830 | Q33: 801758345.3 | R33: 717136265.9 | S33: 641445676.1 | T33: 573743896.3 | U33: 513187742.7 | V33: 459023025.7 | W33: 410575157.1 | X33: 367240748.8 | Y33: 1.34720431e+10 | Z33: 1360812.434
A34: =IF(ISBLANK(InfoPro!A28),"",InfoPro!A28) -> SC_1273_A1 | B34: =IF(ISBLANK(InfoPro!B28),"",InfoPro!B28) -> Santa Clara DE 9,9 MW | C34: =IF(ISBLANK(InfoPro!E28),"",InfoPro!E28) -> 9.9 | D34: =IF(ISBLANK(InfoPro!F28),"",InfoPro!F28) -> Solar FV | E34: =IF(ISBLANK(InfoPro!I28),"",YEAR(InfoPro!I28)-$H$3) -> 1 | F34: =IF(B34="","",VLOOKUP(D34,Tablas!$B$2:$E$13,2,FALSE)) -> 0.26 | G34: =IF(B34="","",VLOOKUP(D34,Tablas!$B$2:$H$13,7,FALSE)) -> 83577.2 | H34: 0.564831274 | I34: 22548.24 | J34: 2187860971 | K34: 1956941835 | L34: 1750395201 | M34: 1565648659 | N34: 1400401305 | O34: 1252595085 | P34: 1120389164 | Q34: 1002136998 | R34: 896365830 | S34: 801758345.3 | T34: 717136265.9 | U34: 641445676.1 | V34: 573743896.3 | W34: 513187742.7 | X34: 459023025.7 | Y34: 1.683903e+10 | Z34: 1700912.121
A35: =IF(ISBLANK(InfoPro!A29),"",InfoPro!A29) -> SC_806_A2 | B35: =IF(ISBLANK(InfoPro!B29),"",InfoPro!B29) -> Wartsila | C35: =IF(ISBLANK(InfoPro!E29),"",InfoPro!E29) -> 26.25 | D35: =IF(ISBLANK(InfoPro!F29),"",InfoPro!F29) -> Termica - Ciclo combinado | E35: =IF(ISBLANK(InfoPro!I29),"",YEAR(InfoPro!I29)-$H$3) -> 0 | F35: =IF(B35="","",VLOOKUP(D35,Tablas!$B$2:$E$13,2,FALSE)) -> 0.85 | G35: =IF(B35="","",VLOOKUP(D35,Tablas!$B$2:$H$13,7,FALSE)) -> 267152.5 | H35: -0.3910063158 | I35: 195457.5 | J35: -1.467797869e+10 | K35: -1.312878237e+10 | L35: -1.174309693e+10 | M35: -1.050366452e+10 | N35: -9395048766 | O35: -8403442545 | P35: -7516496015 | Q35: -6723162805 | R35: -6013562437 | S35: -5378857278 | T35: -4811142467 | U35: -4303347466 | V35: -3849148002 | W35: -3442887300 | X35: -3079505635 | Y35: -1.129701232e+11 | Z35: -4303623.742
A36: =IF(ISBLANK(InfoPro!A30),"",InfoPro!A30) -> SC_1248_A2 | B36: =IF(ISBLANK(InfoPro!B30),"",InfoPro!B30) -> El Piojo IV | C36: =IF(ISBLANK(InfoPro!E30),"",InfoPro!E30) -> 9.9 | D36: =IF(ISBLANK(InfoPro!F30),"",InfoPro!F30) -> Solar FV | E36: =IF(ISBLANK(InfoPro!I30),"",YEAR(InfoPro!I30)-$H$3) -> 1 | F36: =IF(B36="","",VLOOKUP(D36,Tablas!$B$2:$E$13,2,FALSE)) -> 0.26 | G36: =IF(B36="","",VLOOKUP(D36,Tablas!$B$2:$H$13,7,FALSE)) -> 83577.2 | H36: 0.564831274 | I36: 22548.24 | J36: =IF($I36="","",(1/(1+$C$3)^(J$6+$E36))*$I36*$C$2*$H36) -> 2187860971 | K36: 1956941835 | L36: 1750395201 | M36: 1565648659 | N36: 1400401305 | O36: 1252595085 | P36: 1120389164 | Q36: 1002136998 | R36: 896365830 | S36: 801758345.3 | T36: 717136265.9 | U36: 641445676.1 | V36: 573743896.3 | W36: 513187742.7 | X36: 459023025.7 | Y36: 1.683903e+10 | Z36: 1700912.121
A37: =IF(ISBLANK(InfoPro!A31),"",InfoPro!A31) -> SC_1248_A1 | B37: =IF(ISBLANK(InfoPro!B31),"",InfoPro!B31) -> El Piojo IV | C37: =IF(ISBLANK(InfoPro!E31),"",InfoPro!E31) -> 9.9 | D37: =IF(ISBLANK(InfoPro!F31),"",InfoPro!F31) -> Solar FV | E37: =IF(ISBLANK(InfoPro!I31),"",YEAR(InfoPro!I31)-$H$3) -> 1 | F37: =IF(B37="","",VLOOKUP(D37,Tablas!$B$2:$E$13,2,FALSE)) -> 0.26 | G37: =IF(B37="","",VLOOKUP(D37,Tablas!$B$2:$H$13,7,FALSE)) -> 83577.2 | H37: 0.564831274 | I37: 22548.24 | J37: 2187860971 | K37: 1956941835 | L37: 1750395201 | M37: 1565648659 | N37: 1400401305 | O37: 1252595085 | P37: 1120389164 | Q37: 1002136998 | R37: 896365830 | S37: 801758345.3 | T37: 717136265.9 | U37: 641445676.1 | V37: 573743896.3 | W37: 513187742.7 | X37: 459023025.7 | Y37: 1.683903e+10 | Z37: 1700912.121
A38: =IF(ISBLANK(InfoPro!A32),"",InfoPro!A32) -> SC_871_A1 | B38: =IF(ISBLANK(InfoPro!B32),"",InfoPro!B32) -> PARQUE SOLAR SANTA LUCIA | C38: =IF(ISBLANK(InfoPro!E32),"",InfoPro!E32) -> 9.9 | D38: =IF(ISBLANK(InfoPro!F32),"",InfoPro!F32) -> Solar FV | E38: =IF(ISBLANK(InfoPro!I32),"",YEAR(InfoPro!I32)-$H$3) -> 1 | F38: =IF(B38="","",VLOOKUP(D38,Tablas!$B$2:$E$13,2,FALSE)) -> 0.26 | G38: =IF(B38="","",VLOOKUP(D38,Tablas!$B$2:$H$13,7,FALSE)) -> 83577.2 | H38: 0.564831274 | I38: =IF(C38="","",+C38*F38*24*365) -> 22548.24 | J38: 2187860971 | K38: 1956941835 | L38: 1750395201 | M38: 1565648659 | N38: 1400401305 | O38: 1252595085 | P38: 1120389164 | Q38: 1002136998 | R38: 896365830 | S38: 801758345.3 | T38: 717136265.9 | U38: 641445676.1 | V38: 573743896.3 | W38: 513187742.7 | X38: 459023025.7 | Y38: 1.683903e+10 | Z38: 1700912.121
A39: =IF(ISBLANK(InfoPro!A33),"",InfoPro!A33) -> SC_1214_A1 | B39: =IF(ISBLANK(InfoPro!B33),"",InfoPro!B33) -> Sol de Espinal 9,9 MW | C39: =IF(ISBLANK(InfoPro!E33),"",InfoPro!E33) -> 9.9 | D39: =IF(ISBLANK(InfoPro!F33),"",InfoPro!F33) -> Solar FV | E39: =IF(ISBLANK(InfoPro!I33),"",YEAR(InfoPro!I33)-$H$3) -> 5 | F39: =IF(B39="","",VLOOKUP(D39,Tablas!$B$2:$E$13,2,FALSE)) -> 0.26 | G39: =IF(B39="","",VLOOKUP(D39,Tablas!$B$2:$H$13,7,FALSE)) -> 83577.2 | H39: 0.564831274 | I39: 22548.24 | J39: 1400401305 | K39: 1252595085 | L39: 1120389164 | M39: 1002136998 | N39: 896365830 | O39: 801758345.3 | P39: 717136265.9 | Q39: 641445676.1 | R39: 573743896.3 | S39: 513187742.7 | T39: 459023025.7 | U39: 410575157.1 | V39: 367240748.8 | W39: 328480097.3 | X39: 293810462.7 | Y39: 1.07782898e+10 | Z39: 1088716.141
A40: =IF(ISBLANK(InfoPro!A34),"",InfoPro!A34) -> SC_1126_A1 | B40: =IF(ISBLANK(InfoPro!B34),"",InfoPro!B34) -> Solar Escobal 9 | C40: =IF(ISBLANK(InfoPro!E34),"",InfoPro!E34) -> 19.9 | D40: =IF(ISBLANK(InfoPro!F34),"",InfoPro!F34) -> Solar FV | E40: =IF(ISBLANK(InfoPro!I34),"",YEAR(InfoPro!I34)-$H$3) -> 7 | F40: =IF(B40="","",VLOOKUP(D40,Tablas!$B$2:$E$13,2,FALSE)) -> 0.26 | G40: =IF(B40="","",VLOOKUP(D40,Tablas!$B$2:$H$13,7,FALSE)) -> 83577.2 | H40: 0.564831274 | I40: 45324.24 | J40: 2252095390 | K40: 2014396592 | L40: 1801785860 | M40: 1611615260 | N40: 1441516332 | O40: 1289370601 | P40: 1153283186 | Q40: 1031559200 | R40: 922682647.6 | S40: 825297538.1 | T40: 738191000.1 | U40: 660278175.4 | V40: 590588707.8 | W40: 528254658.2 | X40: 472499694.3 | Y40: 1.733341484e+10 | Z40: 871025.8715
A41: =IF(ISBLANK(InfoPro!A35),"",InfoPro!A35) -> SC_764_A2 | B41: =IF(ISBLANK(InfoPro!B35),"",InfoPro!B35) -> PARQUE FOTOVOLTAICO LAS CEIBAS | C41: =IF(ISBLANK(InfoPro!E35),"",InfoPro!E35) -> 80 | D41: =IF(ISBLANK(InfoPro!F35),"",InfoPro!F35) -> Solar FV | E41: =IF(ISBLANK(InfoPro!I35),"",YEAR(InfoPro!I35)-$H$3) -> 3 | F41: =IF(B41="","",VLOOKUP(D41,Tablas!$B$2:$E$13,2,FALSE)) -> 0.26 | G41: =IF(B41="","",VLOOKUP(D41,Tablas!$B$2:$H$13,7,FALSE)) -> 83577.2 | H41: 0.564831274 | I41: 182208 | J41: 1.414460768e+10 | K41: 1.265170634e+10 | L41: 1.131637418e+10 | M41: 1.012198048e+10 | N41: 9053649808 | O41: 8098076751 | P41: 7243360242 | Q41: 6478855315 | R41: 5795040532 | S41: 5183399403 | T41: 4636314314 | U41: 4146971658 | V41: 3709276975 | W41: 3317779048 | X41: 2967602010 | Y41: 1.088649947e+11 | Z41: 1360812.434
A42: =IF(ISBLANK(InfoPro!A36),"",InfoPro!A36) -> SC_661_A1 | B42: =IF(ISBLANK(InfoPro!B36),"",InfoPro!B36) -> TR Solar 11 | C42: =IF(ISBLANK(InfoPro!E36),"",InfoPro!E36) -> 45 | D42: =IF(ISBLANK(InfoPro!F36),"",InfoPro!F36) -> Solar FV | E42: =IF(ISBLANK(InfoPro!I36),"",YEAR(InfoPro!I36)-$H$3) -> 2 | F42: =IF(B42="","",VLOOKUP(D42,Tablas!$B$2:$E$13,2,FALSE)) -> 0.26 | G42: =IF(B42="","",VLOOKUP(D42,Tablas!$B$2:$H$13,7,FALSE)) -> 83577.2 | H42: 0.564831274 | I42: 102492 | J42: 8895190157 | K42: 7956341822 | L42: 7116584814 | M42: 6365460477 | N42: 5693614023 | O42: 5092678017 | P42: 4555168172 | Q42: 4074390136 | R42: 3644356115 | S42: 3259710299 | T42: 2915662164 | U42: 2607926802 | V42: 2332671558 | W42: 2086468299 | X42: 1866250714 | Y42: 6.846247357e+10 | Z42: 1521388.302
A43: =IF(ISBLANK(InfoPro!A37),"",InfoPro!A37) -> SC_661_A2 | B43: =IF(ISBLANK(InfoPro!B37),"",InfoPro!B37) -> TR Solar 11 | C43: =IF(ISBLANK(InfoPro!E37),"",InfoPro!E37) -> 45 | D43: =IF(ISBLANK(InfoPro!F37),"",InfoPro!F37) -> Solar FV | E43: =IF(ISBLANK(InfoPro!I37),"",YEAR(InfoPro!I37)-$H$3) -> 2 | F43: =IF(B43="","",VLOOKUP(D43,Tablas!$B$2:$E$13,2,FALSE)) -> 0.26 | G43: =IF(B43="","",VLOOKUP(D43,Tablas!$B$2:$H$13,7,FALSE)) -> 83577.2 | H43: 0.564831274 | I43: 102492 | J43: 8895190157 | K43: 7956341822 | L43: 7116584814 | M43: 6365460477 | N43: 5693614023 | O43: 5092678017 | P43: 4555168172 | Q43: 4074390136 | R43: 3644356115 | S43: 3259710299 | T43: 2915662164 | U43: 2607926802 | V43: 2332671558 | W43: 2086468299 | X43: 1866250714 | Y43: 6.846247357e+10 | Z43: 1521388.302
A44: =IF(ISBLANK(InfoPro!A38),"",InfoPro!A38) -> SC_1337_A1 | B44: =IF(ISBLANK(InfoPro!B38),"",InfoPro!B38) -> Los Venados_15MW | C44: =IF(ISBLANK(InfoPro!E38),"",InfoPro!E38) -> 15 | D44: =IF(ISBLANK(InfoPro!F38),"",InfoPro!F38) -> Solar FV | E44: =IF(ISBLANK(InfoPro!I38),"",YEAR(InfoPro!I38)-$H$3) -> 1 | F44: =IF(B44="","",VLOOKUP(D44,Tablas!$B$2:$E$13,2,FALSE)) -> 0.26 | G44: =IF(B44="","",VLOOKUP(D44,Tablas!$B$2:$H$13,7,FALSE)) -> 83577.2 | H44: 0.564831274 | I44: 34164 | J44: 3314940865 | K44: 2965063386 | L44: 2652113941 | M44: 2372194938 | N44: 2121820159 | O44: 1897871341 | P44: 1697559339 | Q44: 1518389391 | R44: 1358130045 | S44: 1214785372 | T44: 1086570100 | U44: 971887388 | V44: 869308933.8 | W44: 777557185.9 | X44: 695489432.8 | Y44: 2.551368182e+10 | Z44: 1700912.121
A45: =IF(ISBLANK(InfoPro!A39),"",InfoPro!A39) -> SC_1337_A2 | B45: =IF(ISBLANK(InfoPro!B39),"",InfoPro!B39) -> Los Venados_15MW | C45: =IF(ISBLANK(InfoPro!E39),"",InfoPro!E39) -> 15 | D45: =IF(ISBLANK(InfoPro!F39),"",InfoPro!F39) -> Solar FV | E45: =IF(ISBLANK(InfoPro!I39),"",YEAR(InfoPro!I39)-$H$3) -> 1 | F45: =IF(B45="","",VLOOKUP(D45,Tablas!$B$2:$E$13,2,FALSE)) -> 0.26 | G45: =IF(B45="","",VLOOKUP(D45,Tablas!$B$2:$H$13,7,FALSE)) -> 83577.2 | H45: 0.564831274 | I45: 34164 | J45: 3314940865 | K45: 2965063386 | L45: 2652113941 | M45: 2372194938 | N45: 2121820159 | O45: 1897871341 | P45: 1697559339 | Q45: 1518389391 | R45: 1358130045 | S45: 1214785372 | T45: 1086570100 | U45: 971887388 | V45: 869308933.8 | W45: 777557185.9 | X45: 695489432.8 | Y45: 2.551368182e+10 | Z45: 1700912.121
A46: =IF(ISBLANK(InfoPro!A40),"",InfoPro!A40) -> SC_1482_A1 | B46: =IF(ISBLANK(InfoPro!B40),"",InfoPro!B40) -> Proyecto de Autogeneración Con InyecciónCero CEMEX_0MW (AUTOGENERACIÓN) | C46: =IF(ISBLANK(InfoPro!E40),"",InfoPro!E40) -> 0 | D46: =IF(ISBLANK(InfoPro!F40),"",InfoPro!F40) -> Solar FV | E46: =IF(ISBLANK(InfoPro!I40),"",YEAR(InfoPro!I40)-$H$3) -> 1 | F46: =IF(B46="","",VLOOKUP(D46,Tablas!$B$2:$E$13,2,FALSE)) -> 0.26 | G46: =IF(B46="","",VLOOKUP(D46,Tablas!$B$2:$H$13,7,FALSE)) -> 83577.2 | H46: 0.564831274 | I46: 0 | J46: =IF($I46="","",(1/(1+$C$3)^(J$6+$E46))*$I46*$C$2*$H46) -> 0 | K46: 0 | L46: 0 | M46: 0 | N46: 0 | O46: 0 | P46: 0 | Q46: 0 | R46: 0 | S46: 0 | T46: 0 | U46: 0 | V46: 0 | W46: 0 | X46: 0 | Y46: 0 | Z46: 0
A47: =IF(ISBLANK(InfoPro!A41),"",InfoPro!A41) -> SC_1043_A2 | B47: =IF(ISBLANK(InfoPro!B41),"",InfoPro!B41) -> PARQUE SOLAR PALERMO SAS | C47: =IF(ISBLANK(InfoPro!E41),"",InfoPro!E41) -> 9.9 | D47: =IF(ISBLANK(InfoPro!F41),"",InfoPro!F41) -> Solar FV | E47: =IF(ISBLANK(InfoPro!I41),"",YEAR(InfoPro!I41)-$H$3) -> 1 | F47: =IF(B47="","",VLOOKUP(D47,Tablas!$B$2:$E$13,2,FALSE)) -> 0.26 | G47: =IF(B47="","",VLOOKUP(D47,Tablas!$B$2:$H$13,7,FALSE)) -> 83577.2 | H47: 0.564831274 | I47: 22548.24 | J47: 2187860971 | K47: 1956941835 | L47: 1750395201 | M47: 1565648659 | N47: 1400401305 | O47: 1252595085 | P47: 1120389164 | Q47: 1002136998 | R47: 896365830 | S47: 801758345.3 | T47: 717136265.9 | U47: 641445676.1 | V47: 573743896.3 | W47: 513187742.7 | X47: 459023025.7 | Y47: 1.683903e+10 | Z47: 1700912.121
A48: =IF(ISBLANK(InfoPro!A42),"",InfoPro!A42) -> SC_1043_A1 | B48: =IF(ISBLANK(InfoPro!B42),"",InfoPro!B42) -> PARQUE SOLAR PALERMO SAS | C48: =IF(ISBLANK(InfoPro!E42),"",InfoPro!E42) -> 9.9 | D48: =IF(ISBLANK(InfoPro!F42),"",InfoPro!F42) -> Solar FV | E48: =IF(ISBLANK(InfoPro!I42),"",YEAR(InfoPro!I42)-$H$3) -> 1 | F48: =IF(B48="","",VLOOKUP(D48,Tablas!$B$2:$E$13,2,FALSE)) -> 0.26 | G48: =IF(B48="","",VLOOKUP(D48,Tablas!$B$2:$H$13,7,FALSE)) -> 83577.2 | H48: 0.564831274 | I48: 22548.24 | J48: 2187860971 | K48: 1956941835 | L48: 1750395201 | M48: 1565648659 | N48: 1400401305 | O48: 1252595085 | P48: 1120389164 | Q48: 1002136998 | R48: 896365830 | S48: 801758345.3 | T48: 717136265.9 | U48: 641445676.1 | V48: 573743896.3 | W48: 513187742.7 | X48: 459023025.7 | Y48: 1.683903e+10 | Z48: 1700912.121
A49: =IF(ISBLANK(InfoPro!A43),"",InfoPro!A43) -> SC_1410_A2 | B49: =IF(ISBLANK(InfoPro!B43),"",InfoPro!B43) -> Coyaima | C49: =IF(ISBLANK(InfoPro!E43),"",InfoPro!E43) -> 60 | D49: =IF(ISBLANK(InfoPro!F43),"",InfoPro!F43) -> Solar FV | E49: =IF(ISBLANK(InfoPro!I43),"",YEAR(InfoPro!I43)-$H$3) -> 3 | F49: =IF(B49="","",VLOOKUP(D49,Tablas!$B$2:$E$13,2,FALSE)) -> 0.26 | G49: =IF(B49="","",VLOOKUP(D49,Tablas!$B$2:$H$13,7,FALSE)) -> 83577.2 | H49: 0.564831274 | I49: 136656 | J49: 1.060845576e+10 | K49: 9488779752 | L49: 8487280637 | M49: 7591485364 | N49: 6790237356 | O49: 6073557563 | P49: 5432520182 | Q49: 4859141486 | R49: 4346280399 | S49: 3887549552 | T49: 3477235735 | U49: 3110228744 | V49: 2781957731 | W49: 2488334286 | X49: 2225701508 | Y49: 8.164874606e+10 | Z49: 1360812.434
A50: =IF(ISBLANK(InfoPro!A44),"",InfoPro!A44) -> SC_1410_A1 | B50: =IF(ISBLANK(InfoPro!B44),"",InfoPro!B44) -> Coyaima | C50: =IF(ISBLANK(InfoPro!E44),"",InfoPro!E44) -> 60 | D50: =IF(ISBLANK(InfoPro!F44),"",InfoPro!F44) -> Solar FV | E50: =IF(ISBLANK(InfoPro!I44),"",YEAR(InfoPro!I44)-$H$3) -> 3 | F50: =IF(B50="","",VLOOKUP(D50,Tablas!$B$2:$E$13,2,FALSE)) -> 0.26 | G50: =IF(B50="","",VLOOKUP(D50,Tablas!$B$2:$H$13,7,FALSE)) -> 83577.2 | H50: 0.564831274 | I50: 136656 | J50: 1.060845576e+10 | K50: 9488779752 | L50: 8487280637 | M50: 7591485364 | N50: 6790237356 | O50: 6073557563 | P50: 5432520182 | Q50: 4859141486 | R50: 4346280399 | S50: 3887549552 | T50: 3477235735 | U50: 3110228744 | V50: 2781957731 | W50: 2488334286 | X50: 2225701508 | Y50: 8.164874606e+10 | Z50: 1360812.434
A51: =IF(ISBLANK(InfoPro!A45),"",InfoPro!A45) -> SC_857_A1 | B51: =IF(ISBLANK(InfoPro!B45),"",InfoPro!B45) -> Andaki Wind Farm | C51: =IF(ISBLANK(InfoPro!E45),"",InfoPro!E45) -> 125 | D51: =IF(ISBLANK(InfoPro!F45),"",InfoPro!F45) -> Eólico Onshore | E51: =IF(ISBLANK(InfoPro!I45),"",YEAR(InfoPro!I45)-$H$3) -> 3 | F51: =IF(B51="","",VLOOKUP(D51,Tablas!$B$2:$E$13,2,FALSE)) -> 0.57 | G51: =IF(B51="","",VLOOKUP(D51,Tablas!$B$2:$H$13,7,FALSE)) -> 83577.2 | H51: 0.564831274 | I51: 624150 | J51: 4.845208161e+10 | K51: 4.333817675e+10 | L51: 3.876402214e+10 | M51: 3.46726495e+10 | N51: 3.101310331e+10 | O51: 2.773980618e+10 | P51: 2.481199122e+10 | Q51: 2.219319429e+10 | R51: 1.98507999e+10 | S51: 1.775563497e+10 | T51: 1.588160552e+10 | U51: 1.420537167e+10 | V51: 1.270605695e+10 | W51: 1.136498832e+10 | X51: 1.016546362e+10 | Y51: 3.729149459e+11 | Z51: 2983319.567
A52: =IF(ISBLANK(InfoPro!A46),"",InfoPro!A46) -> SC_880_A2 | B52: =IF(ISBLANK(InfoPro!B46),"",InfoPro!B46) -> PARQUE FOTOVOLTAICO LA ACHIRA | C52: =IF(ISBLANK(InfoPro!E46),"",InfoPro!E46) -> 60 | D52: =IF(ISBLANK(InfoPro!F46),"",InfoPro!F46) -> Solar FV | E52: =IF(ISBLANK(InfoPro!I46),"",YEAR(InfoPro!I46)-$H$3) -> 3 | F52: =IF(B52="","",VLOOKUP(D52,Tablas!$B$2:$E$13,2,FALSE)) -> 0.26 | G52: =IF(B52="","",VLOOKUP(D52,Tablas!$B$2:$H$13,7,FALSE)) -> 83577.2 | H52: 0.564831274 | I52: 136656 | J52: 1.060845576e+10 | K52: 9488779752 | L52: 8487280637 | M52: 7591485364 | N52: 6790237356 | O52: 6073557563 | P52: 5432520182 | Q52: 4859141486 | R52: 4346280399 | S52: 3887549552 | T52: 3477235735 | U52: 3110228744 | V52: 2781957731 | W52: 2488334286 | X52: 2225701508 | Y52: 8.164874606e+10 | Z52: 1360812.434
A53: =IF(ISBLANK(InfoPro!A47),"",InfoPro!A47) -> SC_880_A1 | B53: =IF(ISBLANK(InfoPro!B47),"",InfoPro!B47) -> PARQUE FOTOVOLTAICO LA ACHIRA | C53: =IF(ISBLANK(InfoPro!E47),"",InfoPro!E47) -> 60 | D53: =IF(ISBLANK(InfoPro!F47),"",InfoPro!F47) -> Solar FV | E53: =IF(ISBLANK(InfoPro!I47),"",YEAR(InfoPro!I47)-$H$3) -> 3 | F53: =IF(B53="","",VLOOKUP(D53,Tablas!$B$2:$E$13,2,FALSE)) -> 0.26 | G53: =IF(B53="","",VLOOKUP(D53,Tablas!$B$2:$H$13,7,FALSE)) -> 83577.2 | H53: 0.564831274 | I53: 136656 | J53: 1.060845576e+10 | K53: 9488779752 | L53: 8487280637 | M53: 7591485364 | N53: 6790237356 | O53: 6073557563 | P53: 5432520182 | Q53: 4859141486 | R53: 4346280399 | S53: 3887549552 | T53: 3477235735 | U53: 3110228744 | V53: 2781957731 | W53: 2488334286 | X53: 2225701508 | Y53: 8.164874606e+10 | Z53: 1360812.434
A54: =IF(ISBLANK(InfoPro!A48),"",InfoPro!A48) -> SC_1235_A1 | B54: =IF(ISBLANK(InfoPro!B48),"",InfoPro!B48) -> PROYECTO FOTOVOLTAICO AIPE | C54: =IF(ISBLANK(InfoPro!E48),"",InfoPro!E48) -> 9.9 | D54: =IF(ISBLANK(InfoPro!F48),"",InfoPro!F48) -> Solar FV | E54: =IF(ISBLANK(InfoPro!I48),"",YEAR(InfoPro!I48)-$H$3) -> 3 | F54: =IF(B54="","",VLOOKUP(D54,Tablas!$B$2:$E$13,2,FALSE)) -> 0.26 | G54: =IF(B54="","",VLOOKUP(D54,Tablas!$B$2:$H$13,7,FALSE)) -> 83577.2 | H54: 0.564831274 | I54: 22548.24 | J54: 1750395201 | K54: 1565648659 | L54: 1400401305 | M54: 1252595085 | N54: 1120389164 | O54: 1002136998 | P54: 896365830 | Q54: 801758345.3 | R54: 717136265.9 | S54: 641445676.1 | T54: 573743896.3 | U54: 513187742.7 | V54: 459023025.7 | W54: 410575157.1 | X54: 367240748.8 | Y54: 1.34720431e+10 | Z54: 1360812.434
A55: =IF(ISBLANK(InfoPro!A49),"",InfoPro!A49) -> SC_857_A2 | B55: =IF(ISBLANK(InfoPro!B49),"",InfoPro!B49) -> Andaki Wind Farm | C55: =IF(ISBLANK(InfoPro!E49),"",InfoPro!E49) -> 125 | D55: =IF(ISBLANK(InfoPro!F49),"",InfoPro!F49) -> Eólico Onshore | E55: =IF(ISBLANK(InfoPro!I49),"",YEAR(InfoPro!I49)-$H$3) -> 3 | F55: =IF(B55="","",VLOOKUP(D55,Tablas!$B$2:$E$13,2,FALSE)) -> 0.57 | G55: =IF(B55="","",VLOOKUP(D55,Tablas!$B$2:$H$13,7,FALSE)) -> 83577.2 | H55: 0.564831274 | I55: 624150 | J55: 4.845208161e+10 | K55: 4.333817675e+10 | L55: 3.876402214e+10 | M55: 3.46726495e+10 | N55: 3.101310331e+10 | O55: 2.773980618e+10 | P55: 2.481199122e+10 | Q55: 2.219319429e+10 | R55: 1.98507999e+10 | S55: 1.775563497e+10 | T55: 1.588160552e+10 | U55: 1.420537167e+10 | V55: 1.270605695e+10 | W55: 1.136498832e+10 | X55: 1.016546362e+10 | Y55: 3.729149459e+11 | Z55: 2983319.567
A56: =IF(ISBLANK(InfoPro!A50),"",InfoPro!A50) -> SC_1694_A2 | B56: =IF(ISBLANK(InfoPro!B50),"",InfoPro!B50) -> Parque Solar Fotovoltaico El Patá | C56: =IF(ISBLANK(InfoPro!E50),"",InfoPro!E50) -> 9.9 | D56: =IF(ISBLANK(InfoPro!F50),"",InfoPro!F50) -> Solar FV | E56: =IF(ISBLANK(InfoPro!I50),"",YEAR(InfoPro!I50)-$H$3) -> 3 | F56: =IF(B56="","",VLOOKUP(D56,Tablas!$B$2:$E$13,2,FALSE)) -> 0.26 | G56: =IF(B56="","",VLOOKUP(D56,Tablas!$B$2:$H$13,7,FALSE)) -> 83577.2 | H56: 0.564831274 | I56: 22548.24 | J56: =IF($I56="","",(1/(1+$C$3)^(J$6+$E56))*$I56*$C$2*$H56) -> 1750395201 | K56: 1565648659 | L56: 1400401305 | M56: 1252595085 | N56: 1120389164 | O56: 1002136998 | P56: 896365830 | Q56: 801758345.3 | R56: 717136265.9 | S56: 641445676.1 | T56: 573743896.3 | U56: 513187742.7 | V56: 459023025.7 | W56: 410575157.1 | X56: 367240748.8 | Y56: 1.34720431e+10 | Z56: 1360812.434
A57: =IF(ISBLANK(InfoPro!A51),"",InfoPro!A51) -> SC_1694_A1 | B57: =IF(ISBLANK(InfoPro!B51),"",InfoPro!B51) -> Parque Solar Fotovoltaico El Patá | C57: =IF(ISBLANK(InfoPro!E51),"",InfoPro!E51) -> 9.9 | D57: =IF(ISBLANK(InfoPro!F51),"",InfoPro!F51) -> Solar FV | E57: =IF(ISBLANK(InfoPro!I51),"",YEAR(InfoPro!I51)-$H$3) -> 3 | F57: =IF(B57="","",VLOOKUP(D57,Tablas!$B$2:$E$13,2,FALSE)) -> 0.26 | G57: =IF(B57="","",VLOOKUP(D57,Tablas!$B$2:$H$13,7,FALSE)) -> 83577.2 | H57: 0.564831274 | I57: 22548.24 | J57: 1750395201 | K57: 1565648659 | L57: 1400401305 | M57: 1252595085 | N57: 1120389164 | O57: 1002136998 | P57: 896365830 | Q57: 801758345.3 | R57: 717136265.9 | S57: 641445676.1 | T57: 573743896.3 | U57: 513187742.7 | V57: 459023025.7 | W57: 410575157.1 | X57: 367240748.8 | Y57: 1.34720431e+10 | Z57: 1360812.434
A58: =IF(ISBLANK(InfoPro!A52),"",InfoPro!A52) -> SC_1666_A1 | B58: =IF(ISBLANK(InfoPro!B52),"",InfoPro!B52) -> PROYECTO SOLAR FOTOVOLTAICO IGUAIMA DE 9,9 | C58: =IF(ISBLANK(InfoPro!E52),"",InfoPro!E52) -> 9.9 | D58: =IF(ISBLANK(InfoPro!F52),"",InfoPro!F52) -> Solar FV | E58: =IF(ISBLANK(InfoPro!I52),"",YEAR(InfoPro!I52)-$H$3) -> 3 | F58: =IF(B58="","",VLOOKUP(D58,Tablas!$B$2:$E$13,2,FALSE)) -> 0.26 | G58: =IF(B58="","",VLOOKUP(D58,Tablas!$B$2:$H$13,7,FALSE)) -> 83577.2 | H58: 0.564831274 | I58: 22548.24 | J58: 1750395201 | K58: 1565648659 | L58: 1400401305 | M58: 1252595085 | N58: 1120389164 | O58: 1002136998 | P58: 896365830 | Q58: 801758345.3 | R58: 717136265.9 | S58: 641445676.1 | T58: 573743896.3 | U58: 513187742.7 | V58: 459023025.7 | W58: 410575157.1 | X58: 367240748.8 | Y58: 1.34720431e+10 | Z58: 1360812.434
A59: =IF(ISBLANK(InfoPro!A53),"",InfoPro!A53) -> SC_1666_A2 | B59: =IF(ISBLANK(InfoPro!B53),"",InfoPro!B53) -> PROYECTO SOLAR FOTOVOLTAICO IGUAIMA DE 9,9 | C59: =IF(ISBLANK(InfoPro!E53),"",InfoPro!E53) -> 9.9 | D59: =IF(ISBLANK(InfoPro!F53),"",InfoPro!F53) -> Solar FV | E59: =IF(ISBLANK(InfoPro!I53),"",YEAR(InfoPro!I53)-$H$3) -> 3 | F59: =IF(B59="","",VLOOKUP(D59,Tablas!$B$2:$E$13,2,FALSE)) -> 0.26 | G59: =IF(B59="","",VLOOKUP(D59,Tablas!$B$2:$H$13,7,FALSE)) -> 83577.2 | H59: 0.564831274 | I59: 22548.24 | J59: 1750395201 | K59: 1565648659 | L59: 1400401305 | M59: 1252595085 | N59: 1120389164 | O59: 1002136998 | P59: 896365830 | Q59: 801758345.3 | R59: 717136265.9 | S59: 641445676.1 | T59: 573743896.3 | U59: 513187742.7 | V59: 459023025.7 | W59: 410575157.1 | X59: 367240748.8 | Y59: 1.34720431e+10 | Z59: 1360812.434
A60: =IF(ISBLANK(InfoPro!A54),"",InfoPro!A54) -> SC_1668_A1 | B60: =IF(ISBLANK(InfoPro!B54),"",InfoPro!B54) -> PARQUE SOLAR FOTOVOLTAICO DINDAL DE 9,9 MW | C60: =IF(ISBLANK(InfoPro!E54),"",InfoPro!E54) -> 9.9 | D60: =IF(ISBLANK(InfoPro!F54),"",InfoPro!F54) -> Solar FV | E60: =IF(ISBLANK(InfoPro!I54),"",YEAR(InfoPro!I54)-$H$3) -> 3 | F60: =IF(B60="","",VLOOKUP(D60,Tablas!$B$2:$E$13,2,FALSE)) -> 0.26 | G60: =IF(B60="","",VLOOKUP(D60,Tablas!$B$2:$H$13,7,FALSE)) -> 83577.2 | H60: 0.564831274 | I60: 22548.24 | J60: 1750395201 | K60: 1565648659 | L60: 1400401305 | M60: 1252595085 | N60: 1120389164 | O60: 1002136998 | P60: 896365830 | Q60: 801758345.3 | R60: 717136265.9 | S60: 641445676.1 | T60: 573743896.3 | U60: 513187742.7 | V60: 459023025.7 | W60: 410575157.1 | X60: 367240748.8 | Y60: 1.34720431e+10 | Z60: 1360812.434
A61: =IF(ISBLANK(InfoPro!A55),"",InfoPro!A55) -> SC_1668_A2 | B61: =IF(ISBLANK(InfoPro!B55),"",InfoPro!B55) -> PARQUE SOLAR FOTOVOLTAICO DINDAL DE 9,9 MW | C61: =IF(ISBLANK(InfoPro!E55),"",InfoPro!E55) -> 9.9 | D61: =IF(ISBLANK(InfoPro!F55),"",InfoPro!F55) -> Solar FV | E61: =IF(ISBLANK(InfoPro!I55),"",YEAR(InfoPro!I55)-$H$3) -> 3 | F61: =IF(B61="","",VLOOKUP(D61,Tablas!$B$2:$E$13,2,FALSE)) -> 0.26 | G61: =IF(B61="","",VLOOKUP(D61,Tablas!$B$2:$H$13,7,FALSE)) -> 83577.2 | H61: 0.564831274 | I61: 22548.24 | J61: 1750395201 | K61: 1565648659 | L61: 1400401305 | M61: 1252595085 | N61: 1120389164 | O61: 1002136998 | P61: 896365830 | Q61: 801758345.3 | R61: 717136265.9 | S61: 641445676.1 | T61: 573743896.3 | U61: 513187742.7 | V61: 459023025.7 | W61: 410575157.1 | X61: 367240748.8 | Y61: 1.34720431e+10 | Z61: 1360812.434
A62: =IF(ISBLANK(InfoPro!A56),"",InfoPro!A56) -> SC_1577_A2 | B62: =IF(ISBLANK(InfoPro!B56),"",InfoPro!B56) -> PARQUE SOLAR FOTOVOLTAICO SAN ALEJO I DE 19,9MW | C62: =IF(ISBLANK(InfoPro!E56),"",InfoPro!E56) -> 19.9 | D62: =IF(ISBLANK(InfoPro!F56),"",InfoPro!F56) -> Solar FV | E62: =IF(ISBLANK(InfoPro!I56),"",YEAR(InfoPro!I56)-$H$3) -> 3 | F62: =IF(B62="","",VLOOKUP(D62,Tablas!$B$2:$E$13,2,FALSE)) -> 0.26 | G62: =IF(B62="","",VLOOKUP(D62,Tablas!$B$2:$H$13,7,FALSE)) -> 83577.2 | H62: 0.564831274 | I62: 45324.24 | J62: 3518471161 | K62: 3147111951 | L62: 2814948078 | M62: 2517842646 | N62: 2252095390 | O62: 2014396592 | P62: 1801785860 | Q62: 1611615260 | R62: 1441516332 | S62: 1289370601 | T62: 1153283186 | U62: 1031559200 | V62: 922682647.6 | W62: 825297538.1 | X62: 738191000.1 | Y62: 2.708016744e+10 | Z62: 1360812.434
A63: =IF(ISBLANK(InfoPro!A57),"",InfoPro!A57) -> SC_1578_A2 | B63: =IF(ISBLANK(InfoPro!B57),"",InfoPro!B57) -> PROYECTO FOTOVOLTAICO SAN ALEJO II DE 19,9MW | C63: =IF(ISBLANK(InfoPro!E57),"",InfoPro!E57) -> 19.9 | D63: =IF(ISBLANK(InfoPro!F57),"",InfoPro!F57) -> Solar FV | E63: =IF(ISBLANK(InfoPro!I57),"",YEAR(InfoPro!I57)-$H$3) -> 3 | F63: =IF(B63="","",VLOOKUP(D63,Tablas!$B$2:$E$13,2,FALSE)) -> 0.26 | G63: =IF(B63="","",VLOOKUP(D63,Tablas!$B$2:$H$13,7,FALSE)) -> 83577.2 | H63: 0.564831274 | I63: 45324.24 | J63: 3518471161 | K63: 3147111951 | L63: 2814948078 | M63: 2517842646 | N63: 2252095390 | O63: 2014396592 | P63: 1801785860 | Q63: 1611615260 | R63: 1441516332 | S63: 1289370601 | T63: 1153283186 | U63: 1031559200 | V63: 922682647.6 | W63: 825297538.1 | X63: 738191000.1 | Y63: 2.708016744e+10 | Z63: 1360812.434
A64: =IF(ISBLANK(InfoPro!A58),"",InfoPro!A58) -> SC_1583_A2 | B64: =IF(ISBLANK(InfoPro!B58),"",InfoPro!B58) -> PARQUE FOTOVOLTAICO SAN ALEJO III DE 19,9MW, | C64: =IF(ISBLANK(InfoPro!E58),"",InfoPro!E58) -> 19.9 | D64: =IF(ISBLANK(InfoPro!F58),"",InfoPro!F58) -> Solar FV | E64: =IF(ISBLANK(InfoPro!I58),"",YEAR(InfoPro!I58)-$H$3) -> 3 | F64: =IF(B64="","",VLOOKUP(D64,Tablas!$B$2:$E$13,2,FALSE)) -> 0.26 | G64: =IF(B64="","",VLOOKUP(D64,Tablas!$B$2:$H$13,7,FALSE)) -> 83577.2 | H64: 0.564831274 | I64: 45324.24 | J64: 3518471161 | K64: 3147111951 | L64: 2814948078 | M64: 2517842646 | N64: 2252095390 | O64: 2014396592 | P64: 1801785860 | Q64: 1611615260 | R64: 1441516332 | S64: 1289370601 | T64: 1153283186 | U64: 1031559200 | V64: 922682647.6 | W64: 825297538.1 | X64: 738191000.1 | Y64: 2.708016744e+10 | Z64: 1360812.434
A65: =IF(ISBLANK(InfoPro!A59),"",InfoPro!A59) -> SC_1577_A1 | B65: =IF(ISBLANK(InfoPro!B59),"",InfoPro!B59) -> PARQUE SOLAR FOTOVOLTAICO SAN ALEJO I DE 19,9MW | C65: =IF(ISBLANK(InfoPro!E59),"",InfoPro!E59) -> 19.9 | D65: =IF(ISBLANK(InfoPro!F59),"",InfoPro!F59) -> Solar FV | E65: =IF(ISBLANK(InfoPro!I59),"",YEAR(InfoPro!I59)-$H$3) -> 3 | F65: =IF(B65="","",VLOOKUP(D65,Tablas!$B$2:$E$13,2,FALSE)) -> 0.26 | G65: =IF(B65="","",VLOOKUP(D65,Tablas!$B$2:$H$13,7,FALSE)) -> 83577.2 | H65: 0.564831274 | I65: 45324.24 | J65: 3518471161 | K65: 3147111951 | L65: 2814948078 | M65: 2517842646 | N65: 2252095390 | O65: 2014396592 | P65: 1801785860 | Q65: 1611615260 | R65: 1441516332 | S65: 1289370601 | T65: 1153283186 | U65: 1031559200 | V65: 922682647.6 | W65: 825297538.1 | X65: 738191000.1 | Y65: 2.708016744e+10 | Z65: 1360812.434
A66: =IF(ISBLANK(InfoPro!A60),"",InfoPro!A60) -> SC_1578_A1 | B66: =IF(ISBLANK(InfoPro!B60),"",InfoPro!B60) -> PROYECTO FOTOVOLTAICO SAN ALEJO II DE 19,9MW | C66: =IF(ISBLANK(InfoPro!E60),"",InfoPro!E60) -> 19.9 | D66: =IF(ISBLANK(InfoPro!F60),"",InfoPro!F60) -> Solar FV | E66: =IF(ISBLANK(InfoPro!I60),"",YEAR(InfoPro!I60)-$H$3) -> 3 | F66: =IF(B66="","",VLOOKUP(D66,Tablas!$B$2:$E$13,2,FALSE)) -> 0.26 | G66: =IF(B66="","",VLOOKUP(D66,Tablas!$B$2:$H$13,7,FALSE)) -> 83577.2 | H66: 0.564831274 | I66: 45324.24 | J66: =IF($I66="","",(1/(1+$C$3)^(J$6+$E66))*$I66*$C$2*$H66) -> 3518471161 | K66: 3147111951 | L66: 2814948078 | M66: 2517842646 | N66: 2252095390 | O66: 2014396592 | P66: 1801785860 | Q66: 1611615260 | R66: 1441516332 | S66: 1289370601 | T66: 1153283186 | U66: 1031559200 | V66: 922682647.6 | W66: 825297538.1 | X66: 738191000.1 | Y66: 2.708016744e+10 | Z66: 1360812.434
A67: =IF(ISBLANK(InfoPro!A61),"",InfoPro!A61) -> SC_1583_A1 | B67: =IF(ISBLANK(InfoPro!B61),"",InfoPro!B61) -> PARQUE FOTOVOLTAICO SAN ALEJO III DE 19,9MW, | C67: =IF(ISBLANK(InfoPro!E61),"",InfoPro!E61) -> 19.9 | D67: =IF(ISBLANK(InfoPro!F61),"",InfoPro!F61) -> Solar FV | E67: =IF(ISBLANK(InfoPro!I61),"",YEAR(InfoPro!I61)-$H$3) -> 3 | F67: =IF(B67="","",VLOOKUP(D67,Tablas!$B$2:$E$13,2,FALSE)) -> 0.26 | G67: =IF(B67="","",VLOOKUP(D67,Tablas!$B$2:$H$13,7,FALSE)) -> 83577.2 | H67: 0.564831274 | I67: 45324.24 | J67: 3518471161 | K67: 3147111951 | L67: 2814948078 | M67: 2517842646 | N67: 2252095390 | O67: 2014396592 | P67: 1801785860 | Q67: 1611615260 | R67: 1441516332 | S67: 1289370601 | T67: 1153283186 | U67: 1031559200 | V67: 922682647.6 | W67: 825297538.1 | X67: 738191000.1 | Y67: 2.708016744e+10 | Z67: 1360812.434
A68: =IF(ISBLANK(InfoPro!A62),"",InfoPro!A62) -> SC_1706_A1 | B68: =IF(ISBLANK(InfoPro!B62),"",InfoPro!B62) -> DSE NEIVA | C68: =IF(ISBLANK(InfoPro!E62),"",InfoPro!E62) -> 19.9 | D68: =IF(ISBLANK(InfoPro!F62),"",InfoPro!F62) -> Solar FV | E68: =IF(ISBLANK(InfoPro!I62),"",YEAR(InfoPro!I62)-$H$3) -> 2 | F68: =IF(B68="","",VLOOKUP(D68,Tablas!$B$2:$E$13,2,FALSE)) -> 0.26 | G68: =IF(B68="","",VLOOKUP(D68,Tablas!$B$2:$H$13,7,FALSE)) -> 83577.2 | H68: 0.564831274 | I68: 45324.24 | J68: 3933650758 | K68: 3518471161 | L68: 3147111951 | M68: 2814948078 | N68: 2517842646 | O68: 2252095390 | P68: 2014396592 | Q68: 1801785860 | R68: 1611615260 | S68: 1441516332 | T68: 1289370601 | U68: 1153283186 | V68: 1031559200 | W68: 922682647.6 | X68: 825297538.1 | Y68: 3.02756272e+10 | Z68: 1521388.302
A69: =IF(ISBLANK(InfoPro!A63),"",InfoPro!A63) -> SC_573_A2 | B69: =IF(ISBLANK(InfoPro!B63),"",InfoPro!B63) -> Pétalo del Huila Baraya | C69: =IF(ISBLANK(InfoPro!E63),"",InfoPro!E63) -> 9.9 | D69: =IF(ISBLANK(InfoPro!F63),"",InfoPro!F63) -> Solar FV | E69: =IF(ISBLANK(InfoPro!I63),"",YEAR(InfoPro!I63)-$H$3) -> 3 | F69: =IF(B69="","",VLOOKUP(D69,Tablas!$B$2:$E$13,2,FALSE)) -> 0.26 | G69: =IF(B69="","",VLOOKUP(D69,Tablas!$B$2:$H$13,7,FALSE)) -> 83577.2 | H69: 0.564831274 | I69: 22548.24 | J69: 1750395201 | K69: 1565648659 | L69: 1400401305 | M69: 1252595085 | N69: 1120389164 | O69: 1002136998 | P69: 896365830 | Q69: 801758345.3 | R69: 717136265.9 | S69: 641445676.1 | T69: 573743896.3 | U69: 513187742.7 | V69: 459023025.7 | W69: 410575157.1 | X69: 367240748.8 | Y69: 1.34720431e+10 | Z69: 1360812.434
A70: =IF(ISBLANK(InfoPro!A64),"",InfoPro!A64) -> SC_573_A1 | B70: =IF(ISBLANK(InfoPro!B64),"",InfoPro!B64) -> Pétalo del Huila Baraya | C70: =IF(ISBLANK(InfoPro!E64),"",InfoPro!E64) -> 9.9 | D70: =IF(ISBLANK(InfoPro!F64),"",InfoPro!F64) -> Solar FV | E70: =IF(ISBLANK(InfoPro!I64),"",YEAR(InfoPro!I64)-$H$3) -> 3 | F70: =IF(B70="","",VLOOKUP(D70,Tablas!$B$2:$E$13,2,FALSE)) -> 0.26 | G70: =IF(B70="","",VLOOKUP(D70,Tablas!$B$2:$H$13,7,FALSE)) -> 83577.2 | H70: 0.564831274 | I70: =IF(C70="","",+C70*F70*24*365) -> 22548.24 | J70: 1750395201 | K70: 1565648659 | L70: 1400401305 | M70: 1252595085 | N70: 1120389164 | O70: 1002136998 | P70: 896365830 | Q70: 801758345.3 | R70: 717136265.9 | S70: 641445676.1 | T70: 573743896.3 | U70: 513187742.7 | V70: 459023025.7 | W70: 410575157.1 | X70: 367240748.8 | Y70: 1.34720431e+10 | Z70: 1360812.434
A71: =IF(ISBLANK(InfoPro!A65),"",InfoPro!A65) -> SC_1858_A1 | B71: =IF(ISBLANK(InfoPro!B65),"",InfoPro!B65) -> Yat solar 60 MW | C71: =IF(ISBLANK(InfoPro!E65),"",InfoPro!E65) -> 60 | D71: =IF(ISBLANK(InfoPro!F65),"",InfoPro!F65) -> Solar FV | E71: =IF(ISBLANK(InfoPro!I65),"",YEAR(InfoPro!I65)-$H$3) -> 4 | F71: =IF(B71="","",VLOOKUP(D71,Tablas!$B$2:$E$13,2,FALSE)) -> 0.26 | G71: =IF(B71="","",VLOOKUP(D71,Tablas!$B$2:$H$13,7,FALSE)) -> 83577.2 | H71: =IF(B71="","",($C$2-(G71))/$C$2) -> 0.564831274 | I71: 136656 | J71: 9488779752 | K71: 8487280637 | L71: 7591485364 | M71: 6790237356 | N71: 6073557563 | O71: 5432520182 | P71: 4859141486 | Q71: 4346280399 | R71: 3887549552 | S71: 3477235735 | T71: 3110228744 | U71: 2781957731 | V71: 2488334286 | W71: 2225701508 | X71: 1990788468 | Y71: =IF(X71="","",SUM(J71:X71)) -> 7.303107876e+10 | Z71: =IF(C71=0,0,IF(Y71="","",Y71/(C71*1000))) -> 1217184.646
A72: =IF(ISBLANK(InfoPro!A66),"",InfoPro!A66) -> SC_1858_A2 | B72: =IF(ISBLANK(InfoPro!B66),"",InfoPro!B66) -> Yat solar 60 MW | C72: =IF(ISBLANK(InfoPro!E66),"",InfoPro!E66) -> 60 | D72: =IF(ISBLANK(InfoPro!F66),"",InfoPro!F66) -> Solar FV | E72: =IF(ISBLANK(InfoPro!I66),"",YEAR(InfoPro!I66)-$H$3) -> 4 | F72: =IF(B72="","",VLOOKUP(D72,Tablas!$B$2:$E$13,2,FALSE)) -> 0.26 | G72: =IF(B72="","",VLOOKUP(D72,Tablas!$B$2:$H$13,7,FALSE)) -> 83577.2 | H72: 0.564831274 | I72: 136656 | J72: 9488779752 | K72: 8487280637 | L72: 7591485364 | M72: 6790237356 | N72: 6073557563 | O72: 5432520182 | P72: 4859141486 | Q72: 4346280399 | R72: 3887549552 | S72: 3477235735 | T72: 3110228744 | U72: 2781957731 | V72: 2488334286 | W72: 2225701508 | X72: 1990788468 | Y72: 7.303107876e+10 | Z72: 1217184.646
A73: =IF(ISBLANK(InfoPro!A67),"",InfoPro!A67) -> SC_1305_A1 | B73: =IF(ISBLANK(InfoPro!B67),"",InfoPro!B67) -> Helios Espinal II 19,9MW | C73: =IF(ISBLANK(InfoPro!E67),"",InfoPro!E67) -> 19.9 | D73: =IF(ISBLANK(InfoPro!F67),"",InfoPro!F67) -> Solar FV | E73: =IF(ISBLANK(InfoPro!I67),"",YEAR(InfoPro!I67)-$H$3) -> 1 | F73: =IF(B73="","",VLOOKUP(D73,Tablas!$B$2:$E$13,2,FALSE)) -> 0.26 | G73: =IF(B73="","",VLOOKUP(D73,Tablas!$B$2:$H$13,7,FALSE)) -> 83577.2 | H73: 0.564831274 | I73: 45324.24 | J73: 4397821548 | K73: 3933650758 | L73: 3518471161 | M73: 3147111951 | N73: 2814948078 | O73: 2517842646 | P73: 2252095390 | Q73: 2014396592 | R73: 1801785860 | S73: 1611615260 | T73: 1441516332 | U73: 1289370601 | V73: 1153283186 | W73: 1031559200 | X73: 922682647.6 | Y73: 3.384815121e+10 | Z73: 1700912.121
A74: =IF(ISBLANK(InfoPro!A68),"",InfoPro!A68) -> SC_1305_A2 | B74: =IF(ISBLANK(InfoPro!B68),"",InfoPro!B68) -> Helios Espinal II 19,9MW | C74: =IF(ISBLANK(InfoPro!E68),"",InfoPro!E68) -> 19.9 | D74: =IF(ISBLANK(InfoPro!F68),"",InfoPro!F68) -> Solar FV | E74: =IF(ISBLANK(InfoPro!I68),"",YEAR(InfoPro!I68)-$H$3) -> 1 | F74: =IF(B74="","",VLOOKUP(D74,Tablas!$B$2:$E$13,2,FALSE)) -> 0.26 | G74: =IF(B74="","",VLOOKUP(D74,Tablas!$B$2:$H$13,7,FALSE)) -> 83577.2 | H74: 0.564831274 | I74: 45324.24 | J74: 4397821548 | K74: 3933650758 | L74: 3518471161 | M74: 3147111951 | N74: 2814948078 | O74: 2517842646 | P74: 2252095390 | Q74: 2014396592 | R74: 1801785860 | S74: 1611615260 | T74: 1441516332 | U74: 1289370601 | V74: 1153283186 | W74: 1031559200 | X74: 922682647.6 | Y74: 3.384815121e+10 | Z74: 1700912.121
A75: =IF(ISBLANK(InfoPro!A69),"",InfoPro!A69) -> SC_1330_A1 | B75: =IF(ISBLANK(InfoPro!B69),"",InfoPro!B69) -> Helios Espinal I - 100MW | C75: =IF(ISBLANK(InfoPro!E69),"",InfoPro!E69) -> 100 | D75: =IF(ISBLANK(InfoPro!F69),"",InfoPro!F69) -> Solar FV | E75: =IF(ISBLANK(InfoPro!I69),"",YEAR(InfoPro!I69)-$H$3) -> 2 | F75: =IF(B75="","",VLOOKUP(D75,Tablas!$B$2:$E$13,2,FALSE)) -> 0.26 | G75: =IF(B75="","",VLOOKUP(D75,Tablas!$B$2:$H$13,7,FALSE)) -> 83577.2 | H75: 0.564831274 | I75: 227760 | J75: 1.976708924e+10 | K75: 1.76807596e+10 | L75: 1.581463292e+10 | M75: 1.414546773e+10 | N75: 1.265247561e+10 | O75: 1.131706226e+10 | P75: 1.012259594e+10 | Q75: 9054200303 | R75: 8098569144 | S75: 7243800666 | T75: 6479249254 | U75: 5795392892 | V75: 5183714573 | W75: 4636596219 | X75: 4147223809 | Y75: 1.521388302e+11 | Z75: 1521388.302
A76: =IF(ISBLANK(InfoPro!A70),"",InfoPro!A70) -> SC_1330_A2 | B76: =IF(ISBLANK(InfoPro!B70),"",InfoPro!B70) -> Helios Espinal I - 100MW | C76: =IF(ISBLANK(InfoPro!E70),"",InfoPro!E70) -> 100 | D76: =IF(ISBLANK(InfoPro!F70),"",InfoPro!F70) -> Solar FV | E76: =IF(ISBLANK(InfoPro!I70),"",YEAR(InfoPro!I70)-$H$3) -> 2 | F76: =IF(B76="","",VLOOKUP(D76,Tablas!$B$2:$E$13,2,FALSE)) -> 0.26 | G76: =IF(B76="","",VLOOKUP(D76,Tablas!$B$2:$H$13,7,FALSE)) -> 83577.2 | H76: 0.564831274 | I76: 227760 | J76: =IF($I76="","",(1/(1+$C$3)^(J$6+$E76))*$I76*$C$2*$H76) -> 1.976708924e+10 | K76: 1.76807596e+10 | L76: 1.581463292e+10 | M76: 1.414546773e+10 | N76: 1.265247561e+10 | O76: 1.131706226e+10 | P76: 1.012259594e+10 | Q76: 9054200303 | R76: 8098569144 | S76: 7243800666 | T76: 6479249254 | U76: 5795392892 | V76: 5183714573 | W76: 4636596219 | X76: 4147223809 | Y76: 1.521388302e+11 | Z76: 1521388.302
A77: =IF(ISBLANK(InfoPro!A71),"",InfoPro!A71) -> SC_1872_A2 | B77: =IF(ISBLANK(InfoPro!B71),"",InfoPro!B71) -> PARQUE SOLAR LA CANDILEJA | C77: =IF(ISBLANK(InfoPro!E71),"",InfoPro!E71) -> 9.9 | D77: =IF(ISBLANK(InfoPro!F71),"",InfoPro!F71) -> Solar FV | E77: =IF(ISBLANK(InfoPro!I71),"",YEAR(InfoPro!I71)-$H$3) -> 1 | F77: =IF(B77="","",VLOOKUP(D77,Tablas!$B$2:$E$13,2,FALSE)) -> 0.26 | G77: =IF(B77="","",VLOOKUP(D77,Tablas!$B$2:$H$13,7,FALSE)) -> 83577.2 | H77: 0.564831274 | I77: 22548.24 | J77: 2187860971 | K77: 1956941835 | L77: 1750395201 | M77: 1565648659 | N77: 1400401305 | O77: 1252595085 | P77: 1120389164 | Q77: 1002136998 | R77: 896365830 | S77: 801758345.3 | T77: 717136265.9 | U77: 641445676.1 | V77: 573743896.3 | W77: 513187742.7 | X77: 459023025.7 | Y77: 1.683903e+10 | Z77: 1700912.121
A78: =IF(ISBLANK(InfoPro!A72),"",InfoPro!A72) -> SC_1872_A1 | B78: =IF(ISBLANK(InfoPro!B72),"",InfoPro!B72) -> PARQUE SOLAR LA CANDILEJA | C78: =IF(ISBLANK(InfoPro!E72),"",InfoPro!E72) -> 9.9 | D78: =IF(ISBLANK(InfoPro!F72),"",InfoPro!F72) -> Solar FV | E78: =IF(ISBLANK(InfoPro!I72),"",YEAR(InfoPro!I72)-$H$3) -> 1 | F78: =IF(B78="","",VLOOKUP(D78,Tablas!$B$2:$E$13,2,FALSE)) -> 0.26 | G78: =IF(B78="","",VLOOKUP(D78,Tablas!$B$2:$H$13,7,FALSE)) -> 83577.2 | H78: 0.564831274 | I78: 22548.24 | J78: 2187860971 | K78: 1956941835 | L78: 1750395201 | M78: 1565648659 | N78: 1400401305 | O78: 1252595085 | P78: 1120389164 | Q78: 1002136998 | R78: 896365830 | S78: 801758345.3 | T78: 717136265.9 | U78: 641445676.1 | V78: 573743896.3 | W78: 513187742.7 | X78: 459023025.7 | Y78: 1.683903e+10 | Z78: 1700912.121
A79: =IF(ISBLANK(InfoPro!A73),"",InfoPro!A73) -> SC_1852_A1 | B79: =IF(ISBLANK(InfoPro!B73),"",InfoPro!B73) -> Helios Natagaima II - 50MW | C79: =IF(ISBLANK(InfoPro!E73),"",InfoPro!E73) -> 50 | D79: =IF(ISBLANK(InfoPro!F73),"",InfoPro!F73) -> Solar FV | E79: =IF(ISBLANK(InfoPro!I73),"",YEAR(InfoPro!I73)-$H$3) -> 2 | F79: =IF(B79="","",VLOOKUP(D79,Tablas!$B$2:$E$13,2,FALSE)) -> 0.26 | G79: =IF(B79="","",VLOOKUP(D79,Tablas!$B$2:$H$13,7,FALSE)) -> 83577.2 | H79: 0.564831274 | I79: 113880 | J79: 9883544619 | K79: 8840379802 | L79: 7907316460 | M79: 7072733864 | N79: 6326237803 | O79: 5658531130 | P79: 5061297969 | Q79: 4527100152 | R79: 4049284572 | S79: 3621900333 | T79: 3239624627 | U79: 2897696446 | V79: 2591857286 | W79: 2318298109 | X79: 2073611905 | Y79: 7.606941508e+10 | Z79: 1521388.302
A80: =IF(ISBLANK(InfoPro!A74),"",InfoPro!A74) -> SC_1852_A2 | B80: =IF(ISBLANK(InfoPro!B74),"",InfoPro!B74) -> Helios Natagaima II - 50MW | C80: =IF(ISBLANK(InfoPro!E74),"",InfoPro!E74) -> 50 | D80: =IF(ISBLANK(InfoPro!F74),"",InfoPro!F74) -> Solar FV | E80: =IF(ISBLANK(InfoPro!I74),"",YEAR(InfoPro!I74)-$H$3) -> 2 | F80: =IF(B80="","",VLOOKUP(D80,Tablas!$B$2:$E$13,2,FALSE)) -> 0.26 | G80: =IF(B80="","",VLOOKUP(D80,Tablas!$B$2:$H$13,7,FALSE)) -> 83577.2 | H80: 0.564831274 | I80: 113880 | J80: 9883544619 | K80: 8840379802 | L80: 7907316460 | M80: 7072733864 | N80: 6326237803 | O80: 5658531130 | P80: 5061297969 | Q80: 4527100152 | R80: 4049284572 | S80: 3621900333 | T80: 3239624627 | U80: 2897696446 | V80: 2591857286 | W80: 2318298109 | X80: 2073611905 | Y80: 7.606941508e+10 | Z80: 1521388.302
A81: =IF(ISBLANK(InfoPro!A75),"",InfoPro!A75) -> SC_1778_A1 | B81: =IF(ISBLANK(InfoPro!B75),"",InfoPro!B75) -> Paraiso Solar _ 9.9MW | C81: =IF(ISBLANK(InfoPro!E75),"",InfoPro!E75) -> 9.9 | D81: =IF(ISBLANK(InfoPro!F75),"",InfoPro!F75) -> Solar FV | E81: =IF(ISBLANK(InfoPro!I75),"",YEAR(InfoPro!I75)-$H$3) -> 1 | F81: =IF(B81="","",VLOOKUP(D81,Tablas!$B$2:$E$13,2,FALSE)) -> 0.26 | G81: =IF(B81="","",VLOOKUP(D81,Tablas!$B$2:$H$13,7,FALSE)) -> 83577.2 | H81: 0.564831274 | I81: 22548.24 | J81: 2187860971 | K81: 1956941835 | L81: 1750395201 | M81: 1565648659 | N81: 1400401305 | O81: 1252595085 | P81: 1120389164 | Q81: 1002136998 | R81: 896365830 | S81: 801758345.3 | T81: 717136265.9 | U81: 641445676.1 | V81: 573743896.3 | W81: 513187742.7 | X81: 459023025.7 | Y81: 1.683903e+10 | Z81: 1700912.121
A82: =IF(ISBLANK(InfoPro!A76),"",InfoPro!A76) -> SC_1828_A1 | B82: =IF(ISBLANK(InfoPro!B76),"",InfoPro!B76) -> Parque Fotovoltaico Santa Rita | C82: =IF(ISBLANK(InfoPro!E76),"",InfoPro!E76) -> 9.9 | D82: =IF(ISBLANK(InfoPro!F76),"",InfoPro!F76) -> Solar FV | E82: =IF(ISBLANK(InfoPro!I76),"",YEAR(InfoPro!I76)-$H$3) -> 1 | F82: =IF(B82="","",VLOOKUP(D82,Tablas!$B$2:$E$13,2,FALSE)) -> 0.26 | G82: =IF(B82="","",VLOOKUP(D82,Tablas!$B$2:$H$13,7,FALSE)) -> 83577.2 | H82: 0.564831274 | I82: 22548.24 | J82: 2187860971 | K82: 1956941835 | L82: 1750395201 | M82: 1565648659 | N82: 1400401305 | O82: 1252595085 | P82: 1120389164 | Q82: 1002136998 | R82: 896365830 | S82: 801758345.3 | T82: 717136265.9 | U82: 641445676.1 | V82: 573743896.3 | W82: 513187742.7 | X82: 459023025.7 | Y82: 1.683903e+10 | Z82: 1700912.121
A83: =IF(ISBLANK(InfoPro!A77),"",InfoPro!A77) -> SC_1828_A2 | B83: =IF(ISBLANK(InfoPro!B77),"",InfoPro!B77) -> Parque Fotovoltaico Santa Rita | C83: =IF(ISBLANK(InfoPro!E77),"",InfoPro!E77) -> 9.9 | D83: =IF(ISBLANK(InfoPro!F77),"",InfoPro!F77) -> Solar FV | E83: =IF(ISBLANK(InfoPro!I77),"",YEAR(InfoPro!I77)-$H$3) -> 1 | F83: =IF(B83="","",VLOOKUP(D83,Tablas!$B$2:$E$13,2,FALSE)) -> 0.26 | G83: =IF(B83="","",VLOOKUP(D83,Tablas!$B$2:$H$13,7,FALSE)) -> 83577.2 | H83: 0.564831274 | I83: 22548.24 | J83: 2187860971 | K83: 1956941835 | L83: 1750395201 | M83: 1565648659 | N83: 1400401305 | O83: 1252595085 | P83: 1120389164 | Q83: 1002136998 | R83: 896365830 | S83: 801758345.3 | T83: 717136265.9 | U83: 641445676.1 | V83: 573743896.3 | W83: 513187742.7 | X83: 459023025.7 | Y83: 1.683903e+10 | Z83: 1700912.121
A84: =IF(ISBLANK(InfoPro!A78),"",InfoPro!A78) -> SC_1767_A1 | B84: =IF(ISBLANK(InfoPro!B78),"",InfoPro!B78) -> Los Rosales 9,9 MW | C84: =IF(ISBLANK(InfoPro!E78),"",InfoPro!E78) -> 9.9 | D84: =IF(ISBLANK(InfoPro!F78),"",InfoPro!F78) -> Solar FV | E84: =IF(ISBLANK(InfoPro!I78),"",YEAR(InfoPro!I78)-$H$3) -> 1 | F84: =IF(B84="","",VLOOKUP(D84,Tablas!$B$2:$E$13,2,FALSE)) -> 0.26 | G84: =IF(B84="","",VLOOKUP(D84,Tablas!$B$2:$H$13,7,FALSE)) -> 83577.2 | H84: 0.564831274 | I84: 22548.24 | J84: 2187860971 | K84: 1956941835 | L84: 1750395201 | M84: 1565648659 | N84: 1400401305 | O84: 1252595085 | P84: 1120389164 | Q84: 1002136998 | R84: 896365830 | S84: 801758345.3 | T84: 717136265.9 | U84: 641445676.1 | V84: 573743896.3 | W84: 513187742.7 | X84: 459023025.7 | Y84: 1.683903e+10 | Z84: 1700912.121
A85: =IF(ISBLANK(InfoPro!A79),"",InfoPro!A79) -> SC_2006_A1 | B85: =IF(ISBLANK(InfoPro!B79),"",InfoPro!B79) -> JUNCAL 1 | C85: =IF(ISBLANK(InfoPro!E79),"",InfoPro!E79) -> 4.9 | D85: =IF(ISBLANK(InfoPro!F79),"",InfoPro!F79) -> Solar FV | E85: =IF(ISBLANK(InfoPro!I79),"",YEAR(InfoPro!I79)-$H$3) -> 1 | F85: =IF(B85="","",VLOOKUP(D85,Tablas!$B$2:$E$13,2,FALSE)) -> 0.26 | G85: =IF(B85="","",VLOOKUP(D85,Tablas!$B$2:$H$13,7,FALSE)) -> 83577.2 | H85: 0.564831274 | I85: 11160.24 | J85: 1082880683 | K85: 968587372.6 | L85: 866357220.6 | M85: 774917013.1 | N85: 693127918.7 | O85: 619971304.7 | P85: 554536050.7 | Q85: 496007201 | R85: 443655814.8 | S85: 396829888.1 | T85: 354946232.6 | U85: 317483213.4 | V85: 283974251.7 | W85: 254002014.1 | X85: 227193214.7 | Y85: 8334469393 | Z85: 1700912.121
A86: =IF(ISBLANK(InfoPro!A80),"",InfoPro!A80) -> SC_2038_A2 | B86: =IF(ISBLANK(InfoPro!B80),"",InfoPro!B80) -> TRAPICHITO SOLAR - 40 MW | C86: =IF(ISBLANK(InfoPro!E80),"",InfoPro!E80) -> 40 | D86: =IF(ISBLANK(InfoPro!F80),"",InfoPro!F80) -> Solar FV | E86: =IF(ISBLANK(InfoPro!I80),"",YEAR(InfoPro!I80)-$H$3) -> 3 | F86: =IF(B86="","",VLOOKUP(D86,Tablas!$B$2:$E$13,2,FALSE)) -> 0.26 | G86: =IF(B86="","",VLOOKUP(D86,Tablas!$B$2:$H$13,7,FALSE)) -> 83577.2 | H86: 0.564831274 | I86: 91104 | J86: =IF($I86="","",(1/(1+$C$3)^(J$6+$E86))*$I86*$C$2*$H86) -> 7072303842 | K86: 6325853168 | L86: 5658187091 | M86: 5060990242 | N86: 4526824904 | O86: 4049038376 | P86: 3621680121 | Q86: 3239427658 | R86: 2897520266 | S86: 2591699701 | T86: 2318157157 | U86: 2073485829 | V86: 1854638488 | W86: 1658889524 | X86: 1483801005 | Y86: 5.443249737e+10 | Z86: 1360812.434
A87: =IF(ISBLANK(InfoPro!A81),"",InfoPro!A81) -> SC_2038_A1 | B87: =IF(ISBLANK(InfoPro!B81),"",InfoPro!B81) -> TRAPICHITO SOLAR - 40 MW | C87: =IF(ISBLANK(InfoPro!E81),"",InfoPro!E81) -> 40 | D87: =IF(ISBLANK(InfoPro!F81),"",InfoPro!F81) -> Solar FV | E87: =IF(ISBLANK(InfoPro!I81),"",YEAR(InfoPro!I81)-$H$3) -> 3 | F87: =IF(B87="","",VLOOKUP(D87,Tablas!$B$2:$E$13,2,FALSE)) -> 0.26 | G87: =IF(B87="","",VLOOKUP(D87,Tablas!$B$2:$H$13,7,FALSE)) -> 83577.2 | H87: 0.564831274 | I87: 91104 | J87: 7072303842 | K87: 6325853168 | L87: 5658187091 | M87: 5060990242 | N87: 4526824904 | O87: 4049038376 | P87: 3621680121 | Q87: 3239427658 | R87: 2897520266 | S87: 2591699701 | T87: 2318157157 | U87: 2073485829 | V87: 1854638488 | W87: 1658889524 | X87: 1483801005 | Y87: 5.443249737e+10 | Z87: 1360812.434
A88: =IF(ISBLANK(InfoPro!A82),"",InfoPro!A82) -> SC_1777_A1 | B88: =IF(ISBLANK(InfoPro!B82),"",InfoPro!B82) -> Sol Bochica | C88: =IF(ISBLANK(InfoPro!E82),"",InfoPro!E82) -> 19.9 | D88: =IF(ISBLANK(InfoPro!F82),"",InfoPro!F82) -> Solar FV | E88: =IF(ISBLANK(InfoPro!I82),"",YEAR(InfoPro!I82)-$H$3) -> 1 | F88: =IF(B88="","",VLOOKUP(D88,Tablas!$B$2:$E$13,2,FALSE)) -> 0.26 | G88: =IF(B88="","",VLOOKUP(D88,Tablas!$B$2:$H$13,7,FALSE)) -> 83577.2 | H88: 0.564831274 | I88: 45324.24 | J88: 4397821548 | K88: 3933650758 | L88: 3518471161 | M88: 3147111951 | N88: 2814948078 | O88: 2517842646 | P88: 2252095390 | Q88: 2014396592 | R88: 1801785860 | S88: 1611615260 | T88: 1441516332 | U88: 1289370601 | V88: 1153283186 | W88: 1031559200 | X88: 922682647.6 | Y88: 3.384815121e+10 | Z88: 1700912.121
A89: =IF(ISBLANK(InfoPro!A83),"",InfoPro!A83) -> SC_1777_A2 | B89: =IF(ISBLANK(InfoPro!B83),"",InfoPro!B83) -> Sol Bochica | C89: =IF(ISBLANK(InfoPro!E83),"",InfoPro!E83) -> 19.9 | D89: =IF(ISBLANK(InfoPro!F83),"",InfoPro!F83) -> Solar FV | E89: =IF(ISBLANK(InfoPro!I83),"",YEAR(InfoPro!I83)-$H$3) -> 1 | F89: =IF(B89="","",VLOOKUP(D89,Tablas!$B$2:$E$13,2,FALSE)) -> 0.26 | G89: =IF(B89="","",VLOOKUP(D89,Tablas!$B$2:$H$13,7,FALSE)) -> 83577.2 | H89: 0.564831274 | I89: 45324.24 | J89: 4397821548 | K89: 3933650758 | L89: 3518471161 | M89: 3147111951 | N89: 2814948078 | O89: 2517842646 | P89: 2252095390 | Q89: 2014396592 | R89: 1801785860 | S89: 1611615260 | T89: 1441516332 | U89: 1289370601 | V89: 1153283186 | W89: 1031559200 | X89: 922682647.6 | Y89: 3.384815121e+10 | Z89: 1700912.121
A90: =IF(ISBLANK(InfoPro!A84),"",InfoPro!A84) -> SC_1930_A1 | B90: =IF(ISBLANK(InfoPro!B84),"",InfoPro!B84) -> PV José Maria Cordova | C90: =IF(ISBLANK(InfoPro!E84),"",InfoPro!E84) -> 9.9 | D90: =IF(ISBLANK(InfoPro!F84),"",InfoPro!F84) -> Solar FV | E90: =IF(ISBLANK(InfoPro!I84),"",YEAR(InfoPro!I84)-$H$3) -> 2 | F90: =IF(B90="","",VLOOKUP(D90,Tablas!$B$2:$E$13,2,FALSE)) -> 0.26 | G90: =IF(B90="","",VLOOKUP(D90,Tablas!$B$2:$H$13,7,FALSE)) -> 83577.2 | H90: 0.564831274 | I90: 22548.24 | J90: 1956941835 | K90: 1750395201 | L90: 1565648659 | M90: 1400401305 | N90: 1252595085 | O90: 1120389164 | P90: 1002136998 | Q90: 896365830 | R90: 801758345.3 | S90: 717136265.9 | T90: 641445676.1 | U90: 573743896.3 | V90: 513187742.7 | W90: 459023025.7 | X90: 410575157.1 | Y90: 1.506174419e+10 | Z90: 1521388.302
A91: =IF(ISBLANK(InfoPro!A85),"",InfoPro!A85) -> SC_2004_A1 | B91: =IF(ISBLANK(InfoPro!B85),"",InfoPro!B85) -> Arreboles l | C91: =IF(ISBLANK(InfoPro!E85),"",InfoPro!E85) -> 19.9 | D91: =IF(ISBLANK(InfoPro!F85),"",InfoPro!F85) -> Solar FV | E91: =IF(ISBLANK(InfoPro!I85),"",YEAR(InfoPro!I85)-$H$3) -> 2 | F91: =IF(B91="","",VLOOKUP(D91,Tablas!$B$2:$E$13,2,FALSE)) -> 0.26 | G91: =IF(B91="","",VLOOKUP(D91,Tablas!$B$2:$H$13,7,FALSE)) -> 83577.2 | H91: 0.564831274 | I91: 45324.24 | J91: 3933650758 | K91: 3518471161 | L91: 3147111951 | M91: 2814948078 | N91: 2517842646 | O91: 2252095390 | P91: 2014396592 | Q91: 1801785860 | R91: 1611615260 | S91: 1441516332 | T91: 1289370601 | U91: 1153283186 | V91: 1031559200 | W91: 922682647.6 | X91: 825297538.1 | Y91: 3.02756272e+10 | Z91: 1521388.302
A92: =IF(ISBLANK(InfoPro!A86),"",InfoPro!A86) -> SC_2004_A2 | B92: =IF(ISBLANK(InfoPro!B86),"",InfoPro!B86) -> Arreboles l | C92: =IF(ISBLANK(InfoPro!E86),"",InfoPro!E86) -> 19.9 | D92: =IF(ISBLANK(InfoPro!F86),"",InfoPro!F86) -> Solar FV | E92: =IF(ISBLANK(InfoPro!I86),"",YEAR(InfoPro!I86)-$H$3) -> 2 | F92: =IF(B92="","",VLOOKUP(D92,Tablas!$B$2:$E$13,2,FALSE)) -> 0.26 | G92: =IF(B92="","",VLOOKUP(D92,Tablas!$B$2:$H$13,7,FALSE)) -> 83577.2 | H92: 0.564831274 | I92: 45324.24 | J92: 3933650758 | K92: 3518471161 | L92: 3147111951 | M92: 2814948078 | N92: 2517842646 | O92: 2252095390 | P92: 2014396592 | Q92: 1801785860 | R92: 1611615260 | S92: 1441516332 | T92: 1289370601 | U92: 1153283186 | V92: 1031559200 | W92: 922682647.6 | X92: 825297538.1 | Y92: 3.02756272e+10 | Z92: 1521388.302
A93: =IF(ISBLANK(InfoPro!A87),"",InfoPro!A87) -> SC_2151_A1 | B93: =IF(ISBLANK(InfoPro!B87),"",InfoPro!B87) -> El Jaspe | C93: =IF(ISBLANK(InfoPro!E87),"",InfoPro!E87) -> 19.9 | D93: =IF(ISBLANK(InfoPro!F87),"",InfoPro!F87) -> Solar FV | E93: =IF(ISBLANK(InfoPro!I87),"",YEAR(InfoPro!I87)-$H$3) -> 1 | F93: =IF(B93="","",VLOOKUP(D93,Tablas!$B$2:$E$13,2,FALSE)) -> 0.26 | G93: =IF(B93="","",VLOOKUP(D93,Tablas!$B$2:$H$13,7,FALSE)) -> 83577.2 | H93: 0.564831274 | I93: 45324.24 | J93: 4397821548 | K93: 3933650758 | L93: 3518471161 | M93: 3147111951 | N93: 2814948078 | O93: 2517842646 | P93: 2252095390 | Q93: 2014396592 | R93: 1801785860 | S93: 1611615260 | T93: 1441516332 | U93: 1289370601 | V93: 1153283186 | W93: 1031559200 | X93: 922682647.6 | Y93: 3.384815121e+10 | Z93: 1700912.121
A94: =IF(ISBLANK(InfoPro!A88),"",InfoPro!A88) -> SC_2114_A1 | B94: =IF(ISBLANK(InfoPro!B88),"",InfoPro!B88) -> Arcadia | C94: =IF(ISBLANK(InfoPro!E88),"",InfoPro!E88) -> 8 | D94: =IF(ISBLANK(InfoPro!F88),"",InfoPro!F88) -> Solar FV | E94: =IF(ISBLANK(InfoPro!I88),"",YEAR(InfoPro!I88)-$H$3) -> 1 | F94: =IF(B94="","",VLOOKUP(D94,Tablas!$B$2:$E$13,2,FALSE)) -> 0.26 | G94: =IF(B94="","",VLOOKUP(D94,Tablas!$B$2:$H$13,7,FALSE)) -> 83577.2 | H94: 0.564831274 | I94: 18220.8 | J94: 1767968461 | K94: 1581367139 | L94: 1414460768 | M94: 1265170634 | N94: 1131637418 | O94: 1012198048 | P94: 905364980.8 | Q94: 809807675.1 | R94: 724336024.2 | S94: 647885531.5 | T94: 579504053.2 | U94: 518339940.3 | V94: 463631431.4 | W94: 414697165.8 | X94: 370927697.5 | Y94: 1.360729697e+10 | Z94: 1700912.121
A95: =IF(ISBLANK(InfoPro!A89),"",InfoPro!A89) -> SC_2114_A2 | B95: =IF(ISBLANK(InfoPro!B89),"",InfoPro!B89) -> Arcadia | C95: =IF(ISBLANK(InfoPro!E89),"",InfoPro!E89) -> 8 | D95: =IF(ISBLANK(InfoPro!F89),"",InfoPro!F89) -> Solar FV | E95: =IF(ISBLANK(InfoPro!I89),"",YEAR(InfoPro!I89)-$H$3) -> 1 | F95: =IF(B95="","",VLOOKUP(D95,Tablas!$B$2:$E$13,2,FALSE)) -> 0.26 | G95: =IF(B95="","",VLOOKUP(D95,Tablas!$B$2:$H$13,7,FALSE)) -> 83577.2 | H95: 0.564831274 | I95: 18220.8 | J95: 1767968461 | K95: 1581367139 | L95: 1414460768 | M95: 1265170634 | N95: 1131637418 | O95: 1012198048 | P95: 905364980.8 | Q95: 809807675.1 | R95: 724336024.2 | S95: 647885531.5 | T95: 579504053.2 | U95: 518339940.3 | V95: 463631431.4 | W95: 414697165.8 | X95: 370927697.5 | Y95: 1.360729697e+10 | Z95: 1700912.121
A96: =IF(ISBLANK(InfoPro!A90),"",InfoPro!A90) -> SC_2105_A1 | B96: =IF(ISBLANK(InfoPro!B90),"",InfoPro!B90) -> Misak | C96: =IF(ISBLANK(InfoPro!E90),"",InfoPro!E90) -> 80 | D96: =IF(ISBLANK(InfoPro!F90),"",InfoPro!F90) -> Solar FV | E96: =IF(ISBLANK(InfoPro!I90),"",YEAR(InfoPro!I90)-$H$3) -> 3 | F96: =IF(B96="","",VLOOKUP(D96,Tablas!$B$2:$E$13,2,FALSE)) -> 0.26 | G96: =IF(B96="","",VLOOKUP(D96,Tablas!$B$2:$H$13,7,FALSE)) -> 83577.2 | H96: 0.564831274 | I96: 182208 | J96: =IF($I96="","",(1/(1+$C$3)^(J$6+$E96))*$I96*$C$2*$H96) -> 1.414460768e+10 | K96: 1.265170634e+10 | L96: 1.131637418e+10 | M96: 1.012198048e+10 | N96: 9053649808 | O96: 8098076751 | P96: 7243360242 | Q96: 6478855315 | R96: 5795040532 | S96: 5183399403 | T96: 4636314314 | U96: 4146971658 | V96: 3709276975 | W96: 3317779048 | X96: 2967602010 | Y96: 1.088649947e+11 | Z96: 1360812.434
A97: =IF(ISBLANK(InfoPro!A91),"",InfoPro!A91) -> SC_2105_A2 | B97: =IF(ISBLANK(InfoPro!B91),"",InfoPro!B91) -> Misak | C97: =IF(ISBLANK(InfoPro!E91),"",InfoPro!E91) -> 80 | D97: =IF(ISBLANK(InfoPro!F91),"",InfoPro!F91) -> Solar FV | E97: =IF(ISBLANK(InfoPro!I91),"",YEAR(InfoPro!I91)-$H$3) -> 3 | F97: =IF(B97="","",VLOOKUP(D97,Tablas!$B$2:$E$13,2,FALSE)) -> 0.26 | G97: =IF(B97="","",VLOOKUP(D97,Tablas!$B$2:$H$13,7,FALSE)) -> 83577.2 | H97: 0.564831274 | I97: 182208 | J97: 1.414460768e+10 | K97: 1.265170634e+10 | L97: 1.131637418e+10 | M97: 1.012198048e+10 | N97: 9053649808 | O97: 8098076751 | P97: 7243360242 | Q97: 6478855315 | R97: 5795040532 | S97: 5183399403 | T97: 4636314314 | U97: 4146971658 | V97: 3709276975 | W97: 3317779048 | X97: 2967602010 | Y97: 1.088649947e+11 | Z97: 1360812.434
